Workbook

Sheet 1 au 7 janvier
A1: Opérateur | B1: Numéro de véhicule | C1: Date de début | D1: Ville | E1: État / Province | F1: Pays | G1: LAYOVER | H1: Commentaires
A2: Auger, Dannick (149) | B2: 2016251 | C2: 2017-01-05T19:13:53 | D2: Blandford | E2: MA | F2: United States | G2: Journée non complète | H2: 547 km
A3: Beaulieu, Julien (162) | B3: 2014194 | C3: 2017-01-01T12:56:09 | D3: Baytown | E3: TX | F3: United States | G3: Fin de semaine
A4: Beaulieu, Julien (162) | B4: 2014194 | C4: 2017-01-02T12:58:08 | D4: Baytown | E4: TX | F4: United States | G4: 1 Journée compète semaine
A5: Bronsard, Hubert (91) | B5: 57450 | C5: 2017-01-01T09:33:25 | G5: Fin de semaine
A6: Bronsard, Hubert (91) | B6: 200783 | C6: 2017-01-02T14:08:09 | D6: Lake Station | E6: IN | F6: United States | G6: Surdimensionné | H6: journer non complet rouler 348 km
A7: Bronsard, Hubert (91) | B7: 200783 | C7: 2017-01-03T17:10:04 | D7: Smiths Creek | E7: MI | F7: United States | G7: Surdimensionné
A8: Charette, Alexandre (83) | B8: 2015217 | C8: 2017-01-03T17:23:00 | D8: London | E8: ON | F8: Canada | G8: Surdimensionné | H8: 12' wide
A9: Charette, Alexandre (83) | B9: 2015217 | C9: 2017-01-04T18:00:27 | D9: Wilmington | E9: IL | F9: United States | G9: Surdimensionné | H9: 12` de large
A10: Charette, Alexandre (83) | B10: 2015217 | C10: 2017-01-05T18:17:31 | D10: Neosho | E10: MO | F10: United States | G10: Surdimensionné | H10: 12` de large
A11: Charette, Alexandre (83) | B11: 2015217 | C11: 2017-01-06T19:26:34 | D11: McLean | E11: TX | F11: United States | G11: Surdimensionné | H11: 12` de large
A12: Charette, Alexandre (83) | B12: 2015217 | C12: 2017-01-07T18:56:41 | D12: Las Cruces | E12: NM | F12: United States | G12: Surdimensionné | H12: 12` de large
A13: Chartrand, Patrice (99) | B13: 2014206 | C13: 2017-01-03T17:40:35 | D13: London | E13: ON | F13: Canada | G13: Surdimensionné
A14: Chartrand, Patrice (99) | B14: 2014206 | C14: 2017-01-04T17:35:13 | D14: Morris | E14: IL | F14: United States | G14: Surdimensionné
A15: Chartrand, Patrice (99) | B15: 2014206 | C15: 2017-01-05T17:43:58 | D15: Avon | E15: MN | F15: United States | G15: Surdimensionné
A16: Chartrand, Patrice (99) | B16: 2014206 | C16: 2017-01-06T21:07:30 | D16: Williston | E16: ND | F16: United States | G16: Surdimensionné
A17: Chartrand, Patrice (99) | B17: 2014206 | C17: 2017-01-07T19:06:51 | D17: Belgrade | E17: MT | F17: United States | G17: Surdimensionné
A18: Cormier, Luc (14) | B18: 2016257 | C18: 2017-01-07T17:10:14 | D18: Skippers | E18: VA | F18: United States | G18: Fin de semaine | H18: j'ai pas rouler tout le journée causé température tempête de neige je me suis parcker trop dangereux et aviser Steve Bissonnette la raison de mon arret
A19: coutu martin | B19: 2009-96 | C19: 2017-01-02 | D19: oak grove | E19: ky | F19: United States | G19: Surdimensionné
A20: coutu martin | B20: 2009-96 | C20: 2017-01-03 | D20: lauderdale | E20: ms | F20: United States | G20: Surdimensionné
A21: coutu martin | B21: 2009-96 | C21: 2017-01-04 | D21: BATON ROUGE | E21: LA | F21: United States | G21: Surdimensionné
A22: coutu martin | B22: 2009-96 | C22: 2017-01-05 | D22: BATON ROUGE | E22: LA | F22: United States | G22: Surdimensionné
A23: coutu martin | B23: 2009-96 | C23: 2017-01-05 | D23: BATON ROUGE | E23: LA | F23: United States | G23: TWIC
A24: coutu martin | B24: 2009-96 | C24: 2017-01-06 | D24: SENATOBIE | E24: MS | F24: United States | G24: Surdimensionné
A25: coutu martin | B25: 2009-96 | C25: 2017-01-07 | D25: WAPAKANETA | E25: OH | F25: United States | G25: Surdimensionné
A26: Deschênes, Jean-Michel (108) | B26: 2016260 | C26: 2017-01-05T17:02:45 | D26: Belleville | E26: ON | F26: Canada | G26: Surdimensionné | H26: ontario cerfew
A27: Deschênes, Jean-Michel (108) | B27: 2016260 | C27: 2017-01-06T17:31:54 | D27: Fremont | E27: IN | F27: United States | G27: Surdimensionné | H27: cerfew indiana
A28: Deschênes, Jean-Michel (108) | B28: 2016260 | C28: 2017-01-07T18:05:56 | D28: Hayti | E28: MO | F28: United States | G28: Surdimensionné | H28: cerfew missouri
A29: DESJARDINS WILLIAM | B29: 2013139 | C29: 2017-01-06 | D29: HALLANDALE BEACH FL | E29: FL | F29: United States | G29: Journée non complète
A30: DESJARDINS WILLIAM | B30: 2013139 | C30: 2017-01-07 | D30: FORT PIERCE | E30: FL | F30: United States | G30: Journée non complète
A31: Desrochers, Caroline (23) | B31: 2017316 | C31: 2017-01-01T19:25:20 | D31: Fort Pierce | E31: FL | F31: United States | G31: Fin de semaine | H31: client fermé, livraison impossible
A32: Desrochers, Caroline (23) | B32: 2017316 | C32: 2017-01-02T08:47:03 | D32: Doral | E32: FL | F32: United States | G32: 1 Journée compète semaine | H32: ok JF ok LV
A33: DUHAMEL DANIEL | B33: 2015218 | C33: 2017-01-01 | D33: MEDINA | E33: OH | F33: United States | G33: 1 Journée compète semaine
A34: DUHAMEL DANIEL | B34: 2015218 | C34: 2017-01-02 | D34: MEDINA | E34: OH | F34: United States | G34: 2 Journée compète semaine
A35: DUHAMEL DANIEL | B35: 2015218 | C35: 2017-01-09 | D35: HOUSTON | E35: TX | F35: United States | G35: 3 Journée compète semaine
A36: Émery, Yannick (140) | B36: 2016232 | C36: 2017-01-02 | D36: WOODSTOCK ON | E36: TX | F36: United States | G36: Surdimensionné | H36: lay over
A37: Émery, Yannick (140) | B37: 2016232 | C37: 2017-01-03 | D37: GASTON IN | E37: IN | F37: United States | G37: Surdimensionné
A38: Émery, Yannick (140) | B38: 2016232 | C38: 2017-01-04 | D38: HAZEN AK | E38: AK | F38: United States | G38: Surdimensionné
A39: Émery, Yannick (140) | B39: 2016232 | C39: 2017-01-05 | D39: Baytown | E39: TX | F39: United States | G39: Surdimensionné | H39: lay over
A40: Émery, Yannick (140) | B40: 2016232 | C40: 2017-01-06 | D40: LAPORTE TX | E40: TX | F40: United States | G40: Journée non complète
A41: Émery, Yannick (140) | B41: 2016232 | C41: 2017-01-07 | D41: Baytown | E41: TX | F41: United States | G41: Fin de semaine
A42: Gallant, Patrick (144) | B42: 2016263 | C42: 2017-01-03T17:26:10 | D42: Portland | E42: OR | F42: United States | G42: Journée non complète | H42: attends qui me trouve un voyage
A43: Gallant, Patrick (144) | B43: 2016263 | C43: 2017-01-04T18:17:50 | D43: Portland | E43: OR | F43: United States | G43: 1 Journée compète semaine | H43: attends que gilles me trouve un voyage
A44: Gallant, Patrick (144) | B44: 2016263 | C44: 2017-01-05T22:30:42 | D44: Baker City | E44: OR | F44: United States | G44: Journée non complète
A45: Goumard, Edouard (39) | B45: 2015212 | C45: 2017-01-06T20:34:12 | D45: Evansdale | E45: IA | F45: United States | G45: Surdimensionné
A46: Goumard, Edouard (39) | B46: 2015212 | C46: 2017-01-07T20:52:00 | D46: LaSalle | E46: IL | F46: United States | G46: Surdimensionné
A47: GROLEAU ALEXANDRE | B47: 2016237 | C47: 2017-01-07 | D47: VERMILLION BAY ON | E47: ON | F47: Canada | G47: Journée non complète
A48: GUÉRARD ET ROBICHAUD | B48: 2016237 | C48: 2017-01-06 | D48: O'FALLON | E48: MO | F48: United States | G48: Surdimensionné
A49: GUÉRARD ET ROBICHAUD | B49: 2016237 | C49: 2017-01-07 | D49: MORRISTON ON | E49: ON | F49: Canada | G49: Surdimensionné
A50: Laframboise, Jocelyn (44) | B50: 2015223 | C50: 2017-01-05T17:56:58 | D50: Elk Run Heights | E50: IA | F50: United States | G50: Surdimensionné
A51: Laframboise, Jocelyn (44) | B51: 2015223 | C51: 2017-01-06T17:50:25 | D51: Attica | E51: MI | F51: United States | G51: Surdimensionné
A52: Laframboise, Jocelyn (44) | B52: 2015223 | C52: 2017-01-07T21:42:18 | D52: Greater Napanee | E52: ON | F52: Canada | G52: Surdimensionné
A53: Légaré, Jocelyn (78) | B53: 2016265 | C53: 2017-01-02 | D53: Greater Napanee | E53: ON | F53: Canada | G53: Surdimensionné
A54: Légaré, Jocelyn (78) | B54: 2016265 | C54: 2017-01-03T17:33:46 | D54: Gaston | E54: IN | F54: United States | G54: Surdimensionné | H54: law over
A55: Légaré, Jocelyn (78) | B55: 2016265 | C55: 2017-01-04T18:19:13 | D55: Hazen | E55: AR | F55: United States | G55: Surdimensionné | H55: law over
A56: Légaré, Jocelyn (78) | B56: 2016265 | C56: 2017-01-05T18:29:35 | D56: Baytown | E56: TX | F56: United States | G56: Surdimensionné | H56: law over
A57: Légaré, Jocelyn (78) | B57: 2016265 | C57: 2017-01-06T16:30:46 | D57: Baytown | E57: TX | F57: United States | G57: Journée non complète
A58: Légaré, Jocelyn (78) | B58: 2016265 | C58: 2017-01-07T16:07:44 | D58: Baytown | E58: TX | F58: United States | G58: Fin de semaine | H58: une journee complete arrêté a bayton texas
A59: Mayer, Jean-Francois (57) | B59: GNC319 | C59: 2017-01-05T17:23:40 | D59: New Freedom | E59: PA | F59: United States | G59: Surdimensionné
A60: Mayer, Jean-Francois (57) | B60: GNC319 | C60: 2017-01-06T18:08:14 | D60: Cardinal | E60: ON | F60: Canada | G60: Surdimensionné
A61: MCMULLEN PATRICE | B61: 2016259 | C61: 2017-01-04 | D61: BALTIMORE | E61: MD | F61: United States | G61: TWIC
A62: Mezerette, Serge (123) | B62: 2016236 | C62: 2017-01-03T17:13:25 | D62: Lanoraie | E62: QC | F62: Canada | G62: Surdimensionné
A63: Mezerette, Serge (123) | B63: 2016236 | C63: 2017-01-04T17:19:52 | D63: Prince William | E63: NB | F63: Canada | G63: Surdimensionné
A64: Perreault, Maxim (107) | B64: 2015214 | C64: 2017-01-03T18:38:18 | D64: Baltimore | E64: MD | F64: United States | G64: Journée non complète
A65: Perreault, Maxim (107) | B65: 2015214 | C65: 2017-01-04T16:28:42 | D65: Myerstown | E65: PA | F65: United States | G65: Surdimensionné | H65: .
A66: Perreault, Maxim (107) | B66: 2015214 | C66: 2017-01-04T16:28:42 | D66: BALTIMORE | E66: MD | F66: United States | G66: TWIC
A67: Perreault, Maxim (107) | B67: 2015214 | C67: 2017-01-05T20:11:11 | D67: Saint-Nicolas | E67: QC | F67: Canada | G67: Surdimensionné
A68: Pinet, Sylvain (46) | B68: 57450 | C68: 2017-01-01T08:29:54 | D68: DEAR PARK | E68: TX | F68: United States | G68: Fin de semaine
A69: Pinet, Sylvain (46) | B69: 57450 | C69: 2017-01-02T08:30:38 | D69: DEAR PARK | E69: TX | F69: United States | G69: 1 Journée compète semaine
A70: Pinet, Sylvain (46) | B70: 57450 | C70: 2017-01-03 | D70: ANNA | E70: TX | F70: United States | G70: Journée non complète
A71: Pinet, Sylvain (46) | B71: 57450 | C71: 2017-01-07 | D71: PORT HOPE | E71: ON | F71: Canada | G71: Journée non complète
A72: ROBERGE DANY | B72: 2016258 | C72: 2017-01-04 | D72: MIAMI GARDEN | E72: FL | F72: United States | G72: Journée non complète

Sheet Arsenault
B1: Arsenault Jean-Marie | E1: 02:00:00 | F1: Semaine du | N1: =#REF! ->  | P1: =#REF! ->  | T1: =#REF! ->  | U1: AU | V1: =#REF! -> 
A2: DATE / HEURES | B2: TEMPS | C2: ODOMÈTRE | D2: lieu | E2: Activité | F2: ATTENTE (HEURE) | G2: VILLE ET MANUTENTION (HEURE) | H2: SUPERLOAD (HEURE) | I2: DOUANES | J2: Transport explosif | K2: CONTACTS | L2: TWICK | N2: Surdimension 12' et moin | O2: Surdimension 12' et plus | P2: prime surdimenssion 12' et moin | Q2: prime surdimenssion 12' et plus | R2: PRIME NEW YORK | S2: ARRÊT JOURNÉE NON-COMPLÈTE | T2: ARRÊT CONPLET- JOURNÉE DE FIN DE SEMAINE | U2: ARRÊT JOURNÉE DE SEMAINE | V2: Arrêt obligatoir 36h | W2: Opérateur | X2: Numéro de véhicule | Y2: Date de début | Z2: Ville | AA2: État / Province | AB2: Pays | AC2: No commande | AD2: LAYOVER | AE2: Montant
F3: =IF(ISERROR(SEARCH("ATTENTE",E3)),"",$B3) ->  | G3: =IF(COUNTIF(E3,"*Formation*")+COUNTIF(E3,"*Travail de cours*")+COUNTIF(E3,"*réunion*")+COUNTIF(E3,"*escorte routière*")+COUNTIF(E3,"*courte distance*")>0,B3,"-") -> - | H3: =IF(ISERROR(SEARCH("superload: True",E3)),"",$B3) ->  | I3: =IF(ISERROR(SEARCH("Douane",E3)),"",1) ->  | J3: =IF(ISERROR(SEARCH("transport explosif",E3)),"",1) ->  | K3: =IF(COUNTIF(E3,"*toile: true*"),1,0)+IF(COUNTIF(E3,"*charger*"),1,0)+IF(COUNTIF(E3,"*déchargr*"),1,0)+IF(COUNTIF(E3,"*CHARGÉ: TRUE*"),1,0) -> 0 | L3: =IF(ISERROR(SEARCH("TWIC: True",E3)),"",1) ->  | M3: =LEN($N3) -> 0 | N3: =IFERROR(IF(LEFT(MID($E3,SEARCH("Largeur pi-po",$E3,1)+15,100),2)*1<12,LEFT(MID($E3,SEARCH("Largeur pi-po",$E3,1)+15,100),2)*1,""),"") ->  | O3: =IFERROR(IF(LEFT(MID($E3,SEARCH("Largeur pi-po",$E3,1)+15,100),2)*1>=12,LEFT(MID($E3,SEARCH("Largeur pi-po",$E3,1)+15,100),2)*1,""),"") ->  | P3: =IF(N3<12,1,"") ->  | Q3: =IF(O3="","",IF(O3>=12,1,"")) ->  | R3: =IF(ISERROR(SEARCH("PRIME N.Y: True",E3)),"",1) ->  | S3: =IF(ISERROR(SEARCH("Journée non complète",E3)),"",1) ->  | T3: =IF(ISERROR(SEARCH("Fin de semaine",E3)),"",1) ->  | U3: =IF(ISERROR(SEARCH("1 Journée compète semaine",E3)),"",1) ->  | V3: =IF(ISERROR(SEARCH("Arrêt obligatoir (36H)",E3)),"",1) -> 
A4: 2017-01-07T02:35:57 | D4: express terminal, 922 Grande Côte Ouest, Lanoraie, QC, Canada | E4: Connexion | F4: =IF(ISERROR(SEARCH("ATTENTE",E4)),"",$B4) ->  | G4: =IF(COUNTIF(E4,"*Formation*")+COUNTIF(E4,"*Travail de cours*")+COUNTIF(E4,"*réunion*")+COUNTIF(E4,"*escorte routière*")+COUNTIF(E4,"*courte distance*")>0,B4,"-") -> - | H4: =IF(ISERROR(SEARCH("superload: True",E4)),"",$B4) ->  | I4: =IF(ISERROR(SEARCH("Douane",E4)),"",1) ->  | J4: =IF(ISERROR(SEARCH("transport explosif",E4)),"",1) ->  | K4: =IF(COUNTIF(E4,"*toile: true*"),1,0)+IF(COUNTIF(E4,"*charger*"),1,0)+IF(COUNTIF(E4,"*déchargr*"),1,0)+IF(COUNTIF(E4,"*CHARGÉ: TRUE*"),1,0) -> 0 | L4: =IF(ISERROR(SEARCH("TWIC: True",E4)),"",1) ->  | M4: =LEN($N4) -> 0 | P4: =IF(N4<12,1,"") ->  | Q4: =IF(O4="","",IF(O4>=12,1,"")) ->  | R4: =IF(ISERROR(SEARCH("PRIME N.Y: True",E4)),"",1) ->  | S4: =IF(ISERROR(SEARCH("Journée non complète",E4)),"",1) ->  | T4: =IF(ISERROR(SEARCH("Fin de semaine",E4)),"",1) ->  | U4: =IF(ISERROR(SEARCH("1 Journée compète semaine",E4)),"",1) ->  | V4: =IF(ISERROR(SEARCH("Arrêt obligatoir (36H)",E4)),"",1) -> 
A5: 2017-01-07T02:37:22 | B5: 0.4790740741 | C5: 1.1 | D5: express terminal, 922 Grande Côte Ouest, Lanoraie, QC, Canada | E5: (3) Fin travail | G5: - | K5: 0 | M5: 0
A6: 2017-01-07T14:07:00 | D6: express terminal, 922 Grande Côte Ouest, Lanoraie, QC, Canada | E6: Connexion | G6: - | K6: 0 | M6: 0
A7: 2017-01-07T14:07:14 | B7: 0.0004282407407 | D7: express terminal, 922 Grande Côte Ouest, Lanoraie, QC, Canada | E7: (42) Atteler EQUIPMENT_NAME: LP533253 | G7: - | K7: 0 | M7: 0
A8: 2017-01-07T14:07:51 | B8: 0.0009606481481 | D8: express terminal, 922 Grande Côte Ouest, Lanoraie, QC, Canada | E8: (42) Atteler No commande: 90879 No commande 2: 90878 Nom du client: forge sorel ATTELER: True DÉTELER: False | G8: - | K8: 0 | M8: 0
A9: 2017-01-07T14:09:14 | B9: 0.01185185185 | D9: express terminal, 922 Grande Côte Ouest, Lanoraie, QC, Canada | E9: (40) V.A.D. VEHICLE_NO: 2016261 | G9: - | K9: 0 | M9: 0
A10: 2017-01-07T14:26:18 | B10: 0.002002314815 | C10: 0.2 | D10: express terminal, 922 Grande Côte Ouest, Lanoraie, QC, Canada | E10: (40) V.A.D. EQUIPMENT_NAME: LP533253 | G10: - | K10: 0 | M10: 0
A11: 2017-01-07T14:29:11 | B11: 0.08049768519 | C11: 158 | D11: express terminal, 922 Grande Côte Ouest, Lanoraie, QC, Canada | E11: (-) Conduite | G11: - | K11: 0 | M11: 0
A12: 2017-01-07T16:25:06 | B12: 0.01021990741 | D12: 20382 Stormont, Dundas and Glengarry County Road 2, Lancaster, ON, K0C 1N0, Canada | E12: (4) Pause | G12: - | K12: 0 | M12: 0
A13: 2017-01-07T16:39:49 | B13: 0.0007638888889 | D13: 20382 Stormont, Dundas and Glengarry County Road 2, Lancaster, ON, K0C 1N0, Canada | E13: (45) T.L.C. | G13: - | K13: 0 | M13: 0
A14: 2017-01-07T16:40:55 | B14: 0.1262037037 | C14: 297.3 | D14: 14-18 Stormont, Dundas and Glengarry County Road 2, Lancaster, ON, K0C 1N0, Canada | E14: (-) Conduite | G14: - | K14: 0 | M14: 0
A15: 2017-01-07T19:42:39 | B15: 0.001759259259 | C15: 0.1 | D15: 17278 Ontario 401, Brighton, ON, K0K 1H0, Canada | E15: (45) T.L.C. | G15: - | K15: 0 | M15: 0
A16: 2017-01-07T19:45:11 | B16: 0.05787037037 | C16: 76.9 | D16: 17278 Ontario 401, Brighton, ON, K0K 1H0, Canada | E16: (-) Conduite | G16: - | K16: 0 | M16: 0
A17: 2017-01-07T21:08:31 | B17: 0.02847222222 | C17: 3.4 | D17: Highway of Heroes, Newtonville, ON, L0A 1J0, Canada | E17: (4) Pause Note (optionelle): 401 tres slaut fermer 1 coter preut etre 2 ! | G17: - | K17: 0 | M17: 0
A18: 2017-01-07T21:49:31 | B18: 0.01431712963 | C18: 0.5 | D18: Highway of Heroes, Newtonville, ON, L0A 1J0, Canada | E18: (-) Conduite | G18: - | K18: 0 | M18: 0
A19: 2017-01-07T22:10:08 | B19: 0.001990740741 | D19: Highway of Heroes, Newcastle, ON, L1B, Canada | E19: (4) Pause | G19: - | K19: 0 | M19: 0
A20: 2017-01-07T22:13:00 | B20: 0.002511574074 | D20: Highway of Heroes, Newcastle, ON, L1B, Canada | E20: (45) T.L.C. | G20: - | K20: 0 | M20: 0
A21: 2017-01-07T22:16:37 | B21: 0.07179398148 | C21: 162.9 | D21: Highway of Heroes, Newcastle, ON, L1B, Canada | E21: (-) Conduite | G21: - | K21: 0 | M21: 0
A22: 695.5999756 | G22: - | K22: 0 | M22: 0
R23: =IF(ISERROR(SEARCH("PRIME N.Y: True",E23)),"",1) -> 
M24: commentaire
A25: Contact | E25: =SUM($K$3:K273) -> 0
A27: Kilométrage milles | E27: =A28*0.6214 -> 435.22856
A28: =SUM($C$3:C326) -> 700.4
A29: Over size kilométrage -10' | E29: =A30*0.6214 -> 0
A30: =MAX(C23:C319)-MIN(C23:C319) -> 0
A31: Over size kilométrage +10' | E31: =A32*0.6214 -> 0
A32: =MAX(C23:C319)-MIN(C23:C319) -> 0
A33: journée non complète | E33: =SUM($S$3:S273) -> 0
A35: Arrêt journée de semaine | E35: =SUM($U$3:$U271) -> 0
A37: Arrêt journée de fin semaine | E37: =SUM($T$3:$T271) -> 0
A39: Arrêt obligatoir 36h | E39: =SUM($V$3:$V271) -> 0
A41: Prime Surdimention 12' et moin | E41: =SUM($P$3:P273) -> 0
A43: Prime Surdimention 12' et plus | E43: =SUM($Q$3:Q275) -> 0
A45: TRAVAIL DE VILLE | E45: =SUM($G$3:G273) -> 00:00:00
A47: Prime New York | E47: =SUM(R3:R319) -> 0
A49: TWICK | E49: =SUM($L$3:L273) -> 0
A51: Douane | E51: =SUM($I$3:I273) -> 0
A53: Attente chargement | E53: =SUM($F$3:F273) -> 00:00:00

Sheet Auger D.
B1: Auger Dannick | E1: 02:00:00 | F1: Semaine du | N1: =#REF! ->  | P1: =#REF! ->  | T1: =#REF! ->  | U1: AU | V1: =#REF! -> 
A2: DATE / HEURES | B2: TEMPS | C2: ODOMÈTRE | D2: lieu | E2: Activité | F2: ATTENTE (HEURE) | G2: VILLE ET MANUTENTION (HEURE) | H2: SUPERLOAD (HEURE) | I2: DOUANES | J2: Transport explosif | K2: CONTACTS | L2: TWICK | N2: Surdimension 12' et moin | O2: Surdimension 12' et plus | P2: prime surdimenssion 12' et moin | Q2: prime surdimenssion 12' et plus | R2: PRIME NEW YORK | S2: ARRÊT JOURNÉE NON-COMPLÈTE | T2: ARRÊT CONPLET- JOURNÉE DE FIN DE SEMAINE | U2: ARRÊT JOURNÉE DE SEMAINE | V2: Arrêt obligatoir 36h | W2: Opérateur | X2: Numéro de véhicule | Y2: Date de début | Z2: Ville | AA2: État / Province | AB2: Pays | AC2: No commande | AD2: LAYOVER | AE2: Montant
F3: =IF(ISERROR(SEARCH("ATTENTE",E3)),"",$B3) ->  | G3: =IF(COUNTIF(E3,"*Formation*")+COUNTIF(E3,"*Travail de cours*")+COUNTIF(E3,"*réunion*")+COUNTIF(E3,"*escorte routière*")+COUNTIF(E3,"*courte distance*")>0,B3,"-") -> - | H3: =IF(ISERROR(SEARCH("superload: True",E3)),"",$B3) ->  | I3: =IF(ISERROR(SEARCH("Douane",E3)),"",1) ->  | J3: =IF(ISERROR(SEARCH("transport explosif",E3)),"",1) ->  | K3: =IF(COUNTIF(E3,"*toile: true*"),1,0)+IF(COUNTIF(E3,"*charger*"),1,0)+IF(COUNTIF(E3,"*déchargr*"),1,0)+IF(COUNTIF(E3,"*CHARGÉ: TRUE*"),1,0) -> 0 | L3: =IF(ISERROR(SEARCH("TWIC: True",E3)),"",1) ->  | M3: =LEN($N3) -> 0 | N3: =IFERROR(IF(LEFT(MID($E3,SEARCH("Largeur pi-po",$E3,1)+15,100),2)*1<12,LEFT(MID($E3,SEARCH("Largeur pi-po",$E3,1)+15,100),2)*1,""),"") ->  | O3: =IFERROR(IF(LEFT(MID($E3,SEARCH("Largeur pi-po",$E3,1)+15,100),2)*1>=12,LEFT(MID($E3,SEARCH("Largeur pi-po",$E3,1)+15,100),2)*1,""),"") ->  | P3: =IF(N3<12,1,"") ->  | Q3: =IF(O3="","",IF(O3>=12,1,"")) ->  | R3: =IF(ISERROR(SEARCH("PRIME N.Y: True",E3)),"",1) ->  | S3: =IF(ISERROR(SEARCH("Journée non complète",E3)),"",1) ->  | T3: =IF(ISERROR(SEARCH("Fin de semaine",E3)),"",1) ->  | U3: =IF(ISERROR(SEARCH("1 Journée compète semaine",E3)),"",1) ->  | V3: =IF(ISERROR(SEARCH("Arrêt obligatoir (36H)",E3)),"",1) -> 
A4: (jj/mm/aaaa hh:mm) | B4: (hh:mm:ss) | C4: (km) | F4: =IF(ISERROR(SEARCH("ATTENTE",E4)),"",$B4) ->  | G4: =IF(COUNTIF(E4,"*Formation*")+COUNTIF(E4,"*Travail de cours*")+COUNTIF(E4,"*réunion*")+COUNTIF(E4,"*escorte routière*")+COUNTIF(E4,"*courte distance*")>0,B4,"-") -> - | H4: =IF(ISERROR(SEARCH("superload: True",E4)),"",$B4) ->  | I4: =IF(ISERROR(SEARCH("Douane",E4)),"",1) ->  | J4: =IF(ISERROR(SEARCH("transport explosif",E4)),"",1) ->  | K4: =IF(COUNTIF(E4,"*toile: true*"),1,0)+IF(COUNTIF(E4,"*charger*"),1,0)+IF(COUNTIF(E4,"*déchargr*"),1,0)+IF(COUNTIF(E4,"*CHARGÉ: TRUE*"),1,0) -> 0 | L4: =IF(ISERROR(SEARCH("TWIC: True",E4)),"",1) ->  | M4: =LEN($N4) -> 0 | P4: =IF(N4<12,1,"") ->  | Q4: =IF(O4="","",IF(O4>=12,1,"")) ->  | R4: =IF(ISERROR(SEARCH("PRIME N.Y: True",E4)),"",1) ->  | S4: =IF(ISERROR(SEARCH("Journée non complète",E4)),"",1) ->  | T4: =IF(ISERROR(SEARCH("Fin de semaine",E4)),"",1) ->  | U4: =IF(ISERROR(SEARCH("1 Journée compète semaine",E4)),"",1) ->  | V4: =IF(ISERROR(SEARCH("Arrêt obligatoir (36H)",E4)),"",1) -> 
A5: 0 | G5: - | K5: 0 | M5: 0
A6: (hh:mm:ss) | B6: (hh:mm:ss) | C6: (km) | G6: - | K6: 0 | M6: 0
A7: 0 | G7: - | K7: 0 | M7: 0
A8: (hh:mm:ss) | B8: (hh:mm:ss) | C8: (km) | G8: - | K8: 0 | M8: 0
A9: 0 | G9: - | K9: 0 | M9: 0
A10: 2017-01-04T19:02:39 | D10: express terminal, 922 Grande Côte Ouest, Lanoraie, QC, Canada | E10: Connexion | G10: - | K10: 0 | M10: 0
A11: 2017-01-04T19:02:56 | B11: 0.0003472222222 | D11: express terminal, 922 Grande Côte Ouest, Lanoraie, QC, Canada | E11: (47) Identification remorque EQUIPMENT_NAME: LP533249 | G11: - | K11: 0 | M11: 0
A12: 2017-01-04T19:03:26 | B12: 6.944444444e-05 | D12: express terminal, 922 Grande Côte Ouest, Lanoraie, QC, Canada | E12: (40) V.A.D. VEHICLE_NO: 2016251 | G12: - | K12: 0 | M12: 0
A13: 2017-01-04T19:03:32 | B13: 0.005821759259 | D13: express terminal, 922 Grande Côte Ouest, Lanoraie, QC, Canada | E13: (40) V.A.D. EQUIPMENT_NAME: LP533249 | G13: - | K13: 0 | M13: 0
A14: 2017-01-04T19:11:55 | B14: 0.00380787037 | C14: 0.1 | D14: express terminal, 922 Grande Côte Ouest, Lanoraie, QC, Canada | E14: (42) Atteler No commande: 90565 Nom du client: équipements pinso ATTELER: True DÉTELER: False | G14: - | K14: 0 | M14: 0
A15: 2017-01-04T19:17:24 | B15: 0.07334490741 | C15: 146.1 | D15: express terminal, 922 Grande Côte Ouest, Lanoraie, QC, Canada | E15: (-) Conduite | G15: - | K15: 0 | M15: 0
A16: 2017-01-04T21:03:01 | B16: 0.1229050926 | D16: 130 Rue Authier, Saint-Alphonse-de-Granby, QC, J0E 2A0, Canada | E16: (2) Couchette | G16: - | K16: 0 | M16: 0
A17: 146.1000061 | G17: - | K17: 0 | M17: 0
A18: 2017-01-05T07:50:09 | B18: 6.944444444e-05 | D18: 130-164 Rue Authier, Saint-Alphonse-de-Granby, QC, J0E 2A0, Canada | E18: (40) V.A.D. VEHICLE_NO: 2016251 | G18: - | K18: 0 | M18: 0
A19: 2017-01-05T07:50:15 | B19: 0.01012731481 | C19: 0.09999999998 | D19: 130-164 Rue Authier, Saint-Alphonse-de-Granby, QC, J0E 2A0, Canada | E19: (40) V.A.D. EQUIPMENT_NAME: LP533249 | G19: - | K19: 0 | M19: 0
A20: 2017-01-05T08:04:50 | B20: 0.01017361111 | C20: 16.3 | D20: 108 Québec 139, Saint-Alphonse, QC, J0E, Canada | E20: (-) Conduite | G20: - | K20: 0 | M20: 0
A21: 2017-01-05T08:19:29 | B21: 0.01112268519 | D21: 520 Rue de la Rivière, Cowansville, QC, J2K 3G6, Canada | E21: (51) Décharger No commande: 90565 Voyage: Régulier Nom du client: équipements pinto TOILE: False TWIC: False PRIME N.Y: False Signature B/L: Oui ODOMÈTRE: 294262.9 | G21: - | K21: 1 | M21: 0
A22: 2017-01-05T08:35:30 | B22: 0.02123842593 | C22: 0.09999999998 | D22: 520 Rue de la Rivière, Cowansville, QC, J2K 3G6, Canada | E22: (4) Pause | G22: - | K22: 0 | M22: 0
A23: 2017-01-05T09:06:05 | B23: 0.05068287037 | C23: 108.9 | D23: 520 Rue de la Rivière, Cowansville, QC, J2K 3G6, Canada | E23: (-) Conduite | G23: - | K23: 0 | M23: 0
A24: 2017-01-05T10:19:04 | B24: 0.1249537037 | D24: 608-824 Québec 141, Coaticook, QC, J1A 2S5, Canada | E24: (49) Charger No commande: 90627 Nom du client: lague coaticook TOILE: False TWIC: False PRIME N.Y: False Signature B/L: Oui | F24: 01:50:00 | G24: - | K24: 1 | M24: 0
A25: 2017-01-05T13:19:00 | B25: 0.02357638889 | C25: 0.5 | D25: 608-824 Québec 141, Coaticook, QC, J1A 2S5, Canada | E25: (4) Pause | G25: - | K25: 0 | M25: 0
A26: 2017-01-05T13:52:57 | B26: 0.01726851852 | C26: 33.5 | D26: 591 Québec 141, Coaticook, QC, J1A 2S5, Canada | E26: (-) Conduite | G26: - | K26: 0 | M26: 0
A27: 2017-01-05T14:17:49 | B27: 0.01027777778 | C27: 0.09999999998 | D27: 800 Rue Dufferin, Stanstead, QC, J0B 3E0, Canada | E27: (4) Pause | G27: - | K27: 0 | M27: 0
A28: 2017-01-05T14:32:37 | B28: 0.003622685185 | C28: 2.3 | D28: 640 Chemin de Fairfax, Stanstead, QC, J0B, Canada | E28: (-) Conduite | G28: - | K28: 0 | M28: 0
A29: 2017-01-05T14:37:50 | B29: 0.002615740741 | C29: 0.1 | D29: John F. Kennedy International Highway, Derby, VT, 05830, United States | E29: (104) Douane | G29: - | I29: 1 | K29: 0 | M29: 0
A30: 2017-01-05T14:41:36 | B30: 0.0158912037 | D30: John F. Kennedy International Highway, Derby, VT, 05830, United States | E30: (4) Pause | G30: - | K30: 0 | M30: 0
A31: 2017-01-05T15:04:29 | B31: 0.0428125 | C31: 100.4 | D31: John F. Kennedy International Highway, Derby, VT, 05830, United States | E31: (-) Conduite | G31: - | K31: 0 | M31: 0
A32: 2017-01-05T16:06:08 | B32: 0.006238425926 | C32: 0.1 | D32: Interstate 91, Ryegate, VT, 05042, United States | E32: (45) T.L.C. | G32: - | K32: 0 | M32: 0
A33: 2017-01-05T16:15:07 | B33: 0.1241435185 | C33: 285.5 | D33: Interstate 91, Ryegate, VT, 05042, United States | E33: (-) Conduite | G33: - | K33: 0 | M33: 0
A34: 2017-01-05T19:13:53 | B34: 0.1986921296 | C34: 0.1 | D34: Massachusetts Turnpike, Blandford, MA, 01008, United States | E34: (53) Layover No commande: 90627 LAYOVER: Journée non complète | G34: - | K34: 0 | M34: 0 | S34: 1
A35: 546.9000244 | G35: - | K35: 0 | M35: 0
A36: 2017-01-06T06:20:05 | B36: 6.944444444e-05 | D36: Massachusetts Turnpike, Blandford, MA, 01008, United States | E36: (40) V.A.D. VEHICLE_NO: 2016251 | G36: - | K36: 0 | M36: 0
A37: 2017-01-06T06:20:11 | B37: 0.01240740741 | C37: 0.09999999998 | D37: Massachusetts Turnpike, Blandford, MA, 01008, United States | E37: (40) V.A.D. EQUIPMENT_NAME: LP533249 | G37: - | K37: 0 | M37: 0
A38: 2017-01-06T06:38:03 | B38: 0.055 | C38: 80.8 | D38: Massachusetts Turnpike, Blandford, MA, 01008, United States | E38: (-) Conduite | G38: - | K38: 0 | M38: 0
A39: 2017-01-06T07:57:15 | B39: 0.02065972222 | D39: 202-204 Salmon Kill Road, Salisbury, CT, 06039, United States | E39: (51) Décharger No commande: 90627 Voyage: Régulier Nom du client: allen cockerline TOILE: False TWIC: False PRIME N.Y: False Signature B/L: Oui ODOMÈTRE: 294875.64 | G39: - | K39: 1 | M39: 0
A40: 2017-01-06T08:27:00 | B40: 0.03765046296 | C40: 0.6 | D40: 202-204 Salmon Kill Road, Salisbury, CT, 06039, United States | E40: (4) Pause | G40: - | K40: 0 | M40: 0
A41: 2017-01-06T09:21:13 | B41: 0.1689583333 | C41: 375.2 | D41: 170 Salmon Kill Road, Salisbury, CT, 06039, United States | E41: (-) Conduite | G41: - | K41: 0 | M41: 0
A42: 2017-01-06T13:24:31 | B42: 0.003020833333 | C42: 0.09999999998 | D42: Interstate 91, Barnet, VT, 05821, United States | E42: (45) T.L.C. | G42: - | K42: 0 | M42: 0
A43: 2017-01-06T13:28:52 | B43: 0.03826388889 | C43: 89.8 | D43: Interstate 91, Barnet, VT, 05821, United States | E43: (-) Conduite | G43: - | K43: 0 | M43: 0
A44: 2017-01-06T14:23:58 | B44: 0.003090277778 | C44: 0.3 | D44: 1 Autoroute 55, Stanstead, QC, J0B 3E2, Canada | E44: (104) Douane | G44: - | I44: 1 | K44: 0 | M44: 0
A45: 2017-01-06T14:28:25 | B45: 0.02387731481 | C45: 49.1 | D45: 20 Boulevard Notre Dame Est, Stanstead, QC, J0B 3E2, Canada | E45: (-) Conduite | G45: - | K45: 0 | M45: 0
A46: 2017-01-06T15:02:48 | B46: 0.003946759259 | D46: Autoroute Joseph-Armand Bombardier, Sherbrooke, QC, J0B, Canada | E46: (-) Service | G46: - | K46: 0 | M46: 0
A47: 2017-01-06T15:08:29 | B47: 0.1063773148 | C47: 235.3 | D47: Autoroute Joseph-Armand Bombardier, Sherbrooke, QC, J0B, Canada | E47: (-) Conduite | G47: - | K47: 0 | M47: 0
A48: 2017-01-06T17:41:40 | B48: 0.02150462963 | C48: 0.3 | D48: express terminal, 922 Grande Côte Ouest, Lanoraie, QC, Canada | E48: (43) Dételer EQUIPMENT_NAME: LP533249 | G48: - | K48: 0 | M48: 0
A49: 2017-01-06T18:12:38 | B49: 0.01168981481 | D49: express terminal, 922 Grande Côte Ouest, Lanoraie, QC, Canada | E49: (64) Carburant (presser et remplir) Fournisseur: Gasboy - COURS EXPRESS MONDOR MÉTHODE DE PAIEMENT: GASBOY- COURS EXPRESS MONDOR MONTANT: 562 Qte de Carburant: 562 Unité: True Unité: False Commentaires: m | G49: - | K49: 0 | M49: 0
A50: 2017-01-06T18:29:28 | B50: 9.259259259e-05 | D50: express terminal, 922 Grande Côte Ouest, Lanoraie, QC, Canada | E50: (2) Couchette | G50: - | K50: 0 | M50: 0
A51: 2017-01-06T18:29:36 | B51: 0.2294444444 | C51: 0.4 | D51: express terminal, 922 Grande Côte Ouest, Lanoraie, QC, Canada | E51: (3) Fin travail | G51: - | K51: 0 | M51: 0
A52: 830.2000122 | G52: - | K52: 0 | M52: 0
A53: (hh:mm:ss) | B53: (hh:mm:ss) | C53: (km) | G53: - | K53: 0 | M53: 0
A54: 0 | G54: - | K54: 0 | M54: 0
M56: commentaire
A57: Contact | E57: =SUM($K$3:K305) -> 3
A59: Kilométrage milles | E59: =A60*0.6214 -> 948.38068
A60: =SUM($C$3:C358) -> 1526.2
A61: Over size kilométrage -10' | E61: =A62*0.6214 -> 0
A62: =MAX(C55:C351)-MIN(C55:C351) -> 0
A63: Over size kilométrage +10' | E63: =A64*0.6214 -> 0
A64: =MAX(C55:C351)-MIN(C55:C351) -> 0
A65: journée non complète | E65: =SUM($S$3:S305) -> 1
A67: Arrêt journée de semaine | E67: =SUM($U$3:$U303) -> 0
A69: Arrêt journée de fin semaine | E69: =SUM($T$3:$T303) -> 0
A71: Arrêt obligatoir 36h | E71: =SUM($V$3:$V303) -> 0
A73: Prime Surdimention 12' et moin | E73: =SUM($P$3:P305) -> 0
A75: Prime Surdimention 12' et plus | E75: =SUM($Q$3:Q307) -> 0
A77: TRAVAIL DE VILLE | E77: =SUM($G$3:G305) -> 00:00:00
A79: Prime New York | E79: =SUM(R3:R351) -> 0
A81: TWICK | E81: =SUM($L$3:L305) -> 0
A83: Douane | E83: =SUM($I$3:I305) -> 2
A85: Attente chargement | E85: =SUM($F$3:F305) -> 01:50:00

Sheet Babin A.
B1: Babin Alain | E1: 02:00:00 | F1: Semaine du | N1: =#REF! ->  | T1: =#REF! -> 
A2: DATE / HEURES | B2: TEMPS | C2: ODOMÈTRE | D2: lieu | E2: Activité | F2: ATTENTE (HEURE) | G2: VILLE ET MANUTENTION (HEURE) | H2: SUPERLOAD (HEURE) | I2: DOUANES | J2: Transport explosif | K2: CONTACTS | L2: TWICK | N2: Surdimension 12' et moin | O2: Surdimension 12' et plus | P2: prime surdimenssion 12' et moin | Q2: prime surdimenssion 12' et plus | R2: PRIME NEW YORK | S2: ARRÊT JOURNÉE NON-COMPLÈTE | T2: ARRÊT CONPLET- JOURNÉE DE FIN DE SEMAINE | U2: ARRÊT JOURNÉE DE SEMAINE | V2: Arrêt obligatoir 36h | W2: Opérateur | X2: Numéro de véhicule | Y2: Date de début | Z2: Ville | AA2: État / Province | AB2: Pays | AC2: No commande | AD2: LAYOVER | AE2: Montant
F3: =IF(ISERROR(SEARCH("ATTENTE",E3)),"",$B3) ->  | G3: =IF(COUNTIF(E3,"*Formation*")+COUNTIF(E3,"*Travail de cours*")+COUNTIF(E3,"*réunion*")+COUNTIF(E3,"*escorte routière*")+COUNTIF(E3,"*courte distance*")>0,B3,"-") -> - | H3: =IF(ISERROR(SEARCH("superload: True",E3)),"",$B3) ->  | I3: =IF(ISERROR(SEARCH("Douane",E3)),"",1) ->  | J3: =IF(ISERROR(SEARCH("transport explosif",E3)),"",1) ->  | K3: =IF(COUNTIF(E3,"*toile: true*"),1,0)+IF(COUNTIF(E3,"*charger*"),1,0)+IF(COUNTIF(E3,"*déchargr*"),1,0)+IF(COUNTIF(E3,"*CHARGÉ: TRUE*"),1,0) -> 0 | L3: =IF(ISERROR(SEARCH("TWIC: True",E3)),"",1) ->  | M3: =LEN($N3) -> 0 | N3: =IFERROR(IF(LEFT(MID($E3,SEARCH("Largeur pi-po",$E3,1)+15,100),2)*1<12,LEFT(MID($E3,SEARCH("Largeur pi-po",$E3,1)+15,100),2)*1,""),"") ->  | O3: =IFERROR(IF(LEFT(MID($E3,SEARCH("Largeur pi-po",$E3,1)+15,100),2)*1>=12,LEFT(MID($E3,SEARCH("Largeur pi-po",$E3,1)+15,100),2)*1,""),"") ->  | P3: =IF(N3<12,1,"") ->  | Q3: =IF(O3="","",IF(O3>=12,1,"")) ->  | R3: =IF(ISERROR(SEARCH("PRIME N.Y: True",E3)),"",1) ->  | S3: =IF(ISERROR(SEARCH("Journée non complète",E3)),"",1) ->  | T3: =IF(ISERROR(SEARCH("Fin de semaine",E3)),"",1) ->  | U3: =IF(ISERROR(SEARCH("1 Journée compète semaine",E3)),"",1) ->  | V3: =IF(ISERROR(SEARCH("Arrêt obligatoir (36H)",E3)),"",1) -> 
M5: commentaire
A6: Contact | E6: =SUM($K$3:K254) -> 0
A8: Kilométrage milles | E8: =A9*0.6214 -> 0
A9: =SUM($C$3:C307) -> 0
A10: Over size kilométrage -10' | E10: =A11*0.6214 -> 0
A11: =MAX(C4:C300)-MIN(C4:C300) -> 0
A12: Over size kilométrage +10' | E12: =A13*0.6214 -> 0
A13: =MAX(C4:C300)-MIN(C4:C300) -> 0
A14: journée non complète | E14: =SUM($S$3:S254) -> 0
A16: Arrêt journée de semaine | E16: =SUM($U$3:$U252) -> 0
A18: Arrêt journée de fin semaine | E18: =SUM($T$3:$T252) -> 0
A20: Arrêt obligatoir 36h | E20: =SUM($V$3:$V252) -> 0
A22: Prime Surdimention 12' et moin | E22: =SUM($P$3:P254) -> 0
A24: Prime Surdimention 12' et plus | E24: =SUM($Q$3:Q256) -> 0
A26: TRAVAIL DE VILLE | E26: =SUM($G$3:G254) -> 00:00:00
A28: Prime New York | E28: =SUM(R3:R300) -> 0
A30: TWICK | E30: =SUM($L$3:L254) -> 0
A32: Douane | E32: =SUM($I$3:I254) -> 0
A34: Attente chargement | E34: =SUM($F$3:F254) -> 00:00:00

Sheet Beaulieu J.
A1: Beaulieu Julien | E1: 02:00:00 | F1: Semaine du | N1: =#REF! ->  | T1: =#REF! -> 
A2: DATE / HEURES | B2: TEMPS | C2: ODOMÈTRE | D2: lieu | E2: Activité | F2: ATTENTE (HEURE) | G2: VILLE ET MANUTENTION (HEURE) | H2: SUPERLOAD (HEURE) | I2: DOUANES | J2: Transport explosif | K2: CONTACTS | L2: TWICK | N2: Surdimension 12' et moin | O2: Surdimension 12' et plus | P2: prime surdimenssion 12' et moin | Q2: prime surdimenssion 12' et plus | R2: PRIME NEW YORK | S2: ARRÊT JOURNÉE NON-COMPLÈTE | T2: ARRÊT CONPLET- JOURNÉE DE FIN DE SEMAINE | U2: ARRÊT JOURNÉE DE SEMAINE | V2: Arrêt obligatoir 36h | W2: Opérateur | X2: Numéro de véhicule | Y2: Date de début | Z2: Ville | AA2: État / Province | AB2: Pays | AC2: No commande | AD2: LAYOVER | AE2: Montant
F3: =IF(ISERROR(SEARCH("ATTENTE",E3)),"",$B3) ->  | G3: =IF(COUNTIF(E3,"*Formation*")+COUNTIF(E3,"*Travail de cours*")+COUNTIF(E3,"*réunion*")+COUNTIF(E3,"*escorte routière*")+COUNTIF(E3,"*courte distance*")>0,B3,"-") -> - | H3: =IF(ISERROR(SEARCH("superload: True",E3)),"",$B3) ->  | I3: =IF(ISERROR(SEARCH("Douane",E3)),"",1) ->  | J3: =IF(ISERROR(SEARCH("transport explosif",E3)),"",1) ->  | K3: =IF(COUNTIF(E3,"*toile: true*"),1,0)+IF(COUNTIF(E3,"*charger*"),1,0)+IF(COUNTIF(E3,"*déchargr*"),1,0)+IF(COUNTIF(E3,"*CHARGÉ: TRUE*"),1,0) -> 0 | L3: =IF(ISERROR(SEARCH("TWIC: True",E3)),"",1) ->  | M3: =LEN($N3) -> 0 | N3: =IFERROR(IF(LEFT(MID($E3,SEARCH("Largeur pi-po",$E3,1)+15,100),2)*1<12,LEFT(MID($E3,SEARCH("Largeur pi-po",$E3,1)+15,100),2)*1,""),"") ->  | O3: =IFERROR(IF(LEFT(MID($E3,SEARCH("Largeur pi-po",$E3,1)+15,100),2)*1>=12,LEFT(MID($E3,SEARCH("Largeur pi-po",$E3,1)+15,100),2)*1,""),"") ->  | P3: =IF(N3<12,1,"") ->  | Q3: =IF(O3="","",IF(O3>=12,1,"")) ->  | R3: =IF(ISERROR(SEARCH("PRIME N.Y: True",E3)),"",1) ->  | S3: =IF(ISERROR(SEARCH("Journée non complète",E3)),"",1) ->  | T3: =IF(ISERROR(SEARCH("Fin de semaine",E3)),"",1) ->  | U3: =IF(ISERROR(SEARCH("1 Journée compète semaine",E3)),"",1) ->  | V3: =IF(ISERROR(SEARCH("Arrêt obligatoir (36H)",E3)),"",1) -> 
A4: 2017-01-01T11:08:01 | B4: 0.0001041666667 | D4: 1876 East Freeway, Baytown, TX, 77521, United States | E4: (40) V.A.D. VEHICLE_NO: 2014194 | F4: =IF(ISERROR(SEARCH("ATTENTE",E4)),"",$B4) ->  | G4: =IF(COUNTIF(E4,"*Formation*")+COUNTIF(E4,"*Travail de cours*")+COUNTIF(E4,"*réunion*")+COUNTIF(E4,"*escorte routière*")+COUNTIF(E4,"*courte distance*")>0,B4,"-") -> - | H4: =IF(ISERROR(SEARCH("superload: True",E4)),"",$B4) ->  | I4: =IF(ISERROR(SEARCH("Douane",E4)),"",1) ->  | J4: =IF(ISERROR(SEARCH("transport explosif",E4)),"",1) ->  | K4: =IF(COUNTIF(E4,"*toile: true*"),1,0)+IF(COUNTIF(E4,"*charger*"),1,0)+IF(COUNTIF(E4,"*déchargr*"),1,0)+IF(COUNTIF(E4,"*CHARGÉ: TRUE*"),1,0) -> 0 | L4: =IF(ISERROR(SEARCH("TWIC: True",E4)),"",1) ->  | M4: =LEN($N4) -> 0 | N4: =IFERROR(IF(LEFT(MID($E4,SEARCH("Largeur pi-po",$E4,1)+15,100),2)*1<12,LEFT(MID($E4,SEARCH("Largeur pi-po",$E4,1)+15,100),2)*1,""),"") ->  | O4: =IFERROR(IF(LEFT(MID($E4,SEARCH("Largeur pi-po",$E4,1)+15,100),2)*1>=12,LEFT(MID($E4,SEARCH("Largeur pi-po",$E4,1)+15,100),2)*1,""),"") ->  | P4: =IF(N4<12,1,"") ->  | Q4: =IF(O4="","",IF(O4>=12,1,"")) ->  | R4: =IF(ISERROR(SEARCH("PRIME N.Y: True",E4)),"",1) ->  | S4: =IF(ISERROR(SEARCH("Journée non complète",E4)),"",1) ->  | T4: =IF(ISERROR(SEARCH("Fin de semaine",E4)),"",1) ->  | U4: =IF(ISERROR(SEARCH("1 Journée compète semaine",E4)),"",1) ->  | V4: =IF(ISERROR(SEARCH("Arrêt obligatoir (36H)",E4)),"",1) -> 
A5: 2017-01-01T11:08:10 | B5: 0.009386574074 | D5: 1876 East Freeway, Baytown, TX, 77521, United States | E5: (40) V.A.D. EQUIPMENT_NAME: 20201 | G5: - | K5: 0 | M5: 0
A6: 2017-01-01T11:21:41 | B6: 0.01052083333 | D6: 6248-6292 Thompson Road, Baytown, TX, 77521, United States | E6: (-) Conduite | G6: - | K6: 0 | M6: 0
A7: 2017-01-01T11:36:50 | B7: 0.05508101852 | D7: 4977-5017 East Freeway Service Road, Baytown, TX, 77521, United States | E7: (4) Pause | G7: - | K7: 0 | M7: 0
A8: 2017-01-01T12:56:09 | B8: 0.4610069444 | D8: 4977-5017 East Freeway Service Road, Baytown, TX, 77521, United States | E8: (53) Layover No commande: 90656 LAYOVER: Fin de semaine | G8: - | K8: 0 | M8: 0 | T8: 1
A9: 6.300000191 | G9: - | K9: 0 | M9: 0
A10: 2017-01-02T12:58:08 | B10: 0.4596296296 | D10: 4977-5017 East Freeway Service Road, Baytown, TX, 77521, United States | E10: (53) Layover No commande: 990656 LAYOVER: 1 Journée compète semaine | G10: - | K10: 0 | M10: 0 | U10: 1
A11: 0 | G11: - | K11: 0 | M11: 0
A12: 2017-01-03T07:51:35 | B12: 0.0001388888889 | D12: 4977-5017 East Freeway Service Road, Baytown, TX, 77521, United States | E12: (40) V.A.D. VEHICLE_NO: 2014194 | G12: - | K12: 0 | M12: 0
A13: 2017-01-03T07:51:47 | B13: 0.007013888889 | D13: 4977-5017 East Freeway Service Road, Baytown, TX, 77521, United States | E13: (40) V.A.D. EQUIPMENT_NAME: 20201 | G13: - | K13: 0 | M13: 0
A14: 2017-01-03T08:01:53 | B14: 0.002824074074 | C14: 0.2000000001 | D14: 4977-5017 East Freeway Service Road, Baytown, TX, 77521, United States | E14: (64) Carburant (presser et remplir) Fournisseur: Shell/Flying J - TCH MÉTHODE DE PAIEMENT: TCH - SHELL/FLYING J MONTANT: 221.43 Qte de Carburant: 85.2 Unité: False D.E.F.: 0 Unité: False | G14: - | K14: 0 | M14: 0
A15: 2017-01-03T08:05:57 | B15: 0.04386574074 | C15: 69 | D15: 7203 Garth Road, Baytown, TX, 77521, United States | E15: (-) Conduite | G15: - | K15: 0 | M15: 0
A16: 2017-01-03T09:09:07 | B16: 0.01728009259 | D16: 9735 Derrington Road, Houston, TX, 77064, United States | E16: (4) Pause | G16: - | K16: 0 | M16: 0
A17: 2017-01-03T09:34:00 | B17: 0.02435185185 | C17: 0.2999999999 | D17: 9735 Derrington Road, Houston, TX, 77064, United States | E17: (51) Décharger No commande: 90676 Voyage: Régulier Nom du client: spetial metal inc TOILE: False TWIC: False PRIME N.Y: False Signature B/L: Oui ODOMÈTRE: 670046 | G17: - | K17: 1 | M17: 0
A18: 2017-01-03T10:09:04 | B18: 0.01414351852 | C18: 18.6 | D18: 10549-10599 Windfern Road, Houston, TX, 77064, United States | E18: (-) Conduite | G18: - | K18: 0 | M18: 0
A19: 2017-01-03T10:29:26 | B19: 0.01219907407 | D19: 14029 West Hardy Road, Houston, TX, 77060, United States | E19: (4) Pause | G19: - | K19: 0 | M19: 0
A20: 2017-01-03T10:47:00 | B20: 0.01021990741 | C20: 0.2000000001 | D20: 14029 West Hardy Road, Houston, TX, 77060, United States | E20: (51) Décharger No commande: 90656 Voyage: Régulier Nom du client: sigma tube TOILE: False TWIC: False PRIME N.Y: False Signature B/L: Oui ODOMÈTRE: 670584,06 | G20: - | K20: 1 | M20: 0
A21: 2017-01-03T11:01:43 | B21: 0.01295138889 | C21: 17.2 | D21: 14029 West Hardy Road, Houston, TX, 77060, United States | E21: (-) Conduite | G21: - | K21: 0 | M21: 0
A22: 2017-01-03T11:20:22 | B22: 0.02399305556 | C22: 0.4 | D22: 15919 North Freeway, Houston, TX, 77090, United States | E22: (4) Pause | G22: - | K22: 0 | M22: 0
A23: 2017-01-03T11:54:55 | B23: 0.1608217593 | C23: 347.1 | D23: 201-207 West Richey Road, Houston, TX, 77090, United States | E23: (-) Conduite | G23: - | K23: 0 | M23: 0
A24: 2017-01-03T15:46:30 | B24: 0.08993055556 | D24: 9978-10078 U.S. 80, Marshall, TX, 75672, United States | E24: (4) Pause | G24: - | K24: 0 | M24: 0
A25: 2017-01-03T17:56:00 | B25: 0.02989583333 | C25: 2.1 | D25: 9978-10078 U.S. 80, Marshall, TX, 75672, United States | E25: (49) Charger No commande: 90799 Nom du client: general cable TOILE: False TWIC: False PRIME N.Y: False Signature B/L: Oui | F25: 0.75 | G25: - | K25: 1 | M25: 0
A26: 2017-01-03T18:39:03 | B26: 0.07806712963 | C26: 152.4 | D26: 9978-10078 U.S. 80, Marshall, TX, 75672, United States | E26: (-) Conduite | G26: - | K26: 0 | M26: 0
A27: 2017-01-03T20:31:28 | B27: 0.00431712963 | D27: 8300 State Highway 108, Texarkana, AR, 71854, United States | E27: (64) Carburant (presser et remplir) Fournisseur: Shell/Flying J - TCH MÉTHODE DE PAIEMENT: TCH - SHELL/FLYING J MONTANT: 405.70 Qte de Carburant: 156.097 Unité: False D.E.F.: 0 Unité: False | G27: - | K27: 0 | M27: 0
A28: 2017-01-03T20:37:41 | B28: 0.1404976852 | D28: 8300 State Highway 108, Texarkana, AR, 71854, United States | E28: (2) Couchette | G28: - | K28: 0 | M28: 0
A29: 604.2999878 | G29: - | K29: 0 | M29: 0
A30: 2017-01-04T07:31:10 | B30: 0.0001041666667 | D30: 8300 State Highway 108, Texarkana, AR, 71854, United States | E30: (40) V.A.D. VEHICLE_NO: 2014194 | G30: - | K30: 0 | M30: 0
A31: 2017-01-04T07:31:19 | B31: 0.004930555556 | D31: 8300 State Highway 108, Texarkana, AR, 71854, United States | E31: (40) V.A.D. EQUIPMENT_NAME: 20201 | G31: - | K31: 0 | M31: 0
A32: 2017-01-04T07:38:25 | B32: 0.004467592593 | C32: 0.2000000001 | D32: 8300 State Highway 108, Texarkana, AR, 71854, United States | E32: (64) Carburant (presser et remplir) Fournisseur: Shell/Flying J - TCH MÉTHODE DE PAIEMENT: TCH - SHELL/FLYING J MONTANT: 288.13 Qte de Carburant: 110.86 Unité: False D.E.F.: 0 Unité: False | G32: - | K32: 0 | M32: 0
A33: 2017-01-04T07:44:51 | B33: 0.2226967593 | C33: 518.4 | D33: 8225 Camper Lane, Texarkana, AR, 71854, United States | E33: (-) Conduite | G33: - | K33: 0 | M33: 0
A34: 2017-01-04T13:05:32 | B34: 0.001469907407 | D34: 3710 East Main, Blytheville, AR, 72315, United States | E34: (45) T.L.C. | G34: - | K34: 0 | M34: 0
A35: 2017-01-04T13:07:39 | B35: 0.03127314815 | C35: 0.3 | D35: 3710 East Main, Blytheville, AR, 72315, United States | E35: (4) Pause | G35: - | K35: 0 | M35: 0
A36: 2017-01-04T13:52:41 | B36: 0.2263888889 | C36: 527.2 | D36: 3808 East Main Street, Blytheville, AR, 72315, United States | E36: (-) Conduite | G36: - | K36: 0 | M36: 0
A37: 2017-01-04T19:18:41 | B37: 0.1953587963 | C37: 0.2 | D37: 2665 State Road 46, Terre Haute, IN, 47803, United States | E37: (4) Pause | G37: - | K37: 0 | M37: 0
A38: 1045.599976 | G38: - | K38: 0 | M38: 0
A39: 2017-01-05T06:42:07 | B39: 8.101851852e-05 | D39: State Road 46, Terre Haute, IN, 47803, United States | E39: (40) V.A.D. VEHICLE_NO: 2014194 | G39: - | K39: 0 | M39: 0
A40: 2017-01-05T06:42:14 | B40: 0.006041666667 | C40: 0.2 | D40: State Road 46, Terre Haute, IN, 47803, United States | E40: (40) V.A.D. EQUIPMENT_NAME: 20201 | G40: - | K40: 0 | M40: 0
A41: 2017-01-05T06:50:56 | B41: 0.1591666667 | C41: 344.3 | D41: 5570 East Margaret Drive, Terre Haute, IN, 47803, United States | E41: (-) Conduite | G41: - | K41: 0 | M41: 0
A42: 2017-01-05T10:40:08 | B42: 0.0008912037037 | D42: 21701-22735 Maumee Center Road, Woodburn, IN, 46797, United States | E42: (45) T.L.C. | G42: - | K42: 0 | M42: 0
A43: 2017-01-05T10:41:25 | B43: 0.02898148148 | C43: 0.09999999998 | D43: 21701-22735 Maumee Center Road, Woodburn, IN, 46797, United States | E43: (4) Pause | G43: - | K43: 0 | M43: 0
A44: 2017-01-05T11:23:09 | B44: 0.1539351852 | C44: 335 | D44: 21701-22735 Maumee Center Road, Woodburn, IN, 46797, United States | E44: (-) Conduite | G44: - | K44: 0 | M44: 0
A45: 2017-01-05T15:04:49 | B45: 0.00119212963 | C45: 0.09999999998 | D45: Marina Road, Point Edward, ON, N7T, Canada | E45: (104) Douane | G45: - | I45: 1 | K45: 0 | M45: 0
A46: 2017-01-05T15:06:32 | B46: 0.06236111111 | C46: 144.5 | D46: 1555 Venetian Boulevard, Point Edward, ON, N7T, Canada | E46: (-) Conduite | G46: - | K46: 0 | M46: 0
A47: 2017-01-05T16:36:20 | B47: 0.001585648148 | D47: Macdonald-Cartier Freeway, Beachville, ON, N0J 1A0, Canada | E47: (45) T.L.C. | G47: - | K47: 0 | M47: 0
A48: 2017-01-05T16:38:37 | B48: 0.0612962963 | C48: 124.1 | D48: Macdonald-Cartier Freeway, Beachville, ON, N0J 1A0, Canada | E48: (-) Conduite | G48: - | K48: 0 | M48: 0
A49: 2017-01-05T18:06:53 | B49: 0.2452199074 | D49: 1480 Britannia Road East, Mississauga, ON, L4W 1C8, Canada | E49: (2) Couchette | G49: - | K49: 0 | M49: 0
A50: 947.9000244 | G50: - | K50: 0 | M50: 0
A51: 2017-01-06T06:51:43 | B51: 9.259259259e-05 | D51: 1480 Britannia Road East, Mississauga, ON, L4W 1C8, Canada | E51: (40) V.A.D. VEHICLE_NO: 2014194 | G51: - | K51: 0 | M51: 0
A52: 2017-01-06T06:51:51 | B52: 0.006388888889 | C52: 0.1000000001 | D52: 1480 Britannia Road East, Mississauga, ON, L4W 1C8, Canada | E52: (40) V.A.D. EQUIPMENT_NAME: 20201 | G52: - | K52: 0 | M52: 0
A53: 2017-01-06T07:01:03 | B53: 0.01744212963 | C53: 24.5 | D53: 1400-1486 Britannia Road East, Mississauga, ON, L4W 1C7, Canada | E53: (-) Conduite | G53: - | K53: 0 | M53: 0
A54: 2017-01-06T07:26:10 | B54: 0.01538194444 | C54: 0.2999999999 | D54: 190 Portage Parkway, Vaughan, ON, L4K, Canada | E54: (4) Pause | G54: - | K54: 0 | M54: 0
A55: 2017-01-06T07:48:19 | B55: 0.006226851852 | C55: 3.9 | D55: 190 Portage Parkway, Vaughan, ON, L4K, Canada | E55: (-) Conduite | G55: - | K55: 0 | M55: 0
A56: 2017-01-06T07:57:17 | B56: 0.01994212963 | D56: 20 Graniteridge Road, Vaughan, ON, L4K 5M8, Canada | E56: (51) Décharger No commande: 90799 Voyage: Régulier Nom du client: toronto hydro TOILE: False TWIC: False PRIME N.Y: False Signature B/L: Oui ODOMÈTRE: 672607,81 | G56: - | K56: 1 | M56: 0
A57: 2017-01-06T08:26:00 | B57: 0.05222222222 | C57: 0.6 | D57: 20 Graniteridge Road, Vaughan, ON, L4K 5M8, Canada | E57: (4) Pause | G57: - | K57: 0 | M57: 0
A58: 2017-01-06T09:41:12 | B58: 0.07456018519 | C58: 139.4 | D58: 28-40 Graniteridge Road, Vaughan, ON, L4K, Canada | E58: (-) Conduite | G58: - | K58: 0 | M58: 0
A59: 2017-01-06T11:28:34 | B59: 0.1065509259 | D59: 205 East Cross Street, Haldimand, ON, N1A 2E4, Canada | E59: (4) Pause | G59: - | K59: 0 | M59: 0
A60: 2017-01-06T14:02:00 | B60: 0.06186342593 | C60: 0.4 | D60: 205 East Cross Street, Haldimand, ON, N1A 2E4, Canada | E60: (49) Charger No commande: 90870 Nom du client: sorel forge TOILE: True TWIC: False PRIME N.Y: False Signature B/L: Oui | F60: 02:00:00 | G60: - | K60: 2 | M60: 0
A61: 2017-01-06T15:31:05 | B61: 0.007766203704 | C61: 9.9 | D61: 624 Tamarac Street, Haldimand, ON, N1A 2E1, Canada | E61: (-) Conduite | G61: - | K61: 0 | M61: 0
A62: 2017-01-06T15:42:16 | B62: 0.001053240741 | D62: 568 James Road, Haldimand, ON, N1A 2W1, Canada | E62: (-) Service | G62: - | K62: 0 | M62: 0
A63: 2017-01-06T15:43:47 | B63: 0.1256597222 | C63: 210 | D63: 1681 Dunnville Road, Canfield, ON, N0A 1C0, Canada | E63: (-) Conduite | G63: - | K63: 0 | M63: 0
A64: 2017-01-06T18:44:44 | B64: 0.01136574074 | D64: 845 Ontario 401, Port Hope, ON, L1A 3W3, Canada | E64: (4) Pause | G64: - | K64: 0 | M64: 0
A65: 2017-01-06T19:01:06 | B65: 0.0007175925926 | D65: 845 Ontario 401, Port Hope, ON, L1A 3W3, Canada | E65: (45) T.L.C. | G65: - | K65: 0 | M65: 0
A66: 2017-01-06T19:02:08 | B66: 0.05594907407 | C66: 127.7 | D66: 845 Ontario 401, Port Hope, ON, L1A 3W3, Canada | E66: (-) Conduite | G66: - | K66: 0 | M66: 0
A67: 2017-01-06T20:22:42 | B67: 0.006793981481 | D67: 628 Lennox and Addington County Road 41, Greater Napanee, ON, K0K 2Z0, Canada | E67: (4) Pause | G67: - | K67: 0 | M67: 0
A68: 2017-01-06T20:32:29 | B68: 0.001423611111 | C68: 0.3 | D68: 628 Lennox and Addington County Road 41, Greater Napanee, ON, K0K 2Z0, Canada | E68: (45) T.L.C. | F68: =IF(ISERROR(SEARCH("ATTENTE",E68)),"",$B68) ->  | G68: =IF(COUNTIF(E68,"*Formation*")+COUNTIF(E68,"*Travail de cours*")+COUNTIF(E68,"*réunion*")+COUNTIF(E68,"*escorte routière*")+COUNTIF(E68,"*courte distance*")>0,B68,"-") -> - | H68: =IF(ISERROR(SEARCH("superload: True",E68)),"",$B68) ->  | I68: =IF(ISERROR(SEARCH("Douane",E68)),"",1) ->  | J68: =IF(ISERROR(SEARCH("transport explosif",E68)),"",1) ->  | K68: =IF(COUNTIF(E68,"*toile: true*"),1,0)+IF(COUNTIF(E68,"*charger*"),1,0)+IF(COUNTIF(E68,"*déchargr*"),1,0)+IF(COUNTIF(E68,"*CHARGÉ: TRUE*"),1,0) -> 0 | L68: =IF(ISERROR(SEARCH("TWIC: True",E68)),"",1) ->  | M68: =LEN($N68) -> 0 | N68: =IFERROR(IF(LEFT(MID($E68,SEARCH("Largeur pi-po",$E68,1)+15,100),2)*1<12,LEFT(MID($E68,SEARCH("Largeur pi-po",$E68,1)+15,100),2)*1,""),"") ->  | O68: =IFERROR(IF(LEFT(MID($E68,SEARCH("Largeur pi-po",$E68,1)+15,100),2)*1>=12,LEFT(MID($E68,SEARCH("Largeur pi-po",$E68,1)+15,100),2)*1,""),"") ->  | P68: =IF(N68<12,1,"") ->  | Q68: =IF(O68="","",IF(O68>=12,1,"")) ->  | R68: =IF(ISERROR(SEARCH("PRIME N.Y: True",E68)),"",1) ->  | S68: =IF(ISERROR(SEARCH("Journée non complète",E68)),"",1) ->  | T68: =IF(ISERROR(SEARCH("Fin de semaine",E68)),"",1) ->  | U68: =IF(ISERROR(SEARCH("1 Journée compète semaine",E68)),"",1) ->  | V68: =IF(ISERROR(SEARCH("Arrêt obligatoir (36H)",E68)),"",1) -> 
A69: 2017-01-06T20:34:32 | B69: 0.06905092593 | C69: 153.5 | D69: 628 Lennox and Addington County Road 41, Greater Napanee, ON, K0K 2Z0, Canada | E69: (-) Conduite | G69: - | K69: 0 | M69: 0
A70: 2017-01-06T22:13:58 | B70: 0.07363425926 | D70: 2075 Leeds and Grenville 22, Cardinal, ON, K0E 1E0, Canada | E70: (2) Couchette | G70: - | K70: 0 | M70: 0
A71: 668.9000244 | G71: - | K71: 0 | M71: 0
A72: 2017-01-07T06:37:50 | B72: 8.101851852e-05 | D72: 2075 Leeds and Grenville 22, Cardinal, ON, K0E 1E0, Canada | E72: (40) V.A.D. VEHICLE_NO: 2014194 | G72: - | K72: 0 | M72: 0
A73: 2017-01-07T06:37:57 | B73: 0.005115740741 | C73: 0.2999999999 | D73: 2075 Leeds and Grenville 22, Cardinal, ON, K0E 1E0, Canada | E73: (40) V.A.D. EQUIPMENT_NAME: 20201 | G73: - | K73: 0 | M73: 0
A74: 2017-01-07T06:45:19 | B74: 0.03946759259 | C74: 85.8 | D74: 2076 Shanly Road, Cardinal, ON, K0E 1E0, Canada | E74: (-) Conduite | G74: - | K74: 0 | M74: 0
A75: 2017-01-07T07:42:09 | B75: 0.0246412037 | C75: 0.09999999998 | D75: 20382 Stormont, Dundas and Glengarry County Road 2, Lancaster, ON, K0C 1N0, Canada | E75: (4) Pause | G75: - | K75: 0 | M75: 0
A76: 2017-01-07T08:17:38 | B76: 0.0007407407407 | C76: 0.09999999998 | D76: 20382 Stormont, Dundas and Glengarry County Road 2, Lancaster, ON, K0C 1N0, Canada | E76: (45) T.L.C. | G76: - | K76: 0 | M76: 0
A77: 2017-01-07T08:18:42 | B77: 0.008854166667 | C77: 16.2 | D77: 15-19 Stormont, Dundas and Glengarry County Road 2, Lancaster, ON, K0C 1N0, Canada | E77: (-) Conduite | G77: - | K77: 0 | M77: 0
A78: 2017-01-07T08:31:27 | B78: 0.005 | C78: 0.09999999998 | D78: Autoroute du Souvenir, Rivière-Beaudette, QC, J0P 1R0, Canada | E78: (4) Pause | G78: - | K78: 0 | M78: 0
A79: 2017-01-07T08:38:39 | B79: 0.0659837963 | C79: 141.2 | D79: Autoroute du Souvenir, Rivière-Beaudette, QC, J0P 1R0, Canada | E79: (-) Conduite | G79: - | K79: 0 | M79: 0
A80: 2017-01-07T10:13:40 | B80: 0.05202546296 | C80: 1 | D80: express terminal, 922 Grande Côte Ouest, Lanoraie, QC, Canada | E80: (4) Pause | G80: - | K80: 0 | M80: 0
A81: 2017-01-07T11:28:35 | B81: 0.0004976851852 | D81: express terminal, 922 Grande Côte Ouest, Lanoraie, QC, Canada | E81: (42) Atteler No commande: 90870 Nom du client: sorel forge ATTELER: False DÉTELER: True | G81: - | K81: 0 | M81: 0
A82: 2017-01-07T11:29:18 | B82: 6.944444444e-05 | D82: express terminal, 922 Grande Côte Ouest, Lanoraie, QC, Canada | E82: (43) Dételer EQUIPMENT_NAME: 20201 | G82: - | K82: 0 | M82: 0
A83: 2017-01-07T11:29:24 | B83: 0.0002546296296 | D83: express terminal, 922 Grande Côte Ouest, Lanoraie, QC, Canada | E83: (42) Atteler EQUIPMENT_NAME: 2024 | G83: - | K83: 0 | M83: 0
A84: 2017-01-07T11:29:46 | B84: 0.0005092592593 | D84: express terminal, 922 Grande Côte Ouest, Lanoraie, QC, Canada | E84: (42) Atteler No commande: 90879 Nom du client: sorel forge ATTELER: True DÉTELER: False | G84: - | K84: 0 | M84: 0
A85: 2017-01-07T11:30:30 | B85: 0.0002083333333 | D85: express terminal, 922 Grande Côte Ouest, Lanoraie, QC, Canada | E85: (40) V.A.D. EQUIPMENT_NAME: 2024 | G85: - | K85: 0 | M85: 0
A86: 2017-01-07T11:30:48 | B86: 0.009270833333 | C86: 0.2000000001 | D86: express terminal, 922 Grande Côte Ouest, Lanoraie, QC, Canada | E86: (64) Carburant (presser et remplir) Fournisseur: Gasboy - COURS EXPRESS MONDOR MÉTHODE DE PAIEMENT: GASBOY- COURS EXPRESS MONDOR MONTANT: 0 Qte de Carburant: 244.66 Unité: True D.E.F.: 40 Unité: True | G86: - | K86: 0 | M86: 0
A87: 2017-01-07T11:44:09 | B87: 0.05196759259 | C87: 92.6 | D87: express terminal, 922 Grande Côte Ouest, Lanoraie, QC, Canada | E87: (-) Conduite | G87: - | K87: 0 | M87: 0
A88: 2017-01-07T12:58:59 | B88: 0.1654398148 | D88: 134 Voie de Service Nord, Kirkland, QC, H9J, Canada | E88: (4) Pause | G88: - | K88: 0 | M88: 0
A89: 2017-01-07T16:57:13 | B89: 0.0008680555556 | C89: 0.09999999998 | D89: 134 Voie de Service Nord, Kirkland, QC, H9J, Canada | E89: (45) T.L.C. | G89: - | K89: 0 | M89: 0
A90: 2017-01-07T16:58:28 | B90: 0.0230787037 | C90: 50.7 | D90: 134 Voie de Service Nord, Kirkland, QC, H9J, Canada | E90: (-) Conduite | G90: - | K90: 0 | M90: 0
A91: 2017-01-07T17:31:42 | B91: 0.001678240741 | C91: 0.1000000001 | D91: 22068-22192 North Service Road, Bainsville, ON, K0C 1E0, Canada | E91: (-) Service | G91: - | K91: 0 | M91: 0
A92: 2017-01-07T17:34:07 | B92: 0.1086111111 | C92: 250.1 | D92: 22064 North Service Road, Bainsville, ON, K0C 1E0, Canada | E92: (-) Conduite | G92: - | K92: 0 | M92: 0
A93: 2017-01-07T20:10:31 | B93: 0.1593634259 | D93: 628 Lennox and Addington County Road 41, Greater Napanee, ON, K0K 2Z0, Canada | E93: (4) Pause | G93: - | K93: 0 | M93: 0
A94: 636.5999756 | G94: - | K94: 0 | M94: 0
M96: commentaire
A97: Contact | E97: =SUM($K$3:K345) -> 6
A99: Kilométrage milles | E99: =A100*0.6214 -> 2430.48182
A100: =SUM($C$3:C398) -> 3911.3
A101: Over size kilométrage -10' | E101: =A102*0.6214 -> 0
A102: =MAX(C95:C391)-MIN(C95:C391) -> 0
A103: Over size kilométrage +10' | E103: =A104*0.6214 -> 0
A104: =MAX(C95:C391)-MIN(C95:C391) -> 0
A105: journée non complète | E105: =SUM($S$3:S345) -> 0
A107: Arrêt journée de semaine | E107: =SUM($U$3:$U343) -> 1 | F107: 2 janv.
A109: Arrêt journée de fin semaine | E109: =SUM($T$3:$T343) -> 1 | F109: 1 janv.
A111: Arrêt obligatoir 36h | E111: =SUM($V$3:$V343) -> 0
A113: Prime Surdimention 12' et moin | E113: =SUM($P$3:P345) -> 0
A115: Prime Surdimention 12' et plus | E115: =SUM($Q$3:Q347) -> 0
A117: TRAVAIL DE VILLE | E117: =SUM($G$3:G345) -> 00:00:00
A119: Prime New York | E119: =SUM(R3:R391) -> 0
A121: TWICK | E121: =SUM($L$3:L345) -> 0
A123: Douane | E123: =SUM($I$3:I345) -> 1
A125: Attente chargement | E125: 2.75

Sheet Bouillon A.
B1: Bouillon Alexandre | E1: 02:00:00 | F1: Semaine du | N1: =#REF! ->  | T1: =#REF! -> 
A2: DATE / HEURES | B2: TEMPS | C2: ODOMÈTRE | D2: lieu | E2: Activité | F2: ATTENTE (HEURE) | G2: VILLE ET MANUTENTION (HEURE) | H2: SUPERLOAD (HEURE) | I2: DOUANES | J2: Transport explosif | K2: CONTACTS | L2: TWICK | N2: Surdimension 12' et moin | O2: Surdimension 12' et plus | P2: prime surdimenssion 12' et moin | Q2: prime surdimenssion 12' et plus | R2: PRIME NEW YORK | S2: ARRÊT JOURNÉE NON-COMPLÈTE | T2: ARRÊT CONPLET- JOURNÉE DE FIN DE SEMAINE | U2: ARRÊT JOURNÉE DE SEMAINE | V2: Arrêt obligatoir 36h | W2: Opérateur | X2: Numéro de véhicule | Y2: Date de début | Z2: Ville | AA2: État / Province | AB2: Pays | AC2: No commande | AD2: LAYOVER | AE2: Montant
F3: =IF(ISERROR(SEARCH("ATTENTE",E3)),"",$B3) ->  | G3: =IF(COUNTIF(E3,"*Formation*")+COUNTIF(E3,"*Travail de cours*")+COUNTIF(E3,"*réunion*")+COUNTIF(E3,"*escorte routière*")+COUNTIF(E3,"*courte distance*")>0,B3,"-") -> - | H3: =IF(ISERROR(SEARCH("superload: True",E3)),"",$B3) ->  | I3: =IF(ISERROR(SEARCH("Douane",E3)),"",1) ->  | J3: =IF(ISERROR(SEARCH("transport explosif",E3)),"",1) ->  | K3: =IF(COUNTIF(E3,"*toile: true*"),1,0)+IF(COUNTIF(E3,"*charger*"),1,0)+IF(COUNTIF(E3,"*déchargr*"),1,0)+IF(COUNTIF(E3,"*CHARGÉ: TRUE*"),1,0) -> 0 | L3: =IF(ISERROR(SEARCH("TWIC: True",E3)),"",1) ->  | M3: =LEN($N3) -> 0 | N3: =IFERROR(IF(LEFT(MID($E3,SEARCH("Largeur pi-po",$E3,1)+15,100),2)*1<12,LEFT(MID($E3,SEARCH("Largeur pi-po",$E3,1)+15,100),2)*1,""),"") ->  | O3: =IFERROR(IF(LEFT(MID($E3,SEARCH("Largeur pi-po",$E3,1)+15,100),2)*1>=12,LEFT(MID($E3,SEARCH("Largeur pi-po",$E3,1)+15,100),2)*1,""),"") ->  | P3: =IF(N3<12,1,"") ->  | Q3: =IF(O3="","",IF(O3>=12,1,"")) ->  | R3: =IF(ISERROR(SEARCH("PRIME N.Y: True",E3)),"",1) ->  | S3: =IF(ISERROR(SEARCH("Journée non complète",E3)),"",1) ->  | T3: =IF(ISERROR(SEARCH("Fin de semaine",E3)),"",1) ->  | U3: =IF(ISERROR(SEARCH("1 Journée compète semaine",E3)),"",1) ->  | V3: =IF(ISERROR(SEARCH("Arrêt obligatoir (36H)",E3)),"",1) -> 
M5: commentaire
A6: Contact | E6: =SUM($K$3:K254) -> 0
A8: Kilométrage milles | E8: =A9*0.6214 -> 0
A9: =SUM($C$3:C307) -> 0
A10: Over size kilométrage -10' | E10: =A11*0.6214 -> 0
A11: =MAX(C4:C300)-MIN(C4:C300) -> 0
A12: Over size kilométrage +10' | E12: =A13*0.6214 -> 0
A13: =MAX(C4:C300)-MIN(C4:C300) -> 0
A14: journée non complète | E14: =SUM($S$3:S254) -> 0
A16: Arrêt journée de semaine | E16: =SUM($U$3:$U252) -> 0
A18: Arrêt journée de fin semaine | E18: =SUM($T$3:$T252) -> 0
A20: Arrêt obligatoir 36h | E20: =SUM($V$3:$V252) -> 0
A22: Prime Surdimention 12' et moin | E22: =SUM($P$3:P254) -> 0
A24: Prime Surdimention 12' et plus | E24: =SUM($Q$3:Q256) -> 0
A26: TRAVAIL DE VILLE | E26: =SUM($G$3:G254) -> 00:00:00
A28: Prime New York | E28: =SUM(R3:R300) -> 0
A30: TWICK | E30: =SUM($L$3:L254) -> 0
A32: Douane | E32: =SUM($I$3:I254) -> 0
A34: Attente chargement | E34: =SUM($F$3:F254) -> 00:00:00

Sheet Bronsard H.
A1: Bronsard Hubert | E1: 02:00:00 | F1: Semaine du
A2: DATE / HEURES | B2: TEMPS | C2: ODOMÈTRE | D2: lieu | E2: Activité | F2: ATTENTE (HEURE) | G2: VILLE ET MANUTENTION (HEURE) | H2: SUPERLOAD (HEURE) | I2: DOUANES | J2: Transport explosif | K2: CONTACTS | L2: TWICK | N2: Surdimension 12' et moin | O2: Surdimension 12' et plus | P2: prime surdimenssion 12' et moin | Q2: prime surdimenssion 12' et plus | R2: PRIME NEW YORK | S2: ARRÊT JOURNÉE NON-COMPLÈTE | T2: ARRÊT CONPLET- JOURNÉE DE FIN DE SEMAINE | U2: ARRÊT JOURNÉE DE SEMAINE | V2: Arrêt obligatoir 36h | W2: Opérateur | X2: Numéro de véhicule | Y2: Date de début | Z2: Ville | AA2: État / Province | AB2: Pays | AC2: No commande | AD2: LAYOVER | AE2: Montant
F3: =IF(ISERROR(SEARCH("ATTENTE",E3)),"",$B3) ->  | G3: =IF(COUNTIF(E3,"*Formation*")+COUNTIF(E3,"*Travail de cours*")+COUNTIF(E3,"*réunion*")+COUNTIF(E3,"*escorte routière*")+COUNTIF(E3,"*courte distance*")>0,B3,"-") -> - | H3: =IF(ISERROR(SEARCH("superload: True",E3)),"",$B3) ->  | I3: =IF(ISERROR(SEARCH("Douane",E3)),"",1) ->  | J3: =IF(ISERROR(SEARCH("transport explosif",E3)),"",1) ->  | K3: =IF(COUNTIF(E3,"*toile: true*"),1,0)+IF(COUNTIF(E3,"*charger*"),1,0)+IF(COUNTIF(E3,"*déchargr*"),1,0)+IF(COUNTIF(E3,"*CHARGÉ: TRUE*"),1,0) -> 0 | L3: =IF(ISERROR(SEARCH("TWIC: True",E3)),"",1) ->  | M3: =LEN($N3) -> 0 | N3: =IFERROR(IF(LEFT(MID($E3,SEARCH("Largeur pi-po",$E3,1)+15,100),2)*1<12,LEFT(MID($E3,SEARCH("Largeur pi-po",$E3,1)+15,100),2)*1,""),"") ->  | O3: =IFERROR(IF(LEFT(MID($E3,SEARCH("Largeur pi-po",$E3,1)+15,100),2)*1>=12,LEFT(MID($E3,SEARCH("Largeur pi-po",$E3,1)+15,100),2)*1,""),"") ->  | P3: =IF(N3<12,1,"") ->  | Q3: =IF(O3="","",IF(O3>=12,1,"")) ->  | R3: =IF(ISERROR(SEARCH("PRIME N.Y: True",E3)),"",1) ->  | S3: =IF(ISERROR(SEARCH("Journée non complète",E3)),"",1) ->  | T3: =IF(ISERROR(SEARCH("Fin de semaine",E3)),"",1) ->  | U3: =IF(ISERROR(SEARCH("1 Journée compète semaine",E3)),"",1) ->  | V3: =IF(ISERROR(SEARCH("Arrêt obligatoir (36H)",E3)),"",1) -> 
A4: 2017-01-01T09:33:25 | B4: 0.6017939815 | D4: 365 West Iowa 80 Road, Walcott, IA, 52773, United States | E4: (53) Layover No commande: 0 LAYOVER: Fin de semaine | F4: =IF(ISERROR(SEARCH("ATTENTE",E4)),"",$B4) ->  | G4: =IF(COUNTIF(E4,"*Formation*")+COUNTIF(E4,"*Travail de cours*")+COUNTIF(E4,"*réunion*")+COUNTIF(E4,"*escorte routière*")+COUNTIF(E4,"*courte distance*")>0,B4,"-") -> - | H4: =IF(ISERROR(SEARCH("superload: True",E4)),"",$B4) ->  | I4: =IF(ISERROR(SEARCH("Douane",E4)),"",1) ->  | J4: =IF(ISERROR(SEARCH("transport explosif",E4)),"",1) ->  | K4: =IF(COUNTIF(E4,"*toile: true*"),1,0)+IF(COUNTIF(E4,"*charger*"),1,0)+IF(COUNTIF(E4,"*déchargr*"),1,0)+IF(COUNTIF(E4,"*CHARGÉ: TRUE*"),1,0) -> 0 | L4: =IF(ISERROR(SEARCH("TWIC: True",E4)),"",1) ->  | M4: =LEN($N4) -> 0 | P4: =IF(N4<12,1,"") ->  | Q4: =IF(O4="","",IF(O4>=12,1,"")) ->  | R4: =IF(ISERROR(SEARCH("PRIME N.Y: True",E4)),"",1) ->  | S4: =IF(ISERROR(SEARCH("Journée non complète",E4)),"",1) ->  | T4: =IF(ISERROR(SEARCH("Fin de semaine",E4)),"",1) -> 1 | U4: =IF(ISERROR(SEARCH("1 Journée compète semaine",E4)),"",1) ->  | V4: =IF(ISERROR(SEARCH("Arrêt obligatoir (36H)",E4)),"",1) -> 
A5: 0 | G5: - | K5: 0 | M5: 0
A6: 2017-01-02T09:52:03 | D6: 365 West Iowa 80 Road, Walcott, IA, 52773, United States | E6: Connexion | G6: - | K6: 0 | M6: 0
A7: 2017-01-02T10:05:28 | B7: 0.0006018518519 | D7: 365 West Iowa 80 Road, Walcott, IA, 52773, United States | E7: (47) Identification remorque EQUIPMENT_NAME: sd533287 | G7: - | K7: 0 | M7: 0
A8: 2017-01-02T10:06:20 | B8: 6.944444444e-05 | D8: 365 West Iowa 80 Road, Walcott, IA, 52773, United States | E8: (40) V.A.D. VEHICLE_NO: 200783 | G8: - | K8: 0 | M8: 0
A9: 2017-01-02T10:06:26 | B9: 0.01170138889 | D9: 365 West Iowa 80 Road, Walcott, IA, 52773, United States | E9: (40) V.A.D. EQUIPMENT_NAME: sd533287 | G9: - | K9: 0 | M9: 0
A10: 2017-01-02T10:23:17 | B10: 0.08052083333 | C10: 189.9 | D10: 365 West Iowa 80 Road, Walcott, IA, 52773, United States | E10: (-) Conduite | G10: - | K10: 0 | M10: 0
A11: 2017-01-02T12:19:14 | B11: 0.001539351852 | D11: Interstate 80, Ottawa, IL, 61350, United States | E11: (4) Pause | G11: - | K11: 0 | M11: 0
A12: 2017-01-02T12:21:27 | B12: 0.0602662037 | C12: 139.8 | D12: Interstate 80, Ottawa, IL, 61350, United States | E12: (-) Conduite | G12: - | K12: 0 | M12: 0
A13: 2017-01-02T13:48:14 | B13: 0.009652777778 | C13: 0.2999999998 | D13: 1401 Ripley Street, Lake Station, IN, 46405, United States | E13: (64) Carburant (presser et remplir) Fournisseur: Shell/Flying J - TCH MÉTHODE DE PAIEMENT: TCH - SHELL/FLYING J MONTANT: 0 Qte de Carburant: 171.000 Unité: False Unité: False | G13: - | K13: 0 | M13: 0
A14: 2017-01-02T14:02:08 | B14: 0.004178240741 | C14: 1.2 | D14: Ripley Street, Lake Station, IN, 46405, United States | E14: (-) Conduite | G14: - | K14: 0 | M14: 0
A15: 2017-01-02T14:08:09 | B15: 0.4110069444 | C15: 0.5 | D15: Ripley Street, Lake Station, IN, 46405, United States | E15: (53) Layover No commande: 90691 LAYOVER: Surdimensionné Commentaires: journer non complet rouler 348 km | G15: - | K15: 0 | M15: 0 | P15: 1
A16: 330.8999939 | G16: - | K16: 0 | M16: 0
A17: 2017-01-03T11:01:16 | B17: 5.787037037e-05 | D17: 1401 Ripley Street, Lake Station, IN, 46405, United States | E17: (40) V.A.D. VEHICLE_NO: 200783 | G17: - | K17: 0 | M17: 0
A18: 2017-01-03T11:01:21 | B18: 0.01077546296 | D18: 1401 Ripley Street, Lake Station, IN, 46405, United States | E18: (40) V.A.D. EQUIPMENT_NAME: sd533287 | G18: - | K18: 0 | M18: 0
A19: 2017-01-03T11:16:52 | B19: 0.1013773148 | C19: 207.6 | D19: 1401 Ripley Street, Lake Station, IN, 46405, United States | E19: (-) Conduite | G19: - | K19: 0 | M19: 0
A20: 2017-01-03T13:42:51 | B20: 0.004282407407 | D20: Interstate 94, Battle Creek, MI, 49015, United States | E20: (4) Pause | G20: - | K20: 0 | M20: 0
A21: 2017-01-03T13:49:01 | B21: 0.001157407407 | C21: 0.1999999997 | D21: Interstate 94, Battle Creek, MI, 49015, United States | E21: (45) T.L.C. | G21: - | K21: 0 | M21: 0
A22: 2017-01-03T13:50:41 | B22: 0.1384606481 | C22: 278 | D22: Interstate 94, Battle Creek, MI, 49015, United States | E22: (-) Conduite | G22: - | K22: 0 | M22: 0
A23: 2017-01-03T17:10:04 | B23: 0.2846759259 | D23: North Wadhams Road, Smiths Creek, MI, 48074, United States | E23: (53) Layover No commande: 90691 LAYOVER: Surdimensionné | G23: - | K23: 0 | M23: 0 | P23: 1
A24: 485.6000061 | G24: - | K24: 0 | M24: 0
A25: 2017-01-04T07:43:12 | B25: 9.259259259e-05 | D25: North Wadhams Road, Smiths Creek, MI, 48074, United States | E25: (40) V.A.D. VEHICLE_NO: 200783 | G25: - | K25: 0 | M25: 0
A26: 2017-01-04T07:43:20 | B26: 0.0112037037 | D26: North Wadhams Road, Smiths Creek, MI, 48074, United States | E26: (40) V.A.D. EQUIPMENT_NAME: sd533287 | G26: - | K26: 0 | M26: 0
A27: 2017-01-04T07:59:28 | B27: 0.008541666667 | C27: 12.8 | D27: 2424 Wadhams Road, Smiths Creek, MI, 48074, United States | E27: (-) Conduite | G27: - | K27: 0 | M27: 0
A28: 2017-01-04T08:11:46 | B28: 0.0006712962963 | C28: 0.1999999997 | D28: Marina Road, Point Edward, ON, N7T, Canada | E28: (104) Douane | G28: - | I28: 1 | K28: 0 | M28: 0
A29: 2017-01-04T08:12:44 | B29: 0.06135416667 | C29: 145.1 | D29: 1555 Venetian Boulevard, Point Edward, ON, N7T, Canada | E29: (-) Conduite | G29: - | K29: 0 | M29: 0
A30: 2017-01-04T09:41:05 | B30: 0.00125 | D30: Macdonald-Cartier Freeway, Beachville, ON, N0J 1A0, Canada | E30: (45) T.L.C. | G30: - | K30: 0 | M30: 0
A31: 2017-01-04T09:42:53 | B31: 0.1601851852 | C31: 383.4 | D31: Macdonald-Cartier Freeway, Beachville, ON, N0J 1A0, Canada | E31: (-) Conduite | G31: - | K31: 0 | M31: 0
A32: 2017-01-04T13:33:33 | B32: 0.01061342593 | D32: Macdonald-Cartier Freeway, Odessa, ON, K0H 2H0, Canada | E32: (4) Pause | G32: - | K32: 0 | M32: 0
A33: 2017-01-04T13:48:50 | B33: 0.002013888889 | D33: Macdonald-Cartier Freeway, Odessa, ON, K0H 2H0, Canada | E33: (45) T.L.C. | G33: - | K33: 0 | M33: 0
A34: 2017-01-04T13:51:44 | B34: 0.09612268519 | C34: 227.7 | D34: Macdonald-Cartier Freeway, Odessa, ON, K0H 2H0, Canada | E34: (-) Conduite | G34: - | K34: 0 | M34: 0
A35: 2017-01-04T16:10:09 | B35: 0.01165509259 | C35: 0.1999999997 | D35: Autoroute du Souvenir, Rivière-Beaudette, QC, J0P 1R0, Canada | E35: (4) Pause | G35: - | K35: 0 | M35: 0
A36: 2017-01-04T16:26:56 | B36: 0.001493055556 | D36: Autoroute du Souvenir, Rivière-Beaudette, QC, J0P 1R0, Canada | E36: (45) T.L.C. | G36: - | K36: 0 | M36: 0
A37: 2017-01-04T16:29:05 | B37: 0.08665509259 | C37: 142 | D37: Autoroute du Souvenir, Rivière-Beaudette, QC, J0P 1R0, Canada | E37: (-) Conduite | G37: - | K37: 0 | M37: 0
A38: 2017-01-04T18:33:52 | B38: 0.03332175926 | C38: 2.4 | D38: express terminal, 922 Grande Côte Ouest, Lanoraie, QC, Canada | E38: (4) Pause | G38: - | K38: 0 | M38: 0
A39: 2017-01-04T19:21:51 | B39: 0.000787037037 | D39: express terminal, 922 Grande Côte Ouest, Lanoraie, QC, Canada | E39: (64) Carburant (presser et remplir) Fournisseur: Gasboy - COURS EXPRESS MONDOR MÉTHODE DE PAIEMENT: GASBOY- COURS EXPRESS MONDOR MONTANT: 0 Qte de Carburant: 617.06 Unité: True Unité: False | G39: - | K39: 0 | M39: 0
A40: 2017-01-04 19:22:59 OS 1732KM | B40: 0.1923726852 | C40: 0.2 | D40: express terminal, 922 Grande Côte Ouest, Lanoraie, QC, Canada | E40: (3) Fin travail | G40: - | K40: 0 | M40: 0
A41: 911 | G41: - | K41: 0 | M41: 0
A42: (hh:mm:ss) | B42: (hh:mm:ss) | C42: (km) | G42: - | K42: 0 | M42: 0
A43: 0 | G43: - | K43: 0 | M43: 0
A44: (hh:mm:ss) | B44: (hh:mm:ss) | C44: (km) | G44: - | K44: 0 | M44: 0
A45: 0 | G45: - | K45: 0 | M45: 0
A46: 2017-01-07T02:28:58 | D46: express terminal, 922 Grande Côte Ouest, Lanoraie, QC, Canada | E46: Connexion | G46: - | K46: 0 | M46: 0
A47: 2017-01-07T02:52:48 | B47: 0.00119212963 | D47: express terminal, 922 Grande Côte Ouest, Lanoraie, QC, Canada | E47: (47) Identification remorque EQUIPMENT_NAME: 2059 | G47: - | K47: 0 | M47: 0
A48: 2017-01-07T02:54:31 | B48: 8.101851852e-05 | D48: express terminal, 922 Grande Côte Ouest, Lanoraie, QC, Canada | E48: (40) V.A.D. VEHICLE_NO: 200783 | G48: - | K48: 0 | M48: 0
A49: 2017-01-07T02:54:38 | B49: 0.01064814815 | C49: 0.2000000002 | D49: express terminal, 922 Grande Côte Ouest, Lanoraie, QC, Canada | E49: (40) V.A.D. EQUIPMENT_NAME: 2059 | G49: - | K49: 0 | M49: 0
A50: 2017-01-07T03:09:58 | B50: 0.0008680555556 | D50: express terminal, 922 Grande Côte Ouest, Lanoraie, QC, Canada | E50: (4) Pause | G50: - | K50: 0 | M50: 0
A51: 2017-01-07T03:11:13 | B51: 0.03974537037 | C51: 80.6 | D51: express terminal, 922 Grande Côte Ouest, Lanoraie, QC, Canada | E51: (-) Conduite | G51: - | K51: 0 | M51: 0
A52: 2017-01-07T04:08:27 | B52: 0.001481481481 | D52: 9300 Route Transcanadienne, Montréal, QC, H4S, Canada | E52: (4) Pause | G52: - | K52: 0 | M52: 0
A53: 2017-01-07T04:10:35 | B53: 0.05525462963 | C53: 129.4 | D53: 9300 Route Transcanadienne, Montréal, QC, H4S, Canada | E53: (-) Conduite | G53: - | K53: 0 | M53: 0
A54: 2017-01-07T05:30:09 | B54: 0.07260416667 | D54: 5600 Rest Area, Ingleside, ON, K0C 1M0, Canada | E54: (4) Pause | G54: - | K54: 0 | M54: 0
A55: 2017-01-07T07:14:42 | B55: 0.135775463 | C55: 321.8 | D55: 5600 Rest Area, Ingleside, ON, K0C 1M0, Canada | E55: (-) Conduite | G55: - | K55: 0 | M55: 0
A56: 2017-01-07T10:30:13 | B56: 0.003912037037 | D56: 17188 Vivian Drive, Newcastle, ON, L1B 1L9, Canada | E56: (4) Pause | G56: - | K56: 0 | M56: 0
A57: 2017-01-07T10:35:51 | B57: 0.001886574074 | C57: 0.1000000001 | D57: 17188 Vivian Drive, Newcastle, ON, L1B 1L9, Canada | E57: (45) T.L.C. | G57: - | K57: 0 | M57: 0
A58: 2017-01-07T10:38:34 | B58: 0.1553125 | C58: 366.9 | D58: 17188 Vivian Drive, Newcastle, ON, L1B 1L9, Canada | E58: (-) Conduite | G58: - | K58: 0 | M58: 0
A59: 2017-01-07T14:22:13 | B59: 0.003414351852 | D59: Ontario 402, Point Edward, ON, N7V, Canada | E59: (4) Pause | G59: - | K59: 0 | M59: 0
A60: 2017-01-07T14:27:08 | B60: 0.002268518519 | D60: Ontario 402, Point Edward, ON, N7V, Canada | E60: (45) T.L.C. | G60: - | K60: 0 | M60: 0
A61: 2017-01-07T14:30:24 | B61: 0.002847222222 | C61: 2.1 | D61: Ontario 402, Point Edward, ON, N7V, Canada | E61: (-) Conduite | G61: - | K61: 0 | M61: 0
A62: 2017-01-07T14:34:30 | B62: 0.0008449074074 | D62: Bluewater Bridge, Port Huron, MI, 48060, United States | E62: (104) Douane | G62: - | I62: 1 | K62: 0 | M62: 0
A63: 2017-01-07T14:35:43 | B63: 0.001550925926 | C63: 0.5 | D63: Bluewater Bridge, Port Huron, MI, 48060, United States | E63: (-) Conduite | G63: - | K63: 0 | M63: 0
A64: 2017-01-07T14:37:57 | B64: 0.009189814815 | D64: Pine Grove Avenue, Port Huron, MI, 48060, United States | E64: (4) Pause | G64: - | K64: 0 | M64: 0
A65: 2017-01-07T14:51:11 | B65: 0.006539351852 | C65: 11.2 | D65: Pine Grove Avenue, Port Huron, MI, 48060, United States | E65: (-) Conduite | G65: - | K65: 0 | M65: 0
A66: 2017-01-07T15:00:36 | B66: 0.008171296296 | C66: 0.3999999999 | D66: 2424 Wadhams Road, Smiths Creek, MI, 48074, United States | E66: (4) Pause | G66: - | K66: 0 | M66: 0
A67: 2017-01-07T15:12:22 | B67: 0.0004976851852 | D67: North Wadhams Road, Smiths Creek, MI, 48074, United States | E67: (64) Carburant (presser et remplir) Fournisseur: Shell/Flying J - TCH MÉTHODE DE PAIEMENT: TCH - SHELL/FLYING J MONTANT: 0 Qte de Carburant: 152.300 Unité: False Unité: False | G67: - | K67: 0 | M67: 0 | N67: =IFERROR(IF(LEFT(MID($E67,SEARCH("Largeur pi-po",$E67,1)+15,100),2)*1<12,LEFT(MID($E67,SEARCH("Largeur pi-po",$E67,1)+15,100),2)*1,""),"") ->  | O67: =IFERROR(IF(LEFT(MID($E67,SEARCH("Largeur pi-po",$E67,1)+15,100),2)*1>=12,LEFT(MID($E67,SEARCH("Largeur pi-po",$E67,1)+15,100),2)*1,""),"") -> 
A68: 2017-01-07T15:13:05 | B68: 0.3659143519 | C68: 0.1 | D68: North Wadhams Road, Smiths Creek, MI, 48074, United States | E68: (2) Couchette | F68: =IF(ISERROR(SEARCH("ATTENTE",E68)),"",$B68) ->  | G68: =IF(COUNTIF(E68,"*Formation*")+COUNTIF(E68,"*Travail de cours*")+COUNTIF(E68,"*réunion*")+COUNTIF(E68,"*escorte routière*")+COUNTIF(E68,"*courte distance*")>0,B68,"-") -> - | H68: =IF(ISERROR(SEARCH("superload: True",E68)),"",$B68) ->  | I68: =IF(ISERROR(SEARCH("Douane",E68)),"",1) ->  | J68: =IF(ISERROR(SEARCH("transport explosif",E68)),"",1) ->  | K68: =IF(COUNTIF(E68,"*toile: true*"),1,0)+IF(COUNTIF(E68,"*charger*"),1,0)+IF(COUNTIF(E68,"*déchargr*"),1,0)+IF(COUNTIF(E68,"*CHARGÉ: TRUE*"),1,0) -> 0 | L68: =IF(ISERROR(SEARCH("TWIC: True",E68)),"",1) ->  | M68: =LEN($N68) -> 0 | P68: =IF(N68<12,1,"") ->  | Q68: =IF(O68="","",IF(O68>=12,1,"")) ->  | R68: =IF(ISERROR(SEARCH("PRIME N.Y: True",E68)),"",1) ->  | S68: =IF(ISERROR(SEARCH("Journée non complète",E68)),"",1) ->  | T68: =IF(ISERROR(SEARCH("Fin de semaine",E68)),"",1) ->  | U68: =IF(ISERROR(SEARCH("1 Journée compète semaine",E68)),"",1) ->  | V68: =IF(ISERROR(SEARCH("Arrêt obligatoir (36H)",E68)),"",1) -> 
A69: 912.5
R70: =IF(ISERROR(SEARCH("PRIME N.Y: True",E70)),"",1) -> 
M71: commentaire
A72: Contact | E72: =SUM($K$3:K320) -> 0
A74: Kilométrage milles | E74: =A75*0.6214 -> 1643.47872
A75: =SUM($C$3:C373) -> 2644.8
A76: Over size kilométrage -10' | E76: =A77*0.6214 -> 1076.2648
A77: 1732
A78: Over size kilométrage +10' | E78: =A79*0.6214 -> 0
A79: =MAX(C70:C366)-MIN(C70:C366) -> 0
A80: journée non complète | E80: =SUM($S$3:S320) -> 0
A82: Arrêt journée de semaine | E82: =SUM($U$3:$U318) -> 0
A84: Arrêt journée de fin semaine | E84: =SUM($T$3:$T318) -> 1 | F84: 1 janv.
A86: Arrêt obligatoir 36h | E86: =SUM($V$3:$V318) -> 0
A88: Prime Surdimention 12' et moin | E88: =SUM($P$3:P320) -> 2 | F88: 2 -3 janv.
A90: Prime Surdimention 12' et plus | E90: =SUM($Q$3:Q322) -> 0
A92: TRAVAIL DE VILLE | E92: =SUM($G$3:G320) -> 00:00:00
A94: Prime New York | E94: =SUM(R3:R366) -> 0
A96: TWICK | E96: =SUM($L$3:L320) -> 0
A98: Douane | E98: =SUM($I$3:I320) -> 2
A100: Attente chargement | E100: =SUM($F$3:F320) -> 00:00:00

Sheet Caron N.
B1: Caron Normand | E1: 02:00:00 | F1: Semaine du | N1: =#REF! ->  | P1: =#REF! ->  | T1: =#REF! ->  | U1: AU | V1: =#REF! -> 
A2: DATE / HEURES | B2: TEMPS | C2: ODOMÈTRE | D2: lieu | E2: Activité | F2: ATTENTE (HEURE) | G2: VILLE ET MANUTENTION (HEURE) | H2: SUPERLOAD (HEURE) | I2: DOUANES | J2: Transport explosif | K2: CONTACTS | L2: TWICK | N2: Surdimension 12' et moin | O2: Surdimension 12' et plus | P2: prime surdimenssion 12' et moin | Q2: prime surdimenssion 12' et plus | R2: PRIME NEW YORK | S2: ARRÊT JOURNÉE NON-COMPLÈTE | T2: ARRÊT CONPLET- JOURNÉE DE FIN DE SEMAINE | U2: ARRÊT JOURNÉE DE SEMAINE | V2: Arrêt obligatoir 36h | W2: Opérateur | X2: Numéro de véhicule | Y2: Date de début | Z2: Ville | AA2: État / Province | AB2: Pays | AC2: No commande | AD2: LAYOVER | AE2: Montant
F3: =IF(ISERROR(SEARCH("ATTENTE",E3)),"",$B3) ->  | G3: =IF(COUNTIF(E3,"*Formation*")+COUNTIF(E3,"*Travail de cours*")+COUNTIF(E3,"*réunion*")+COUNTIF(E3,"*escorte routière*")+COUNTIF(E3,"*courte distance*")>0,B3,"-") -> - | H3: =IF(ISERROR(SEARCH("superload: True",E3)),"",$B3) ->  | I3: =IF(ISERROR(SEARCH("Douane",E3)),"",1) ->  | J3: =IF(ISERROR(SEARCH("transport explosif",E3)),"",1) ->  | K3: =IF(COUNTIF(E3,"*toile: true*"),1,0)+IF(COUNTIF(E3,"*charger*"),1,0)+IF(COUNTIF(E3,"*déchargr*"),1,0)+IF(COUNTIF(E3,"*CHARGÉ: TRUE*"),1,0) -> 0 | L3: =IF(ISERROR(SEARCH("TWIC: True",E3)),"",1) ->  | M3: =LEN($N3) -> 0 | N3: =IFERROR(IF(LEFT(MID($E3,SEARCH("Largeur pi-po",$E3,1)+15,100),2)*1<12,LEFT(MID($E3,SEARCH("Largeur pi-po",$E3,1)+15,100),2)*1,""),"") ->  | O3: =IFERROR(IF(LEFT(MID($E3,SEARCH("Largeur pi-po",$E3,1)+15,100),2)*1>=12,LEFT(MID($E3,SEARCH("Largeur pi-po",$E3,1)+15,100),2)*1,""),"") ->  | P3: =IF(N3<12,1,"") ->  | Q3: =IF(O3="","",IF(O3>=12,1,"")) ->  | R3: =IF(ISERROR(SEARCH("PRIME N.Y: True",E3)),"",1) ->  | S3: =IF(ISERROR(SEARCH("Journée non complète",E3)),"",1) ->  | T3: =IF(ISERROR(SEARCH("Fin de semaine",E3)),"",1) ->  | U3: =IF(ISERROR(SEARCH("1 Journée compète semaine",E3)),"",1) ->  | V3: =IF(ISERROR(SEARCH("Arrêt obligatoir (36H)",E3)),"",1) -> 
A4: (jj/mm/aaaa hh:mm) | B4: (hh:mm:ss) | C4: (km) | F4: =IF(ISERROR(SEARCH("ATTENTE",E4)),"",$B4) ->  | G4: =IF(COUNTIF(E4,"*Formation*")+COUNTIF(E4,"*Travail de cours*")+COUNTIF(E4,"*réunion*")+COUNTIF(E4,"*escorte routière*")+COUNTIF(E4,"*courte distance*")>0,B4,"-") -> - | H4: =IF(ISERROR(SEARCH("superload: True",E4)),"",$B4) ->  | I4: =IF(ISERROR(SEARCH("Douane",E4)),"",1) ->  | J4: =IF(ISERROR(SEARCH("transport explosif",E4)),"",1) ->  | K4: =IF(COUNTIF(E4,"*toile: true*"),1,0)+IF(COUNTIF(E4,"*charger*"),1,0)+IF(COUNTIF(E4,"*déchargr*"),1,0)+IF(COUNTIF(E4,"*CHARGÉ: TRUE*"),1,0) -> 0 | L4: =IF(ISERROR(SEARCH("TWIC: True",E4)),"",1) ->  | M4: =LEN($N4) -> 0 | P4: =IF(N4<12,1,"") ->  | Q4: =IF(O4="","",IF(O4>=12,1,"")) ->  | R4: =IF(ISERROR(SEARCH("PRIME N.Y: True",E4)),"",1) ->  | S4: =IF(ISERROR(SEARCH("Journée non complète",E4)),"",1) ->  | T4: =IF(ISERROR(SEARCH("Fin de semaine",E4)),"",1) ->  | U4: =IF(ISERROR(SEARCH("1 Journée compète semaine",E4)),"",1) ->  | V4: =IF(ISERROR(SEARCH("Arrêt obligatoir (36H)",E4)),"",1) -> 
A5: 2017-01-01T07:15:22 | B5: 0.0002083333333 | D5: 1049 U.S. 11, Champlain, NY, 12919, United States | E5: (40) V.A.D. VEHICLE_NO: GNC321 | G5: - | K5: 0 | M5: 0
A6: 2017-01-01T07:15:40 | B6: 0.01748842593 | C6: 0.1 | D6: 1049 U.S. 11, Champlain, NY, 12919, United States | E6: (40) V.A.D. EQUIPMENT_NAME: 2057 | G6: - | K6: 0 | M6: 0
A7: 2017-01-01T07:40:51 | B7: 0.0006365740741 | C7: 0.5 | D7: 1049 U.S. 11, Champlain, NY, 12919, United States | E7: (-) Conduite | G7: - | K7: 0 | M7: 0
A8: 2017-01-01T07:41:46 | B8: 0.0006481481481 | C8: 0.1 | D8: Adirondack Northway, Champlain, NY, 12919, United States | E8: (4) Pause | G8: - | K8: 0 | M8: 0
A9: 2017-01-01T07:42:42 | B9: 0.09815972222 | C9: 222 | D9: Adirondack Northway, Champlain, NY, 12919, United States | E9: (-) Conduite | G9: - | K9: 0 | M9: 0
A10: 2017-01-01T10:04:03 | B10: 0.05978009259 | C10: 0.1 | D10: 209 Ballard Road, Gansevoort, NY, 12831, United States | E10: (4) Pause | G10: - | K10: 0 | M10: 0
A11: 2017-01-01T11:30:08 | B11: 0.1054861111 | C11: 243 | D11: 208-210 Ballard Road, Gansevoort, NY, 12831, United States | E11: (-) Conduite | G11: - | K11: 0 | M11: 0
A12: 2017-01-01T14:02:02 | B12: 0.002719907407 | D12: 199 Waldron Terrace, Sloatsburg, NY, 10974, United States | E12: (45) T.L.C. | G12: - | K12: 0 | M12: 0
A13: 2017-01-01T14:05:57 | B13: 0.06204861111 | C13: 142.2 | D13: 199 Waldron Terrace, Sloatsburg, NY, 10974, United States | E13: (-) Conduite | G13: - | K13: 0 | M13: 0
A14: 2017-01-01T15:35:18 | B14: 0.002349537037 | D14: New Jersey Turnpike, Monroe Township, NJ, 08831, United States | E14: (45) T.L.C. | G14: - | K14: 0 | M14: 0
A15: 2017-01-01T15:38:41 | B15: 0.03498842593 | C15: 55.5 | D15: New Jersey Turnpike, Monroe Township, NJ, 08831, United States | E15: (-) Conduite | G15: - | K15: 0 | M15: 0
A16: 2017-01-01T16:29:04 | B16: 0.01725694444 | C16: 0.1 | D16: 365 Newbold Road, Fairless Hills, PA, 19030, United States | E16: (64) Carburant (presser et remplir) Fournisseur: Gain clean fuel MÉTHODE DE PAIEMENT: Gain clean fuel MONTANT: 234.24 Qte de Carburant: 99.298 Unité: False Unité: False | G16: - | K16: 0 | M16: 0
A17: 2017-01-01T16:53:55 | B17: 0.06193287037 | C17: 111.1 | D17: 450 Newbold Road, Fairless Hills, PA, 19030, United States | E17: (-) Conduite | G17: - | K17: 0 | M17: 0
A18: 2017-01-01T18:23:06 | B18: 0.04052083333 | D18: Delaware Turnpike, Newark, DE, 19702, United States | E18: (4) Pause | G18: - | K18: 0 | M18: 0
A19: 2017-01-01T19:21:27 | B19: 0.0302662037 | C19: 54.9 | D19: Delaware Turnpike, Newark, DE, 19702, United States | E19: (-) Conduite | G19: - | K19: 0 | M19: 0
A20: 2017-01-01T20:05:02 | B20: 0.000462962963 | D20: John F Kennedy Memorial Highway, Aberdeen, MD, 21001, United States | E20: (4) Pause | G20: - | K20: 0 | M20: 0
A21: 2017-01-01T20:05:42 | B21: 0.1627083333 | D21: John F Kennedy Memorial Highway, Aberdeen, MD, 21001, United States | E21: (2) Couchette | G21: - | K21: 0 | M21: 0
A22: 829.2000122 | G22: - | K22: 0 | M22: 0
A23: 2017-01-02T08:24:17 | B23: 0.0001388888889 | D23: John F Kennedy Memorial Highway, Aberdeen, MD, 21001, United States | E23: (40) V.A.D. VEHICLE_NO: GNC321 | G23: - | K23: 0 | M23: 0
A24: 2017-01-02T08:24:29 | B24: 0.0150462963 | D24: John F Kennedy Memorial Highway, Aberdeen, MD, 21001, United States | E24: (40) V.A.D. EQUIPMENT_NAME: 2057 | G24: - | K24: 0 | M24: 0
A25: 2017-01-02T08:46:09 | B25: 0.07741898148 | C25: 173.8 | D25: John F Kennedy Memorial Highway, Aberdeen, MD, 21001, United States | E25: (-) Conduite | G25: - | K25: 0 | M25: 0
A26: 2017-01-02T10:37:38 | B26: 0.001157407407 | C26: 0.8 | D26: Henry G. Shirley Memorial Highway, Lorton, VA, 22079, United States | E26: (-) Service | G26: - | K26: 0 | M26: 0
A27: 2017-01-02T10:39:18 | B27: 0.009525462963 | C27: 13.5 | D27: Henry G. Shirley Memorial Highway, Lorton, VA, 22079, United States | E27: (-) Conduite | G27: - | K27: 0 | M27: 0
A28: 2017-01-02T10:53:01 | B28: 0.0078125 | D28: Interstate 95, Montclair, VA, 22025, United States | E28: (4) Pause | G28: - | K28: 0 | M28: 0
A29: 2017-01-02T11:04:16 | B29: 0.04045138889 | C29: 82 | D29: Interstate 95, Montclair, VA, 22025, United States | E29: (-) Conduite | G29: - | K29: 0 | M29: 0
A30: 2017-01-02T12:02:31 | B30: 0.04575231481 | D30: 23840 Rogers Clark Boulevard, Ruther Glen, VA, 22546, United States | E30: (4) Pause | G30: - | K30: 0 | M30: 0
A31: 2017-01-02T13:08:24 | B31: 0.001724537037 | C31: 0.2 | D31: 23840 Rogers Clark Boulevard, Ruther Glen, VA, 22546, United States | E31: (45) T.L.C. | G31: - | K31: 0 | M31: 0
A32: 2017-01-02T13:10:53 | B32: 0.1179976852 | C32: 274.9 | D32: 23840 Rogers Clark Boulevard, Ruther Glen, VA, 22546, United States | E32: (-) Conduite | G32: - | K32: 0 | M32: 0
A33: 2017-01-02T16:00:48 | B33: 0.002488425926 | D33: Interstate 85, Oxford, NC, 27565, United States | E33: (45) T.L.C. | G33: - | K33: 0 | M33: 0
A34: 2017-01-02T16:04:23 | B34: 0.03356481481 | C34: 75.5 | D34: Interstate 85, Oxford, NC, 27565, United States | E34: (-) Conduite | G34: - | K34: 0 | M34: 0
A35: 2017-01-02T16:52:43 | B35: 0.00693287037 | C35: 0.1 | D35: 1342 Trollingwood Hawfields Road, Mebane, NC, 27302, United States | E35: (4) Pause | G35: - | K35: 0 | M35: 0
A36: 2017-01-02T17:02:42 | B36: 0.07804398148 | C36: 181.6 | D36: 1346-1366 Trollingwood Hawfields Road, Mebane, NC, 27302, United States | E36: (-) Conduite | G36: - | K36: 0 | M36: 0
A37: 2017-01-02T18:55:05 | B37: 0.01440972222 | D37: 4250 Trailer Drive, Charlotte, NC, 28269, United States | E37: (64) Carburant (presser et remplir) Fournisseur: Gain clean fuel MÉTHODE DE PAIEMENT: Gain clean fuel MONTANT: 264.57 Qte de Carburant: 106.255 Unité: False Unité: False | G37: - | K37: 0 | M37: 0
A38: 2017-01-02T19:15:50 | B38: 0.09548611111 | C38: 210.4 | D38: 4250 Trailer Drive, Charlotte, NC, 28269, United States | E38: (-) Conduite | G38: - | K38: 0 | M38: 0
A39: 2017-01-02T21:33:20 | B39: 0.1018518519 | D39: 1300 Burke Road, Saint Matthews, SC, 29135, United States | E39: (2) Couchette | G39: - | K39: 0 | M39: 0
A40: 1011.700012 | G40: - | K40: 0 | M40: 0
A41: 2017-01-03T07:54:25 | B41: 0.0001388888889 | D41: 1300 Burke Road, Saint Matthews, SC, 29135, United States | E41: (40) V.A.D. VEHICLE_NO: GNC321 | G41: - | K41: 0 | M41: 0
A42: 2017-01-03T07:54:37 | B42: 0.01149305556 | C42: 0.1 | D42: 1300 Burke Road, Saint Matthews, SC, 29135, United States | E42: (40) V.A.D. EQUIPMENT_NAME: 2057 | G42: - | K42: 0 | M42: 0
A43: 2017-01-03T08:11:10 | B43: 0.08274305556 | C43: 191.3 | D43: 1300 Burke Road, Saint Matthews, SC, 29135, United States | E43: (-) Conduite | G43: - | K43: 0 | M43: 0
A44: 2017-01-03T10:10:19 | B44: 0.008738425926 | C44: 0.2 | D44: O'Leary Road, Port Wentworth, GA, 31407, United States | E44: (4) Pause | G44: - | K44: 0 | M44: 0
A45: 2017-01-03T10:22:54 | B45: 0.05649305556 | C45: 127 | D45: 100 O'Leary Road, Port Wentworth, GA, 31407, United States | E45: (-) Conduite | G45: - | K45: 0 | M45: 0
A46: 2017-01-03T11:44:15 | B46: 0.0005439814815 | D46: 2990 U.S. 17, Brunswick, GA, 31523, United States | E46: (4) Pause | G46: - | K46: 0 | M46: 0
A47: 2017-01-03T11:45:02 | B47: 0.0006944444444 | C47: 0.3 | D47: 2990 U.S. 17, Brunswick, GA, 31523, United States | E47: (-) Conduite | G47: - | K47: 0 | M47: 0
A48: 2017-01-03T11:46:02 | B48: 0.01611111111 | C48: 0.2 | D48: 2990 U.S. 17, Brunswick, GA, 31523, United States | E48: (4) Pause | G48: - | K48: 0 | M48: 0
A49: 2017-01-03T12:09:14 | B49: 0.1454166667 | C49: 318.2 | D49: Flying J Driveway, Brunswick, GA, 31523, United States | E49: (-) Conduite | G49: - | K49: 0 | M49: 0
A50: 2017-01-03T15:38:38 | B50: 0.02111111111 | D50: Florida 400, Longwood, FL, 32750, United States | E50: (4) Pause | G50: - | K50: 0 | M50: 0
A51: 2017-01-03T16:09:02 | B51: 0.04712962963 | C51: 58.6 | D51: Florida 400, Longwood, FL, 32750, United States | E51: (-) Conduite | G51: - | K51: 0 | M51: 0
A52: 2017-01-03T17:16:54 | B52: 0.01640046296 | C52: 0.1 | D52: 2045-2099 South Poinciana Boulevard, Kissimmee, FL, 34758, United States | E52: (64) Carburant (presser et remplir) Fournisseur: Gain clean fuel MÉTHODE DE PAIEMENT: Gain clean fuel MONTANT: 242.09 Qte de Carburant: 102.626 Unité: False Unité: False | G52: - | K52: 0 | M52: 0
A53: 2017-01-03T17:40:31 | B53: 0.05145833333 | C53: 57.7 | D53: 1901 South Poinciana Boulevard, Kissimmee, FL, 34758, United States | E53: (-) Conduite | G53: - | K53: 0 | M53: 0
A54: 2017-01-03T18:54:37 | B54: 0.05225694444 | D54: Florida's Turnpike, FL, 34739, United States | E54: (4) Pause | G54: - | K54: 0 | M54: 0
A55: 2017-01-03T20:09:52 | B55: 0.1598148148 | D55: Florida's Turnpike, FL, 34739, United States | E55: (2) Couchette | G55: - | K55: 0 | M55: 0
A56: 753.0999756 | G56: - | K56: 0 | M56: 0
A57: 2017-01-04T06:51:17 | B57: 0.000162037037 | D57: Florida's Turnpike, FL, 34739, United States | E57: (40) V.A.D. VEHICLE_NO: GNC321 | G57: - | K57: 0 | M57: 0
A58: 2017-01-04T06:51:31 | B58: 0.0134375 | C58: 0.1 | D58: Florida's Turnpike, FL, 34739, United States | E58: (40) V.A.D. EQUIPMENT_NAME: 2057 | G58: - | K58: 0 | M58: 0
A59: 2017-01-04T07:10:52 | B59: 0.05542824074 | C59: 124.9 | D59: Florida's Turnpike, FL, 34739, United States | E59: (-) Conduite | G59: - | K59: 0 | M59: 0
A60: 2017-01-04T08:30:41 | B60: 0.01543981481 | C60: 0.5 | D60: 7300 Okeechobee Road, Fort Pierce, FL, 34945, United States | E60: (4) Pause | G60: - | K60: 0 | M60: 0
A61: 2017-01-04T08:52:55 | B61: 0.1005555556 | C61: 208.2 | D61: 2783 South Kings Highway, Fort Pierce, FL, 34945, United States | E61: (-) Conduite | G61: - | K61: 0 | M61: 0
A62: 2017-01-04T11:17:43 | B62: 0.02079861111 | D62: 2401-2499 Northwest 107th Avenue, Doral, FL, 33172, United States | E62: (104) Douane | G62: - | I62: 1 | K62: 0 | M62: 0
A63: 2017-01-04T11:47:40 | B63: 0.01608796296 | C63: 10.7 | D63: 10688-10698 Northwest 25th Street, Doral, FL, 33172, United States | E63: (-) Conduite | G63: - | K63: 0 | M63: 0
A64: 2017-01-04T12:10:50 | B64: 0.02231481481 | C64: 0.2 | D64: 8696 Northwest 77th Court, Medley, FL, 33166, United States | E64: (51) Décharger No commande: 90257 Voyage: Régulier Nom du client: pinto transfer seaboard marine TOILE: False TWIC: False PRIME N.Y: False Signature B/L: Oui ODOMÈTRE: 31370.92 | G64: - | K64: 1 | M64: 0
A65: 2017-01-04T12:42:58 | B65: 0.03765046296 | C65: 50.2 | D65: 8050 Northwest 79th Avenue, Medley, FL, 33166, United States | E65: (-) Conduite | G65: - | K65: 0 | M65: 0
A66: 2017-01-04T13:37:11 | B66: 0.002210648148 | D66: 2705 Burris Road, Davie, FL, 33314, United States | E66: (4) Pause | G66: - | K66: 0 | M66: 0
A67: 2017-01-04T13:40:22 | B67: 0.06834490741 | C67: 135.6 | D67: 2705 Burris Road, Davie, FL, 33314, United States | E67: (-) Conduite | G67: - | K67: 0 | M67: 0 | N67: =IFERROR(IF(LEFT(MID($E67,SEARCH("Largeur pi-po",$E67,1)+15,100),2)*1<12,LEFT(MID($E67,SEARCH("Largeur pi-po",$E67,1)+15,100),2)*1,""),"") ->  | O67: =IFERROR(IF(LEFT(MID($E67,SEARCH("Largeur pi-po",$E67,1)+15,100),2)*1>=12,LEFT(MID($E67,SEARCH("Largeur pi-po",$E67,1)+15,100),2)*1,""),"") -> 
A68: 2017-01-04T15:18:47 | B68: 0.02127314815 | D68: Interstate 95, Palm City, FL, 34990, United States | E68: (4) Pause | F68: =IF(ISERROR(SEARCH("ATTENTE",E68)),"",$B68) ->  | G68: =IF(COUNTIF(E68,"*Formation*")+COUNTIF(E68,"*Travail de cours*")+COUNTIF(E68,"*réunion*")+COUNTIF(E68,"*escorte routière*")+COUNTIF(E68,"*courte distance*")>0,B68,"-") -> - | H68: =IF(ISERROR(SEARCH("superload: True",E68)),"",$B68) ->  | I68: =IF(ISERROR(SEARCH("Douane",E68)),"",1) ->  | J68: =IF(ISERROR(SEARCH("transport explosif",E68)),"",1) ->  | K68: =IF(COUNTIF(E68,"*toile: true*"),1,0)+IF(COUNTIF(E68,"*charger*"),1,0)+IF(COUNTIF(E68,"*déchargr*"),1,0)+IF(COUNTIF(E68,"*CHARGÉ: TRUE*"),1,0) -> 0 | L68: =IF(ISERROR(SEARCH("TWIC: True",E68)),"",1) ->  | M68: =LEN($N68) -> 0 | P68: =IF(N68<12,1,"") ->  | Q68: =IF(O68="","",IF(O68>=12,1,"")) ->  | R68: =IF(ISERROR(SEARCH("PRIME N.Y: True",E68)),"",1) ->  | S68: =IF(ISERROR(SEARCH("Journée non complète",E68)),"",1) ->  | T68: =IF(ISERROR(SEARCH("Fin de semaine",E68)),"",1) ->  | U68: =IF(ISERROR(SEARCH("1 Journée compète semaine",E68)),"",1) ->  | V68: =IF(ISERROR(SEARCH("Arrêt obligatoir (36H)",E68)),"",1) -> 
A69: 2017-01-04T15:49:25 | B69: 0.02775462963 | C69: 45.7 | D69: Interstate 95, Palm City, FL, 34990, United States | E69: (-) Conduite | G69: - | K69: 0 | M69: 0
A70: 2017-01-04T16:29:23 | B70: 0.1302199074 | C70: 0.1 | D70: 100 North Kings Highway, Fort Pierce, FL, 34945, United States | E70: (4) Pause | G70: - | K70: 0 | M70: 0
A71: 2017-01-04T19:36:54 | B71: 0.02880787037 | C71: 58.3 | D71: Access Road, Fort Pierce, FL, 34947, United States | E71: (-) Conduite | G71: - | K71: 0 | M71: 0
A72: 2017-01-04T20:18:23 | B72: 0.153900463 | D72: Florida's Turnpike, Okeechobee, FL, 34972, United States | E72: (2) Couchette | G72: - | K72: 0 | M72: 0
A73: 633.5999756 | G73: - | K73: 0 | M73: 0
A74: 2017-01-05T06:23:44 | B74: 0.0001273148148 | D74: Florida's Turnpike, Okeechobee, FL, 34972, United States | E74: (40) V.A.D. VEHICLE_NO: GNC321 | G74: - | K74: 0 | M74: 0
A75: 2017-01-05T06:23:55 | B75: 0.01608796296 | C75: 0.3 | D75: Florida's Turnpike, Okeechobee, FL, 34972, United States | E75: (40) V.A.D. EQUIPMENT_NAME: 2057 | G75: - | K75: 0 | M75: 0
A76: 2017-01-05T06:47:05 | B76: 0.03150462963 | C76: 72.4 | D76: Florida's Turnpike, Okeechobee, FL, 34972, United States | E76: (-) Conduite | G76: - | K76: 0 | M76: 0
A77: 2017-01-05T07:32:27 | B77: 0.02959490741 | D77: Florida's Turnpike, Saint Cloud, FL, 34772, United States | E77: (4) Pause | G77: - | K77: 0 | M77: 0
A78: 2017-01-05T08:15:04 | B78: 0.03119212963 | C78: 40 | D78: Florida's Turnpike, Saint Cloud, FL, 34772, United States | E78: (-) Conduite | G78: - | K78: 0 | M78: 0
A79: 2017-01-05T08:59:59 | B79: 0.01814814815 | C79: 0.1 | D79: 2045-2099 South Poinciana Boulevard, Kissimmee, FL, 34758, United States | E79: (64) Carburant (presser et remplir) Fournisseur: Gain clean fuel MÉTHODE DE PAIEMENT: Gain clean fuel MONTANT: 246.02 Qte de Carburant: 104.292 Unité: False Unité: False | G79: - | K79: 0 | M79: 0
A80: 2017-01-05T09:26:07 | B80: 0.0003935185185 | C80: 0.4 | D80: 1901 South Poinciana Boulevard, Kissimmee, FL, 34758, United States | E80: (-) Conduite | G80: - | K80: 0 | M80: 0
A81: 2017-01-05T09:26:41 | B81: 0.001967592593 | C81: 0.4 | D81: 1701-1813 South Poinciana Boulevard, Kissimmee, FL, 34758, United States | E81: (45) T.L.C. | G81: - | K81: 0 | M81: 0
A82: 2017-01-05T09:29:31 | B82: 0.09128472222 | C82: 188.4 | D82: 1853-1889 South Poinciana Boulevard, Kissimmee, FL, 34758, United States | E82: (-) Conduite | G82: - | K82: 0 | M82: 0
A83: 2017-01-05T11:40:58 | B83: 0.004236111111 | C83: 0.1 | D83: Interstate 95, Hastings, FL, 32145, United States | E83: (45) T.L.C. | G83: - | K83: 0 | M83: 0
A84: 2017-01-05T11:47:04 | B84: 0.005289351852 | C84: 6 | D84: Interstate 95, Hastings, FL, 32145, United States | E84: (-) Conduite | G84: - | K84: 0 | M84: 0
A85: 2017-01-05T11:54:41 | B85: 0.08914351852 | C85: 0.4 | D85: 950 Florida 206, St. Augustine, FL, 32086, United States | E85: (4) Pause | G85: - | K85: 0 | M85: 0
A86: 2017-01-05T14:03:03 | B86: 0.08859953704 | C86: 204.8 | D86: 950 Florida 206, St. Augustine, FL, 32086, United States | E86: (-) Conduite | G86: - | K86: 0 | M86: 0
A87: 2017-01-05T16:10:38 | B87: 0.002962962963 | C87: 0.1 | D87: 100 Interstate 95, Brunswick, GA, 31525, United States | E87: (4) Pause | G87: - | K87: 0 | M87: 0
A88: 2017-01-05T16:14:54 | B88: 0.06721064815 | C88: 157.2 | D88: 100 Interstate 95, Brunswick, GA, 31525, United States | E88: (-) Conduite | G88: - | K88: 0 | M88: 0
A89: 2017-01-05T17:51:41 | B89: 0.005902777778 | D89: Jim Gillis Historic Savannah Parkway, Register, GA, 30452, United States | E89: (45) T.L.C. | G89: - | K89: 0 | M89: 0
A90: 2017-01-05T18:00:11 | B90: 0.08655092593 | C90: 171.5 | D90: Jim Gillis Historic Savannah Parkway, Register, GA, 30452, United States | E90: (-) Conduite | G90: - | K90: 0 | M90: 0
A91: 2017-01-05T20:04:49 | B91: 0.004108796296 | D91: 2129 Washington Road, Thomson, GA, 30824, United States | E91: (4) Pause | G91: - | K91: 0 | M91: 0
A92: 2017-01-05T20:10:44 | B92: 0.159212963 | D92: 2129 Washington Road, Thomson, GA, 30824, United States | E92: (2) Couchette | G92: - | K92: 0 | M92: 0
A93: 840.7000122 | G93: - | K93: 0 | M93: 0
A94: 2017-01-06T07:17:28 | B94: 0.0001388888889 | D94: 2129 Washington Road, Thomson, GA, 30824, United States | E94: (40) V.A.D. VEHICLE_NO: GNC321 | G94: - | K94: 0 | M94: 0
A95: 2017-01-06T07:17:40 | B95: 0.01506944444 | C95: 0.1 | D95: 2129 Washington Road, Thomson, GA, 30824, United States | E95: (40) V.A.D. EQUIPMENT_NAME: 2057 | G95: - | K95: 0 | M95: 0
A96: 2017-01-06T07:39:22 | B96: 0.001446759259 | C96: 0.3 | D96: Carl Sanders Highway, Thomson, GA, 30824, United States | E96: (-) Conduite | G96: - | K96: 0 | M96: 0
A97: 2017-01-06T07:41:27 | B97: 0.02854166667 | C97: 0.4 | D97: 2129 Washington Road, Thomson, GA, 30824, United States | E97: (4) Pause | G97: - | K97: 0 | M97: 0
A98: 2017-01-06T08:22:33 | B98: 0.003900462963 | C98: 0.1 | D98: 2129 Washington Road, Thomson, GA, 30824, United States | E98: (64) Carburant (presser et remplir) Fournisseur: Trillium MÉTHODE DE PAIEMENT: COMPTANT (COMMENTAIRE) MONTANT: 161.99 Qte de Carburant: 70.463 Unité: False Unité: False Commentaires: fuel avec master carte | G98: - | K98: 0 | M98: 0
A99: 2017-01-06T08:28:10 | B99: 0.0516087963 | C99: 99.9 | D99: 2129 Washington Road, Thomson, GA, 30824, United States | E99: (-) Conduite | G99: - | K99: 0 | M99: 0
A100: 2017-01-06T09:42:29 | B100: 0.004444444444 | D100: 1385 South Carolina 72, Abbeville, SC, 29620, United States | E100: (-) Service | G100: - | K100: 0 | M100: 0
A101: 2017-01-06T09:48:53 | B101: 0.01563657407 | C101: 16.8 | D101: 798 South Carolina 72, Abbeville, SC, 29620, United States | E101: (-) Conduite | G101: - | K101: 0 | M101: 0
A102: 2017-01-06T10:11:24 | B102: 0.009131944444 | D102: Industrial Park Road, Abbeville, SC, 29620, United States | E102: (4) Pause | G102: - | K102: 0 | M102: 0
A103: 2017-01-06T10:24:33 | B103: 0.0008680555556 | C103: 0.1 | D103: Industrial Park Road, Abbeville, SC, 29620, United States | E103: (-) Conduite | G103: - | K103: 0 | M103: 0
A104: 2017-01-06T10:25:48 | B104: 0.01890046296 | D104: Industrial Park Road, Abbeville, SC, 29620, United States | E104: (49) Charger No commande: 90868 Nom du client: prysmiam power cable TOILE: False TWIC: False PRIME N.Y: False Signature B/L: Oui | G104: - | K104: 1 | M104: 0
A105: 2017-01-06T10:53:01 | B105: 0.0002662037037 | D105: Industrial Park Road, Abbeville, SC, 29620, United States | E105: (4) Pause | G105: - | K105: 0 | M105: 0
A106: 2017-01-06T10:53:24 | B106: 0.0006481481481 | D106: Industrial Park Road, Abbeville, SC, 29620, United States | E106: (67) Photo No commande: 90868 | G106: - | K106: 0 | M106: 0
A107: 2017-01-06T10:54:20 | B107: 0.02302083333 | C107: 0.1 | D107: Industrial Park Road, Abbeville, SC, 29620, United States | E107: (4) Pause | G107: - | K107: 0 | M107: 0
A108: 2017-01-06T11:27:29 | B108: 0.001400462963 | C108: 0.1 | D108: Industrial Park Road, Abbeville, SC, 29620, United States | E108: (-) Conduite | G108: - | K108: 0 | M108: 0
A109: 2017-01-06T11:29:30 | B109: 0.003414351852 | D109: Industrial Park Road, Abbeville, SC, 29620, United States | E109: (45) T.L.C. | G109: - | K109: 0 | M109: 0
A110: 2017-01-06T11:34:25 | B110: 0.1059027778 | C110: 171 | D110: Industrial Park Road, Abbeville, SC, 29620, United States | E110: (-) Conduite | G110: - | K110: 0 | M110: 0
A111: 2017-01-06T14:06:55 | B111: 0.01170138889 | D111: 5901 Fairfield Road, Columbia, SC, 29203, United States | E111: (4) Pause | G111: - | K111: 0 | M111: 0
A112: 2017-01-06T14:23:46 | B112: 0.07239583333 | C112: 164.3 | D112: Interstate 20, Columbia, SC, 29203, United States | E112: (-) Conduite | G112: - | K112: 0 | M112: 0
A113: 2017-01-06T16:08:01 | B113: 0.005671296296 | C113: 0.8 | D113: 182-364 Caldwell Drive, Dillon, SC, 29536, United States | E113: (4) Pause | G113: - | K113: 0 | M113: 0
A114: 2017-01-06T16:16:11 | B114: 0.03854166667 | C114: 0.2 | D114: 182-364 Caldwell Drive, Dillon, SC, 29536, United States | E114: (49) Charger No commande: 90872 Nom du client: wymam gordon TOILE: False TWIC: False PRIME N.Y: False Signature B/L: Oui | G114: - | K114: 1 | M114: 0
A115: 2017-01-06T17:11:41 | B115: 0.001597222222 | C115: 1.1 | D115: 182-364 Caldwell Drive, Dillon, SC, 29536, United States | E115: (-) Conduite | G115: - | K115: 0 | M115: 0
A116: 2017-01-06T17:13:59 | B116: 0.002314814815 | C116: 0.1 | D116: Caldwell Drive, Dillon, SC, 29536, United States | E116: (4) Pause | G116: - | K116: 0 | M116: 0
A117: 2017-01-06T17:17:19 | B117: 0.001643518519 | C117: 0.3 | D117: Caldwell Drive, Dillon, SC, 29536, United States | E117: (-) Conduite | G117: - | K117: 0 | M117: 0
A118: 2017-01-06T17:19:41 | B118: 0.04373842593 | C118: 0.3 | D118: Caldwell Drive, Dillon, SC, 29536, United States | E118: (4) Pause | G118: - | K118: 0 | M118: 0
A119: 2017-01-06T18:22:40 | B119: 0.07795138889 | C119: 152.4 | D119: Caldwell Drive, Dillon, SC, 29536, United States | E119: (-) Conduite | G119: - | K119: 0 | M119: 0
A120: 2017-01-06T20:14:55 | B120: 0.01324074074 | D120: 1500-1598 Broadway Road, Sanford, NC, 27332, United States | E120: (64) Carburant (presser et remplir) Fournisseur: Gain clean fuel MÉTHODE DE PAIEMENT: Gain clean fuel MONTANT: 190.76 Qte de Carburant: 76.612 Unité: False Unité: False | G120: - | K120: 0 | M120: 0
A121: 2017-01-06T20:33:59 | B121: 0.05560185185 | C121: 97.7 | D121: 1500-1598 Broadway Road, Sanford, NC, 27332, United States | E121: (-) Conduite | G121: - | K121: 0 | M121: 0
A122: 2017-01-06T21:54:03 | B122: 0.08746527778 | D122: 500 Wendell Boulevard, Knightdale, NC, 27545, United States | E122: (4) Pause | G122: - | K122: 0 | M122: 0
A123: 704 | G123: - | K123: 0 | M123: 0
A124: 2017-01-07T08:01:46 | B124: 0.0001273148148 | D124: 500 Wendell Boulevard, Knightdale, NC, 27545, United States | E124: (40) V.A.D. VEHICLE_NO: GNC321 | G124: - | K124: 0 | M124: 0
A125: 2017-01-07T08:01:57 | B125: 0.01304398148 | C125: 0.1 | D125: 500 Wendell Boulevard, Knightdale, NC, 27545, United States | E125: (40) V.A.D. EQUIPMENT_NAME: 2057 | G125: - | K125: 0 | M125: 0
A126: 2017-01-07T08:20:44 | B126: 0.0753125 | C126: 127 | D126: 400 Wendell Boulevard, Knightdale, NC, 27545, United States | E126: (-) Conduite | G126: - | K126: 0 | M126: 0
A127: 2017-01-07T10:09:11 | B127: 0.004884259259 | C127: 0.1 | D127: 2014 North Carolina 48, Pleasant Hill, NC, 27866, United States | E127: (4) Pause | G127: - | K127: 0 | M127: 0
A128: 2017-01-07T10:16:13 | B128: 0.01322916667 | C128: 16.9 | D128: 2014 North Carolina 48, Pleasant Hill, NC, 27866, United States | E128: (-) Conduite | G128: - | K128: 0 | M128: 0
A129: 2017-01-07T10:35:16 | B129: 0.04072916667 | D129: State Route 690, Emporia, VA, 23847, United States | E129: (4) Pause | G129: - | K129: 0 | M129: 0
A130: 2017-01-07T11:33:55 | B130: 0.5181134259 | C130: 164.6 | D130: State Route 690, Emporia, VA, 23847, United States | E130: (53) Layover No commande: 90872 LAYOVER: Journée non complète | G130: - | K130: 0 | M130: 0
A131: 143.8999939 | G131: - | K131: 0 | M131: 0 | N131: =IFERROR(IF(LEFT(MID($E131,SEARCH("Largeur pi-po",$E131,1)+15,100),2)*1<12,LEFT(MID($E131,SEARCH("Largeur pi-po",$E131,1)+15,100),2)*1,""),"") ->  | O131: =IFERROR(IF(LEFT(MID($E131,SEARCH("Largeur pi-po",$E131,1)+15,100),2)*1>=12,LEFT(MID($E131,SEARCH("Largeur pi-po",$E131,1)+15,100),2)*1,""),"") -> 
M133: commentaire
A134: Contact | E134: =SUM($K$3:K382) -> 3
A136: Kilométrage milles | E136: =A137*0.6214 -> 3161.3725
A137: =SUM($C$3:C435) -> 5087.5
A138: Over size kilométrage -10' | E138: =A139*0.6214 -> 0
A139: =MAX(C132:C428)-MIN(C132:C428) -> 0
A140: Over size kilométrage +10' | E140: =A141*0.6214 -> 0
A141: =MAX(C132:C428)-MIN(C132:C428) -> 0
A142: journée non complète | E142: =SUM($S$3:S382) -> 0
A144: Arrêt journée de semaine | E144: =SUM($U$3:$U380) -> 0
A146: Arrêt journée de fin semaine | E146: =SUM($T$3:$T380) -> 0
A148: Arrêt obligatoir 36h | E148: =SUM($V$3:$V380) -> 0
A150: Prime Surdimention 12' et moin | E150: =SUM($P$3:P382) -> 0
A152: Prime Surdimention 12' et plus | E152: =SUM($Q$3:Q384) -> 0
A154: TRAVAIL DE VILLE | E154: =SUM($G$3:G382) -> 00:00:00
A156: Prime New York | E156: =SUM(R3:R428) -> 0
A158: TWICK | E158: =SUM($L$3:L382) -> 0
A160: Douane | E160: =SUM($I$3:I382) -> 1
A162: Attente chargement | E162: =SUM($F$3:F382) -> 00:00:00

Sheet Charette A.
A1: Charette Alexandre | E1: 02:00:00 | F1: Semaine du | N1: =#REF! ->  | T1: =#REF! -> 
A2: DATE / HEURES | B2: TEMPS | C2: ODOMÈTRE | D2: lieu | E2: Activité | F2: ATTENTE (HEURE) | G2: VILLE ET MANUTENTION (HEURE) | H2: SUPERLOAD (HEURE) | I2: DOUANES | J2: Transport explosif | K2: CONTACTS | L2: TWICK | N2: Surdimension 12' et moin | O2: Surdimension 12' et plus | P2: prime surdimenssion 12' et moin | Q2: prime surdimenssion 12' et plus | R2: PRIME NEW YORK | S2: ARRÊT JOURNÉE NON-COMPLÈTE | T2: ARRÊT CONPLET- JOURNÉE DE FIN DE SEMAINE | U2: ARRÊT JOURNÉE DE SEMAINE | V2: Arrêt obligatoir 36h | W2: Opérateur | X2: Numéro de véhicule | Y2: Date de début | Z2: Ville | AA2: État / Province | AB2: Pays | AC2: No commande | AD2: LAYOVER | AE2: Montant
F3: =IF(ISERROR(SEARCH("ATTENTE",E3)),"",$B3) ->  | G3: =IF(COUNTIF(E3,"*Formation*")+COUNTIF(E3,"*Travail de cours*")+COUNTIF(E3,"*réunion*")+COUNTIF(E3,"*escorte routière*")+COUNTIF(E3,"*courte distance*")>0,B3,"-") -> - | H3: =IF(ISERROR(SEARCH("superload: True",E3)),"",$B3) ->  | I3: =IF(ISERROR(SEARCH("Douane",E3)),"",1) ->  | J3: =IF(ISERROR(SEARCH("transport explosif",E3)),"",1) ->  | K3: =IF(COUNTIF(E3,"*toile: true*"),1,0)+IF(COUNTIF(E3,"*charger*"),1,0)+IF(COUNTIF(E3,"*déchargr*"),1,0)+IF(COUNTIF(E3,"*CHARGÉ: TRUE*"),1,0) -> 0 | L3: =IF(ISERROR(SEARCH("TWIC: True",E3)),"",1) ->  | M3: =LEN($N3) -> 0 | N3: =IFERROR(IF(LEFT(MID($E3,SEARCH("Largeur pi-po",$E3,1)+15,100),2)*1<12,LEFT(MID($E3,SEARCH("Largeur pi-po",$E3,1)+15,100),2)*1,""),"") ->  | O3: =IFERROR(IF(LEFT(MID($E3,SEARCH("Largeur pi-po",$E3,1)+15,100),2)*1>=12,LEFT(MID($E3,SEARCH("Largeur pi-po",$E3,1)+15,100),2)*1,""),"") ->  | P3: =IF(N3<12,1,"") ->  | Q3: =IF(O3="","",IF(O3>=12,1,"")) ->  | R3: =IF(ISERROR(SEARCH("PRIME N.Y: True",E3)),"",1) ->  | S3: =IF(ISERROR(SEARCH("Journée non complète",E3)),"",1) ->  | T3: =IF(ISERROR(SEARCH("Fin de semaine",E3)),"",1) ->  | U3: =IF(ISERROR(SEARCH("1 Journée compète semaine",E3)),"",1) ->  | V3: =IF(ISERROR(SEARCH("Arrêt obligatoir (36H)",E3)),"",1) -> 
A4: (jj/mm/aaaa hh:mm) | B4: (hh:mm:ss) | C4: (km) | F4: =IF(ISERROR(SEARCH("ATTENTE",E4)),"",$B4) ->  | G4: =IF(COUNTIF(E4,"*Formation*")+COUNTIF(E4,"*Travail de cours*")+COUNTIF(E4,"*réunion*")+COUNTIF(E4,"*escorte routière*")+COUNTIF(E4,"*courte distance*")>0,B4,"-") -> - | H4: =IF(ISERROR(SEARCH("superload: True",E4)),"",$B4) ->  | I4: =IF(ISERROR(SEARCH("Douane",E4)),"",1) ->  | J4: =IF(ISERROR(SEARCH("transport explosif",E4)),"",1) ->  | K4: =IF(COUNTIF(E4,"*toile: true*"),1,0)+IF(COUNTIF(E4,"*charger*"),1,0)+IF(COUNTIF(E4,"*déchargr*"),1,0)+IF(COUNTIF(E4,"*CHARGÉ: TRUE*"),1,0) -> 0 | L4: =IF(ISERROR(SEARCH("TWIC: True",E4)),"",1) ->  | M4: =LEN($N4) -> 0 | N4: =IFERROR(IF(LEFT(MID($E4,SEARCH("Largeur pi-po",$E4,1)+15,100),2)*1<12,LEFT(MID($E4,SEARCH("Largeur pi-po",$E4,1)+15,100),2)*1,""),"") ->  | O4: =IFERROR(IF(LEFT(MID($E4,SEARCH("Largeur pi-po",$E4,1)+15,100),2)*1>=12,LEFT(MID($E4,SEARCH("Largeur pi-po",$E4,1)+15,100),2)*1,""),"") ->  | P4: =IF(N4<12,1,"") ->  | Q4: =IF(O4="","",IF(O4>=12,1,"")) ->  | R4: =IF(ISERROR(SEARCH("PRIME N.Y: True",E4)),"",1) ->  | S4: =IF(ISERROR(SEARCH("Journée non complète",E4)),"",1) ->  | T4: =IF(ISERROR(SEARCH("Fin de semaine",E4)),"",1) ->  | U4: =IF(ISERROR(SEARCH("1 Journée compète semaine",E4)),"",1) ->  | V4: =IF(ISERROR(SEARCH("Arrêt obligatoir (36H)",E4)),"",1) -> 
A5: 0 | G5: - | K5: 0 | M5: 0
A6: (hh:mm:ss) | B6: (hh:mm:ss) | C6: (km) | G6: - | K6: 0 | M6: 0
A7: 0 | G7: - | K7: 0 | M7: 0
A8: 2017-01-03T05:36:58 | D8: express terminal, 922 Grande Côte Ouest, Lanoraie, QC, Canada | E8: Connexion | G8: - | K8: 0 | M8: 0
A9: 2017-01-03T05:37:25 | B9: 0.0005671296296 | D9: express terminal, 922 Grande Côte Ouest, Lanoraie, QC, Canada | E9: (42) Atteler EQUIPMENT_NAME: sd532304 | G9: - | K9: 0 | M9: 0
A10: 2017-01-03T05:38:14 | B10: 0.003206018519 | D10: express terminal, 922 Grande Côte Ouest, Lanoraie, QC, Canada | E10: (28) Over-size No commande: 90768 Nom du client: goudreau cargo / au consolidated .... destination wilcox az CHARGÉ: False ATTELER: True SUPERLOAD: False TOILE: False TWIC: False PRIME N.Y: False Hauteur pi-po: 13.6 Largeur pi-po: 12 Longueur pi-po: 0000 Poids steering: 12000 Type unitaire: True Poids Drive 1: 34000 Type unitaire: True Poids remorque: 34000 Type unitaire: True Vérifier permis: True Vérifier itinéraire: True Vérifier prov. sheet: True Inst. bannières (D): True Inst. lumières 360: True Inst. drapeaux: True Inst. clignotants: False Escorte: False # Du véhicule de l'escort: 0000 Nombre d'escorte: 00 ODOMÈTRE: 584959,375 | G10: - | K10: 0 | M10: 0 | O10: 12 | P10: 1
A11: 2017-01-03T05:42:51 | B11: 9.259259259e-05 | D11: express terminal, 922 Grande Côte Ouest, Lanoraie, QC, Canada | E11: (40) V.A.D. VEHICLE_NO: 2015217 | G11: - | K11: 0 | M11: 0
A12: 2017-01-03T05:42:59 | B12: 0.01728009259 | C12: 0.09999999998 | D12: express terminal, 922 Grande Côte Ouest, Lanoraie, QC, Canada | E12: (40) V.A.D. EQUIPMENT_NAME: sd532304 | G12: - | K12: 0 | M12: 0
A13: 2017-01-03T06:07:52 | B13: 0.07461805556 | C13: 159.3 | D13: express terminal, 922 Grande Côte Ouest, Lanoraie, QC, Canada | E13: (-) Conduite | G13: - | K13: 0 | M13: 0
A14: 2017-01-03T07:55:19 | B14: 0.006226851852 | D14: Macdonald-Cartier Freeway, Bainsville, ON, K0C 1E0, Canada | E14: (4) Pause | G14: - | K14: 0 | M14: 0
A15: 2017-01-03T08:04:17 | B15: 0.01083333333 | C15: 0.2 | D15: Macdonald-Cartier Freeway, Bainsville, ON, K0C 1E0, Canada | E15: (45) T.L.C. | G15: - | K15: 0 | M15: 0
A16: 2017-01-03T08:19:53 | B16: 0.006238425926 | C16: 11.8 | D16: Macdonald-Cartier Freeway, Bainsville, ON, K0C 1E0, Canada | E16: (-) Conduite | G16: - | K16: 0 | M16: 0
A17: 2017-01-03T08:28:52 | B17: 0.05506944444 | C17: 0.2 | D17: Macdonald-Cartier Freeway, Lancaster, ON, K0C 1N0, Canada | E17: (101) Contrôle routier Infraction Poids: False Infraction HDS: False Infraction VAD: False | G17: - | K17: 0 | M17: 0
A18: 2017-01-03T08:31:41 | D18: Macdonald-Cartier Freeway, Lancaster, ON, K0C 1N0, Canada | E18: Génération HDS | G18: - | K18: 0 | M18: 0
A19: 2017-01-03T09:48:10 | B19: 0.05947916667 | C19: 138.8 | D19: Macdonald-Cartier Freeway, Lancaster, ON, K0C 1N0, Canada | E19: (-) Conduite | G19: - | K19: 0 | M19: 0
A20: 2017-01-03T11:13:49 | B20: 0.006423611111 | D20: 678 Ontario 401, Mallorytown, ON, K0E 1R0, Canada | E20: (4) Pause | G20: - | K20: 0 | M20: 0
A21: 2017-01-03T11:23:04 | B21: 0.101875 | C21: 235.3 | D21: 678 Ontario 401, Mallorytown, ON, K0E 1R0, Canada | E21: (-) Conduite | G21: - | K21: 0 | M21: 0
A22: 2017-01-03T13:49:46 | B22: 0.008263888889 | D22: 17188 Vivian Drive, Newcastle, ON, L1B 1L9, Canada | E22: (4) Pause | G22: - | K22: 0 | M22: 0
A23: 2017-01-03T14:01:40 | B23: 0.003368055556 | C23: 0.09999999998 | D23: 17188 Vivian Drive, Newcastle, ON, L1B 1L9, Canada | E23: (45) T.L.C. | G23: - | K23: 0 | M23: 0
A24: 2017-01-03T14:06:31 | B24: 0.1268865741 | C24: 257.4 | D24: 17188 Vivian Drive, Newcastle, ON, L1B 1L9, Canada | E24: (-) Conduite | G24: - | K24: 0 | M24: 0
A25: 2017-01-03T17:09:14 | B25: 0.009560185185 | D25: 3700 Highbury Avenue South, London, ON, N6N 1P3, Canada | E25: (64) Carburant (presser et remplir) Fournisseur: Shell/Flying J - TCH MÉTHODE DE PAIEMENT: TCH - SHELL/FLYING J MONTANT: 415.95 Qte de Carburant: 362 Unité: True Unité: False | G25: - | K25: 0 | M25: 0
A26: 2017-01-03T17:23:00 | B26: 0.2756944444 | C26: 0.4 | D26: 3700 Highbury Avenue South, London, ON, N6N 1P3, Canada | E26: (53) Layover No commande: 90768 LAYOVER: Surdimensionné Commentaires: 12' wide | G26: - | K26: 0 | M26: 0
A27: 802.5999756 | G27: - | K27: 0 | M27: 0
A28: 2017-01-04T07:30:06 | B28: 0.0002083333333 | D28: 3500 Highbury Avenue South, London, ON, N6N 1P3, Canada | E28: (40) V.A.D. VEHICLE_NO: 2015217 | G28: - | K28: 0 | M28: 0
A29: 2017-01-04T07:30:24 | B29: 0.01396990741 | C29: 0.09999999998 | D29: 3500 Highbury Avenue South, London, ON, N6N 1P3, Canada | E29: (40) V.A.D. EQUIPMENT_NAME: sd532304 | G29: - | K29: 0 | M29: 0
A30: 2017-01-04T07:50:31 | B30: 0.05456018519 | C30: 112.5 | D30: 1425 Max Brose Drive, London, ON, N6N 1P9, Canada | E30: (-) Conduite | G30: - | K30: 0 | M30: 0
A31: 2017-01-04T09:09:05 | B31: 0.006678240741 | C31: 0.2000000001 | D31: Bluewater Bridge, Port Huron, MI, 48060, United States | E31: (104) Douane | G31: - | I31: 1 | K31: 0 | M31: 0
A32: 2017-01-04T09:18:42 | B32: 0.002974537037 | C32: 3.4 | D32: Bluewater Bridge, Port Huron, MI, 48060, United States | E32: (-) Conduite | G32: - | K32: 0 | M32: 0
A33: 2017-01-04T09:22:59 | B33: 0.001168981481 | C33: 0.2000000001 | D33: Interstate 94, Port Huron, MI, 48060, United States | E33: (-) Service | G33: - | K33: 0 | M33: 0
A34: 2017-01-04T09:24:40 | B34: 0.1361805556 | C34: 259.1 | D34: Interstate 94, Port Huron, MI, 48060, United States | E34: (-) Conduite | G34: - | K34: 0 | M34: 0
A35: 2017-01-04T12:40:46 | B35: 0.02359953704 | D35: Interstate 69, Marshall, MI, 49068, United States | E35: (4) Pause | G35: - | K35: 0 | M35: 0
A36: 2017-01-04T13:14:45 | B36: 0.003668981481 | D36: Interstate 69, Marshall, MI, 49068, United States | E36: (45) T.L.C. | G36: - | K36: 0 | M36: 0
A37: 2017-01-04T13:20:02 | B37: 0.1393171296 | C37: 271.9 | D37: Interstate 69, Marshall, MI, 49068, United States | E37: (-) Conduite | G37: - | K37: 0 | M37: 0
A38: 2017-01-04T16:40:39 | B38: 0.004131944444 | D38: West 159th Street, Markham, IL, 60428, United States | E38: (-) Service | G38: - | K38: 0 | M38: 0
A39: 2017-01-04T16:46:36 | B39: 0.03185185185 | C39: 55.8 | D39: West 159th Street, Markham, IL, 60428, United States | E39: (-) Conduite | G39: - | K39: 0 | M39: 0
A40: 2017-01-04T17:32:28 | B40: 0.009305555556 | C40: 0.6000000001 | D40: 23841 West Eames Street, Channahon, IL, 60410, United States | E40: (4) Pause | G40: - | K40: 0 | M40: 0
A41: 2017-01-04T17:45:52 | B41: 0.01012731481 | C41: 14.1 | D41: 23850-23926 West Eames Street, Channahon, IL, 60410, United States | E41: (-) Conduite | G41: - | K41: 0 | M41: 0
A42: 2017-01-04T18:00:27 | B42: 0.2496875 | C42: 0.2 | D42: West Frontage Road, Wilmington, IL, 60481, United States | E42: (53) Layover No commande: 90768 LAYOVER: Surdimensionné Commentaires: 12` de large | G42: - | K42: 0 | M42: 0 | P42: 1
A43: 716.7999878 | G43: - | K43: 0 | M43: 0
A44: 2017-01-05T07:37:06 | B44: 9.259259259e-05 | D44: West Frontage Road, Wilmington, IL, 60481, United States | E44: (40) V.A.D. VEHICLE_NO: 2015217 | G44: - | K44: 0 | M44: 0
A45: 2017-01-05T07:37:14 | B45: 0.01126157407 | C45: 0.3 | D45: West Frontage Road, Wilmington, IL, 60481, United States | E45: (40) V.A.D. EQUIPMENT_NAME: sd532304 | G45: - | K45: 0 | M45: 0
A46: 2017-01-05T07:53:27 | B46: 0.1464814815 | C46: 345.2 | D46: West Frontage Road, Wilmington, IL, 60481, United States | E46: (-) Conduite | G46: - | K46: 0 | M46: 0
A47: 2017-01-05T11:24:23 | B47: 0.01251157407 | D47: Interstate 55, Edwardsville, IL, 62025, United States | E47: (4) Pause | G47: - | K47: 0 | M47: 0
A48: 2017-01-05T11:42:24 | B48: 0.002835648148 | D48: Interstate 55, Edwardsville, IL, 62025, United States | E48: (45) T.L.C. | G48: - | K48: 0 | M48: 0
A49: 2017-01-05T11:46:29 | B49: 0.1182638889 | C49: 270.4 | D49: Interstate 55, Edwardsville, IL, 62025, United States | E49: (-) Conduite | G49: - | K49: 0 | M49: 0
A50: 2017-01-05T14:36:47 | B50: 0.01003472222 | D50: 22345 Highway 28, Dixon, MO, 65459, United States | E50: (64) Carburant (presser et remplir) Fournisseur: Pilot - TCH MÉTHODE DE PAIEMENT: TCH - SHELL/FLYING J MONTANT: 439 Qte de Carburant: 178.52 Unité: False D.E.F.: 00 Unité: False | G50: - | K50: 0 | M50: 0
A51: 2017-01-05T14:51:14 | B51: 0.01256944444 | C51: 0.09999999998 | D51: 22345 Highway 28, Dixon, MO, 65459, United States | E51: (4) Pause | G51: - | K51: 0 | M51: 0
A52: 2017-01-05T15:09:20 | B52: 0.001574074074 | C52: 0.3 | D52: 14305 Saint Robert Outer Road, Dixon, MO, 65459, United States | E52: (45) T.L.C. | G52: - | K52: 0 | M52: 0
A53: 2017-01-05T15:11:36 | B53: 0.1291087963 | C53: 275 | D53: Highway 28, Saint Robert, MO, United States | E53: (-) Conduite | G53: - | K53: 0 | M53: 0
A54: 2017-01-05T18:17:31 | B54: 0.2378356481 | C54: 0.1 | D54: U.S. 60, Neosho, MO, 64850, United States | E54: (53) Layover No commande: 90768 LAYOVER: Surdimensionné Commentaires: 12` de large | G54: - | K54: 0 | M54: 0 | P54: 1
A55: 890.5999756 | G55: - | K55: 0 | M55: 0
A56: 2017-01-06T07:43:10 | B56: 9.259259259e-05 | D56: 3022 Lusk Drive, Neosho, MO, 64850, United States | E56: (40) V.A.D. VEHICLE_NO: 2015217 | G56: - | K56: 0 | M56: 0
A57: 2017-01-06T07:43:18 | B57: 0.02103009259 | C57: 0.09999999998 | D57: 3022 Lusk Drive, Neosho, MO, 64850, United States | E57: (40) V.A.D. EQUIPMENT_NAME: sd532304 | G57: - | K57: 0 | M57: 0
A58: 2017-01-06T08:13:35 | B58: 0.0865162037 | C58: 162.9 | D58: 3001 Lusk Drive, Neosho, MO, 64850, United States | E58: (-) Conduite | G58: - | K58: 0 | M58: 0
A59: 2017-01-06T10:18:10 | B59: 0.002175925926 | D59: U.S. 75, OK, United States | E59: (-) Service | G59: - | K59: 0 | M59: 0
A60: 2017-01-06T10:21:18 | B60: 0.02921296296 | C60: 49.3 | D60: U.S. 75, OK, United States | E60: (-) Conduite | G60: - | K60: 0 | M60: 0
A61: 2017-01-06T11:03:22 | B61: 0.005520833333 | C61: 0.09999999998 | D61: 13725 Oklahoma 11, Barnsdall, OK, 74002, United States | E61: (45) T.L.C. | G61: - | K61: 0 | M61: 0
A62: 2017-01-06T11:11:19 | B62: 0.187349537 | C62: 360.9 | D62: 13725 Oklahoma 11, Barnsdall, OK, 74002, United States | E62: (-) Conduite | G62: - | K62: 0 | M62: 0
A63: 2017-01-06T15:41:06 | B63: 0.0265625 | D63: 1709 U.S. 183, Clinton, OK, 73601, United States | E63: (4) Pause | G63: - | K63: 0 | M63: 0
A64: 2017-01-06T16:19:21 | B64: 0.003125 | C64: 0.09999999998 | D64: 1709 U.S. 183, Clinton, OK, 73601, United States | E64: (45) T.L.C. | G64: - | K64: 0 | M64: 0
A65: 2017-01-06T16:23:51 | B65: 0.06048611111 | C65: 116.5 | D65: 1701 South 4th Street, Clinton, OK, 73601, United States | E65: (-) Conduite | G65: - | K65: 0 | M65: 0
A66: 2017-01-06T17:50:57 | B66: 0.0340625 | C66: 0.2 | D66: North Sheb Wooley Avenue, Erick, OK, 73645, United States | E66: (4) Pause | G66: - | K66: 0 | M66: 0
A67: 2017-01-06T18:40:00 | B67: 0.03233796296 | C67: 68.5 | D67: 660-702 North Sheb Wooley Avenue, Erick, OK, 73645, United States | E67: (-) Conduite | G67: - | K67: 0 | M67: 0
A68: 2017-01-06T19:26:34 | B68: 0.1898842593 | C68: 0.2 | D68: Route 66, McLean, TX, 79057, United States | E68: (53) Layover No commande: 90768 LAYOVER: Surdimensionné Commentaires: 12` de large | F68: =IF(ISERROR(SEARCH("ATTENTE",E68)),"",$B68) ->  | G68: =IF(COUNTIF(E68,"*Formation*")+COUNTIF(E68,"*Travail de cours*")+COUNTIF(E68,"*réunion*")+COUNTIF(E68,"*escorte routière*")+COUNTIF(E68,"*courte distance*")>0,B68,"-") -> - | H68: =IF(ISERROR(SEARCH("superload: True",E68)),"",$B68) ->  | I68: =IF(ISERROR(SEARCH("Douane",E68)),"",1) ->  | J68: =IF(ISERROR(SEARCH("transport explosif",E68)),"",1) ->  | K68: =IF(COUNTIF(E68,"*toile: true*"),1,0)+IF(COUNTIF(E68,"*charger*"),1,0)+IF(COUNTIF(E68,"*déchargr*"),1,0)+IF(COUNTIF(E68,"*CHARGÉ: TRUE*"),1,0) -> 0 | L68: =IF(ISERROR(SEARCH("TWIC: True",E68)),"",1) ->  | M68: =LEN($N68) -> 0 | N68: =IFERROR(IF(LEFT(MID($E68,SEARCH("Largeur pi-po",$E68,1)+15,100),2)*1<12,LEFT(MID($E68,SEARCH("Largeur pi-po",$E68,1)+15,100),2)*1,""),"") ->  | O68: =IFERROR(IF(LEFT(MID($E68,SEARCH("Largeur pi-po",$E68,1)+15,100),2)*1>=12,LEFT(MID($E68,SEARCH("Largeur pi-po",$E68,1)+15,100),2)*1,""),"") ->  | P68: 1 | Q68: =IF(O68="","",IF(O68>=12,1,"")) ->  | R68: =IF(ISERROR(SEARCH("PRIME N.Y: True",E68)),"",1) ->  | S68: =IF(ISERROR(SEARCH("Journée non complète",E68)),"",1) ->  | T68: =IF(ISERROR(SEARCH("Fin de semaine",E68)),"",1) ->  | U68: =IF(ISERROR(SEARCH("1 Journée compète semaine",E68)),"",1) ->  | V68: =IF(ISERROR(SEARCH("Arrêt obligatoir (36H)",E68)),"",1) -> 
A69: 758.0999756 | G69: - | K69: 0 | M69: 0 | P69: =IF(N69<12,1,"") -> 
A70: 2017-01-07T08:26:21 | B70: 9.259259259e-05 | D70: Route 66, McLean, TX, 79057, United States | E70: (40) V.A.D. VEHICLE_NO: 2015217 | G70: - | K70: 0 | M70: 0
A71: 2017-01-07T08:26:29 | B71: 0.01159722222 | C71: 0.2000000001 | D71: Route 66, McLean, TX, 79057, United States | E71: (40) V.A.D. EQUIPMENT_NAME: sd532304 | G71: - | K71: 0 | M71: 0
A72: 2017-01-07T08:43:11 | B72: 0.1240046296 | C72: 259.4 | D72: Route 66, McLean, TX, 79057, United States | E72: (-) Conduite | G72: - | K72: 0 | M72: 0
A73: 2017-01-07T11:41:45 | B73: 0.007013888889 | C73: 0.2999999999 | D73: Interstate 40, San Jon, NM, 88434, United States | E73: (54) Attente en service No commande: 90768 CONTRÔLE ROUTIER: True Traversier: False Commentaires: verification du permit seulement | G73: - | K73: 0 | M73: 0
A74: 2017-01-07T11:51:51 | B74: 0.05780092593 | C74: 132.1 | D74: Quay Road 58.5, San Jon, NM, 88434, United States | E74: (-) Conduite | G74: - | K74: 0 | M74: 0
A75: 2017-01-07T13:15:05 | B75: 0.0228587963 | D75: Interstate 40, Santa Rosa, NM, 88435, United States | E75: (4) Pause | G75: - | K75: 0 | M75: 0
A76: 2017-01-07T13:48:00 | B76: 0.01373842593 | C76: 0.4 | D76: Interstate 40, Santa Rosa, NM, 88435, United States | E76: (64) Carburant (presser et remplir) Fournisseur: Pilot - TCH MÉTHODE DE PAIEMENT: TCH - SHELL/FLYING J MONTANT: 529.2 Qte de Carburant: 188.53 Unité: False D.E.F.: 14 Unité: False Commentaires: :-) | G76: - | K76: 0 | M76: 0
A77: 2017-01-07T14:07:47 | B77: 0.1177893519 | C77: 257 | D77: 3501-3695 Route 66, Santa Rosa, NM, 88435, United States | E77: (-) Conduite | G77: - | K77: 0 | M77: 0
A78: 2017-01-07T16:57:24 | B78: 0.008125 | D78: 8500-8638 U.S. 54, Tularosa, NM, 88352, United States | E78: (45) T.L.C. | G78: - | K78: 0 | M78: 0
A79: 2017-01-07T17:09:06 | B79: 0.07471064815 | C79: 156.8 | D79: 8500-8638 U.S. 54, Tularosa, NM, 88352, United States | E79: (-) Conduite | G79: - | K79: 0 | M79: 0
A80: 2017-01-07T18:56:41 | B80: 0.2106365741 | C80: 1.1 | D80: 236-250 North Motel Boulevard, Las Cruces, NM, 88007, United States | E80: (53) Layover No commande: 90768 LAYOVER: Surdimensionné Commentaires: 12` de large | G80: - | K80: 0 | M80: 0 | P80: 1
A81: 805.2999878 | G81: - | K81: 0 | M81: 0
M83: commentaire
A84: Contact | E84: =SUM($K$3:K332) -> 0
A86: Kilométrage milles | E86: =A87*0.6214 -> 2472.67488
A87: =SUM($C$3:C385) -> 3979.2
A88: Over size kilométrage -10' | E88: =A89*0.6214 -> 0
A89: =MAX(C82:C378)-MIN(C82:C378) -> 0
A90: Over size kilométrage +10' | E90: =A91*0.6214 -> 2472.5506
A91: 3979
A92: journée non complète | E92: =SUM($S$3:S332) -> 0
A94: Arrêt journée de semaine | E94: =SUM($U$3:$U330) -> 0
A96: Arrêt journée de fin semaine | E96: =SUM($T$3:$T330) -> 0
A98: Arrêt obligatoir 36h | E98: =SUM($V$3:$V330) -> 0
A100: Prime Surdimention 12' et moin | E100: =SUM($P$3:P332) -> 5 | F100: 3-4-5-6-7 janv.
A102: Prime Surdimention 12' et plus | E102: =SUM($Q$3:Q334) -> 0
A104: TRAVAIL DE VILLE | E104: =SUM($G$3:G332) -> 00:00:00
A106: Prime New York | E106: =SUM(R3:R378) -> 0
A108: TWICK | E108: =SUM($L$3:L332) -> 0
A110: Douane | E110: =SUM($I$3:I332) -> 1
A112: Attente chargement | E112: =SUM($F$3:F332) -> 00:00:00

Sheet Charette J-F
A1: Charette Jean-François | E1: 02:00:00 | F1: Semaine du | N1: =#REF! ->  | P1: =#REF! ->  | T1: =#REF! ->  | U1: AU | V1: =#REF! -> 
A2: DATE / HEURES | B2: TEMPS | C2: ODOMÈTRE | D2: lieu | E2: Activité | F2: ATTENTE (HEURE) | G2: VILLE ET MANUTENTION (HEURE) | H2: SUPERLOAD (HEURE) | I2: DOUANES | J2: Transport explosif | K2: CONTACTS | L2: TWICK | N2: Surdimension 12' et moin | O2: Surdimension 12' et plus | P2: prime surdimenssion 12' et moin | Q2: prime surdimenssion 12' et plus | R2: PRIME NEW YORK | S2: ARRÊT JOURNÉE NON-COMPLÈTE | T2: ARRÊT CONPLET- JOURNÉE DE FIN DE SEMAINE | U2: ARRÊT JOURNÉE DE SEMAINE | V2: Arrêt obligatoir 36h | W2: Opérateur | X2: Numéro de véhicule | Y2: Date de début | Z2: Ville | AA2: État / Province | AB2: Pays | AC2: No commande | AD2: LAYOVER | AE2: Montant
F3: =IF(ISERROR(SEARCH("ATTENTE",E3)),"",$B3) ->  | G3: =IF(COUNTIF(E3,"*Formation*")+COUNTIF(E3,"*Travail de cours*")+COUNTIF(E3,"*réunion*")+COUNTIF(E3,"*escorte routière*")+COUNTIF(E3,"*courte distance*")>0,B3,"-") -> - | H3: =IF(ISERROR(SEARCH("superload: True",E3)),"",$B3) ->  | I3: =IF(ISERROR(SEARCH("Douane",E3)),"",1) ->  | J3: =IF(ISERROR(SEARCH("transport explosif",E3)),"",1) ->  | K3: =IF(COUNTIF(E3,"*toile: true*"),1,0)+IF(COUNTIF(E3,"*charger*"),1,0)+IF(COUNTIF(E3,"*déchargr*"),1,0)+IF(COUNTIF(E3,"*CHARGÉ: TRUE*"),1,0) -> 0 | L3: =IF(ISERROR(SEARCH("TWIC: True",E3)),"",1) ->  | M3: =LEN($N3) -> 0 | N3: =IFERROR(IF(LEFT(MID($E3,SEARCH("Largeur pi-po",$E3,1)+15,100),2)*1<12,LEFT(MID($E3,SEARCH("Largeur pi-po",$E3,1)+15,100),2)*1,""),"") ->  | O3: =IFERROR(IF(LEFT(MID($E3,SEARCH("Largeur pi-po",$E3,1)+15,100),2)*1>=12,LEFT(MID($E3,SEARCH("Largeur pi-po",$E3,1)+15,100),2)*1,""),"") ->  | P3: =IF(N3<12,1,"") ->  | Q3: =IF(O3="","",IF(O3>=12,1,"")) ->  | R3: =IF(ISERROR(SEARCH("PRIME N.Y: True",E3)),"",1) ->  | S3: =IF(ISERROR(SEARCH("Journée non complète",E3)),"",1) ->  | T3: =IF(ISERROR(SEARCH("Fin de semaine",E3)),"",1) ->  | U3: =IF(ISERROR(SEARCH("1 Journée compète semaine",E3)),"",1) ->  | V3: =IF(ISERROR(SEARCH("Arrêt obligatoir (36H)",E3)),"",1) -> 
A4: (jj/mm/aaaa hh:mm) | B4: (hh:mm:ss) | C4: (km) | F4: =IF(ISERROR(SEARCH("ATTENTE",E4)),"",$B4) ->  | G4: =IF(COUNTIF(E4,"*Formation*")+COUNTIF(E4,"*Travail de cours*")+COUNTIF(E4,"*réunion*")+COUNTIF(E4,"*escorte routière*")+COUNTIF(E4,"*courte distance*")>0,B4,"-") -> - | H4: =IF(ISERROR(SEARCH("superload: True",E4)),"",$B4) ->  | I4: =IF(ISERROR(SEARCH("Douane",E4)),"",1) ->  | J4: =IF(ISERROR(SEARCH("transport explosif",E4)),"",1) ->  | K4: =IF(COUNTIF(E4,"*toile: true*"),1,0)+IF(COUNTIF(E4,"*charger*"),1,0)+IF(COUNTIF(E4,"*déchargr*"),1,0)+IF(COUNTIF(E4,"*CHARGÉ: TRUE*"),1,0) -> 0 | L4: =IF(ISERROR(SEARCH("TWIC: True",E4)),"",1) ->  | M4: =LEN($N4) -> 0 | P4: =IF(N4<12,1,"") ->  | Q4: =IF(O4="","",IF(O4>=12,1,"")) ->  | R4: =IF(ISERROR(SEARCH("PRIME N.Y: True",E4)),"",1) ->  | S4: =IF(ISERROR(SEARCH("Journée non complète",E4)),"",1) ->  | T4: =IF(ISERROR(SEARCH("Fin de semaine",E4)),"",1) ->  | U4: =IF(ISERROR(SEARCH("1 Journée compète semaine",E4)),"",1) ->  | V4: =IF(ISERROR(SEARCH("Arrêt obligatoir (36H)",E4)),"",1) -> 
A5: 0 | G5: - | K5: 0 | M5: 0
A6: (hh:mm:ss) | B6: (hh:mm:ss) | C6: (km) | G6: - | K6: 0 | M6: 0
A7: 0 | G7: - | K7: 0 | M7: 0
A8: (hh:mm:ss) | B8: (hh:mm:ss) | C8: (km) | G8: - | K8: 0 | M8: 0
A9: 0 | G9: - | K9: 0 | M9: 0
A10: (hh:mm:ss) | B10: (hh:mm:ss) | C10: (km) | G10: - | K10: 0 | M10: 0
A11: 0 | G11: - | K11: 0 | M11: 0
A12: 2017-01-05T05:24:07 | D12: express terminal, 922 Grande Côte Ouest, Lanoraie, QC, Canada | E12: Connexion | G12: - | K12: 0 | M12: 0
A13: 2017-01-05T05:34:57 | B13: 0.0002662037037 | D13: express terminal, 922 Grande Côte Ouest, Lanoraie, QC, Canada | E13: (42) Atteler EQUIPMENT_NAME: 20203 | G13: - | K13: 0 | M13: 0
A14: 2017-01-05T05:35:20 | B14: 0.008587962963 | D14: express terminal, 922 Grande Côte Ouest, Lanoraie, QC, Canada | E14: (40) V.A.D. VEHICLE_NO: 2015225 | G14: - | K14: 0 | M14: 0
A15: 2017-01-05T05:47:42 | B15: 0.002164351852 | C15: 0.2 | D15: express terminal, 922 Grande Côte Ouest, Lanoraie, QC, Canada | E15: (40) V.A.D. EQUIPMENT_NAME: 20203 | G15: - | K15: 0 | M15: 0
A16: 2017-01-05T05:50:49 | B16: 0.005358796296 | C16: 6.1 | D16: express terminal, 922 Grande Côte Ouest, Lanoraie, QC, Canada | E16: (-) Conduite | G16: - | K16: 0 | M16: 0
A17: 2017-01-05T05:58:32 | B17: 0.003506944444 | D17: 74 Chemin de Lavaltrie, Lavaltrie, QC, J5T 2H5, Canada | E17: (1) Repas REPAS: DÉJEUNER AVANT 6H AM SPÉCIALISÉ | G17: - | K17: 0 | M17: 0
A18: 2017-01-05T06:03:35 | B18: 0.04924768519 | C18: 71.4 | D18: 74 Chemin de Lavaltrie, Lavaltrie, QC, J5T 2H5, Canada | E18: (-) Conduite | G18: - | K18: 0 | M18: 0
A19: 2017-01-05T07:14:30 | B19: 0.09377314815 | C19: 1.1 | D19: 6665-6885 Chemin Saint François, Montréal, QC, H4S, Canada | E19: (49) Charger No commande: 90782 Nom du client: ipex TOILE: False TWIC: False PRIME N.Y: False Signature B/L: Oui | F19: 00:25:00 | G19: - | K19: 1 | M19: 0
A20: 2017-01-05T09:29:32 | B20: 0.03459490741 | C20: 67.4 | D20: 6600-6940 Chemin Saint François, Montréal, QC, H4S, Canada | E20: (-) Conduite | G20: - | K20: 0 | M20: 0
A21: 2017-01-05T10:19:21 | B21: 0.005358796296 | D21: 6115 4th Line Road, Bainsville, ON, K0C 1E0, Canada | E21: (45) T.L.C. | G21: - | K21: 0 | M21: 0
A22: 2017-01-05T10:27:04 | B22: 0.001967592593 | C22: 0.09999999998 | D22: 6115 4th Line Road, Bainsville, ON, K0C 1E0, Canada | E22: (4) Pause | G22: - | K22: 0 | M22: 0
A23: 2017-01-05T10:29:54 | B23: 0.1315856481 | C23: 308.1 | D23: 6115 4th Line Road, Bainsville, ON, K0C 1E0, Canada | E23: (-) Conduite | G23: - | K23: 0 | M23: 0
A24: 2017-01-05T13:39:23 | B24: 0.02384259259 | D24: 17278 Ontario 401, Brighton, ON, K0K 1H0, Canada | E24: (45) T.L.C. | G24: - | K24: 0 | M24: 0
A25: 2017-01-05T14:13:43 | B25: 0.007546296296 | D25: 17278 Ontario 401, Brighton, ON, K0K 1H0, Canada | E25: (4) Pause | G25: - | K25: 0 | M25: 0
A26: 2017-01-05T14:24:35 | B26: 0.0375462963 | C26: 86.5 | D26: 17278 Ontario 401, Brighton, ON, K0K 1H0, Canada | E26: (-) Conduite | G26: - | K26: 0 | M26: 0
A27: 2017-01-05T15:18:39 | B27: 0.0009722222222 | D27: Macdonald-Cartier Freeway, Bowmanville, ON, L1C, Canada | E27: (45) T.L.C. | G27: - | K27: 0 | M27: 0
A28: 2017-01-05T15:20:03 | B28: 0.05381944444 | C28: 103.8 | D28: Highway of Heroes, Bowmanville, ON, L1C, Canada | E28: (-) Conduite | G28: - | K28: 0 | M28: 0
A29: 2017-01-05T16:37:33 | B29: 0.000474537037 | C29: 0.09999999998 | D29: Macdonald-Cartier Freeway, Mississauga, ON, L5N, Canada | E29: (-) Service | G29: - | K29: 0 | M29: 0
A30: 2017-01-05T16:38:14 | B30: 0.1172337963 | C30: 253.3 | D30: Macdonald-Cartier Freeway, Mississauga, ON, L5N, Canada | E30: (-) Conduite | G30: - | K30: 0 | M30: 0
A31: 2017-01-05T19:27:03 | B31: 0.002164351852 | D31: 22216 Bloomfield Road, Chatham-Kent, ON, N7M 5J6, Canada | E31: (2) Couchette | G31: - | K31: 0 | M31: 0
A32: 2017-01-05T19:30:10 | B32: 0.0005671296296 | D32: 22216 Bloomfield Road, Chatham-Kent, ON, N7M 5J6, Canada | E32: (3) Fin travail | G32: - | K32: 0 | M32: 0
A33: 2017-01-05T19:30:28 | D33: 22216 Bloomfield Road, Chatham-Kent, ON, N7M 5J6, Canada | E33: Connexion | G33: - | K33: 0 | M33: 0
A34: 2017-01-05T19:30:59 | B34: 0.1868171296 | D34: 22216 Bloomfield Road, Chatham-Kent, ON, N7M 5J6, Canada | E34: (2) Couchette | G34: - | K34: 0 | M34: 0
A35: 896.5999756 | G35: - | K35: 0 | M35: 0
A36: 2017-01-06T05:31:56 | B36: 0.0003125 | D36: 22216 Bloomfield Road, Chatham-Kent, ON, N7M 5J6, Canada | E36: (42) Atteler EQUIPMENT_NAME: 20203 | G36: - | K36: 0 | M36: 0
A37: 2017-01-06T05:32:23 | B37: 0.008576388889 | D37: 22216 Bloomfield Road, Chatham-Kent, ON, N7M 5J6, Canada | E37: (40) V.A.D. VEHICLE_NO: 2015225 | G37: - | K37: 0 | M37: 0
A38: 2017-01-06T05:44:44 | B38: 0.001064814815 | C38: 0.1 | D38: 22216 Bloomfield Road, Chatham-Kent, ON, N7M 5J6, Canada | E38: (40) V.A.D. EQUIPMENT_NAME: 20203 | G38: - | K38: 0 | M38: 0
A39: 2017-01-06T05:46:16 | B39: 0.04244212963 | C39: 86.5 | D39: 22216 Bloomfield Road, Chatham-Kent, ON, N7M 5J6, Canada | E39: (-) Conduite | G39: - | K39: 0 | M39: 0
A40: 2017-01-06T06:47:23 | B40: 0.01802083333 | C40: 0.8 | D40: 798 20th Street, Detroit, MI, 48216, United States | E40: (104) Douane | G40: - | I40: 1 | K40: 0 | M40: 0
A41: 2017-01-06T07:13:20 | B41: 0.0294212963 | C41: 56.1 | D41: 772 20th Street, Detroit, MI, 48216, United States | E41: (-) Conduite | G41: - | K41: 0 | M41: 0
A42: 2017-01-06T07:55:42 | B42: 0.03069444444 | C42: 0.2 | D42: 29945 Beck Road, Wixom, MI, 48393, United States | E42: (51) Décharger No commande: 90782 Voyage: Régulier Nom du client: etna supply TOILE: False TWIC: False PRIME N.Y: False Signature B/L: Oui ODOMÈTRE: 391564.79 | G42: - | K42: 1 | M42: 0
A43: 2017-01-06T08:39:54 | B43: 0.0322337963 | C43: 0.4 | D43: 29949 Beck Road, Wixom, MI, 48393, United States | E43: (4) Pause | G43: - | K43: 0 | M43: 0
A44: 2017-01-06T09:26:19 | B44: 0.05601851852 | C44: 128.5 | D44: 29945 Beck Road, Wixom, MI, 48393, United States | E44: (-) Conduite | G44: - | K44: 0 | M44: 0
A45: 2017-01-06T10:46:59 | B45: 0.02018518519 | D45: Interstate 94, Port Huron, MI, 48060, United States | E45: (4) Pause | G45: - | K45: 0 | M45: 0
A46: 2017-01-06T11:16:03 | B46: 0.003287037037 | C46: 2.3 | D46: Interstate 94, Port Huron, MI, 48060, United States | E46: (-) Conduite | G46: - | K46: 0 | M46: 0
A47: 2017-01-06T11:20:47 | B47: 0.002256944444 | C47: 0.09999999998 | D47: Marina Road, Point Edward, ON, N7T, Canada | E47: (104) Douane | G47: - | I47: 1 | K47: 0 | M47: 0
A48: 2017-01-06T11:24:02 | B48: 0.04731481481 | C48: 109.4 | D48: 1555 Venetian Boulevard, Point Edward, ON, N7T, Canada | E48: (-) Conduite | G48: - | K48: 0 | M48: 0
A49: 2017-01-06T12:32:10 | B49: 0.005023148148 | D49: 3700 Highbury Avenue South, London, ON, N6N 1P3, Canada | E49: (64) Carburant (presser et remplir) Fournisseur: Shell/Flying J - TCH MÉTHODE DE PAIEMENT: TCH - SHELL/FLYING J MONTANT: 291.91 Qte de Carburant: 254.054 Unité: True D.E.F.: 0 Unité: True | G49: - | K49: 0 | M49: 0
A50: 2017-01-06T12:39:24 | B50: 0.004201388889 | D50: 3700 Highbury Avenue South, London, ON, N6N 1P3, Canada | E50: (4) Pause | G50: - | K50: 0 | M50: 0
A51: 2017-01-06T12:45:27 | B51: 0.06618055556 | C51: 142.9 | D51: 3700 Highbury Avenue South, London, ON, N6N 1P3, Canada | E51: (-) Conduite | G51: - | K51: 0 | M51: 0
A52: 2017-01-06T14:20:45 | B52: 0.04978009259 | C52: 0.5 | D52: 7865-8099 Road 129, Perth East, ON, N0G, Canada | E52: (4) Pause | G52: - | K52: 0 | M52: 0
A53: 2017-01-06T15:32:26 | B53: 0.05299768519 | C53: 0.2 | D53: 7865-8099 Road 129, Perth East, ON, N0G, Canada | E53: (49) Charger No commande: 90727 Nom du client: horst welging TOILE: False TWIC: False PRIME N.Y: False Signature B/L: Oui | F53: 00:50:00 | G53: - | K53: 1 | M53: 0
A54: 2017-01-06T16:48:45 | B54: 0.03798611111 | C54: 48.5 | D54: 8356-8358 Wellington County Road 86, Listowel, ON, N4W 3G8, Canada | E54: (-) Conduite | G54: - | K54: 0 | M54: 0
A55: 2017-01-06T17:43:27 | B55: 0.0034375 | D55: Highway 8, Kitchener, ON, N2P, Canada | E55: (45) T.L.C. | G55: - | K55: 0 | M55: 0
A56: 2017-01-06T17:48:24 | B56: 0.00212962963 | C56: 3 | D56: Highway 8, Kitchener, ON, N2P, Canada | E56: (-) Conduite | G56: - | K56: 0 | M56: 0
A57: 2017-01-06T17:51:28 | B57: 0.0003472222222 | D57: Highway 8, Kitchener, ON, N2P 2J4, Canada | E57: (-) Service | G57: - | K57: 0 | M57: 0
A58: 2017-01-06T17:51:58 | B58: 0.08452546296 | C58: 177.4 | D58: Highway 8, Kitchener, ON, N2P 2J4, Canada | E58: (-) Conduite | G58: - | K58: 0 | M58: 0
A59: 2017-01-06T19:53:41 | B59: 0.002650462963 | D59: 845 Ontario 401, Port Hope, ON, L1A 3W3, Canada | E59: (45) T.L.C. | G59: - | K59: 0 | M59: 0
A60: 2017-01-06T19:57:30 | B60: 0.008553240741 | D60: 845 Ontario 401, Port Hope, ON, L1A 3W3, Canada | E60: (1) Repas REPAS: SOUPER ENTRE 18H ET 20H SPÉCIALISÉ | G60: - | K60: 0 | M60: 0
A61: 2017-01-06T20:09:49 | B61: 0.03925925926 | C61: 87 | D61: 845 Ontario 401, Port Hope, ON, L1A 3W3, Canada | E61: (-) Conduite | G61: - | K61: 0 | M61: 0
A62: 2017-01-06T21:06:21 | B62: 0.1205902778 | D62: 902 A Wallbridge Loyalist Road, Belleville, ON, K8N 4Z5, Canada | E62: (2) Couchette | G62: - | K62: 0 | M62: 0
A63: 841.5999756 | G63: - | K63: 0 | M63: 0
A64: 2017-01-07T05:26:26 | B64: 0.00869212963 | D64: 902 A Wallbridge Loyalist Road, Belleville, ON, K8N 4Z5, Canada | E64: (40) V.A.D. VEHICLE_NO: 2015225 | G64: - | K64: 0 | M64: 0
A65: 2017-01-07T05:38:57 | B65: 0.002627314815 | C65: 0.4 | D65: 902 A Wallbridge Loyalist Road, Belleville, ON, K8N 4Z5, Canada | E65: (40) V.A.D. EQUIPMENT_NAME: 20203 | G65: - | K65: 0 | M65: 0
A66: 2017-01-07T05:42:44 | B66: 0.06138888889 | C66: 142.7 | D66: 902 Wallbridge Loyalist Road, Belleville, ON, K8N 4Z5, Canada | E66: (-) Conduite | G66: - | K66: 0 | M66: 0
A67: 2017-01-07T07:11:08 | B67: 0.009837962963 | C67: 0.1 | D67: 678 Ontario 401, Mallorytown, ON, K0E 1R0, Canada | E67: (45) T.L.C. | G67: - | K67: 0 | M67: 0 | N67: =IFERROR(IF(LEFT(MID($E67,SEARCH("Largeur pi-po",$E67,1)+15,100),2)*1<12,LEFT(MID($E67,SEARCH("Largeur pi-po",$E67,1)+15,100),2)*1,""),"") ->  | O67: =IFERROR(IF(LEFT(MID($E67,SEARCH("Largeur pi-po",$E67,1)+15,100),2)*1>=12,LEFT(MID($E67,SEARCH("Largeur pi-po",$E67,1)+15,100),2)*1,""),"") -> 
A68: 2017-01-07T07:25:18 | B68: 0.1314583333 | C68: 291.5 | D68: 678 Ontario 401, Mallorytown, ON, K0E 1R0, Canada | E68: (-) Conduite | F68: =IF(ISERROR(SEARCH("ATTENTE",E68)),"",$B68) ->  | G68: =IF(COUNTIF(E68,"*Formation*")+COUNTIF(E68,"*Travail de cours*")+COUNTIF(E68,"*réunion*")+COUNTIF(E68,"*escorte routière*")+COUNTIF(E68,"*courte distance*")>0,B68,"-") -> - | H68: =IF(ISERROR(SEARCH("superload: True",E68)),"",$B68) ->  | I68: =IF(ISERROR(SEARCH("Douane",E68)),"",1) ->  | J68: =IF(ISERROR(SEARCH("transport explosif",E68)),"",1) ->  | K68: =IF(COUNTIF(E68,"*toile: true*"),1,0)+IF(COUNTIF(E68,"*charger*"),1,0)+IF(COUNTIF(E68,"*déchargr*"),1,0)+IF(COUNTIF(E68,"*CHARGÉ: TRUE*"),1,0) -> 0 | L68: =IF(ISERROR(SEARCH("TWIC: True",E68)),"",1) ->  | M68: =LEN($N68) -> 0 | P68: =IF(N68<12,1,"") ->  | Q68: =IF(O68="","",IF(O68>=12,1,"")) ->  | R68: =IF(ISERROR(SEARCH("PRIME N.Y: True",E68)),"",1) ->  | S68: =IF(ISERROR(SEARCH("Journée non complète",E68)),"",1) ->  | T68: =IF(ISERROR(SEARCH("Fin de semaine",E68)),"",1) ->  | U68: =IF(ISERROR(SEARCH("1 Journée compète semaine",E68)),"",1) ->  | V68: =IF(ISERROR(SEARCH("Arrêt obligatoir (36H)",E68)),"",1) -> 
A69: 2017-01-07T10:34:36 | B69: 0.01106481481 | C69: 0.5 | D69: express terminal, 922 Grande Côte Ouest, Lanoraie, QC, Canada | E69: (42) Atteler No commande: 90727 Nom du client: raynond lasalla ATTELER: False DÉTELER: False | G69: - | K69: 0 | M69: 0
A70: 2017-01-07T10:50:32 | B70: 0.01053240741 | C70: 0.09999999998 | D70: express terminal, 922 Grande Côte Ouest, Lanoraie, QC, Canada | E70: (64) Carburant (presser et remplir) Fournisseur: Gasboy - COURS EXPRESS MONDOR MÉTHODE DE PAIEMENT: GASBOY- COURS EXPRESS MONDOR MONTANT: 0 Qte de Carburant: 545.78 Unité: True D.E.F.: 30.558 Unité: True | G70: - | K70: 0 | M70: 0
A71: 2017-01-07T11:05:42 | B71: 0.5377083333 | D71: express terminal, 922 Grande Côte Ouest, Lanoraie, QC, Canada | E71: (4) Pause | G71: - | K71: 0 | M71: 0
A72: 434.2000122 | G72: - | K72: 0 | M72: 0
M74: commentaire
A75: Contact | E75: =SUM($K$3:K323) -> 3
A77: Kilométrage milles | E77: =A78*0.6214 -> 1352.97422
A78: =SUM($C$3:C376) -> 2177.3
A79: Over size kilométrage -10' | E79: =A80*0.6214 -> 0
A80: =MAX(C73:C369)-MIN(C73:C369) -> 0
A81: Over size kilométrage +10' | E81: =A82*0.6214 -> 0
A82: =MAX(C73:C369)-MIN(C73:C369) -> 0
A83: journée non complète | E83: =SUM($S$3:S323) -> 0
A85: Arrêt journée de semaine | E85: =SUM($U$3:$U321) -> 0
A87: Arrêt journée de fin semaine | E87: =SUM($T$3:$T321) -> 0
A89: Arrêt obligatoir 36h | E89: =SUM($V$3:$V321) -> 0
A91: Prime Surdimention 12' et moin | E91: =SUM($P$3:P323) -> 0
A93: Prime Surdimention 12' et plus | E93: =SUM($Q$3:Q325) -> 0
A95: TRAVAIL DE VILLE | E95: =SUM($G$3:G323) -> 00:00:00
A97: Prime New York | E97: =SUM(R3:R369) -> 0
A99: TWICK | E99: =SUM($L$3:L323) -> 0
A101: Douane | E101: =SUM($I$3:I323) -> 2
A103: Attente chargement | E103: =SUM($F$3:F323) -> 01:15:00

Sheet Chartrant P
B1: Chartrand Patrice | E1: 02:00:00 | F1: Semaine du | N1: =#REF! ->  | T1: =#REF! -> 
A2: DATE / HEURES | B2: TEMPS | C2: ODOMÈTRE | D2: lieu | E2: Activité | F2: ATTENTE (HEURE) | G2: VILLE ET MANUTENTION (HEURE) | H2: SUPERLOAD (HEURE) | I2: DOUANES | J2: Transport explosif | K2: CONTACTS | L2: TWICK | N2: Surdimension 12' et moin | O2: Surdimension 12' et plus | P2: prime surdimenssion 12' et moin | Q2: prime surdimenssion 12' et plus | R2: PRIME NEW YORK | S2: ARRÊT JOURNÉE NON-COMPLÈTE | T2: ARRÊT CONPLET- JOURNÉE DE FIN DE SEMAINE | U2: ARRÊT JOURNÉE DE SEMAINE | V2: Arrêt obligatoir 36h | W2: Opérateur | X2: Numéro de véhicule | Y2: Date de début | Z2: Ville | AA2: État / Province | AB2: Pays | AC2: No commande | AD2: LAYOVER | AE2: Montant
F3: =IF(ISERROR(SEARCH("ATTENTE",E3)),"",$B3) ->  | G3: =IF(COUNTIF(E3,"*Formation*")+COUNTIF(E3,"*Travail de cours*")+COUNTIF(E3,"*réunion*")+COUNTIF(E3,"*escorte routière*")+COUNTIF(E3,"*courte distance*")>0,B3,"-") -> - | H3: =IF(ISERROR(SEARCH("superload: True",E3)),"",$B3) ->  | I3: =IF(ISERROR(SEARCH("Douane",E3)),"",1) ->  | J3: =IF(ISERROR(SEARCH("transport explosif",E3)),"",1) ->  | K3: =IF(COUNTIF(E3,"*toile: true*"),1,0)+IF(COUNTIF(E3,"*charger*"),1,0)+IF(COUNTIF(E3,"*déchargr*"),1,0)+IF(COUNTIF(E3,"*CHARGÉ: TRUE*"),1,0) -> 0 | L3: =IF(ISERROR(SEARCH("TWIC: True",E3)),"",1) ->  | M3: =LEN($N3) -> 0 | N3: =IFERROR(IF(LEFT(MID($E3,SEARCH("Largeur pi-po",$E3,1)+15,100),2)*1<12,LEFT(MID($E3,SEARCH("Largeur pi-po",$E3,1)+15,100),2)*1,""),"") ->  | O3: =IFERROR(IF(LEFT(MID($E3,SEARCH("Largeur pi-po",$E3,1)+15,100),2)*1>=12,LEFT(MID($E3,SEARCH("Largeur pi-po",$E3,1)+15,100),2)*1,""),"") ->  | P3: =IF(N3<12,1,"") ->  | Q3: =IF(O3="","",IF(O3>=12,1,"")) ->  | R3: =IF(ISERROR(SEARCH("PRIME N.Y: True",E3)),"",1) ->  | S3: =IF(ISERROR(SEARCH("Journée non complète",E3)),"",1) ->  | T3: =IF(ISERROR(SEARCH("Fin de semaine",E3)),"",1) ->  | U3: =IF(ISERROR(SEARCH("1 Journée compète semaine",E3)),"",1) ->  | V3: =IF(ISERROR(SEARCH("Arrêt obligatoir (36H)",E3)),"",1) -> 
A4: (jj/mm/aaaa hh:mm) | B4: (hh:mm:ss) | C4: (km) | F4: =IF(ISERROR(SEARCH("ATTENTE",E4)),"",$B4) ->  | G4: =IF(COUNTIF(E4,"*Formation*")+COUNTIF(E4,"*Travail de cours*")+COUNTIF(E4,"*réunion*")+COUNTIF(E4,"*escorte routière*")+COUNTIF(E4,"*courte distance*")>0,B4,"-") -> - | H4: =IF(ISERROR(SEARCH("superload: True",E4)),"",$B4) ->  | I4: =IF(ISERROR(SEARCH("Douane",E4)),"",1) ->  | J4: =IF(ISERROR(SEARCH("transport explosif",E4)),"",1) ->  | K4: =IF(COUNTIF(E4,"*toile: true*"),1,0)+IF(COUNTIF(E4,"*charger*"),1,0)+IF(COUNTIF(E4,"*déchargr*"),1,0)+IF(COUNTIF(E4,"*CHARGÉ: TRUE*"),1,0) -> 0 | L4: =IF(ISERROR(SEARCH("TWIC: True",E4)),"",1) ->  | M4: =LEN($N4) -> 0 | N4: =IFERROR(IF(LEFT(MID($E4,SEARCH("Largeur pi-po",$E4,1)+15,100),2)*1<12,LEFT(MID($E4,SEARCH("Largeur pi-po",$E4,1)+15,100),2)*1,""),"") ->  | O4: =IFERROR(IF(LEFT(MID($E4,SEARCH("Largeur pi-po",$E4,1)+15,100),2)*1>=12,LEFT(MID($E4,SEARCH("Largeur pi-po",$E4,1)+15,100),2)*1,""),"") ->  | P4: =IF(N4<12,1,"") ->  | Q4: =IF(O4="","",IF(O4>=12,1,"")) ->  | R4: =IF(ISERROR(SEARCH("PRIME N.Y: True",E4)),"",1) ->  | S4: =IF(ISERROR(SEARCH("Journée non complète",E4)),"",1) ->  | T4: =IF(ISERROR(SEARCH("Fin de semaine",E4)),"",1) ->  | U4: =IF(ISERROR(SEARCH("1 Journée compète semaine",E4)),"",1) ->  | V4: =IF(ISERROR(SEARCH("Arrêt obligatoir (36H)",E4)),"",1) -> 
A5: 0 | G5: - | K5: 0 | M5: 0
A6: (hh:mm:ss) | B6: (hh:mm:ss) | C6: (km) | G6: - | K6: 0 | M6: 0
A7: 0 | G7: - | K7: 0 | M7: 0
A8: 2017-01-03T04:46:01 | D8: express terminal, 922 Grande Côte Ouest, Lanoraie, QC, Canada | E8: Connexion | G8: - | K8: 0 | M8: 0
A9: 2017-01-03T04:46:35 | B9: 0.009907407407 | D9: express terminal, 922 Grande Côte Ouest, Lanoraie, QC, Canada | E9: (28) Over-size No commande: 90765 Nom du client: teraflex group CHARGÉ: False ATTELER: False SUPERLOAD: False TOILE: False TWIC: False PRIME N.Y: False Hauteur pi-po: 13.6 Largeur pi-po: 10 Longueur pi-po: 53 Poids steering: 12000 Type unitaire: False Poids Drive 1: 34000 Type unitaire: False Poids remorque: 34000 Type unitaire: False Vérifier permis: False Vérifier itinéraire: False Vérifier prov. sheet: False Inst. bannières (D): False Inst. lumières 360: False Inst. drapeaux: False Inst. clignotants: False Escorte: False # Du véhicule de l'escort: 2 ODOMÈTRE: 585402.49 | G9: - | K9: 0 | M9: 2 | N9: 10 | P9: 1
A10: 2017-01-03T05:00:51 | B10: 0.0002893518519 | D10: express terminal, 922 Grande Côte Ouest, Lanoraie, QC, Canada | E10: (47) Identification remorque EQUIPMENT_NAME: 20233 | G10: - | K10: 0 | M10: 0
A11: 2017-01-03T05:01:16 | B11: 0.0001157407407 | D11: express terminal, 922 Grande Côte Ouest, Lanoraie, QC, Canada | E11: (40) V.A.D. EQUIPMENT_NAME: 20233 | G11: - | K11: 0 | M11: 0
A12: 2017-01-03T05:01:26 | B12: 0.01873842593 | C12: 0.09999999998 | D12: express terminal, 922 Grande Côte Ouest, Lanoraie, QC, Canada | E12: (40) V.A.D. VEHICLE_NO: 2014206 | G12: - | K12: 0 | M12: 0
A13: 2017-01-03T05:28:25 | B13: 0.006909722222 | C13: 10.1 | D13: express terminal, 922 Grande Côte Ouest, Lanoraie, QC, Canada | E13: (-) Conduite | G13: - | K13: 0 | M13: 0
A14: 2017-01-03T05:38:22 | B14: 0.03178240741 | C14: 0.1000000001 | D14: Rue Swecan, Lanoraie, QC, J0K, Canada | E14: (4) Pause Note (optionelle): attente brisé | F14: 00:45:46 | G14: - | K14: 0 | M14: 0
A15: 2017-01-03T06:24:08 | B15: 0.00912037037 | C15: 6.5 | D15: Rue Swecan, Lanoraie, QC, J0K, Canada | E15: (-) Conduite | G15: - | K15: 0 | M15: 0
A16: 2017-01-03T06:37:16 | B16: 0.002071759259 | D16: 141-143 Grande Côte Ouest, Lanoraie, QC, J0K, Canada | E16: (-) Service | G16: - | K16: 0 | M16: 0
A17: 2017-01-03T06:40:15 | B17: 0.007696759259 | C17: 4.8 | D17: 141-143 Grande Côte Ouest, Lanoraie, QC, J0K, Canada | E17: (-) Conduite | G17: - | K17: 0 | M17: 0
A18: 2017-01-03T06:51:20 | B18: 0.03864583333 | C18: 0.09999999998 | D18: express terminal, 922 Grande Côte Ouest, Lanoraie, QC, Canada | E18: (4) Pause Note (optionelle): reparation | F18: 01:00:00 | G18: - | K18: 0 | M18: 0
A19: 2017-01-03T07:46:59 | B19: 0.07530092593 | C19: 159.1 | D19: express terminal, 922 Grande Côte Ouest, Lanoraie, QC, Canada | E19: (-) Conduite | G19: - | K19: 0 | M19: 0
A20: 2017-01-03T09:35:25 | B20: 0.005636574074 | D20: Macdonald-Cartier Freeway, Bainsville, ON, K0C 1E0, Canada | E20: (45) T.L.C. | G20: - | K20: 0 | M20: 0
A21: 2017-01-03T09:43:32 | B21: 0.0118287037 | D21: Macdonald-Cartier Freeway, Bainsville, ON, K0C 1E0, Canada | E21: (4) Pause | G21: - | K21: 0 | M21: 0
A22: 2017-01-03T10:00:34 | B22: 0.1624305556 | C22: 384.3 | D22: Macdonald-Cartier Freeway, Bainsville, ON, K0C 1E0, Canada | E22: (-) Conduite | G22: - | K22: 0 | M22: 0
A23: 2017-01-03T13:54:28 | B23: 0.008229166667 | C23: 0.09999999998 | D23: 17188 Vivian Drive, Newcastle, ON, L1B 1L9, Canada | E23: (45) T.L.C. | G23: - | K23: 0 | M23: 0
A24: 2017-01-03T14:06:19 | B24: 0.07605324074 | C24: 154.9 | D24: 17188 Vivian Drive, Newcastle, ON, L1B 1L9, Canada | E24: (-) Conduite | G24: - | K24: 0 | M24: 0
A25: 2017-01-03T15:55:50 | B25: 0.01672453704 | C25: 0.09999999998 | D25: 6705 Ellis Road, Cambridge, ON, N3C 2V4, Canada | E25: (45) T.L.C. | G25: - | K25: 0 | M25: 0
A26: 2017-01-03T16:19:55 | B26: 0.04521990741 | C26: 101.8 | D26: 6705 Ellis Road, Cambridge, ON, N3C 2V4, Canada | E26: (-) Conduite | G26: - | K26: 0 | M26: 0
A27: 2017-01-03T17:25:02 | B27: 0.01079861111 | C27: 0.4 | D27: 3700 Highbury Avenue South, London, ON, N6N 1P3, Canada | E27: (64) Carburant (presser et remplir) Fournisseur: Shell/Flying J - TCH MÉTHODE DE PAIEMENT: SUNCORS ENERGIE - PETRO-PASS/SUPER-PASS MONTANT: 370 Qte de Carburant: 322 Unité: True Unité: False | G27: - | K27: 0 | M27: 0
A28: 2017-01-03T17:40:35 | B28: 0.2634837963 | D28: 3500 Highbury Avenue South, London, ON, N6N 1P3, Canada | E28: (53) Layover No commande: 90652 LAYOVER: Surdimensionné | G28: - | K28: 0 | M28: 0
A29: 821.5 | G29: - | K29: 0 | M29: 0
A30: 2017-01-04T07:28:36 | B30: 0.0001157407407 | D30: 3500 Highbury Avenue South, London, ON, N6N 1P3, Canada | E30: (40) V.A.D. VEHICLE_NO: 2014206 | G30: - | K30: 0 | M30: 0
A31: 2017-01-04T07:28:46 | B31: 0.0165162037 | C31: 0.2999999999 | D31: 3500 Highbury Avenue South, London, ON, N6N 1P3, Canada | E31: (40) V.A.D. EQUIPMENT_NAME: 20233 | G31: - | K31: 0 | M31: 0
A32: 2017-01-04T07:52:33 | B32: 0.05388888889 | C32: 111.8 | D32: 3700 Highbury Avenue South, London, ON, N6N 1P3, Canada | E32: (-) Conduite | G32: - | K32: 0 | M32: 0
A33: 2017-01-04T09:10:09 | B33: 0.008761574074 | C33: 0.2 | D33: Bluewater Bridge, Port Huron, MI, 48060, United States | E33: (104) Douane | G33: - | I33: 1 | K33: 0 | M33: 0
A34: 2017-01-04T09:22:46 | B34: 0.1381712963 | C34: 268 | D34: 2402 Pine Grove Avenue, Port Huron, MI, 48060, United States | E34: (-) Conduite | G34: - | K34: 0 | M34: 0
A35: 2017-01-04T12:41:44 | B35: 0.005185185185 | D35: Interstate 69, Marshall, MI, 49068, United States | E35: (45) T.L.C. | G35: - | K35: 0 | M35: 0
A36: 2017-01-04T12:49:12 | B36: 0.0215162037 | C36: 0.1000000001 | D36: Interstate 69, Marshall, MI, 49068, United States | E36: (4) Pause | G36: - | K36: 0 | M36: 0
A37: 2017-01-04T13:20:11 | B37: 0.1392939815 | C37: 271 | D37: Interstate 69, Marshall, MI, 49068, United States | E37: (-) Conduite | G37: - | K37: 0 | M37: 0
A38: 2017-01-04T16:40:46 | B38: 0.0040625 | D38: West 159th Street, Markham, IL, 60428, United States | E38: (45) T.L.C. | G38: - | K38: 0 | M38: 0
A39: 2017-01-04T16:46:37 | B39: 0.03375 | C39: 69.9 | D39: West 159th Street, Markham, IL, 60428, United States | E39: (-) Conduite | G39: - | K39: 0 | M39: 0
A40: 2017-01-04T17:35:13 | B40: 0.2672106481 | D40: 7650 Illinois 47, Morris, IL, 60450, United States | E40: (53) Layover No commande: 90652 LAYOVER: Surdimensionné | G40: - | K40: 0 | M40: 0 | P40: 1
A41: 720.7000122 | G41: - | K41: 0 | M41: 0
A42: 2017-01-05T07:39:16 | B42: 0.0001388888889 | D42: 7650 Illinois 47, Morris, IL, 60450, United States | E42: (40) V.A.D. VEHICLE_NO: 2014206 | G42: - | K42: 0 | M42: 0
A43: 2017-01-05T07:39:28 | B43: 0.007916666667 | C43: 0.1000000001 | D43: 7650 Illinois 47, Morris, IL, 60450, United States | E43: (40) V.A.D. EQUIPMENT_NAME: 20233 | G43: - | K43: 0 | M43: 0
A44: 2017-01-05T07:50:52 | B44: 0.003391203704 | C44: 0.2 | D44: 7650 Illinois 47, Morris, IL, 60450, United States | E44: (64) Carburant (presser et remplir) Fournisseur: Pilot - TCH MÉTHODE DE PAIEMENT: GASBOY- COURS EXPRESS MONDOR MONTANT: 226 Qte de Carburant: 86 Unité: False Unité: False | G44: - | K44: 0 | M44: 0
A45: 2017-01-05T07:55:45 | B45: 0.146400463 | C45: 315 | D45: 7650 Illinois 47, Morris, IL, 60450, United States | E45: (-) Conduite | G45: - | K45: 0 | M45: 0
A46: 2017-01-05T11:26:34 | B46: 0.01010416667 | D46: Interstate 94, Poynette, WI, 53955, United States | E46: (45) T.L.C. | G46: - | K46: 0 | M46: 0
A47: 2017-01-05T11:41:07 | B47: 0.02231481481 | D47: Interstate 94, Poynette, WI, 53955, United States | E47: (4) Pause | G47: - | K47: 0 | M47: 0
A48: 2017-01-05T12:13:15 | B48: 0.1486111111 | C48: 349.8 | D48: Interstate 94, Poynette, WI, 53955, United States | E48: (-) Conduite | G48: - | K48: 0 | M48: 0
A49: 2017-01-05T15:47:15 | B49: 0.0003703703704 | D49: 15800 Interstate 94, Stillwater, MN, 55082, United States | E49: (45) T.L.C. | G49: - | K49: 0 | M49: 0
A50: 2017-01-05T15:47:47 | B50: 0.08068287037 | C50: 170.8 | D50: 15800 Interstate 94, Stillwater, MN, 55082, United States | E50: (-) Conduite | G50: - | K50: 0 | M50: 0
A51: 2017-01-05T17:43:58 | B51: 0.2611342593 | D51: 33418 Shorewood Drive, Avon, MN, 56310, United States | E51: (53) Layover No commande: 90652 LAYOVER: Surdimensionné | G51: - | K51: 0 | M51: 0 | P51: 1
A52: 835.5999756 | G52: - | K52: 0 | M52: 0
A53: 2017-01-06T08:47:33 | B53: 0.0001388888889 | D53: 33418 Shorewood Drive, Avon, MN, 56310, United States | E53: (40) V.A.D. VEHICLE_NO: 2014206 | G53: - | K53: 0 | M53: 0
A54: 2017-01-06T08:47:45 | B54: 0.0155787037 | C54: 0.09999999998 | D54: 33418 Shorewood Drive, Avon, MN, 56310, United States | E54: (40) V.A.D. EQUIPMENT_NAME: 20233 | G54: - | K54: 0 | M54: 0
A55: 2017-01-06T09:10:11 | B55: 0.1087037037 | C55: 253.6 | D55: 33418 Shorewood Drive, Avon, MN, 56310, United States | E55: (-) Conduite | G55: - | K55: 0 | M55: 0
A56: 2017-01-06T11:46:43 | B56: 0.002048611111 | D56: 3150 39th Street Southwest, Fargo, ND, 58104, United States | E56: (45) T.L.C. | G56: - | K56: 0 | M56: 0
A57: 2017-01-06T11:49:40 | B57: 0.005405092593 | C57: 0.09999999998 | D57: 3150 39th Street Southwest, Fargo, ND, 58104, United States | E57: (64) Carburant (presser et remplir) Fournisseur: Shell/Flying J - TCH MÉTHODE DE PAIEMENT: SUNCORS ENERGIE - PETRO-PASS/SUPER-PASS MONTANT: 330 Qte de Carburant: 130 Unité: False Unité: False | G57: - | K57: 0 | M57: 0
A58: 2017-01-06T11:57:27 | B58: 0.1930324074 | C58: 436.6 | D58: 3068 Thunder Road South, Fargo, ND, 58104, United States | E58: (-) Conduite | G58: - | K58: 0 | M58: 0
A59: 2017-01-06T16:35:25 | B59: 0.001354166667 | D59: 3808 U.S. 52, Minot, ND, 58701, United States | E59: (45) T.L.C. | G59: - | K59: 0 | M59: 0
A60: 2017-01-06T16:37:22 | B60: 0.02701388889 | C60: 0.2 | D60: 3808 U.S. 52, Minot, ND, 58701, United States | E60: (4) Pause | G60: - | K60: 0 | M60: 0
A61: 2017-01-06T17:16:16 | B61: 0.0780787037 | C61: 175.8 | D61: 3808 U.S. 52, Minot, ND, 58701, United States | E61: (-) Conduite | G61: - | K61: 0 | M61: 0
A62: 2017-01-06T19:08:42 | B62: 0.02201388889 | C62: 0.3 | D62: 13553 U.S. Highway 2, Williston, ND, 58801, United States | E62: (4) Pause Note (optionelle): attente du client | G62: - | K62: 0 | M62: 0
A63: 2017-01-06T19:40:24 | B63: 0.02081018519 | C63: 36.6 | D63: 13553 U.S. Highway 2, Williston, ND, 58801, United States | E63: (-) Conduite | G63: - | K63: 0 | M63: 0
A64: 2017-01-06T20:10:22 | B64: 0.02648148148 | D64: 4106 25th Avenue, Williston, ND, 58801, United States | E64: (4) Pause Note (optionelle): attente decharge | G64: - | K64: 0 | M64: 0
A65: 2017-01-06T20:48:30 | B65: 0.01319444444 | C65: 0.2 | D65: 4106 25th Avenue, Williston, ND, 58801, United States | E65: (51) Décharger No commande: 90765 Voyage: Régulier Nom du client: teraflex TOILE: False TWIC: False PRIME N.Y: False Signature B/L: Oui ODOMÈTRE: 588686,93 | G65: - | K65: 1 | M65: 0
A66: 2017-01-06T21:07:30 | B66: 0.1197916667 | D66: 4106 25th Avenue, Williston, ND, 58801, United States | E66: (53) Layover No commande: 90652 LAYOVER: Surdimensionné | G66: - | K66: 0 | M66: 0 | P66: 1
A67: 902.5999756 | G67: - | K67: 0 | M67: 0
A68: 2017-01-07T08:05:10 | B68: 0.0001388888889 | D68: 4106 25th Avenue, Williston, ND, 58801, United States | E68: (40) V.A.D. VEHICLE_NO: 2014206 | F68: =IF(ISERROR(SEARCH("ATTENTE",E68)),"",$B68) ->  | G68: =IF(COUNTIF(E68,"*Formation*")+COUNTIF(E68,"*Travail de cours*")+COUNTIF(E68,"*réunion*")+COUNTIF(E68,"*escorte routière*")+COUNTIF(E68,"*courte distance*")>0,B68,"-") -> - | H68: =IF(ISERROR(SEARCH("superload: True",E68)),"",$B68) ->  | I68: =IF(ISERROR(SEARCH("Douane",E68)),"",1) ->  | J68: =IF(ISERROR(SEARCH("transport explosif",E68)),"",1) ->  | K68: =IF(COUNTIF(E68,"*toile: true*"),1,0)+IF(COUNTIF(E68,"*charger*"),1,0)+IF(COUNTIF(E68,"*déchargr*"),1,0)+IF(COUNTIF(E68,"*CHARGÉ: TRUE*"),1,0) -> 0 | L68: =IF(ISERROR(SEARCH("TWIC: True",E68)),"",1) ->  | M68: =LEN($N68) -> 0 | N68: =IFERROR(IF(LEFT(MID($E68,SEARCH("Largeur pi-po",$E68,1)+15,100),2)*1<12,LEFT(MID($E68,SEARCH("Largeur pi-po",$E68,1)+15,100),2)*1,""),"") ->  | O68: =IFERROR(IF(LEFT(MID($E68,SEARCH("Largeur pi-po",$E68,1)+15,100),2)*1>=12,LEFT(MID($E68,SEARCH("Largeur pi-po",$E68,1)+15,100),2)*1,""),"") ->  | P68: =IF(N68<12,1,"") ->  | Q68: =IF(O68="","",IF(O68>=12,1,"")) ->  | R68: =IF(ISERROR(SEARCH("PRIME N.Y: True",E68)),"",1) ->  | S68: =IF(ISERROR(SEARCH("Journée non complète",E68)),"",1) ->  | T68: =IF(ISERROR(SEARCH("Fin de semaine",E68)),"",1) ->  | U68: =IF(ISERROR(SEARCH("1 Journée compète semaine",E68)),"",1) ->  | V68: =IF(ISERROR(SEARCH("Arrêt obligatoir (36H)",E68)),"",1) -> 
A69: 2017-01-07T08:05:22 | B69: 0.02240740741 | C69: 0.2000000001 | D69: 4106 25th Avenue, Williston, ND, 58801, United States | E69: (40) V.A.D. EQUIPMENT_NAME: 20233 | G69: - | K69: 0 | M69: 0
A70: 2017-01-07T08:37:38 | B70: 0.114537037 | C70: 249.7 | D70: 1719 42nd Street West, Williston, ND, 58801, United States | E70: (-) Conduite | G70: - | K70: 0 | M70: 0
A71: 2017-01-07T11:22:34 | B71: 0.0075 | C71: 0.2 | D71: 169th Avenue Southwest, Beach, ND, 58621, United States | E71: (45) T.L.C. | G71: - | K71: 0 | M71: 0
A72: 2017-01-07T11:33:22 | B72: 0.005520833333 | C72: 0.1000000001 | D72: 169th Avenue Southwest, Beach, ND, 58621, United States | E72: (64) Carburant (presser et remplir) Fournisseur: Shell/Flying J - TCH MÉTHODE DE PAIEMENT: SUNCORS ENERGIE - PETRO-PASS/SUPER-PASS MONTANT: 293 Qte de Carburant: 115 Unité: False Unité: False | G72: - | K72: 0 | M72: 0
A73: 2017-01-07T11:41:19 | B73: 0.1289814815 | C73: 302.7 | D73: 169th Avenue Southwest, Beach, ND, 58621, United States | E73: (-) Conduite | G73: - | K73: 0 | M73: 0
A74: 2017-01-07T14:47:03 | B74: 0.006226851852 | D74: Interstate 94, Hysham, MT, 59038, United States | E74: (45) T.L.C. | G74: - | K74: 0 | M74: 0
A75: 2017-01-07T14:56:01 | B75: 0.02106481481 | D75: Interstate 94, Hysham, MT, 59038, United States | E75: (4) Pause | G75: - | K75: 0 | M75: 0
A76: 2017-01-07T15:26:21 | B76: 0.153125 | C76: 359.1 | D76: Interstate 94, Hysham, MT, 59038, United States | E76: (-) Conduite | G76: - | K76: 0 | M76: 0
A77: 2017-01-07T19:06:51 | B77: 0.2035763889 | C77: 0.3 | D77: 6505 Jackrabbit Lane, Belgrade, MT, 59714, United States | E77: (53) Layover No commande: 90652 LAYOVER: Surdimensionné | G77: - | K77: 0 | M77: 0 | P77: 1
A78: 911.5 | G78: - | K78: 0 | M78: 0
M80: commentaire
A81: Contact | E81: =SUM($K$3:K329) -> 1
A83: Kilométrage milles | E83: =A84*0.6214 -> 2607.02156
A84: =SUM($C$3:C382) -> 4195.4
A85: Over size kilométrage -10' | E85: =A86*0.6214 -> 2606.773
A86: 4195
A87: Over size kilométrage +10' | E87: =A88*0.6214 -> 0
A88: =MAX(C79:C375)-MIN(C79:C375) -> 0
A89: journée non complète | E89: =SUM($S$3:S329) -> 0
A91: Arrêt journée de semaine | E91: =SUM($U$3:$U327) -> 0
A93: Arrêt journée de fin semaine | E93: =SUM($T$3:$T327) -> 0
A95: Arrêt obligatoir 36h | E95: =SUM($V$3:$V327) -> 0
A97: Prime Surdimention 12' et moin | E97: =SUM($P$3:P329) -> 5 | F97: 03-04-05-06-07 janv.
A99: Prime Surdimention 12' et plus | E99: =SUM($Q$3:Q331) -> 0
A101: TRAVAIL DE VILLE | E101: =SUM($G$3:G329) -> 00:00:00
A103: Prime New York | E103: =SUM(R3:R375) -> 0
A105: TWICK | E105: =SUM($L$3:L329) -> 0
A107: Douane | E107: =SUM($I$3:I329) -> 1
A109: Attente chargement | E109: 1.75

Sheet Chiasson J-M
B1: Chiasson Jean-Maurice | E1: 02:00:00 | F1: Semaine du | N1: =#REF! ->  | P1: =#REF! ->  | T1: =#REF! ->  | U1: AU | V1: =#REF! -> 
A2: DATE / HEURES | B2: TEMPS | C2: ODOMÈTRE | D2: lieu | E2: Activité | F2: ATTENTE (HEURE) | G2: VILLE ET MANUTENTION (HEURE) | H2: SUPERLOAD (HEURE) | I2: DOUANES | J2: Transport explosif | K2: CONTACTS | L2: TWICK | N2: Surdimension 12' et moin | O2: Surdimension 12' et plus | P2: prime surdimenssion 12' et moin | Q2: prime surdimenssion 12' et plus | R2: PRIME NEW YORK | S2: ARRÊT JOURNÉE NON-COMPLÈTE | T2: ARRÊT CONPLET- JOURNÉE DE FIN DE SEMAINE | U2: ARRÊT JOURNÉE DE SEMAINE | V2: Arrêt obligatoir 36h | W2: Opérateur | X2: Numéro de véhicule | Y2: Date de début | Z2: Ville | AA2: État / Province | AB2: Pays | AC2: No commande | AD2: LAYOVER | AE2: Montant
F3: =IF(ISERROR(SEARCH("ATTENTE",E3)),"",$B3) ->  | G3: =IF(COUNTIF(E3,"*Formation*")+COUNTIF(E3,"*Travail de cours*")+COUNTIF(E3,"*réunion*")+COUNTIF(E3,"*escorte routière*")+COUNTIF(E3,"*courte distance*")>0,B3,"-") -> - | H3: =IF(ISERROR(SEARCH("superload: True",E3)),"",$B3) ->  | I3: =IF(ISERROR(SEARCH("Douane",E3)),"",1) ->  | J3: =IF(ISERROR(SEARCH("transport explosif",E3)),"",1) ->  | K3: =IF(COUNTIF(E3,"*toile: true*"),1,0)+IF(COUNTIF(E3,"*charger*"),1,0)+IF(COUNTIF(E3,"*déchargr*"),1,0)+IF(COUNTIF(E3,"*CHARGÉ: TRUE*"),1,0) -> 0 | L3: =IF(ISERROR(SEARCH("TWIC: True",E3)),"",1) ->  | M3: =LEN($N3) -> 0 | N3: =IFERROR(IF(LEFT(MID($E3,SEARCH("Largeur pi-po",$E3,1)+15,100),2)*1<12,LEFT(MID($E3,SEARCH("Largeur pi-po",$E3,1)+15,100),2)*1,""),"") ->  | O3: =IFERROR(IF(LEFT(MID($E3,SEARCH("Largeur pi-po",$E3,1)+15,100),2)*1>=12,LEFT(MID($E3,SEARCH("Largeur pi-po",$E3,1)+15,100),2)*1,""),"") ->  | P3: =IF(N3<12,1,"") ->  | Q3: =IF(O3="","",IF(O3>=12,1,"")) ->  | R3: =IF(ISERROR(SEARCH("PRIME N.Y: True",E3)),"",1) ->  | S3: =IF(ISERROR(SEARCH("Journée non complète",E3)),"",1) ->  | T3: =IF(ISERROR(SEARCH("Fin de semaine",E3)),"",1) ->  | U3: =IF(ISERROR(SEARCH("1 Journée compète semaine",E3)),"",1) ->  | V3: =IF(ISERROR(SEARCH("Arrêt obligatoir (36H)",E3)),"",1) -> 
M5: commentaire
A6: Contact | E6: =SUM($K$3:K254) -> 0
A8: Kilométrage milles | E8: =A9*0.6214 -> 0
A9: =SUM($C$3:C307) -> 0
A10: Over size kilométrage -10' | E10: =A11*0.6214 -> 0
A11: =MAX(C4:C300)-MIN(C4:C300) -> 0
A12: Over size kilométrage +10' | E12: =A13*0.6214 -> 0
A13: =MAX(C4:C300)-MIN(C4:C300) -> 0
A14: journée non complète | E14: =SUM($S$3:S254) -> 0
A16: Arrêt journée de semaine | E16: =SUM($U$3:$U252) -> 0
A18: Arrêt journée de fin semaine | E18: =SUM($T$3:$T252) -> 0
A20: Arrêt obligatoir 36h | E20: =SUM($V$3:$V252) -> 0
A22: Prime Surdimention 12' et moin | E22: =SUM($P$3:P254) -> 0
A24: Prime Surdimention 12' et plus | E24: =SUM($Q$3:Q256) -> 0
A26: TRAVAIL DE VILLE | E26: =SUM($G$3:G254) -> 00:00:00
A28: Prime New York | E28: =SUM(R3:R300) -> 0
A30: TWICK | E30: =SUM($L$3:L254) -> 0
A32: Douane | E32: =SUM($I$3:I254) -> 0
A34: Attente chargement | E34: =SUM($F$3:F254) -> 00:00:00

Sheet Cormier L.
A1: Cormier Luc | E1: 02:00:00 | F1: Semaine du | N1: =#REF! ->  | T1: =#REF! -> 
A2: DATE / HEURES | B2: TEMPS | C2: ODOMÈTRE | D2: lieu | E2: Activité | F2: ATTENTE (HEURE) | G2: VILLE ET MANUTENTION (HEURE) | H2: SUPERLOAD (HEURE) | I2: DOUANES | J2: Transport explosif | K2: CONTACTS | L2: TWICK | N2: Surdimension 12' et moin | O2: Surdimension 12' et plus | P2: prime surdimenssion 12' et moin | Q2: prime surdimenssion 12' et plus | R2: PRIME NEW YORK | S2: ARRÊT JOURNÉE NON-COMPLÈTE | T2: ARRÊT CONPLET- JOURNÉE DE FIN DE SEMAINE | U2: ARRÊT JOURNÉE DE SEMAINE | V2: Arrêt obligatoir 36h | W2: Opérateur | X2: Numéro de véhicule | Y2: Date de début | Z2: Ville | AA2: État / Province | AB2: Pays | AC2: No commande | AD2: LAYOVER | AE2: Montant
F3: =IF(ISERROR(SEARCH("ATTENTE",E3)),"",$B3) ->  | G3: =IF(COUNTIF(E3,"*Formation*")+COUNTIF(E3,"*Travail de cours*")+COUNTIF(E3,"*réunion*")+COUNTIF(E3,"*escorte routière*")+COUNTIF(E3,"*courte distance*")>0,B3,"-") -> - | H3: =IF(ISERROR(SEARCH("superload: True",E3)),"",$B3) ->  | I3: =IF(ISERROR(SEARCH("Douane",E3)),"",1) ->  | J3: =IF(ISERROR(SEARCH("transport explosif",E3)),"",1) ->  | K3: =IF(COUNTIF(E3,"*toile: true*"),1,0)+IF(COUNTIF(E3,"*charger*"),1,0)+IF(COUNTIF(E3,"*déchargr*"),1,0)+IF(COUNTIF(E3,"*CHARGÉ: TRUE*"),1,0) -> 0 | L3: =IF(ISERROR(SEARCH("TWIC: True",E3)),"",1) ->  | M3: =LEN($N3) -> 0 | N3: =IFERROR(IF(LEFT(MID($E3,SEARCH("Largeur pi-po",$E3,1)+15,100),2)*1<12,LEFT(MID($E3,SEARCH("Largeur pi-po",$E3,1)+15,100),2)*1,""),"") ->  | O3: =IFERROR(IF(LEFT(MID($E3,SEARCH("Largeur pi-po",$E3,1)+15,100),2)*1>=12,LEFT(MID($E3,SEARCH("Largeur pi-po",$E3,1)+15,100),2)*1,""),"") ->  | P3: =IF(N3<12,1,"") ->  | Q3: =IF(O3="","",IF(O3>=12,1,"")) ->  | R3: =IF(ISERROR(SEARCH("PRIME N.Y: True",E3)),"",1) ->  | S3: =IF(ISERROR(SEARCH("Journée non complète",E3)),"",1) ->  | T3: =IF(ISERROR(SEARCH("Fin de semaine",E3)),"",1) ->  | U3: =IF(ISERROR(SEARCH("1 Journée compète semaine",E3)),"",1) ->  | V3: =IF(ISERROR(SEARCH("Arrêt obligatoir (36H)",E3)),"",1) -> 
A4: (jj/mm/aaaa hh:mm) | B4: (hh:mm:ss) | C4: (km) | F4: =IF(ISERROR(SEARCH("ATTENTE",E4)),"",$B4) ->  | G4: =IF(COUNTIF(E4,"*Formation*")+COUNTIF(E4,"*Travail de cours*")+COUNTIF(E4,"*réunion*")+COUNTIF(E4,"*escorte routière*")+COUNTIF(E4,"*courte distance*")>0,B4,"-") -> - | H4: =IF(ISERROR(SEARCH("superload: True",E4)),"",$B4) ->  | I4: =IF(ISERROR(SEARCH("Douane",E4)),"",1) ->  | J4: =IF(ISERROR(SEARCH("transport explosif",E4)),"",1) ->  | K4: =IF(COUNTIF(E4,"*toile: true*"),1,0)+IF(COUNTIF(E4,"*charger*"),1,0)+IF(COUNTIF(E4,"*déchargr*"),1,0)+IF(COUNTIF(E4,"*CHARGÉ: TRUE*"),1,0) -> 0 | L4: =IF(ISERROR(SEARCH("TWIC: True",E4)),"",1) ->  | M4: =LEN($N4) -> 0 | N4: =IFERROR(IF(LEFT(MID($E4,SEARCH("Largeur pi-po",$E4,1)+15,100),2)*1<12,LEFT(MID($E4,SEARCH("Largeur pi-po",$E4,1)+15,100),2)*1,""),"") ->  | O4: =IFERROR(IF(LEFT(MID($E4,SEARCH("Largeur pi-po",$E4,1)+15,100),2)*1>=12,LEFT(MID($E4,SEARCH("Largeur pi-po",$E4,1)+15,100),2)*1,""),"") ->  | P4: =IF(N4<12,1,"") ->  | Q4: =IF(O4="","",IF(O4>=12,1,"")) ->  | R4: =IF(ISERROR(SEARCH("PRIME N.Y: True",E4)),"",1) ->  | S4: =IF(ISERROR(SEARCH("Journée non complète",E4)),"",1) ->  | T4: =IF(ISERROR(SEARCH("Fin de semaine",E4)),"",1) ->  | U4: =IF(ISERROR(SEARCH("1 Journée compète semaine",E4)),"",1) ->  | V4: =IF(ISERROR(SEARCH("Arrêt obligatoir (36H)",E4)),"",1) -> 
A5: 0 | G5: - | K5: 0 | M5: 0
A6: 2017-01-02T15:25:36 | D6: express terminal, 922 Grande Côte Ouest, Lanoraie, QC, Canada | E6: Connexion | G6: - | K6: 0 | M6: 0
A7: 2017-01-02T16:01:54 | B7: 0.001724537037 | D7: express terminal, 922 Grande Côte Ouest, Lanoraie, QC, Canada | E7: (42) Atteler No commande: 90526 Nom du client: bradken mineral ATTELER: True DÉTELER: False | G7: - | K7: 0 | M7: 0
A8: 2017-01-02T16:04:23 | B8: 0.0004976851852 | D8: express terminal, 922 Grande Côte Ouest, Lanoraie, QC, Canada | E8: (42) Atteler EQUIPMENT_NAME: SD482241 | G8: - | K8: 0 | M8: 0
A9: 2017-01-02T16:05:06 | B9: 0.0001157407407 | D9: express terminal, 922 Grande Côte Ouest, Lanoraie, QC, Canada | E9: (40) V.A.D. VEHICLE_NO: 2016257 | G9: - | K9: 0 | M9: 0
A10: 2017-01-02T16:05:16 | B10: 0.0109837963 | C10: 0.09999999998 | D10: express terminal, 922 Grande Côte Ouest, Lanoraie, QC, Canada | E10: (40) V.A.D. EQUIPMENT_NAME: SD482241 | G10: - | K10: 0 | M10: 0
A11: 2017-01-02T16:21:05 | B11: 0.001064814815 | C11: 0.2 | D11: express terminal, 922 Grande Côte Ouest, Lanoraie, QC, Canada | E11: (4) Pause | G11: - | K11: 0 | M11: 0
A12: 2017-01-02T16:22:37 | B12: 0.0780787037 | C12: 136.8 | D12: express terminal, 922 Grande Côte Ouest, Lanoraie, QC, Canada | E12: (-) Conduite | G12: - | K12: 0 | M12: 0
A13: 2017-01-02T18:15:03 | B13: 0.01008101852 | D13: 350 Autoroute 15, Saint-Bernard-de-Lacolle, QC, J0J 1V0, Canada | E13: (4) Pause | G13: - | K13: 0 | M13: 0
A14: 2017-01-02T18:29:34 | B14: 0.002962962963 | D14: 350 Autoroute 15, Saint-Bernard-de-Lacolle, QC, J0J 1V0, Canada | E14: (104) Douane | G14: - | I14: 1 | K14: 0 | M14: 0
A15: 2017-01-02T18:33:50 | B15: 0.003680555556 | C15: 0.2 | D15: 350 Autoroute 15, Saint-Bernard-de-Lacolle, QC, J0J 1V0, Canada | E15: (4) Pause | G15: - | K15: 0 | M15: 0
A16: 2017-01-02T18:39:08 | B16: 0.001423611111 | C16: 0.8 | D16: Adirondack Northway, Champlain, NY, 12919, United States | E16: (-) Conduite | G16: - | K16: 0 | M16: 0
A17: 2017-01-02T18:41:11 | B17: 0.005532407407 | C17: 0.3 | D17: Adirondack Northway, Champlain, NY, 12919, United States | E17: (4) Pause | G17: - | K17: 0 | M17: 0
A18: 2017-01-02T18:49:09 | B18: 0.004722222222 | C18: 3.9 | D18: 221 West Service Road, Champlain, NY, 12919, United States | E18: (-) Conduite | G18: - | K18: 0 | M18: 0
A19: 2017-01-02T18:55:57 | B19: 0.0108912037 | C19: 0.1 | D19: 1044 U.S. 11, Champlain, NY, 12919, United States | E19: (4) Pause | G19: - | K19: 0 | M19: 0
A20: 2017-01-02T19:11:38 | B20: 0.09885416667 | C20: 225.5 | D20: 1044 U.S. 11, Champlain, NY, 12919, United States | E20: (-) Conduite | G20: - | K20: 0 | M20: 0
A21: 2017-01-02T21:33:59 | B21: 0.101400463 | D21: 215 Ballard Road, Gansevoort, NY, 12831, United States | E21: (2) Couchette | G21: - | K21: 0 | M21: 0
A22: 367 | G22: - | K22: 0 | M22: 0
A23: 2017-01-03T08:22:39 | B23: 0.0002083333333 | D23: Adirondack Northway, Gansevoort, NY, 12831, United States | E23: (40) V.A.D. VEHICLE_NO: 2016257 | G23: - | K23: 0 | M23: 0
A24: 2017-01-03T08:22:57 | B24: 0.008923611111 | D24: Adirondack Northway, Gansevoort, NY, 12831, United States | E24: (40) V.A.D. EQUIPMENT_NAME: SD482241 | G24: - | K24: 0 | M24: 0
A25: 2017-01-03T08:35:48 | B25: 0.002094907407 | C25: 0.2 | D25: Adirondack Northway, Gansevoort, NY, 12831, United States | E25: (4) Pause | G25: - | K25: 0 | M25: 0
A26: 2017-01-03T08:38:49 | B26: 0.08226851852 | C26: 193.4 | D26: 209-211 Ballard Road, Gansevoort, NY, 12831, United States | E26: (-) Conduite | G26: - | K26: 0 | M26: 0
A27: 2017-01-03T10:37:17 | B27: 0.02134259259 | D27: Governor Thomas E. Dewey Thruway, Wallkill, NY, 12589, United States | E27: (4) Pause | G27: - | K27: 0 | M27: 0
A28: 2017-01-03T11:08:01 | B28: 0.2125462963 | C28: 483.1 | D28: Governor Thomas E. Dewey Thruway, Wallkill, NY, 12589, United States | E28: (-) Conduite | G28: - | K28: 0 | M28: 0
A29: 2017-01-03T16:14:05 | B29: 0.06501157407 | C29: 0.1 | D29: 5333 Williamsport Pike, Martinsburg, WV, 25404, United States | E29: (4) Pause | G29: - | K29: 0 | M29: 0
A30: 2017-01-03T17:47:42 | B30: 0.1208217593 | C30: 253.9 | D30: 5299 Williamsport Pike, Martinsburg, WV, 25404, United States | E30: (-) Conduite | G30: - | K30: 0 | M30: 0
A31: 2017-01-03T20:41:41 | B31: 0.1377199074 | D31: 10222 Kings Dominion Boulevard, Doswell, VA, 23047, United States | E31: (2) Couchette | G31: - | K31: 0 | M31: 0
A32: 930.4000244 | G32: - | K32: 0 | M32: 0
A33: 2017-01-04T06:44:16 | B33: 0.0001157407407 | D33: 10222 Kings Dominion Boulevard, Doswell, VA, 23047, United States | E33: (40) V.A.D. VEHICLE_NO: 2016257 | G33: - | K33: 0 | M33: 0
A34: 2017-01-04T06:44:26 | B34: 0.01030092593 | D34: 10222 Kings Dominion Boulevard, Doswell, VA, 23047, United States | E34: (40) V.A.D. EQUIPMENT_NAME: SD482241 | G34: - | K34: 0 | M34: 0
A35: 2017-01-04T06:59:16 | B35: 0.00849537037 | C35: 0.3 | D35: 10222 Kings Dominion Boulevard, Doswell, VA, 23047, United States | E35: (4) Pause | G35: - | K35: 0 | M35: 0
A36: 2017-01-04T07:11:30 | B36: 0.1287615741 | C36: 301.1 | D36: 10218 Kings Dominion Boulevard, Doswell, VA, 23047, United States | E36: (-) Conduite | G36: - | K36: 0 | M36: 0
A37: 2017-01-04T10:16:55 | B37: 0.005289351852 | D37: Interstate 95, Selma, NC, 27576, United States | E37: (4) Pause | G37: - | K37: 0 | M37: 0
A38: 2017-01-04T10:24:32 | B38: 0.001261574074 | D38: Interstate 95, Selma, NC, 27576, United States | E38: (45) T.L.C. | G38: - | K38: 0 | M38: 0
A39: 2017-01-04T10:26:21 | B39: 0.08101851852 | C39: 185.9 | D39: Interstate 95, Selma, NC, 27576, United States | E39: (-) Conduite | G39: - | K39: 0 | M39: 0
A40: 2017-01-04T12:23:01 | B40: 0.00619212963 | C40: 1.1 | D40: Interstate 95, Latta, SC, 29565, United States | E40: (4) Pause | G40: - | K40: 0 | M40: 0
A41: 2017-01-04T12:31:56 | B41: 0.001481481481 | C41: 0.9 | D41: Interstate 95, Latta, SC, 29565, United States | E41: (-) Conduite | G41: - | K41: 0 | M41: 0
A42: 2017-01-04T12:34:04 | B42: 0.003101851852 | C42: 0.2 | D42: Interstate 95, Latta, SC, 29565, United States | E42: (4) Pause | G42: - | K42: 0 | M42: 0
A43: 2017-01-04T12:38:32 | B43: 0.004513888889 | C43: 2.3 | D43: Interstate 95, Latta, SC, 29565, United States | E43: (-) Conduite | G43: - | K43: 0 | M43: 0
A44: 2017-01-04T12:45:02 | B44: 0.01344907407 | C44: 0.09999999998 | D44: 111 Mill Branch Road, Latta, SC, 29565, United States | E44: (4) Pause | G44: - | K44: 0 | M44: 0
A45: 2017-01-04T13:04:24 | B45: 0.004236111111 | C45: 0.2 | D45: 111 Mill Branch Road, Latta, SC, 29565, United States | E45: (64) Carburant (presser et remplir) Fournisseur: Shell/Flying J - TCH MÉTHODE DE PAIEMENT: TCH - SHELL/FLYING J MONTANT: 400.73 Qte de Carburant: 160.358 Unité: False Unité: False | G45: - | K45: 0 | M45: 0
A46: 2017-01-04T13:10:30 | B46: 0.02988425926 | C46: 0.3 | D46: 111 Mill Branch Road, Latta, SC, 29565, United States | E46: (4) Pause | G46: - | K46: 0 | M46: 0
A47: 2017-01-04T13:53:32 | B47: 0.04505787037 | C47: 77 | D47: Bassett Road, Latta, SC, 29565, United States | E47: (-) Conduite | G47: - | K47: 0 | M47: 0
A48: 2017-01-04T14:58:25 | B48: 0.007013888889 | C48: 1 | D48: Interstate 95, Gable, SC, 29051, United States | E48: (4) Pause | G48: - | K48: 0 | M48: 0
A49: 2017-01-04T15:08:31 | B49: 0.002094907407 | C49: 0.5 | D49: Interstate 95, Gable, SC, 29051, United States | E49: (-) Conduite | G49: - | K49: 0 | M49: 0
A50: 2017-01-04T15:11:32 | B50: 0.001944444444 | C50: 0.09999999998 | D50: Interstate 95, Gable, SC, 29051, United States | E50: (4) Pause | G50: - | K50: 0 | M50: 0
A51: 2017-01-04T15:14:20 | B51: 0.006099537037 | C51: 1.9 | D51: Interstate 95, Gable, SC, 29051, United States | E51: (-) Conduite | G51: - | K51: 0 | M51: 0
A52: 2017-01-04T15:23:07 | B52: 0.01415509259 | C52: 2.2 | D52: Interstate 95, Gable, SC, 29051, United States | E52: (4) Pause | G52: - | K52: 0 | M52: 0
A53: 2017-01-04T15:43:30 | B53: 0.1732060185 | C53: 399.8 | D53: Interstate 95, Gable, SC, 29051, United States | E53: (-) Conduite | G53: - | K53: 0 | M53: 0
A54: 2017-01-04T19:52:55 | B54: 0.1715856481 | D54: Interstate 95, Yulee, FL, 32097, United States | E54: (2) Couchette | G54: - | K54: 0 | M54: 0
A55: 969.4000244 | G55: - | K55: 0 | M55: 0
A56: 2017-01-05T05:54:40 | B56: 0.0001157407407 | D56: Interstate 95, Yulee, FL, 32097, United States | E56: (40) V.A.D. VEHICLE_NO: 2016257 | G56: - | K56: 0 | M56: 0
A57: 2017-01-05T05:54:50 | B57: 0.008483796296 | D57: Interstate 95, Yulee, FL, 32097, United States | E57: (40) V.A.D. EQUIPMENT_NAME: SD482241 | G57: - | K57: 0 | M57: 0
A58: 2017-01-05T06:07:03 | B58: 0.001875 | C58: 0.2 | D58: Interstate 95, Yulee, FL, 32097, United States | E58: (4) Pause | G58: - | K58: 0 | M58: 0
A59: 2017-01-05T06:09:45 | B59: 0.166875 | C59: 397.8 | D59: Interstate 95, Yulee, FL, 32097, United States | E59: (-) Conduite | G59: - | K59: 0 | M59: 0
A60: 2017-01-05T10:10:03 | B60: 0.008645833333 | D60: Interstate 95, Fort Pierce, FL, 34945, United States | E60: (4) Pause | G60: - | K60: 0 | M60: 0
A61: 2017-01-05T10:22:30 | B61: 0.0009027777778 | D61: Interstate 95, Fort Pierce, FL, 34945, United States | E61: (45) T.L.C. | G61: - | K61: 0 | M61: 0
A62: 2017-01-05T10:23:48 | B62: 0.1061342593 | C62: 226.1 | D62: Interstate 95, Fort Pierce, FL, 34945, United States | E62: (-) Conduite | G62: - | K62: 0 | M62: 0
A63: 2017-01-05T12:56:38 | B63: 0.02211805556 | C63: 0.1 | D63: 10688-10698 Northwest 25th Street, Doral, FL, 33172, United States | E63: (4) Pause | G63: - | K63: 0 | M63: 0
A64: 2017-01-05T13:28:29 | B64: 0.01527777778 | C64: 12 | D64: 10560-10640 Northwest 25th Street, Doral, FL, 33172, United States | E64: (-) Conduite | G64: - | K64: 0 | M64: 0
A65: 2017-01-05T13:50:29 | B65: 0.002164351852 | C65: 0.4 | D65: 8050 Northwest 79th Avenue, Medley, FL, 33166, United States | E65: (4) Pause | G65: - | K65: 0 | M65: 0
A66: 2017-01-05T13:53:36 | B66: 0.01709490741 | D66: 8696 Northwest 77th Court, Medley, FL, 33166, United States | E66: (51) Décharger No commande: 90526 Voyage: Régulier Nom du client: pinto TOILE: False TWIC: False PRIME N.Y: False Signature B/L: Oui ODOMÈTRE: 266645,625 | G66: - | K66: 1 | M66: 0
A67: 2017-01-05T14:18:13 | B67: 0.01237268519 | C67: 0.4 | D67: 8696 Northwest 77th Court, Medley, FL, 33166, United States | E67: (4) Pause | G67: - | K67: 0 | M67: 0
A68: 2017-01-05T14:36:02 | B68: 0.1092476852 | C68: 215.4 | D68: 8050 Northwest 79th Avenue, Medley, FL, 33166, United States | E68: (-) Conduite | F68: =IF(ISERROR(SEARCH("ATTENTE",E68)),"",$B68) ->  | G68: =IF(COUNTIF(E68,"*Formation*")+COUNTIF(E68,"*Travail de cours*")+COUNTIF(E68,"*réunion*")+COUNTIF(E68,"*escorte routière*")+COUNTIF(E68,"*courte distance*")>0,B68,"-") -> - | H68: =IF(ISERROR(SEARCH("superload: True",E68)),"",$B68) ->  | I68: =IF(ISERROR(SEARCH("Douane",E68)),"",1) ->  | J68: =IF(ISERROR(SEARCH("transport explosif",E68)),"",1) ->  | K68: =IF(COUNTIF(E68,"*toile: true*"),1,0)+IF(COUNTIF(E68,"*charger*"),1,0)+IF(COUNTIF(E68,"*déchargr*"),1,0)+IF(COUNTIF(E68,"*CHARGÉ: TRUE*"),1,0) -> 0 | L68: =IF(ISERROR(SEARCH("TWIC: True",E68)),"",1) ->  | M68: =LEN($N68) -> 0 | N68: =IFERROR(IF(LEFT(MID($E68,SEARCH("Largeur pi-po",$E68,1)+15,100),2)*1<12,LEFT(MID($E68,SEARCH("Largeur pi-po",$E68,1)+15,100),2)*1,""),"") ->  | O68: =IFERROR(IF(LEFT(MID($E68,SEARCH("Largeur pi-po",$E68,1)+15,100),2)*1>=12,LEFT(MID($E68,SEARCH("Largeur pi-po",$E68,1)+15,100),2)*1,""),"") ->  | P68: =IF(N68<12,1,"") ->  | Q68: =IF(O68="","",IF(O68>=12,1,"")) ->  | R68: =IF(ISERROR(SEARCH("PRIME N.Y: True",E68)),"",1) ->  | S68: =IF(ISERROR(SEARCH("Journée non complète",E68)),"",1) ->  | T68: =IF(ISERROR(SEARCH("Fin de semaine",E68)),"",1) ->  | U68: =IF(ISERROR(SEARCH("1 Journée compète semaine",E68)),"",1) ->  | V68: =IF(ISERROR(SEARCH("Arrêt obligatoir (36H)",E68)),"",1) -> 
A69: 2017-01-05T17:13:21 | B69: 0.03835648148 | C69: 0.4 | D69: 100 North Kings Highway, Fort Pierce, FL, 34945, United States | E69: (4) Pause | G69: - | K69: 0 | M69: 0
A70: 2017-01-05T18:08:35 | B70: 0.0277662037 | C70: 61.2 | D70: 133 North Kings Highway, Fort Pierce, FL, 34945, United States | E70: (-) Conduite | G70: - | K70: 0 | M70: 0
A71: 2017-01-05T18:48:34 | B71: 0.2162731481 | D71: Interstate 95, Grant-Valkaria, FL, 32950, United States | E71: (2) Couchette | G71: - | K71: 0 | M71: 0
A72: 912.5 | G72: - | K72: 0 | M72: 0
A73: 2017-01-06T05:59:54 | B73: 0.0001273148148 | D73: Interstate 95, Grant-Valkaria, FL, 32950, United States | E73: (40) V.A.D. VEHICLE_NO: 2016257 | G73: - | K73: 0 | M73: 0
A74: 2017-01-06T06:00:05 | B74: 0.009780092593 | D74: Interstate 95, Grant-Valkaria, FL, 32950, United States | E74: (40) V.A.D. EQUIPMENT_NAME: SD482241 | G74: - | K74: 0 | M74: 0
A75: 2017-01-06T06:14:10 | B75: 0.1116435185 | C75: 260.2 | D75: Interstate 95, Grant-Valkaria, FL, 32950, United States | E75: (-) Conduite | G75: - | K75: 0 | M75: 0
A76: 2017-01-06T08:54:56 | B76: 0.007118055556 | D76: 1625 Old Palm Valley Road, St. Augustine, FL, 32095, United States | E76: (4) Pause | G76: - | K76: 0 | M76: 0
A77: 2017-01-06T09:05:11 | B77: 0.004502314815 | D77: 1625 Old Palm Valley Road, St. Augustine, FL, 32095, United States | E77: (64) Carburant (presser et remplir) Fournisseur: Shell/Flying J - TCH MÉTHODE DE PAIEMENT: TCH - SHELL/FLYING J MONTANT: 379.68 Qte de Carburant: 137.616 Unité: False D.E.F.: 11.352 Unité: False | G77: - | K77: 0 | M77: 0
A78: 2017-01-06T09:11:40 | B78: 0.008252314815 | C78: 0.2 | D78: 1625 Old Palm Valley Road, St. Augustine, FL, 32095, United States | E78: (4) Pause | G78: - | K78: 0 | M78: 0
A79: 2017-01-06T09:23:33 | B79: 0.06326388889 | C79: 134 | D79: 1613 Old Palm Valley Road, St. Augustine, FL, 32095, United States | E79: (-) Conduite | G79: - | K79: 0 | M79: 0
A80: 2017-01-06T10:54:39 | B80: 0.1430671296 | C80: 0.2 | D80: Georgia 520, Brunswick, GA, 31523, United States | E80: (4) Pause Note (optionelle): attente pick up | F80: 03:50:00 | G80: - | K80: 0 | M80: 0
A81: 2017-01-06T14:20:40 | B81: 0.137962963 | C81: 326.5 | D81: Fancy Bluff Road West, Brunswick, GA, 31523, United States | E81: (-) Conduite | G81: - | K81: 0 | M81: 0
A82: 2017-01-06T17:39:20 | B82: 0.008402777778 | C82: 0.1 | D82: 3014 Paxville Highway, Manning, SC, 29102, United States | E82: (4) Pause | G82: - | K82: 0 | M82: 0
A83: 2017-01-06T17:51:26 | B83: 0.08792824074 | C83: 207.8 | D83: 2057 A M Nash Road, Manning, SC, 29102, United States | E83: (-) Conduite | G83: - | K83: 0 | M83: 0
A84: 2017-01-06T19:58:03 | B84: 0.1680208333 | D84: Interstate 95, Fayetteville, NC, 28312, United States | E84: (2) Couchette | G84: - | K84: 0 | M84: 0
A85: 928.5 | G85: - | K85: 0 | M85: 0
A86: 2017-01-07T06:07:55 | B86: 0.0001157407407 | D86: Interstate 95, Fayetteville, NC, 28312, United States | E86: (40) V.A.D. VEHICLE_NO: 2016257 | G86: - | K86: 0 | M86: 0
A87: 2017-01-07T06:08:05 | B87: 0.005787037037 | D87: Interstate 95, Fayetteville, NC, 28312, United States | E87: (40) V.A.D. EQUIPMENT_NAME: SD482241 | G87: - | K87: 0 | M87: 0
A88: 2017-01-07T06:16:25 | B88: 0.111875 | C88: 224.6 | D88: Interstate 95, Fayetteville, NC, 28312, United States | E88: (-) Conduite | G88: - | K88: 0 | M88: 0
A89: 2017-01-07T08:57:31 | B89: 0.3421643519 | D89: 781 Moore's Ferry Road, Skippers, VA, 23879, United States | E89: (4) Pause | G89: - | K89: 0 | M89: 0
A90: 2017-01-07T17:10:14 | B90: 0.01101851852 | D90: 781 Moore's Ferry Road, Skippers, VA, 23879, United States | E90: (53) Layover No commande: 90906 LAYOVER: Fin de semaine Commentaires: j'ai pas rouler tout le journée causé température tempête de neige je me suis parcker trop dangereux et aviser Steve Bissonnette la raison de mon arret | G90: - | K90: 0 | M90: 0 | T90: 1
A91: 2017-01-07T17:26:06 | B91: 0.2735416667 | D91: 781 Moore's Ferry Road, Skippers, VA, 23879, United States | E91: (3) Fin travail | G91: - | K91: 0 | M91: 0
A92: 2017-01-07T17:26:36 | D92: 781 Moore's Ferry Road, Skippers, VA, 23879, United States | E92: Connexion | G92: - | K92: 0 | M92: 0
A93: 224.6000061 | G93: - | K93: 0 | M93: 0
M95: commentaire
A96: Contact | E96: =SUM($K$3:K344) -> 1
A98: Kilométrage milles | E98: =A99*0.6214 -> 2697.55954
A99: =SUM($C$3:C397) -> 4341.1
A100: Over size kilométrage -10' | E100: =A101*0.6214 -> 0
A101: =MAX(C94:C390)-MIN(C94:C390) -> 0
A102: Over size kilométrage +10' | E102: =A103*0.6214 -> 0
A103: =MAX(C94:C390)-MIN(C94:C390) -> 0
A104: journée non complète | E104: =SUM($S$3:S344) -> 0
A106: Arrêt journée de semaine | E106: =SUM($U$3:$U342) -> 0
A108: Arrêt journée de fin semaine | E108: =SUM($T$3:$T342) -> 1 | F108: 2017-01-07
A110: Arrêt obligatoir 36h | E110: =SUM($V$3:$V342) -> 0
A112: Prime Surdimention 12' et moin | E112: =SUM($P$3:P344) -> 0
A114: Prime Surdimention 12' et plus | E114: =SUM($Q$3:Q346) -> 0
A116: TRAVAIL DE VILLE | E116: =SUM($G$3:G344) -> 00:00:00
A118: Prime New York | E118: =SUM(R3:R390) -> 0
A120: TWICK | E120: =SUM($L$3:L344) -> 0
A122: Douane | E122: =SUM($I$3:I344) -> 1
A124: Attente chargement | E124: =SUM($F$3:F344) -> 42742.15972

Sheet Derail M-A
B1: Derail Marc-André | E1: 02:00:00 | F1: Semaine du | N1: =#REF! ->  | P1: =#REF! ->  | T1: =#REF! ->  | U1: AU | V1: =#REF! -> 
A2: DATE / HEURES | B2: TEMPS | C2: ODOMÈTRE | D2: lieu | E2: Activité | F2: ATTENTE (HEURE) | G2: VILLE ET MANUTENTION (HEURE) | H2: SUPERLOAD (HEURE) | I2: DOUANES | J2: Transport explosif | K2: CONTACTS | L2: TWICK | N2: Surdimension 12' et moin | O2: Surdimension 12' et plus | P2: prime surdimenssion 12' et moin | Q2: prime surdimenssion 12' et plus | R2: PRIME NEW YORK | S2: ARRÊT JOURNÉE NON-COMPLÈTE | T2: ARRÊT CONPLET- JOURNÉE DE FIN DE SEMAINE | U2: ARRÊT JOURNÉE DE SEMAINE | V2: Arrêt obligatoir 36h | W2: Opérateur | X2: Numéro de véhicule | Y2: Date de début | Z2: Ville | AA2: État / Province | AB2: Pays | AC2: No commande | AD2: LAYOVER | AE2: Montant
F3: =IF(ISERROR(SEARCH("ATTENTE",E3)),"",$B3) ->  | G3: =IF(COUNTIF(E3,"*Formation*")+COUNTIF(E3,"*Travail de cours*")+COUNTIF(E3,"*réunion*")+COUNTIF(E3,"*escorte routière*")+COUNTIF(E3,"*courte distance*")>0,B3,"-") -> - | H3: =IF(ISERROR(SEARCH("superload: True",E3)),"",$B3) ->  | I3: =IF(ISERROR(SEARCH("Douane",E3)),"",1) ->  | J3: =IF(ISERROR(SEARCH("transport explosif",E3)),"",1) ->  | K3: =IF(COUNTIF(E3,"*toile: true*"),1,0)+IF(COUNTIF(E3,"*charger*"),1,0)+IF(COUNTIF(E3,"*déchargr*"),1,0)+IF(COUNTIF(E3,"*CHARGÉ: TRUE*"),1,0) -> 0 | L3: =IF(ISERROR(SEARCH("TWIC: True",E3)),"",1) ->  | M3: =LEN($N3) -> 0 | N3: =IFERROR(IF(LEFT(MID($E3,SEARCH("Largeur pi-po",$E3,1)+15,100),2)*1<12,LEFT(MID($E3,SEARCH("Largeur pi-po",$E3,1)+15,100),2)*1,""),"") ->  | O3: =IFERROR(IF(LEFT(MID($E3,SEARCH("Largeur pi-po",$E3,1)+15,100),2)*1>=12,LEFT(MID($E3,SEARCH("Largeur pi-po",$E3,1)+15,100),2)*1,""),"") ->  | P3: =IF(N3<12,1,"") ->  | Q3: =IF(O3="","",IF(O3>=12,1,"")) ->  | R3: =IF(ISERROR(SEARCH("PRIME N.Y: True",E3)),"",1) ->  | S3: =IF(ISERROR(SEARCH("Journée non complète",E3)),"",1) ->  | T3: =IF(ISERROR(SEARCH("Fin de semaine",E3)),"",1) ->  | U3: =IF(ISERROR(SEARCH("1 Journée compète semaine",E3)),"",1) ->  | V3: =IF(ISERROR(SEARCH("Arrêt obligatoir (36H)",E3)),"",1) -> 
M5: commentaire
A6: Contact | E6: =SUM($K$3:K254) -> 0
A8: Kilométrage milles | E8: =A9*0.6214 -> 0
A9: =SUM($C$3:C307) -> 0
A10: Over size kilométrage -10' | E10: =A11*0.6214 -> 0
A11: =MAX(C4:C300)-MIN(C4:C300) -> 0
A12: Over size kilométrage +10' | E12: =A13*0.6214 -> 0
A13: =MAX(C4:C300)-MIN(C4:C300) -> 0
A14: journée non complète | E14: =SUM($S$3:S254) -> 0
A16: Arrêt journée de semaine | E16: =SUM($U$3:$U252) -> 0
A18: Arrêt journée de fin semaine | E18: =SUM($T$3:$T252) -> 0
A20: Arrêt obligatoir 36h | E20: =SUM($V$3:$V252) -> 0
A22: Prime Surdimention 12' et moin | E22: =SUM($P$3:P254) -> 0
A24: Prime Surdimention 12' et plus | E24: =SUM($Q$3:Q256) -> 0
A26: TRAVAIL DE VILLE | E26: =SUM($G$3:G254) -> 00:00:00
A28: Prime New York | E28: =SUM(R3:R300) -> 0
A30: TWICK | E30: =SUM($L$3:L254) -> 0
A32: Douane | E32: =SUM($I$3:I254) -> 0
A34: Attente chargement | E34: =SUM($F$3:F254) -> 00:00:00

Sheet Deschamps D.
B1: Deschamps Daniel | E1: 02:00:00 | F1: Semaine du | N1: 01-01-2017 | P1: =#REF! ->  | T1: 07-01-2017 | U1: AU | V1: =#REF! -> 
A2: DATE / HEURES | B2: TEMPS | C2: ODOMÈTRE | D2: lieu | E2: Activité | F2: ATTENTE (HEURE) | G2: VILLE ET MANUTENTION (HEURE) | H2: SUPERLOAD (HEURE) | I2: DOUANES | J2: Transport explosif | K2: CONTACTS | L2: TWICK | N2: Surdimension 12' et moin | O2: Surdimension 12' et plus | P2: prime surdimenssion 12' et moin | Q2: prime surdimenssion 12' et plus | R2: PRIME NEW YORK | S2: ARRÊT JOURNÉE NON-COMPLÈTE | T2: ARRÊT CONPLET- JOURNÉE DE FIN DE SEMAINE | U2: ARRÊT JOURNÉE DE SEMAINE | V2: Arrêt obligatoir 36h | W2: Opérateur | X2: Numéro de véhicule | Y2: Date de début | Z2: Ville | AA2: État / Province | AB2: Pays | AC2: No commande | AD2: LAYOVER | AE2: Montant
F3: =IF(ISERROR(SEARCH("ATTENTE",E3)),"",$B3) ->  | G3: =IF(COUNTIF(E3,"*Formation*")+COUNTIF(E3,"*Travail de cours*")+COUNTIF(E3,"*réunion*")+COUNTIF(E3,"*escorte routière*")+COUNTIF(E3,"*courte distance*")>0,B3,"-") -> - | H3: =IF(ISERROR(SEARCH("superload: True",E3)),"",$B3) ->  | I3: =IF(ISERROR(SEARCH("Douane",E3)),"",1) ->  | J3: =IF(ISERROR(SEARCH("transport explosif",E3)),"",1) ->  | K3: =IF(COUNTIF(E3,"*toile: true*"),1,0)+IF(COUNTIF(E3,"*charger*"),1,0)+IF(COUNTIF(E3,"*déchargr*"),1,0)+IF(COUNTIF(E3,"*CHARGÉ: TRUE*"),1,0) -> 0 | L3: =IF(ISERROR(SEARCH("TWIC: True",E3)),"",1) ->  | M3: =LEN($N3) -> 0 | N3: =IFERROR(IF(LEFT(MID($E3,SEARCH("Largeur pi-po",$E3,1)+15,100),2)*1<12,LEFT(MID($E3,SEARCH("Largeur pi-po",$E3,1)+15,100),2)*1,""),"") ->  | O3: =IFERROR(IF(LEFT(MID($E3,SEARCH("Largeur pi-po",$E3,1)+15,100),2)*1>=12,LEFT(MID($E3,SEARCH("Largeur pi-po",$E3,1)+15,100),2)*1,""),"") ->  | P3: =IF(N3<12,1,"") ->  | Q3: =IF(O3="","",IF(O3>=12,1,"")) ->  | R3: =IF(ISERROR(SEARCH("PRIME N.Y: True",E3)),"",1) ->  | S3: =IF(ISERROR(SEARCH("Journée non complète",E3)),"",1) ->  | T3: =IF(ISERROR(SEARCH("Fin de semaine",E3)),"",1) ->  | U3: =IF(ISERROR(SEARCH("1 Journée compète semaine",E3)),"",1) ->  | V3: =IF(ISERROR(SEARCH("Arrêt obligatoir (36H)",E3)),"",1) -> 
A4: (jj/mm/aaaa hh:mm) | B4: (hh:mm:ss) | C4: (km) | F4: =IF(ISERROR(SEARCH("ATTENTE",E4)),"",$B4) ->  | G4: =IF(COUNTIF(E4,"*Formation*")+COUNTIF(E4,"*Travail de cours*")+COUNTIF(E4,"*réunion*")+COUNTIF(E4,"*escorte routière*")+COUNTIF(E4,"*courte distance*")>0,B4,"-") -> - | H4: =IF(ISERROR(SEARCH("superload: True",E4)),"",$B4) ->  | I4: =IF(ISERROR(SEARCH("Douane",E4)),"",1) ->  | J4: =IF(ISERROR(SEARCH("transport explosif",E4)),"",1) ->  | K4: =IF(COUNTIF(E4,"*toile: true*"),1,0)+IF(COUNTIF(E4,"*charger*"),1,0)+IF(COUNTIF(E4,"*déchargr*"),1,0)+IF(COUNTIF(E4,"*CHARGÉ: TRUE*"),1,0) -> 0 | L4: =IF(ISERROR(SEARCH("TWIC: True",E4)),"",1) ->  | M4: =LEN($N4) -> 0 | P4: =IF(N4<12,1,"") ->  | Q4: =IF(O4="","",IF(O4>=12,1,"")) ->  | R4: =IF(ISERROR(SEARCH("PRIME N.Y: True",E4)),"",1) ->  | S4: =IF(ISERROR(SEARCH("Journée non complète",E4)),"",1) ->  | T4: =IF(ISERROR(SEARCH("Fin de semaine",E4)),"",1) ->  | U4: =IF(ISERROR(SEARCH("1 Journée compète semaine",E4)),"",1) ->  | V4: =IF(ISERROR(SEARCH("Arrêt obligatoir (36H)",E4)),"",1) -> 
A5: 0 | G5: - | K5: 0 | M5: 0
A6: (hh:mm:ss) | B6: (hh:mm:ss) | C6: (km) | G6: - | K6: 0 | M6: 0
A7: 0 | G7: - | K7: 0 | M7: 0
A8: (hh:mm:ss) | B8: (hh:mm:ss) | C8: (km) | G8: - | K8: 0 | M8: 0
A9: 0 | G9: - | K9: 0 | M9: 0
A10: (hh:mm:ss) | B10: (hh:mm:ss) | C10: (km) | G10: - | K10: 0 | M10: 0
A11: 0 | G11: - | K11: 0 | M11: 0
A12: 2017-01-05T08:34:29 | D12: express terminal, 922 Grande Côte Ouest, Lanoraie, QC, Canada | E12: Connexion | G12: - | K12: 0 | M12: 0
A13: 2017-01-05T08:37:10 | B13: 0.0004513888889 | D13: express terminal, 922 Grande Côte Ouest, Lanoraie, QC, Canada | E13: (42) Atteler EQUIPMENT_NAME: SD533268 | G13: - | K13: 0 | M13: 0
A14: 2017-01-05T08:37:49 | B14: 0.003611111111 | D14: express terminal, 922 Grande Côte Ouest, Lanoraie, QC, Canada | E14: (40) V.A.D. VEHICLE_NO: 2016262 | G14: - | K14: 0 | M14: 0
A15: 2017-01-05T08:43:01 | B15: 0.008773148148 | D15: express terminal, 922 Grande Côte Ouest, Lanoraie, QC, Canada | E15: (40) V.A.D. EQUIPMENT_NAME: SD533268 | G15: - | K15: 0 | M15: 0
A16: 2017-01-05T08:55:39 | B16: 0.001678240741 | C16: 0.2 | D16: express terminal, 922 Grande Côte Ouest, Lanoraie, QC, Canada | E16: (4) Pause | G16: - | K16: 0 | M16: 0
A17: 2017-01-05T08:58:04 | B17: 0.03655092593 | C17: 57.5 | D17: express terminal, 922 Grande Côte Ouest, Lanoraie, QC, Canada | E17: (-) Conduite | G17: - | K17: 0 | M17: 0
A18: 2017-01-05T09:50:42 | B18: 0.08475694444 | C18: 0.1 | D18: 9201 Boulevard Métropolitain Est, Montréal, QC, H1J 1K2, Canada | E18: (4) Pause | G18: - | K18: 0 | M18: 0
A19: 2017-01-05T11:52:45 | B19: 5.787037037e-05 | D19: 9201 Boulevard Métropolitain Est, Montréal, QC, H1J 1K2, Canada | E19: (43) Dételer EQUIPMENT_NAME: SD533268 | G19: - | K19: 0 | M19: 0
A20: 2017-01-05T11:52:50 | B20: 0.0003935185185 | D20: 9201 Boulevard Métropolitain Est, Montréal, QC, H1J 1K2, Canada | E20: (42) Atteler EQUIPMENT_NAME: 20177 | G20: - | K20: 0 | M20: 0
A21: 2017-01-05T11:53:24 | B21: 0.004652777778 | D21: 9201 Boulevard Métropolitain Est, Montréal, QC, H1J 1K2, Canada | E21: (42) Atteler No commande: 90810 Nom du client: port of houston ATTELER: True DÉTELER: False Note: oversize 10pi4po large 13pi6po haut | G21: - | K21: 0 | M21: 0
A22: 2017-01-05T12:00:06 | B22: 0.001736111111 | C22: 0.2 | D22: 9201 Boulevard Métropolitain Est, Montréal, QC, H1J 1K2, Canada | E22: (40) V.A.D. EQUIPMENT_NAME: 20177 | G22: - | K22: 0 | M22: 0
A23: 2017-01-05T12:02:36 | B23: 0.04939814815 | C23: 86.1 | D23: Autoroute Métropolitaine, Montréal, QC, H1J, Canada | E23: (-) Conduite | G23: - | K23: 0 | M23: 0
A24: 2017-01-05T13:13:44 | B24: 0.00619212963 | D24: Macdonald-Cartier Freeway, Bainsville, ON, K0C 1E0, Canada | E24: (45) T.L.C. | G24: - | K24: 0 | M24: 0
A25: 2017-01-05T13:22:39 | B25: 0.009618055556 | D25: Macdonald-Cartier Freeway, Bainsville, ON, K0C 1E0, Canada | E25: (4) Pause | G25: - | K25: 0 | M25: 0
A26: 2017-01-05T13:36:30 | B26: 0.1575925926 | C26: 365.1 | D26: Macdonald-Cartier Freeway, Bainsville, ON, K0C 1E0, Canada | E26: (-) Conduite | G26: - | K26: 0 | M26: 0
A27: 2017-01-05T17:23:26 | B27: 0.2753935185 | D27: 6221 Telephone Road, Port Hope, ON, L1A 3V6, Canada | E27: (2) Couchette | G27: - | K27: 0 | M27: 0
A28: 508.7000122 | G28: - | K28: 0 | M28: 0
A29: 2017-01-06T06:48:04 | B29: 0.008333333333 | D29: 6221 Telephone Road, Port Hope, ON, L1A 3V6, Canada | E29: (40) V.A.D. VEHICLE_NO: 2016262 | G29: - | K29: 0 | M29: 0
A30: 2017-01-06T07:00:04 | B30: 0.004930555556 | D30: 6221 Telephone Road, Port Hope, ON, L1A 3V6, Canada | E30: (40) V.A.D. EQUIPMENT_NAME: 20177 | G30: - | K30: 0 | M30: 0
A31: 2017-01-06T07:07:10 | B31: 0.003194444444 | C31: 0.2 | D31: 6221 Telephone Road, Port Hope, ON, L1A 3V6, Canada | E31: (4) Pause | G31: - | K31: 0 | M31: 0
A32: 2017-01-06T07:11:46 | B32: 0.1068518519 | C32: 244.7 | D32: 6426-6498 Telephone Road, Port Hope, ON, L1A 3V6, Canada | E32: (-) Conduite | G32: - | K32: 0 | M32: 0
A33: 2017-01-06T09:45:38 | B33: 0.003703703704 | D33: 223 Pacific Highway West, Beachville, ON, N0J 1A0, Canada | E33: (45) T.L.C. | G33: - | K33: 0 | M33: 0
A34: 2017-01-06T09:50:58 | B34: 0.001041666667 | D34: 223 Pacific Highway West, Beachville, ON, N0J 1A0, Canada | E34: (4) Pause | G34: - | K34: 0 | M34: 0
A35: 2017-01-06T09:52:28 | B35: 0.05237268519 | C35: 119.7 | D35: 223 Pacific Highway West, Beachville, ON, N0J 1A0, Canada | E35: (-) Conduite | G35: - | K35: 0 | M35: 0
A36: 2017-01-06T11:07:53 | B36: 0.002210648148 | D36: 5968-5992 Oil Heritage Road, Plympton-Wyoming, ON, N0N 1T0, Canada | E36: (45) T.L.C. | G36: - | K36: 0 | M36: 0
A37: 2017-01-06T11:11:04 | B37: 0.006134259259 | D37: 5968-5992 Oil Heritage Road, Plympton-Wyoming, ON, N0N 1T0, Canada | E37: (64) Carburant (presser et remplir) Fournisseur: Shell/Flying J - TCH MÉTHODE DE PAIEMENT: TCH - SHELL/FLYING J MONTANT: 520.30 Qte de Carburant: 452.25 Unité: True Unité: False | G37: - | K37: 0 | M37: 0
A38: 2017-01-06T11:19:54 | B38: 0.02079861111 | C38: 28.2 | D38: 5968-5992 Oil Heritage Road, Plympton-Wyoming, ON, N0N 1T0, Canada | E38: (-) Conduite | G38: - | K38: 0 | M38: 0
A39: 2017-01-06T11:49:51 | B39: 0.003229166667 | C39: 0.4 | D39: Bluewater Bridge, Port Huron, MI, 48060, United States | E39: (104) Douane | G39: - | I39: 1 | K39: 0 | M39: 0
A40: 2017-01-06T11:54:30 | B40: 0.02177083333 | C40: 0.2 | D40: Pine Grove Avenue, Port Huron, MI, 48060, United States | E40: (4) Pause | G40: - | K40: 0 | M40: 0
A41: 2017-01-06T12:25:51 | B41: 0.1300231481 | C41: 262.6 | D41: Bluewater Bridge, Port Huron, MI, 48060, United States | E41: (-) Conduite | G41: - | K41: 0 | M41: 0
A42: 2017-01-06T15:33:05 | B42: 0.002222222222 | D42: Interstate 69, Marshall, MI, 49068, United States | E42: (45) T.L.C. | G42: - | K42: 0 | M42: 0
A43: 2017-01-06T15:36:17 | B43: 0.00255787037 | C43: 0.1 | D43: Interstate 69, Marshall, MI, 49068, United States | E43: (4) Pause | G43: - | K43: 0 | M43: 0
A44: 2017-01-06T15:39:58 | B44: 0.06966435185 | C44: 146 | D44: Interstate 69, Marshall, MI, 49068, United States | E44: (-) Conduite | G44: - | K44: 0 | M44: 0
A45: 2017-01-06T17:20:17 | B45: 0.006284722222 | D45: 3037 Goshen Road, Fort Wayne, IN, 46808, United States | E45: (64) Carburant (presser et remplir) Fournisseur: Pilot - TCH MÉTHODE DE PAIEMENT: TCH - SHELL/FLYING J MONTANT: 134.36 Qte de Carburant: 52.918 Unité: False Unité: False | G45: - | K45: 0 | M45: 0
A46: 2017-01-06T17:29:20 | B46: 0.006273148148 | C46: 0.4 | D46: 3037 Goshen Road, Fort Wayne, IN, 46808, United States | E46: (4) Pause | G46: - | K46: 0 | M46: 0
A47: 2017-01-06T17:38:22 | B47: 0.2650231481 | D47: 3200 Coliseum Boulevard West, Fort Wayne, IN, 46808, United States | E47: (2) Couchette | G47: - | K47: 0 | M47: 0
A48: 801.2000122 | G48: - | K48: 0 | M48: 0
A49: 2017-01-07T07:24:40 | B49: 0.004027777778 | D49: 3200 Coliseum Boulevard West, Fort Wayne, IN, 46808, United States | E49: (40) V.A.D. VEHICLE_NO: 2016262 | G49: - | K49: 0 | M49: 0
A50: 2017-01-07T07:30:28 | B50: 0 | D50: 3200 Coliseum Boulevard West, Fort Wayne, IN, 46808, United States | E50: (40) V.A.D. EQUIPMENT_NAME: 20177 | G50: - | K50: 0 | M50: 0
A51: 2017-01-07T07:30:28 | B51: 0.004699074074 | D51: 3200 Coliseum Boulevard West, Fort Wayne, IN, 46808, United States | E51: (40) V.A.D. EQUIPMENT_NAME: 20177 | G51: - | K51: 0 | M51: 0
A52: 2017-01-07T07:37:14 | B52: 0.003125 | C52: 0.4 | D52: 3200 Coliseum Boulevard West, Fort Wayne, IN, 46808, United States | E52: (4) Pause | G52: - | K52: 0 | M52: 0
A53: 2017-01-07T07:41:44 | B53: 0.1013888889 | C53: 231.6 | D53: 3017-3333 Coliseum Boulevard West, Fort Wayne, IN, 46808, United States | E53: (-) Conduite | G53: - | K53: 0 | M53: 0
A54: 2017-01-07T10:07:44 | B54: 0.0025 | D54: Interstate 70, Plainfield, IN, 46168, United States | E54: (45) T.L.C. | G54: - | K54: 0 | M54: 0
A55: 2017-01-07T10:11:20 | B55: 0.002430555556 | C55: 0.1 | D55: Interstate 70, Plainfield, IN, 46168, United States | E55: (4) Pause | G55: - | K55: 0 | M55: 0
A56: 2017-01-07T10:14:50 | B56: 0.05177083333 | C56: 117.2 | D56: 6762 East County Road 750 South, Plainfield, IN, 46168, United States | E56: (-) Conduite | G56: - | K56: 0 | M56: 0
A57: 2017-01-07T11:29:23 | B57: 0.002164351852 | D57: 19155-119315 County Road 2020 East, Marshall, IL, 62441, United States | E57: (45) T.L.C. | G57: - | K57: 0 | M57: 0
A58: 2017-01-07T11:32:30 | B58: 0.03364583333 | D58: 19155-119315 County Road 2020 East, Marshall, IL, 62441, United States | E58: (4) Pause | G58: - | K58: 0 | M58: 0
A59: 2017-01-07T12:20:57 | B59: 0.125474537 | C59: 296.2 | D59: 19155-119315 County Road 2020 East, Marshall, IL, 62441, United States | E59: (-) Conduite | G59: - | K59: 0 | M59: 0
A60: 2017-01-07T15:21:38 | B60: 0.004247685185 | D60: Interstate 57, Anna, IL, 62906, United States | E60: (45) T.L.C. | G60: - | K60: 0 | M60: 0
A61: 2017-01-07T15:27:45 | B61: 0.003888888889 | D61: Interstate 57, Anna, IL, 62906, United States | E61: (4) Pause | G61: - | K61: 0 | M61: 0
A62: 2017-01-07T15:33:21 | B62: 0.07336805556 | C62: 164.8 | D62: Interstate 57, Anna, IL, 62906, United States | E62: (-) Conduite | G62: - | K62: 0 | M62: 0
A63: 2017-01-07T17:19:00 | B63: 0.007210648148 | D63: 1701 Missouri 84, Hayti, MO, 63851, United States | E63: (64) Carburant (presser et remplir) Fournisseur: Pilot - TCH MÉTHODE DE PAIEMENT: TCH - SHELL/FLYING J MONTANT: 243.94 Qte de Carburant: 99.203 Unité: False Unité: False | G63: - | K63: 0 | M63: 0
A64: 2017-01-07T17:29:23 | B64: 0.01049768519 | C64: 0.3 | D64: 1701 Missouri 84, Hayti, MO, 63851, United States | E64: (4) Pause | G64: - | K64: 0 | M64: 0
A65: 2017-01-07T17:44:30 | B65: 0.08938657407 | D65: 1701 Missouri 84, Hayti, MO, 63851, United States | E65: (2) Couchette | G65: - | K65: 0 | M65: 0
A66: 2017-01-07T19:53:13 | B66: 0.002673611111 | D66: 1701 Missouri 84, Hayti, MO, 63851, United States | E66: (3) Fin travail | G66: - | K66: 0 | M66: 0
A67: 2017-01-07T19:55:21 | D67: 1701 Missouri 84, Hayti, MO, 63851, United States | E67: Connexion | G67: - | K67: 0 | M67: 0 | N67: =IFERROR(IF(LEFT(MID($E67,SEARCH("Largeur pi-po",$E67,1)+15,100),2)*1<12,LEFT(MID($E67,SEARCH("Largeur pi-po",$E67,1)+15,100),2)*1,""),"") ->  | O67: =IFERROR(IF(LEFT(MID($E67,SEARCH("Largeur pi-po",$E67,1)+15,100),2)*1>=12,LEFT(MID($E67,SEARCH("Largeur pi-po",$E67,1)+15,100),2)*1,""),"") -> 
A68: 2017-01-07T19:57:04 | B68: 0.06662037037 | D68: 1701 Missouri 84, Hayti, MO, 63851, United States | E68: (2) Couchette | F68: =IF(ISERROR(SEARCH("ATTENTE",E68)),"",$B68) ->  | G68: =IF(COUNTIF(E68,"*Formation*")+COUNTIF(E68,"*Travail de cours*")+COUNTIF(E68,"*réunion*")+COUNTIF(E68,"*escorte routière*")+COUNTIF(E68,"*courte distance*")>0,B68,"-") -> - | H68: =IF(ISERROR(SEARCH("superload: True",E68)),"",$B68) ->  | I68: =IF(ISERROR(SEARCH("Douane",E68)),"",1) ->  | J68: =IF(ISERROR(SEARCH("transport explosif",E68)),"",1) ->  | K68: =IF(COUNTIF(E68,"*toile: true*"),1,0)+IF(COUNTIF(E68,"*charger*"),1,0)+IF(COUNTIF(E68,"*déchargr*"),1,0)+IF(COUNTIF(E68,"*CHARGÉ: TRUE*"),1,0) -> 0 | L68: =IF(ISERROR(SEARCH("TWIC: True",E68)),"",1) ->  | M68: =LEN($N68) -> 0 | P68: =IF(N68<12,1,"") ->  | Q68: =IF(O68="","",IF(O68>=12,1,"")) ->  | R68: =IF(ISERROR(SEARCH("PRIME N.Y: True",E68)),"",1) ->  | S68: =IF(ISERROR(SEARCH("Journée non complète",E68)),"",1) ->  | T68: =IF(ISERROR(SEARCH("Fin de semaine",E68)),"",1) ->  | U68: =IF(ISERROR(SEARCH("1 Journée compète semaine",E68)),"",1) ->  | V68: =IF(ISERROR(SEARCH("Arrêt obligatoir (36H)",E68)),"",1) -> 
A69: 2017-01-07T21:33:00 | B69: 0.1020833333 | D69: 1701 Missouri 84, Hayti, MO, 63851, United States | E69: (53) Layover No commande: 90810 LAYOVER: Arrêt obligatoir (36H) Commentaires: permis oversize non disponible avant lundi | G69: - | K69: 0 | M69: 0
A70: 809.7999878 | G70: - | K70: 0 | M70: 0
M72: commentaire
A73: Contact | E73: =SUM($K$3:K321) -> 0
A75: Kilométrage milles | E75: =A76*0.6214 -> 1318.79722
A76: =SUM($C$3:C374) -> 2122.3
A77: Over size kilométrage -10' | E77: =A78*0.6214 -> 0
A78: =MAX(C71:C367)-MIN(C71:C367) -> 0
A79: Over size kilométrage +10' | E79: =A80*0.6214 -> 1282.5696
A80: 2064
A81: journée non complète | E81: =SUM($S$3:S321) -> 0
A83: Arrêt journée de semaine | E83: =SUM($U$3:$U319) -> 0
A85: Arrêt journée de fin semaine | E85: =SUM($T$3:$T319) -> 0
A87: Arrêt obligatoir 36h | E87: =SUM($V$3:$V319) -> 0
A89: Prime Surdimention 12' et moin | E89: =SUM($P$3:P321) -> 0
A91: Prime Surdimention 12' et plus | E91: =SUM($Q$3:Q323) -> 0
A93: TRAVAIL DE VILLE | E93: =SUM($G$3:G321) -> 00:00:00
A95: Prime New York | E95: =SUM(R3:R367) -> 0
A97: TWICK | E97: =SUM($L$3:L321) -> 0
A99: Douane | E99: =SUM($I$3:I321) -> 1
A101: Attente chargement | E101: =SUM($F$3:F321) -> 00:00:00

Sheet Deschênes J-M
A1: Deschênes Jean-Michel | E1: 02:00:00 | F1: Semaine du | N1: =#REF! ->  | P1: =#REF! ->  | T1: =#REF! ->  | U1: AU | V1: =#REF! -> 
A2: DATE / HEURES | B2: TEMPS | C2: ODOMÈTRE | D2: lieu | E2: Activité | F2: ATTENTE (HEURE) | G2: VILLE ET MANUTENTION (HEURE) | H2: SUPERLOAD (HEURE) | I2: DOUANES | J2: Transport explosif | K2: CONTACTS | L2: TWICK | N2: Surdimension 12' et moin | O2: Surdimension 12' et plus | P2: prime surdimenssion 12' et moin | Q2: prime surdimenssion 12' et plus | R2: PRIME NEW YORK | S2: ARRÊT JOURNÉE NON-COMPLÈTE | T2: ARRÊT CONPLET- JOURNÉE DE FIN DE SEMAINE | U2: ARRÊT JOURNÉE DE SEMAINE | V2: Arrêt obligatoir 36h | W2: Opérateur | X2: Numéro de véhicule | Y2: Date de début | Z2: Ville | AA2: État / Province | AB2: Pays | AC2: No commande | AD2: LAYOVER | AE2: Montant
F3: =IF(ISERROR(SEARCH("ATTENTE",E3)),"",$B3) ->  | G3: =IF(COUNTIF(E3,"*Formation*")+COUNTIF(E3,"*Travail de cours*")+COUNTIF(E3,"*réunion*")+COUNTIF(E3,"*escorte routière*")+COUNTIF(E3,"*courte distance*")>0,B3,"-") -> - | H3: =IF(ISERROR(SEARCH("superload: True",E3)),"",$B3) ->  | I3: =IF(ISERROR(SEARCH("Douane",E3)),"",1) ->  | J3: =IF(ISERROR(SEARCH("transport explosif",E3)),"",1) ->  | K3: =IF(COUNTIF(E3,"*toile: true*"),1,0)+IF(COUNTIF(E3,"*charger*"),1,0)+IF(COUNTIF(E3,"*déchargr*"),1,0)+IF(COUNTIF(E3,"*CHARGÉ: TRUE*"),1,0) -> 0 | L3: =IF(ISERROR(SEARCH("TWIC: True",E3)),"",1) ->  | M3: =LEN($N3) -> 0 | N3: =IFERROR(IF(LEFT(MID($E3,SEARCH("Largeur pi-po",$E3,1)+15,100),2)*1<12,LEFT(MID($E3,SEARCH("Largeur pi-po",$E3,1)+15,100),2)*1,""),"") ->  | O3: =IFERROR(IF(LEFT(MID($E3,SEARCH("Largeur pi-po",$E3,1)+15,100),2)*1>=12,LEFT(MID($E3,SEARCH("Largeur pi-po",$E3,1)+15,100),2)*1,""),"") ->  | P3: =IF(N3<12,1,"") ->  | Q3: =IF(O3="","",IF(O3>=12,1,"")) ->  | R3: =IF(ISERROR(SEARCH("PRIME N.Y: True",E3)),"",1) ->  | S3: =IF(ISERROR(SEARCH("Journée non complète",E3)),"",1) ->  | T3: =IF(ISERROR(SEARCH("Fin de semaine",E3)),"",1) ->  | U3: =IF(ISERROR(SEARCH("1 Journée compète semaine",E3)),"",1) ->  | V3: =IF(ISERROR(SEARCH("Arrêt obligatoir (36H)",E3)),"",1) -> 
A4: (jj/mm/aaaa hh:mm) | B4: (hh:mm:ss) | C4: (km) | F4: =IF(ISERROR(SEARCH("ATTENTE",E4)),"",$B4) ->  | G4: =IF(COUNTIF(E4,"*Formation*")+COUNTIF(E4,"*Travail de cours*")+COUNTIF(E4,"*réunion*")+COUNTIF(E4,"*escorte routière*")+COUNTIF(E4,"*courte distance*")>0,B4,"-") -> - | H4: =IF(ISERROR(SEARCH("superload: True",E4)),"",$B4) ->  | I4: =IF(ISERROR(SEARCH("Douane",E4)),"",1) ->  | J4: =IF(ISERROR(SEARCH("transport explosif",E4)),"",1) ->  | K4: =IF(COUNTIF(E4,"*toile: true*"),1,0)+IF(COUNTIF(E4,"*charger*"),1,0)+IF(COUNTIF(E4,"*déchargr*"),1,0)+IF(COUNTIF(E4,"*CHARGÉ: TRUE*"),1,0) -> 0 | L4: =IF(ISERROR(SEARCH("TWIC: True",E4)),"",1) ->  | M4: =LEN($N4) -> 0 | P4: =IF(N4<12,1,"") ->  | Q4: =IF(O4="","",IF(O4>=12,1,"")) ->  | R4: =IF(ISERROR(SEARCH("PRIME N.Y: True",E4)),"",1) ->  | S4: =IF(ISERROR(SEARCH("Journée non complète",E4)),"",1) ->  | T4: =IF(ISERROR(SEARCH("Fin de semaine",E4)),"",1) ->  | U4: =IF(ISERROR(SEARCH("1 Journée compète semaine",E4)),"",1) ->  | V4: =IF(ISERROR(SEARCH("Arrêt obligatoir (36H)",E4)),"",1) -> 
A5: 0 | G5: - | K5: 0 | M5: 0
A6: (hh:mm:ss) | B6: (hh:mm:ss) | C6: (km) | G6: - | K6: 0 | M6: 0
A7: 0 | G7: - | K7: 0 | M7: 0
A8: 2017-01-03T08:00:54 | D8: 13-23 Rue Saint-Alphonse, Sainte-Luce, QC, G0K 1P0, Canada | E8: Connexion | G8: - | K8: 0 | M8: 0
A9: 2017-01-03T08:16:55 | D9: 13-23 Rue Saint-Alphonse, Sainte-Luce, QC, G0K 1P0, Canada | E9: Connexion | G9: - | K9: 0 | M9: 0
A10: 2017-01-03T08:17:27 | B10: 0.0002777777778 | D10: 13-23 Rue Saint-Alphonse, Sainte-Luce, QC, G0K 1P0, Canada | E10: (42) Atteler EQUIPMENT_NAME: 2024 | G10: - | K10: 0 | M10: 0
A11: 2017-01-03T08:17:51 | B11: 0.0001041666667 | D11: 13-23 Rue Saint-Alphonse, Sainte-Luce, QC, G0K 1P0, Canada | E11: (40) V.A.D. VEHICLE_NO: 2016260 | G11: - | K11: 0 | M11: 0
A12: 2017-01-03T08:18:00 | B12: 0.003425925926 | D12: 13-23 Rue Saint-Alphonse, Sainte-Luce, QC, G0K 1P0, Canada | E12: (40) V.A.D. EQUIPMENT_NAME: 2024 | G12: - | K12: 0 | M12: 0
A13: 2017-01-03T08:22:56 | B13: 0.0127662037 | C13: 18.4 | D13: 12-20 Rue Saint-Alphonse, Sainte-Luce, QC, G0K 1P0, Canada | E13: (-) Conduite | G13: - | K13: 0 | M13: 0
A14: 2017-01-03T08:41:19 | B14: 0.02699074074 | C14: 0.3 | D14: Avenue Pino, Sainte-Flavie, QC, G0J 2L0, Canada | E14: (45) T.L.C. Note (optionelle): charger | G14: - | K14: 1 | M14: 0
A15: 2017-01-03T09:20:11 | B15: 0.06157407407 | D15: Avenue Pino, Sainte-Flavie, QC, G0J 2L0, Canada | E15: (4) Pause | G15: - | K15: 0 | M15: 0
A16: 2017-01-03T10:48:51 | B16: 0.001967592593 | D16: Avenue Pino, Sainte-Flavie, QC, G0J 2L0, Canada | E16: (49) Charger No commande: 90773 Nom du client: bradken TOILE: False TWIC: False PRIME N.Y: False Signature B/L: Oui | F16: 00:50:00 | G16: - | K16: 1 | M16: 0
A17: 2017-01-03T10:51:41 | B17: 0.01337962963 | C17: 0.2 | D17: Avenue Pino, Sainte-Flavie, QC, G0J 2L0, Canada | E17: (4) Pause | G17: - | K17: 0 | M17: 0
A18: 2017-01-03T11:10:57 | B18: 0.005150462963 | C18: 3.8 | D18: Rue Henri Rouleau, Mont-Joli, QC, Canada | E18: (-) Conduite | G18: - | K18: 0 | M18: 0
A19: 2017-01-03T11:18:22 | B19: 0.009421296296 | C19: 0.1 | D19: Rue d'Anjou, Mont-Joli, QC, G5H, Canada | E19: (64) Carburant (presser et remplir) Fournisseur: Pétro Canada - SUPERPASS MÉTHODE DE PAIEMENT: SUNCORS ENERGIE - PETRO-PASS/SUPER-PASS MONTANT: 0.00 Qte de Carburant: 235.40 Unité: True Unité: False Commentaires: fuel + check | G19: - | K19: 0 | M19: 0
A20: 2017-01-03T11:31:56 | B20: 0.005706018519 | C20: 0.2 | D20: 1021 Boulevard Jacques - Cartier, Mont-Joli, QC, G5H 2S5, Canada | E20: (4) Pause | G20: - | K20: 0 | M20: 0
A21: 2017-01-03T11:40:09 | B21: 0.009201388889 | C21: 15.4 | D21: 1020 Boulevard Jacques - Cartier, Sainte-Flavie, QC, G0J 2L0, Canada | E21: (-) Conduite | G21: - | K21: 0 | M21: 0
A22: 2017-01-03T11:53:24 | B22: 0.0006712962963 | D22: 13-23 Rue Saint-Alphonse, Sainte-Luce, QC, G0K 1P0, Canada | E22: (45) T.L.C. Note (optionelle): post trip | G22: - | K22: 0 | M22: 0
A23: 2017-01-03T11:54:22 | B23: 0.503912037 | D23: 13-23 Rue Saint-Alphonse, Sainte-Luce, QC, G0K 1P0, Canada | E23: (3) Fin travail | G23: - | K23: 0 | M23: 0
A24: 37.59999847 | G24: - | K24: 0 | M24: 0
A25: 2017-01-04T12:02:24 | D25: 13-23 Rue Saint-Alphonse, Sainte-Luce, QC, G0K 1P0, Canada | E25: Connexion | G25: - | K25: 0 | M25: 0
A26: 2017-01-04T12:03:04 | B26: 0.0002314814815 | D26: 13-23 Rue Saint-Alphonse, Sainte-Luce, QC, G0K 1P0, Canada | E26: (42) Atteler EQUIPMENT_NAME: 2024 | G26: - | K26: 0 | M26: 0
A27: 2017-01-04T12:03:24 | B27: 0.0001157407407 | D27: 13-23 Rue Saint-Alphonse, Sainte-Luce, QC, G0K 1P0, Canada | E27: (40) V.A.D. VEHICLE_NO: 2016260 | G27: - | K27: 0 | M27: 0
A28: 2017-01-04T12:03:34 | B28: 0.01100694444 | C28: 0.2 | D28: 13-23 Rue Saint-Alphonse, Sainte-Luce, QC, G0K 1P0, Canada | E28: (40) V.A.D. EQUIPMENT_NAME: 2024 | G28: - | K28: 0 | M28: 0
A29: 2017-01-04T12:19:25 | B29: 0.04002314815 | C29: 82 | D29: 12-20 Rue Saint-Alphonse, Sainte-Luce, QC, G0K 1P0, Canada | E29: (-) Conduite | G29: - | K29: 0 | M29: 0
A30: 2017-01-04T13:17:03 | B30: 0.0008217592593 | D30: 715 Rue Litalien, Trois-Pistoles, QC, G0L 4K0, Canada | E30: (45) T.L.C. Note (optionelle): :-) check | G30: - | K30: 0 | M30: 0
A31: 2017-01-04T13:18:14 | B31: 0.01097222222 | C31: 0.2 | D31: 715 Rue Litalien, Trois-Pistoles, QC, G0L 4K0, Canada | E31: (4) Pause | G31: - | K31: 0 | M31: 0
A32: 2017-01-04T13:34:02 | B32: 0.1058333333 | C32: 237 | D32: 640-684 Rue Richard, Trois-Pistoles, QC, G0L 4K0, Canada | E32: (-) Conduite | G32: - | K32: 0 | M32: 0
A33: 2017-01-04T16:06:26 | B33: 0.000462962963 | D33: 2 Rue Beaudoin, Lévis, QC, G6Z 2B8, Canada | E33: (45) T.L.C. Note (optionelle): check | G33: - | K33: 0 | M33: 0
A34: 2017-01-04T16:07:06 | B34: 0.05380787037 | C34: 0.1 | D34: 2 Rue Beaudoin, Lévis, QC, G6Z 2B8, Canada | E34: (4) Pause | G34: - | K34: 0 | M34: 0
A35: 2017-01-04T17:24:35 | B35: 0.03177083333 | C35: 65.8 | D35: 645-657 Avenue Taniata, Lévis, QC, G6Z 2C1, Canada | E35: (-) Conduite | G35: - | K35: 0 | M35: 0
A36: 2017-01-04T18:10:20 | B36: 0.0002083333333 | D36: Halte routiere, Villeroy, QC, G0S 3K0, Canada | E36: (45) T.L.C. Note (optionelle): chek | G36: - | K36: 0 | M36: 0
A37: 2017-01-04T18:10:38 | B37: 0.005868055556 | D37: Halte routiere, Villeroy, QC, G0S 3K0, Canada | E37: (4) Pause | G37: - | K37: 0 | M37: 0
A38: 2017-01-04T18:19:05 | B38: 0.03333333333 | C38: 67.6 | D38: Halte routiere, Villeroy, QC, G0S 3K0, Canada | E38: (-) Conduite | G38: - | K38: 0 | M38: 0
A39: 2017-01-04T19:07:05 | B39: 0.00130787037 | C39: 0.1 | D39: Autoroute de l'Énergie, Saint-Célestin, QC, Canada | E39: (4) Pause | G39: - | K39: 0 | M39: 0
A40: 2017-01-04T19:08:58 | B40: 0.05003472222 | C40: 100 | D40: Autoroute de l'Énergie, Saint-Célestin, QC, Canada | E40: (-) Conduite | G40: - | K40: 0 | M40: 0
A41: 2017-01-04T20:21:01 | B41: 0.0002430555556 | D41: express terminal, 922 Grande Côte Ouest, Lanoraie, QC, Canada | E41: (43) Dételer EQUIPMENT_NAME: 2024 | G41: - | K41: 0 | M41: 0
A42: 2017-01-04T20:21:22 | B42: 0.0004050925926 | D42: express terminal, 922 Grande Côte Ouest, Lanoraie, QC, Canada | E42: (45) T.L.C. Note (optionelle): post trip | G42: - | K42: 0 | M42: 0
A43: 2017-01-04T20:21:57 | B43: 0.1514236111 | C43: 1.4 | D43: express terminal, 922 Grande Côte Ouest, Lanoraie, QC, Canada | E43: (3) Fin travail | G43: - | K43: 0 | M43: 0
A44: 552.4000244 | G44: - | K44: 0 | M44: 0
A45: 2017-01-05T09:52:35 | D45: express terminal, 922 Grande Côte Ouest, Lanoraie, QC, Canada | E45: Connexion | G45: - | K45: 0 | M45: 0
A46: 2017-01-05T09:54:51 | B46: 0.004733796296 | C46: 0.1 | D46: express terminal, 922 Grande Côte Ouest, Lanoraie, QC, Canada | E46: (40) V.A.D. VEHICLE_NO: 2016260 | G46: - | K46: 0 | M46: 0
A47: 2017-01-05T10:01:40 | B47: 0.000625 | D47: express terminal, 922 Grande Côte Ouest, Lanoraie, QC, Canada | E47: (42) Atteler EQUIPMENT_NAME: SD532295 | G47: - | K47: 0 | M47: 0
A48: 2017-01-05T10:02:34 | B48: 0.003865740741 | D48: express terminal, 922 Grande Côte Ouest, Lanoraie, QC, Canada | E48: (40) V.A.D. EQUIPMENT_NAME: SD532295 | G48: - | K48: 0 | M48: 0
A49: 2017-01-05T10:08:08 | B49: 0.003703703704 | C49: 0.1 | D49: express terminal, 922 Grande Côte Ouest, Lanoraie, QC, Canada | E49: (64) Carburant (presser et remplir) Fournisseur: Gasboy - COURS EXPRESS MONDOR MÉTHODE DE PAIEMENT: GASBOY- COURS EXPRESS MONDOR MONTANT: 0.00 Qte de Carburant: 269.52 Unité: True Unité: False Commentaires: fuel | G49: - | K49: 0 | M49: 0
A50: 2017-01-05T10:13:28 | B50: 0.03135416667 | C50: 58.6 | D50: express terminal, 922 Grande Côte Ouest, Lanoraie, QC, Canada | E50: (-) Conduite | G50: - | K50: 0 | M50: 0
A51: 2017-01-05T10:58:37 | B51: 0.008553240741 | C51: 0.4 | D51: 9332 Boulevard du Golf, Montréal, QC, H1J 3A1, Canada | E51: (43) Dételer EQUIPMENT_NAME: SD532295 | G51: - | K51: 0 | M51: 0
A52: 2017-01-05T11:10:56 | B52: 0.002592592593 | C52: 1.2 | D52: 9305 Rue du Parcours, Montréal, QC, H1J 3A8, Canada | E52: (-) Conduite | G52: - | K52: 0 | M52: 0
A53: 2017-01-05T11:14:40 | B53: 0.03243055556 | D53: 9201 Boulevard Métropolitain Est, Montréal, QC, H1J 1K2, Canada | E53: (42) Atteler EQUIPMENT_NAME: 20176 | G53: - | K53: 0 | M53: 0
A54: 2017-01-05T12:01:22 | B54: 0.0001736111111 | D54: 9201 Boulevard Métropolitain Est, Montréal, QC, H1J 1K2, Canada | E54: (40) V.A.D. EQUIPMENT_NAME: 20176 | G54: - | K54: 0 | M54: 0
A55: 2017-01-05T12:01:37 | B55: 0.006331018519 | C55: 0.1 | D55: 9201 Boulevard Métropolitain Est, Montréal, QC, H1J 1K2, Canada | E55: (4) Pause | G55: - | K55: 0 | M55: 0
A56: 2017-01-05T12:10:44 | B56: 0.04939814815 | C56: 86.3 | D56: 9201 Boulevard Métropolitain Est, Montréal, QC, H1J 1K2, Canada | E56: (-) Conduite | G56: - | K56: 0 | M56: 0
A57: 2017-01-05T13:21:52 | B57: 0.00525462963 | D57: Macdonald-Cartier Freeway, Bainsville, ON, K0C 1E0, Canada | E57: (45) T.L.C. Note (optionelle): check | G57: - | K57: 0 | M57: 0
A58: 2017-01-05T13:29:26 | B58: 0.002233796296 | C58: 2.2 | D58: Macdonald-Cartier Freeway, Bainsville, ON, K0C 1E0, Canada | E58: (-) Conduite | G58: - | K58: 0 | M58: 0
A59: 2017-01-05T13:32:39 | B59: 0.005775462963 | D59: 21911-22065 North Service Road, Bainsville, ON, K0C 1E0, Canada | E59: (28) Over-size No commande: 90811 Nom du client: groupe g et g CHARGÉ: False ATTELER: True SUPERLOAD: False TOILE: False TWIC: False PRIME N.Y: False Hauteur pi-po: 13.6 Largeur pi-po: 10.6 Longueur pi-po: 53 Poids steering: 10760 Type unitaire: True Poids Drive 1: 32000 Type unitaire: True Poids remorque: 32000 Type unitaire: True Vérifier permis: True Vérifier itinéraire: True Vérifier prov. sheet: True Inst. bannières (D): True Inst. lumières 360: True Inst. drapeaux: True Inst. clignotants: True Escorte: False # Du véhicule de l'escort: 0 Note (optionelle): switcher a anjou petro pass avec steve ODOMÈTRE: 249062 | G59: - | K59: 0 | M59: 4 | N59: 10.6 | P59: 1
A60: 2017-01-05T13:40:58 | B60: 0.007372685185 | C60: 0.1 | D60: 21911-22065 North Service Road, Bainsville, ON, K0C 1E0, Canada | E60: (4) Pause | G60: - | K60: 0 | M60: 0
A61: 2017-01-05T13:51:35 | B61: 0.09949074074 | C61: 235.1 | D61: North Service Road, Bainsville, ON, K0C 1E0, Canada | E61: (-) Conduite | G61: - | K61: 0 | M61: 0
A62: 2017-01-05T16:14:51 | B62: 0.0003356481481 | D62: Macdonald-Cartier Freeway, Odessa, ON, K0H 2H0, Canada | E62: (45) T.L.C. Note (optionelle): check | G62: - | K62: 0 | M62: 0
A63: 2017-01-05T16:15:20 | B63: 0.004814814815 | D63: Macdonald-Cartier Freeway, Odessa, ON, K0H 2H0, Canada | E63: (4) Pause | G63: - | K63: 0 | M63: 0
A64: 2017-01-05T16:22:16 | B64: 0.02525462963 | C64: 55 | D64: Macdonald-Cartier Freeway, Odessa, ON, K0H 2H0, Canada | E64: (-) Conduite | G64: - | K64: 0 | M64: 0
A65: 2017-01-05T16:58:38 | B65: 0.002858796296 | D65: 902 A Wallbridge Loyalist Road, Belleville, ON, K8N 4Z5, Canada | E65: (45) T.L.C. Note (optionelle): post trip | G65: - | K65: 0 | M65: 0
A66: 2017-01-05T17:02:45 | B66: 0.2897569444 | C66: 0.3 | D66: 902 A Wallbridge Loyalist Road, Belleville, ON, K8N 4Z5, Canada | E66: (53) Layover No commande: 90811 LAYOVER: Surdimensionné Commentaires: ontario cerfew | G66: - | K66: 0 | M66: 0
A67: 438.3999939 | G67: - | K67: 0 | M67: 0 | N67: =IFERROR(IF(LEFT(MID($E67,SEARCH("Largeur pi-po",$E67,1)+15,100),2)*1<12,LEFT(MID($E67,SEARCH("Largeur pi-po",$E67,1)+15,100),2)*1,""),"") ->  | O67: =IFERROR(IF(LEFT(MID($E67,SEARCH("Largeur pi-po",$E67,1)+15,100),2)*1>=12,LEFT(MID($E67,SEARCH("Largeur pi-po",$E67,1)+15,100),2)*1,""),"") -> 
A68: 2017-01-06T06:53:09 | B68: 0.0001041666667 | D68: 902 Wallbridge Loyalist Road, Belleville, ON, K8N 4Z5, Canada | E68: (40) V.A.D. VEHICLE_NO: 2016260 | F68: =IF(ISERROR(SEARCH("ATTENTE",E68)),"",$B68) ->  | G68: =IF(COUNTIF(E68,"*Formation*")+COUNTIF(E68,"*Travail de cours*")+COUNTIF(E68,"*réunion*")+COUNTIF(E68,"*escorte routière*")+COUNTIF(E68,"*courte distance*")>0,B68,"-") -> - | H68: =IF(ISERROR(SEARCH("superload: True",E68)),"",$B68) ->  | I68: =IF(ISERROR(SEARCH("Douane",E68)),"",1) ->  | J68: =IF(ISERROR(SEARCH("transport explosif",E68)),"",1) ->  | K68: =IF(COUNTIF(E68,"*toile: true*"),1,0)+IF(COUNTIF(E68,"*charger*"),1,0)+IF(COUNTIF(E68,"*déchargr*"),1,0)+IF(COUNTIF(E68,"*CHARGÉ: TRUE*"),1,0) -> 0 | L68: =IF(ISERROR(SEARCH("TWIC: True",E68)),"",1) ->  | M68: =LEN($N68) -> 0 | P68: =IF(N68<12,1,"") ->  | Q68: =IF(O68="","",IF(O68>=12,1,"")) ->  | R68: =IF(ISERROR(SEARCH("PRIME N.Y: True",E68)),"",1) ->  | S68: =IF(ISERROR(SEARCH("Journée non complète",E68)),"",1) ->  | T68: =IF(ISERROR(SEARCH("Fin de semaine",E68)),"",1) ->  | U68: =IF(ISERROR(SEARCH("1 Journée compète semaine",E68)),"",1) ->  | V68: =IF(ISERROR(SEARCH("Arrêt obligatoir (36H)",E68)),"",1) -> 
A69: 2017-01-06T06:53:18 | B69: 0.01240740741 | C69: 0.7 | D69: 902 Wallbridge Loyalist Road, Belleville, ON, K8N 4Z5, Canada | E69: (40) V.A.D. EQUIPMENT_NAME: 20176 | G69: - | K69: 0 | M69: 0
A70: 2017-01-06T07:11:10 | B70: 0.1091319444 | C70: 252.2 | D70: 902 Wallbridge Loyalist Road, Belleville, ON, K8N 4Z5, Canada | E70: (-) Conduite | G70: - | K70: 0 | M70: 0
A71: 2017-01-06T09:48:19 | B71: 0.0001388888889 | D71: 6705 Ellis Road, Cambridge, ON, N3C 2V4, Canada | E71: (45) T.L.C. Note (optionelle): check | G71: - | K71: 0 | M71: 0
A72: 2017-01-06T09:48:31 | B72: 0.009953703704 | D72: 6705 Ellis Road, Cambridge, ON, N3C 2V4, Canada | E72: (4) Pause | G72: - | K72: 0 | M72: 0
A73: 2017-01-06T10:02:51 | B73: 0.08024305556 | C73: 186.6 | D73: 6705 Ellis Road, Cambridge, ON, N3C 2V4, Canada | E73: (-) Conduite | G73: - | K73: 0 | M73: 0
A74: 2017-01-06T11:58:24 | B74: 0.005277777778 | D74: 5968-5992 Oil Heritage Road, Plympton-Wyoming, ON, N0N 1T0, Canada | E74: (64) Carburant (presser et remplir) Fournisseur: Shell/Flying J - TCH MÉTHODE DE PAIEMENT: TCH - SHELL/FLYING J MONTANT: 475.08 Qte de Carburant: 13.459 Unité: False Unité: False Commentaires: fuel + check | G74: - | K74: 0 | M74: 0
A75: 2017-01-06T12:06:00 | B75: 0.01961805556 | D75: 5968-5992 Oil Heritage Road, Plympton-Wyoming, ON, N0N 1T0, Canada | E75: (4) Pause | G75: - | K75: 0 | M75: 0
A76: 2017-01-06T12:34:15 | B76: 0.002581018519 | C76: 0.1 | D76: 5968-5992 Oil Heritage Road, Plympton-Wyoming, ON, N0N 1T0, Canada | E76: (4) Pause | G76: - | K76: 0 | M76: 0
A77: 2017-01-06T12:37:58 | B77: 0.01434027778 | C77: 26.3 | D77: 5994-6008 Oil Heritage Road, Plympton-Wyoming, ON, N0N 1T0, Canada | E77: (-) Conduite | G77: - | K77: 0 | M77: 0
A78: 2017-01-06T12:58:37 | B78: 0.005185185185 | D78: Ontario 402, Point Edward, ON, N7V, Canada | E78: (4) Pause | G78: - | K78: 0 | M78: 0
A79: 2017-01-06T13:06:05 | B79: 0.002430555556 | C79: 2 | D79: Ontario 402, Point Edward, ON, N7V, Canada | E79: (-) Conduite | G79: - | K79: 0 | M79: 0
A80: 2017-01-06T13:09:35 | B80: 0.007152777778 | C80: 0.1 | D80: Bluewater Bridge, Port Huron, MI, 48060, United States | E80: (104) Douane | G80: - | I80: 1 | K80: 0 | M80: 0
A81: 2017-01-06T13:19:53 | B81: 0.1746990741 | C81: 331.1 | D81: 2402 Pine Grove Avenue, Port Huron, MI, 48060, United States | E81: (-) Conduite | G81: - | K81: 0 | M81: 0
A82: 2017-01-06T17:31:27 | B82: 0.0003125 | D82: 7076-7122 Old U.S. 27, Fremont, IN, 46737, United States | E82: (45) T.L.C. Note (optionelle): post trip | G82: - | K82: 0 | M82: 0
A83: 2017-01-06T17:31:54 | B83: 0.2695138889 | C83: 0.5 | D83: 7076-7122 Old U.S. 27, Fremont, IN, 46737, United States | E83: (53) Layover No commande: 90814 LAYOVER: Surdimensionné Commentaires: cerfew indiana | G83: - | K83: 0 | M83: 0 | P83: 1
A84: 798.2000122 | G84: - | K84: 0 | M84: 0
A85: 2017-01-07T07:00:11 | B85: 0.0001157407407 | D85: 7028 Old U.S. 27, Fremont, IN, 46737, United States | E85: (40) V.A.D. VEHICLE_NO: 2016260 | G85: - | K85: 0 | M85: 0
A86: 2017-01-07T07:00:21 | B86: 0.01319444444 | C86: 0.1 | D86: 7028 Old U.S. 27, Fremont, IN, 46737, United States | E86: (40) V.A.D. EQUIPMENT_NAME: 20176 | G86: - | K86: 0 | M86: 0
A87: 2017-01-07T07:19:21 | B87: 0.1967939815 | C87: 429.3 | D87: 7028-7052 Old U.S. 27, Fremont, IN, 46737, United States | E87: (-) Conduite | G87: - | K87: 0 | M87: 0
A88: 2017-01-07T12:02:44 | B88: 0.000162037037 | D88: 19155-119315 County Road 2020 East, Marshall, IL, 62441, United States | E88: (45) T.L.C. Note (optionelle): check | G88: - | K88: 0 | M88: 0
A89: 2017-01-07T12:02:58 | B89: 0.02563657407 | D89: 19155-119315 County Road 2020 East, Marshall, IL, 62441, United States | E89: (4) Pause | G89: - | K89: 0 | M89: 0
A90: 2017-01-07T12:39:53 | B90: 0.04030092593 | C90: 87.9 | D90: 19155-119315 County Road 2020 East, Marshall, IL, 62441, United States | E90: (-) Conduite | G90: - | K90: 0 | M90: 0
A91: 2017-01-07T13:37:55 | B91: 0.0002083333333 | D91: Interstate 57, Effingham, IL, 62401, United States | E91: (45) T.L.C. Note (optionelle): check | G91: - | K91: 0 | M91: 0
A92: 2017-01-07T13:38:13 | B92: 0.01430555556 | C92: 0.1 | D92: Interstate 57, Effingham, IL, 62401, United States | E92: (4) Pause | G92: - | K92: 0 | M92: 0
A93: 2017-01-07T13:58:49 | B93: 0.1596064815 | C93: 375 | D93: 1701 West Evergreen Avenue, Effingham, IL, 62401, United States | E93: (-) Conduite | G93: - | K93: 0 | M93: 0
A94: 2017-01-07T17:48:39 | B94: 0.01200231481 | C94: 0.1 | D94: 1701 Missouri 84, Hayti, MO, 63851, United States | E94: (64) Carburant (presser et remplir) Fournisseur: Shell/Flying J - TCH MÉTHODE DE PAIEMENT: TCH - SHELL/FLYING J MONTANT: 382.00 Qte de Carburant: 155.348 Unité: False D.E.F.: 9.645 Unité: False Commentaires: fuel + post trip | G94: - | K94: 0 | M94: 0
A95: 2017-01-07T18:05:56 | B95: 0.0004861111111 | D95: 1701 Missouri 84, Hayti, MO, 63851, United States | E95: (53) Layover No commande: 90811 LAYOVER: Surdimensionné Commentaires: cerfew missouri | G95: - | K95: 0 | M95: 0 | P95: 1
A96: 2017-01-07 18:06:38 os 1983km | B96: 0.2453935185 | C96: 0.6 | D96: 1701 Missouri 84, Hayti, MO, 63851, United States | E96: (3) Fin travail | G96: - | K96: 0 | M96: 0
A97: 892.2000122 | G97: - | K97: 0 | M97: 0
M99: commentaire
A100: Contact | E100: =SUM($K$3:K348) -> 2
A102: Kilométrage milles | E102: =A103*0.6214 -> 1693.315
A103: =SUM($C$3:C401) -> 2725
A104: Over size kilométrage -10' | E104: =A105*0.6214 -> 1232.2362
A105: 1983
A106: Over size kilométrage +10' | E106: =A107*0.6214 -> 0
A107: =MAX(C98:C394)-MIN(C98:C394) -> 0
A108: journée non complète | E108: =SUM($S$3:S348) -> 0
A110: Arrêt journée de semaine | E110: =SUM($U$3:$U346) -> 0
A112: Arrêt journée de fin semaine | E112: =SUM($T$3:$T346) -> 0
A114: Arrêt obligatoir 36h | E114: =SUM($V$3:$V346) -> 0
A116: Prime Surdimention 12' et moin | E116: =SUM($P$3:P348) -> 3 | F116: 2005-06-07
A118: Prime Surdimention 12' et plus | E118: =SUM($Q$3:Q350) -> 0
A120: TRAVAIL DE VILLE | E120: =SUM($G$3:G348) -> 00:00:00
A122: Prime New York | E122: =SUM(R3:R394) -> 0
A124: TWICK | E124: =SUM($L$3:L348) -> 0
A126: Douane | E126: =SUM($I$3:I348) -> 1
A128: Attente chargement | E128: =SUM($F$3:F348) -> 38510.03472

Sheet Descoteaux M.
B1: Descoteaux Michel | E1: 02:00:00 | F1: Semaine du | N1: =#REF! ->  | T1: =#REF! -> 
A2: DATE / HEURES | B2: TEMPS | C2: ODOMÈTRE | D2: lieu | E2: Activité | F2: ATTENTE (HEURE) | G2: VILLE ET MANUTENTION (HEURE) | H2: SUPERLOAD (HEURE) | I2: DOUANES | J2: Transport explosif | K2: CONTACTS | L2: TWICK | N2: Surdimension 12' et moin | O2: Surdimension 12' et plus | P2: prime surdimenssion 12' et moin | Q2: prime surdimenssion 12' et plus | R2: PRIME NEW YORK | S2: ARRÊT JOURNÉE NON-COMPLÈTE | T2: ARRÊT CONPLET- JOURNÉE DE FIN DE SEMAINE | U2: ARRÊT JOURNÉE DE SEMAINE | V2: Arrêt obligatoir 36h | W2: Opérateur | X2: Numéro de véhicule | Y2: Date de début | Z2: Ville | AA2: État / Province | AB2: Pays | AC2: No commande | AD2: LAYOVER | AE2: Montant
F3: =IF(ISERROR(SEARCH("ATTENTE",E3)),"",$B3) ->  | G3: =IF(COUNTIF(E3,"*Formation*")+COUNTIF(E3,"*Travail de cours*")+COUNTIF(E3,"*réunion*")+COUNTIF(E3,"*escorte routière*")+COUNTIF(E3,"*courte distance*")>0,B3,"-") -> - | H3: =IF(ISERROR(SEARCH("superload: True",E3)),"",$B3) ->  | I3: =IF(ISERROR(SEARCH("Douane",E3)),"",1) ->  | J3: =IF(ISERROR(SEARCH("transport explosif",E3)),"",1) ->  | K3: =IF(COUNTIF(E3,"*toile: true*"),1,0)+IF(COUNTIF(E3,"*charger*"),1,0)+IF(COUNTIF(E3,"*déchargr*"),1,0)+IF(COUNTIF(E3,"*CHARGÉ: TRUE*"),1,0) -> 0 | L3: =IF(ISERROR(SEARCH("TWIC: True",E3)),"",1) ->  | M3: =LEN($N3) -> 0 | N3: =IFERROR(IF(LEFT(MID($E3,SEARCH("Largeur pi-po",$E3,1)+15,100),2)*1<12,LEFT(MID($E3,SEARCH("Largeur pi-po",$E3,1)+15,100),2)*1,""),"") ->  | O3: =IFERROR(IF(LEFT(MID($E3,SEARCH("Largeur pi-po",$E3,1)+15,100),2)*1>=12,LEFT(MID($E3,SEARCH("Largeur pi-po",$E3,1)+15,100),2)*1,""),"") ->  | P3: =IF(N3<12,1,"") ->  | Q3: =IF(O3="","",IF(O3>=12,1,"")) ->  | R3: =IF(ISERROR(SEARCH("PRIME N.Y: True",E3)),"",1) ->  | S3: =IF(ISERROR(SEARCH("Journée non complète",E3)),"",1) ->  | T3: =IF(ISERROR(SEARCH("Fin de semaine",E3)),"",1) ->  | U3: =IF(ISERROR(SEARCH("1 Journée compète semaine",E3)),"",1) ->  | V3: =IF(ISERROR(SEARCH("Arrêt obligatoir (36H)",E3)),"",1) -> 
A4: (jj/mm/aaaa hh:mm) | B4: (hh:mm:ss) | C4: (km) | F4: =IF(ISERROR(SEARCH("ATTENTE",E4)),"",$B4) ->  | G4: =IF(COUNTIF(E4,"*Formation*")+COUNTIF(E4,"*Travail de cours*")+COUNTIF(E4,"*réunion*")+COUNTIF(E4,"*escorte routière*")+COUNTIF(E4,"*courte distance*")>0,B4,"-") -> - | H4: =IF(ISERROR(SEARCH("superload: True",E4)),"",$B4) ->  | I4: =IF(ISERROR(SEARCH("Douane",E4)),"",1) ->  | J4: =IF(ISERROR(SEARCH("transport explosif",E4)),"",1) ->  | K4: =IF(COUNTIF(E4,"*toile: true*"),1,0)+IF(COUNTIF(E4,"*charger*"),1,0)+IF(COUNTIF(E4,"*déchargr*"),1,0)+IF(COUNTIF(E4,"*CHARGÉ: TRUE*"),1,0) -> 0 | L4: =IF(ISERROR(SEARCH("TWIC: True",E4)),"",1) ->  | M4: =LEN($N4) -> 0 | N4: =IFERROR(IF(LEFT(MID($E4,SEARCH("Largeur pi-po",$E4,1)+15,100),2)*1<12,LEFT(MID($E4,SEARCH("Largeur pi-po",$E4,1)+15,100),2)*1,""),"") ->  | O4: =IFERROR(IF(LEFT(MID($E4,SEARCH("Largeur pi-po",$E4,1)+15,100),2)*1>=12,LEFT(MID($E4,SEARCH("Largeur pi-po",$E4,1)+15,100),2)*1,""),"") ->  | P4: =IF(N4<12,1,"") ->  | Q4: =IF(O4="","",IF(O4>=12,1,"")) ->  | R4: =IF(ISERROR(SEARCH("PRIME N.Y: True",E4)),"",1) ->  | S4: =IF(ISERROR(SEARCH("Journée non complète",E4)),"",1) ->  | T4: =IF(ISERROR(SEARCH("Fin de semaine",E4)),"",1) ->  | U4: =IF(ISERROR(SEARCH("1 Journée compète semaine",E4)),"",1) ->  | V4: =IF(ISERROR(SEARCH("Arrêt obligatoir (36H)",E4)),"",1) -> 
A5: 0 | G5: - | K5: 0 | M5: 0
A6: (hh:mm:ss) | B6: (hh:mm:ss) | C6: (km) | G6: - | K6: 0 | M6: 0
A7: 0 | G7: - | K7: 0 | M7: 0
A8: (hh:mm:ss) | B8: (hh:mm:ss) | C8: (km) | G8: - | K8: 0 | M8: 0
A9: 0 | G9: - | K9: 0 | M9: 0
A10: 2017-01-04T07:46:49 | D10: express terminal, 922 Grande Côte Ouest, Lanoraie, QC, Canada | E10: Connexion | G10: - | K10: 0 | M10: 0
A11: 2017-01-04T07:47:07 | B11: 0.00125 | D11: express terminal, 922 Grande Côte Ouest, Lanoraie, QC, Canada | E11: (42) Atteler EQUIPMENT_NAME: FBR484279 | G11: - | K11: 0 | M11: 0
A12: 2017-01-04T07:48:55 | B12: 0.000150462963 | D12: express terminal, 922 Grande Côte Ouest, Lanoraie, QC, Canada | E12: (40) V.A.D. VEHICLE_NO: 2014193 | G12: - | K12: 0 | M12: 0
A13: 2017-01-04T07:49:08 | B13: 0.01284722222 | C13: 0.5 | D13: express terminal, 922 Grande Côte Ouest, Lanoraie, QC, Canada | E13: (40) V.A.D. EQUIPMENT_NAME: FBR484279 | G13: - | K13: 0 | M13: 0
A14: 2017-01-04T08:07:38 | B14: 0.02337962963 | C14: 31.7 | D14: express terminal, 922 Grande Côte Ouest, Lanoraie, QC, Canada | E14: (-) Conduite | G14: - | K14: 0 | M14: 0
A15: 2017-01-04T08:41:18 | B15: 0.02695601852 | C15: 0.3 | D15: 121-125 Route 158, Saint-Ignace-de-Loyola, QC, J0K 2P0, Canada | E15: (4) Pause | G15: - | K15: 0 | M15: 0
A16: 2017-01-04T09:20:07 | B16: 0.01038194444 | C16: 5.9 | D16: 20 Rue Élizabeth, Sorel-Tracy, QC, J3P 4G2, Canada | E16: (-) Conduite | G16: - | K16: 0 | M16: 0
A17: 2017-01-04T09:35:04 | B17: 0.1018634259 | C17: 0.4 | D17: 100 :Rue McCarthy, Saint-Joseph-de-Sorel, QC, J3R 3M8, Canada | E17: (4) Pause | G17: - | K17: 0 | M17: 0
A18: 2017-01-04T12:01:45 | B18: 0.1298842593 | C18: 0.5 | D18: 14 Rue Élizabeth, Saint-Joseph-de-Sorel, QC, J3R 3J4, Canada | E18: (1) Repas REPAS: DÉJEUNER AVANT 6H AM SPÉCIALISÉ Note (optionelle): diner | G18: - | K18: 0 | M18: 0
A19: 2017-01-04T15:08:47 | B19: 0.002013888889 | D19: 100 :Rue McCarthy, Saint-Joseph-de-Sorel, QC, J3R 3M8, Canada | E19: (51) Décharger No commande: 90579 Voyage: Régulier Nom du client: forge--sorel--pq--toile--a--dix--piastre TOILE: True TWIC: False PRIME N.Y: False Signature B/L: Oui ODOMÈTRE: 584308,64 | F19: 3.75 | G19: - | K19: 2 | M19: 0
A20: 2017-01-04T15:11:41 | B20: 0.002326388889 | C20: 0.2000000001 | D20: 100 :Rue McCarthy, Saint-Joseph-de-Sorel, QC, J3R 3M8, Canada | E20: (49) Charger No commande: 90805 Nom du client: sorel--forge---pq--toile--a--dix--piastre TOILE: True TWIC: False PRIME N.Y: False Signature B/L: Oui | G20: - | M20: 0
A21: 2017-01-04T15:15:02 | B21: 0.0140625 | C21: 8.9 | D21: Rue Chevrier, Saint-Joseph-de-Sorel, QC, J3R, Canada | E21: (-) Conduite | G21: - | K21: 0 | M21: 0
A22: 2017-01-04T15:35:17 | B22: 0.03152777778 | C22: 0.3 | D22: 115 Rue du Traversier, Sorel-Tracy, QC, J3P 4B4, Canada | E22: (4) Pause | G22: - | K22: 0 | M22: 0
A23: 2017-01-04T16:20:41 | B23: 0.02225694444 | C23: 31.8 | D23: Saint-Ignace-De-Loyola, QC - Sorel, QC, Saint-Ignace-de-Loyola, QC, J0K 2P0, Canada | E23: (-) Conduite | G23: - | K23: 0 | M23: 0
A24: 2017-01-04T16:52:44 | B24: 0.01799768519 | C24: 0.2 | D24: express terminal, 922 Grande Côte Ouest, Lanoraie, QC, Canada | E24: (4) Pause | G24: - | K24: 0 | M24: 0
A25: 2017-01-04T17:18:39 | B25: 0.002997685185 | C25: 0.09999999998 | D25: express terminal, 922 Grande Côte Ouest, Lanoraie, QC, Canada | E25: (57) Bris Mécanique (service) Description du bris: toile--a-rideau--cote--gauche--repair--office Type de réparation: False Remorquage: False Commentaires: repAirs-a-lanoraie--pq | G25: - | K25: 0 | M25: 0
A26: 2017-01-04T17:22:58 | B26: 0.1606597222 | C26: 293.5 | D26: express terminal, 922 Grande Côte Ouest, Lanoraie, QC, Canada | E26: (-) Conduite | G26: - | K26: 0 | M26: 0
A27: 2017-01-04T21:14:19 | B27: 0.004652777778 | D27: 678 Ontario 401, Mallorytown, ON, K0E 1R0, Canada | E27: (45) T.L.C. | G27: - | K27: 0 | M27: 0
A28: 2017-01-04T21:21:01 | B28: 0.04399305556 | C28: 99.1 | D28: 678 Ontario 401, Mallorytown, ON, K0E 1R0, Canada | E28: (-) Conduite | G28: - | K28: 0 | M28: 0
A29: 2017-01-04T22:24:22 | B29: 0.005960648148 | D29: 628 Lennox and Addington County Road 41, Greater Napanee, ON, K0K 2Z0, Canada | E29: (4) Pause | G29: - | K29: 0 | M29: 0
A30: 2017-01-04T22:32:57 | B30: 0.002986111111 | C30: 0.3 | D30: 628 Lennox and Addington County Road 41, Greater Napanee, ON, K0K 2Z0, Canada | E30: (64) Carburant (presser et remplir) Fournisseur: Shell/Flying J - TCH MÉTHODE DE PAIEMENT: SUNCORS ENERGIE - PETRO-PASS/SUPER-PASS MONTANT: 324 Qte de Carburant: 280 Unité: True D.E.F.: 0 Unité: False Commentaires: $324.00(__napanee--ont--280_litre | G30: - | K30: 0 | M30: 0
A31: 2017-01-04T22:37:15 | B31: 0.05746527778 | D31: 628 Lennox and Addington County Road 41, Greater Napanee, ON, K0K 2Z0, Canada | E31: (2) Couchette | G31: - | K31: 0 | M31: 0
A32: 470.8999939 | G32: - | K32: 0 | M32: 0
A33: 2017-01-05T06:39:11 | B33: 0.0001736111111 | D33: 628 Lennox and Addington County Road 41, Greater Napanee, ON, K0K 2Z0, Canada | E33: (40) V.A.D. VEHICLE_NO: 2014193 | G33: - | K33: 0 | M33: 0
A34: 2017-01-05T06:39:26 | B34: 0.01597222222 | C34: 0.3 | D34: 628 Lennox and Addington County Road 41, Greater Napanee, ON, K0K 2Z0, Canada | E34: (40) V.A.D. EQUIPMENT_NAME: FBR484279 | G34: - | K34: 0 | M34: 0
A35: 2017-01-05T07:02:26 | B35: 0.02792824074 | C35: 60.2 | D35: 628 Lennox and Addington County Road 41, Greater Napanee, ON, K0K 2Z0, Canada | E35: (-) Conduite | G35: - | K35: 0 | M35: 0
A36: 2017-01-05T07:42:39 | B36: 0.007997685185 | C36: 0.09999999998 | D36: 17278 Ontario 401, Brighton, ON, K0K 1H0, Canada | E36: (1) Repas REPAS: DÉJEUNER AVANT 6H AM SPÉCIALISÉ | G36: - | K36: 0 | M36: 0
A37: 2017-01-05T07:54:10 | B37: 0.07784722222 | C37: 175.4 | D37: 17278 Ontario 401, Brighton, ON, K0K 1H0, Canada | E37: (-) Conduite | G37: - | K37: 0 | M37: 0
A38: 2017-01-05T09:46:16 | B38: 0.001493055556 | D38: 1353 Britannia Road East, Mississauga, ON, L4W 1C7, Canada | E38: (-) Service | G38: - | K38: 0 | M38: 0
A39: 2017-01-05T09:48:25 | B39: 0.003310185185 | C39: 1.4 | D39: 1353 Britannia Road East, Mississauga, ON, L4W 1C7, Canada | E39: (-) Conduite | G39: - | K39: 0 | M39: 0
A40: 2017-01-05T09:53:11 | B40: 0.01121527778 | D40: 6350 Vipond Drive, Mississauga, ON, L5T 1G2, Canada | E40: (4) Pause | G40: - | K40: 0 | M40: 0
A41: 2017-01-05T10:09:20 | B41: 0.00474537037 | C41: 0.09999999998 | D41: 6350 Vipond Drive, Mississauga, ON, L5T 1G2, Canada | E41: (51) Décharger No commande: 90805 Voyage: Régulier Nom du client: schmoz-missauga--ont--toile:-) a--rideau---a--10__pistre TOILE: True TWIC: False PRIME N.Y: False Signature B/L: Oui ODOMÈTRE: 584980,4 | G41: - | K41: 2 | M41: 0
A42: 2017-01-05T10:16:10 | B42: 0.05777777778 | C42: 125.2 | D42: 6310A Vipond Drive, Mississauga, ON, L5T, Canada | E42: (-) Conduite | G42: - | K42: 0 | M42: 0
A43: 2017-01-05T11:39:22 | B43: 0.0009027777778 | D43: Macdonald-Cartier Freeway, Beachville, ON, N0J 1A0, Canada | E43: (45) T.L.C. | G43: - | K43: 0 | M43: 0
A44: 2017-01-05T11:40:40 | B44: 0.09769675926 | C44: 225.3 | D44: Macdonald-Cartier Freeway, Beachville, ON, N0J 1A0, Canada | E44: (-) Conduite | G44: - | K44: 0 | M44: 0
A45: 2017-01-05T14:01:21 | B45: 0.02597222222 | C45: 0.2 | D45: 3701-3793 Sandwich Street, Windsor, ON, N9C 1J9, Canada | E45: (51) Décharger No commande: 90805 Voyage: Régulier Nom du client: windsof--ont--toile--a--#$10._00__rideau-- TOILE: True TWIC: False PRIME N.Y: False Signature B/L: Oui ODOMÈTRE: 585331,14 | G45: - | K45: 2 | M45: 0
A46: 2017-01-05T14:38:45 | B46: 0.002094907407 | D46: 244 Hill Avenue, Windsor, ON, N9C 3C1, Canada | E46: (4) Pause | G46: - | K46: 0 | M46: 0
A47: 2017-01-05T14:41:46 | B47: 0.06278935185 | C47: 145 | D47: 3795 Sandwich Street, Windsor, ON, N9C 1C2, Canada | E47: (-) Conduite | G47: - | K47: 0 | M47: 0
A48: 2017-01-05T16:12:11 | B48: 0.006041666667 | D48: Macdonald-Cartier Freeway, Dutton/Dunwich, ON, N0L, Canada | E48: (4) Pause | G48: - | K48: 0 | M48: 0
A49: 2017-01-05T16:20:53 | B49: 0.07256944444 | C49: 132.8 | D49: Macdonald-Cartier Freeway, Dutton/Dunwich, ON, N0L, Canada | E49: (-) Conduite | G49: - | K49: 0 | M49: 0
A50: 2017-01-05T18:05:23 | B50: 0.02268518519 | C50: 0.09999999998 | D50: 33 Sinclair Boulevard, Brantford, ON, N3S 7X6, Canada | E50: (1) Repas REPAS: DÉJEUNER AVANT 6H AM SPÉCIALISÉ | G50: - | K50: 0 | M50: 0
A51: 2017-01-05T18:38:03 | B51: 0.02793981481 | C51: 53.4 | D51: 33 Sinclair Boulevard, Brantford, ON, N3S 7X6, Canada | E51: (-) Conduite | G51: - | K51: 0 | M51: 0
A52: 2017-01-05T19:18:17 | B52: 0.1038888889 | D52: 740 Parkdale Avenue North, Hamilton, ON, L8H, Canada | E52: (1) Repas REPAS: DÉJEUNER AVANT 6H AM SPÉCIALISÉ | G52: - | K52: 0 | M52: 0
A53: 2017-01-05T21:47:53 | B53: 0.09174768519 | D53: 740 Parkdale Avenue North, Hamilton, ON, L8H, Canada | E53: (2) Couchette | G53: - | K53: 0 | M53: 0
A54: 918.7000122 | G54: - | K54: 0 | M54: 0
A55: 2017-01-06T04:20:27 | B55: 0.0002430555556 | D55: 740 Parkdale Avenue North, Hamilton, ON, L8H, Canada | E55: (40) V.A.D. VEHICLE_NO: 2014193 | G55: - | K55: 0 | M55: 0
A56: 2017-01-06T04:20:48 | B56: 0.01131944444 | D56: 740 Parkdale Avenue North, Hamilton, ON, L8H, Canada | E56: (40) V.A.D. EQUIPMENT_NAME: FBR484279 | G56: - | K56: 0 | M56: 0
A57: 2017-01-06T04:37:06 | B57: 0.04059027778 | C57: 0.3 | D57: 740 Parkdale Avenue North, Hamilton, ON, L8H, Canada | E57: (2) Couchette | G57: - | K57: 0 | M57: 0
A58: 2017-01-06T05:35:33 | B58: 0.008275462963 | C58: 11.4 | D58: 1894 Burlington Street East, Hamilton, ON, L8H 3L4, Canada | E58: (-) Conduite | G58: - | K58: 0 | M58: 0
A59: 2017-01-06T05:47:28 | B59: 0.08762731481 | C59: 0.1000000001 | D59: 891-941 Arvin Avenue, Hamilton, ON, L8E, Canada | E59: (4) Pause | G59: - | K59: 0 | M59: 0
A60: 2017-01-06T07:53:39 | B60: 0.03614583333 | C60: 0.2999999999 | D60: 891-941 Arvin Avenue, Hamilton, ON, L8E, Canada | E60: (4) Pause | G60: - | K60: 0 | M60: 0
A61: 2017-01-06T08:45:42 | B61: 0.01194444444 | D61: 930 Arvin Avenue, Hamilton, ON, L8E 5Y8, Canada | E61: (49) Charger No commande: 90869 Nom du client: jenco--steel--stoney-creek--ont---toile--a--rideau--#$10.00 TOILE: True TWIC: False PRIME N.Y: False Signature B/L: Oui | F61: 01:25:00 | G61: - | K61: 2 | M61: 0
A62: 2017-01-06T09:02:54 | B62: 0.009768518519 | C62: 12.2 | D62: 930 Arvin Avenue, Hamilton, ON, L8E 5Y8, Canada | E62: (-) Conduite | G62: - | K62: 0 | M62: 0
A63: 2017-01-06T09:16:58 | B63: 0.01013888889 | D63: 15 Steel City Court, Hamilton, ON, L8H 3Y2, Canada | E63: (4) Pause | G63: - | K63: 0 | M63: 0
A64: 2017-01-06T09:31:34 | B64: 0.006458333333 | C64: 0.2999999999 | D64: 740 Parkdale Avenue North, Hamilton, ON, L8H, Canada | E64: (64) Carburant (presser et remplir) Fournisseur: Pétro Canada - SUPERPASS MÉTHODE DE PAIEMENT: SUNCORS ENERGIE - PETRO-PASS/SUPER-PASS MONTANT: 0 Qte de Carburant: 400 Unité: True D.E.F.: 0 Unité: True Commentaires: hamilton--ont | G64: - | K64: 0 | M64: 0
A65: 2017-01-06T09:40:52 | B65: 0.05944444444 | C65: 120.7 | D65: 755-799 Parkdale Avenue North, Hamilton, ON, L8H 3L5, Canada | E65: (-) Conduite | G65: - | K65: 0 | M65: 0
A66: 2017-01-06T11:06:28 | B66: 0.02329861111 | C66: 0.2999999999 | D66: 1547 Victoria Street East, Whitby, ON, L1N, Canada | E66: (1) Repas REPAS: DÉJEUNER AVANT 6H AM SPÉCIALISÉ | G66: - | K66: 0 | M66: 0
A67: 2017-01-06T11:40:01 | B67: 0.08247685185 | C67: 191.4 | D67: 1629 Victoria Street East, Whitby, ON, L1N 9W4, Canada | E67: (-) Conduite | G67: - | K67: 0 | M67: 0
A68: 2017-01-06T13:38:47 | B68: 0.00119212963 | D68: Macdonald-Cartier Freeway, Odessa, ON, K0H 2H0, Canada | E68: (45) T.L.C. | F68: =IF(ISERROR(SEARCH("ATTENTE",E68)),"",$B68) ->  | G68: =IF(COUNTIF(E68,"*Formation*")+COUNTIF(E68,"*Travail de cours*")+COUNTIF(E68,"*réunion*")+COUNTIF(E68,"*escorte routière*")+COUNTIF(E68,"*courte distance*")>0,B68,"-") -> - | H68: =IF(ISERROR(SEARCH("superload: True",E68)),"",$B68) ->  | I68: =IF(ISERROR(SEARCH("Douane",E68)),"",1) ->  | J68: =IF(ISERROR(SEARCH("transport explosif",E68)),"",1) ->  | K68: =IF(COUNTIF(E68,"*toile: true*"),1,0)+IF(COUNTIF(E68,"*charger*"),1,0)+IF(COUNTIF(E68,"*déchargr*"),1,0)+IF(COUNTIF(E68,"*CHARGÉ: TRUE*"),1,0) -> 0 | L68: =IF(ISERROR(SEARCH("TWIC: True",E68)),"",1) ->  | M68: =LEN($N68) -> 0 | N68: =IFERROR(IF(LEFT(MID($E68,SEARCH("Largeur pi-po",$E68,1)+15,100),2)*1<12,LEFT(MID($E68,SEARCH("Largeur pi-po",$E68,1)+15,100),2)*1,""),"") ->  | O68: =IFERROR(IF(LEFT(MID($E68,SEARCH("Largeur pi-po",$E68,1)+15,100),2)*1>=12,LEFT(MID($E68,SEARCH("Largeur pi-po",$E68,1)+15,100),2)*1,""),"") ->  | P68: =IF(N68<12,1,"") ->  | Q68: =IF(O68="","",IF(O68>=12,1,"")) ->  | R68: =IF(ISERROR(SEARCH("PRIME N.Y: True",E68)),"",1) ->  | S68: =IF(ISERROR(SEARCH("Journée non complète",E68)),"",1) ->  | T68: =IF(ISERROR(SEARCH("Fin de semaine",E68)),"",1) ->  | U68: =IF(ISERROR(SEARCH("1 Journée compète semaine",E68)),"",1) ->  | V68: =IF(ISERROR(SEARCH("Arrêt obligatoir (36H)",E68)),"",1) -> 
A69: 2017-01-06T13:40:30 | B69: 0.0004398148148 | C69: 0.3 | D69: Macdonald-Cartier Freeway, Odessa, ON, K0H 2H0, Canada | E69: (-) Conduite | G69: - | K69: 0 | M69: 0
A70: 2017-01-06T13:41:08 | B70: 0.02015046296 | D70: Macdonald-Cartier Freeway, Odessa, ON, K0H 2H0, Canada | E70: (4) Pause | G70: - | K70: 0 | M70: 0
A71: 2017-01-06T14:10:09 | B71: 0.06546296296 | C71: 153.1 | D71: Macdonald-Cartier Freeway, Odessa, ON, K0H 2H0, Canada | E71: (-) Conduite | G71: - | K71: 0 | M71: 0
A72: 2017-01-06T15:44:25 | B72: 0.007962962963 | C72: 0.09999999998 | D72: Rest Area, Upper Canada Village, ON, K0C 2G0, Canada | E72: (4) Pause | G72: - | K72: 0 | M72: 0
A73: 2017-01-06T15:55:53 | B73: 0.1058217593 | C73: 203.5 | D73: 401 Ontario 401, Morrisburg, ON, K0C 1X0, Canada | E73: (-) Conduite | G73: - | K73: 0 | M73: 0
A74: 2017-01-06T18:28:16 | B74: 0.001643518519 | D74: Autoroute Félix-Leclerc, Saint-Damien, QC, J0K, Canada | E74: (45) T.L.C. | G74: - | K74: 0 | M74: 0
A75: 2017-01-06T18:30:38 | B75: 0.01392361111 | C75: 21.3 | D75: 250 Autoroute Félix-Leclerc, Sainte-Marie-Salomé, QC, J0K 2Z0, Canada | E75: (-) Conduite | G75: - | K75: 0 | M75: 0
A76: 2017-01-06T18:50:41 | B76: 0.01907407407 | C76: 0.3999999999 | D76: express terminal, 922 Grande Côte Ouest, Lanoraie, QC, Canada | E76: (4) Pause | G76: - | K76: 0 | M76: 0
A77: 2017-01-06T19:18:09 | B77: 0.01372685185 | C77: 0.2000000001 | D77: express terminal, 922 Grande Côte Ouest, Lanoraie, QC, Canada | E77: (64) Carburant (presser et remplir) Fournisseur: Gasboy - COURS EXPRESS MONDOR MÉTHODE DE PAIEMENT: SUNCORS ENERGIE - PETRO-PASS/SUPER-PASS MONTANT: 0 Qte de Carburant: 420 Unité: True D.E.F.: 35 Unité: True Commentaires: mer ci--il--ya--jamais-de--probleme--pour--le--fuel--tres-apprecie:-) | G77: - | K77: 0 | M77: 0
A78: 2017-01-06T19:37:55 | B78: 0.1820023148 | D78: express terminal, 922 Grande Côte Ouest, Lanoraie, QC, Canada | E78: (3) Fin travail | G78: - | K78: 0 | M78: 0
A79: 713.9000244 | G79: - | K79: 0 | M79: 0
A80: (hh:mm:ss) | B80: (hh:mm:ss) | C80: (km) | G80: - | K80: 0 | M80: 0
A81: 0 | G81: - | K81: 0 | M81: 0
M83: commentaire
A84: Contact | E84: 4
A86: Contact | D86: TOILE À 10.00 | E86: 4
A88: Kilométrage milles | E88: =A89*0.6214 -> 1310.59474
A89: =SUM($C$3:C385) -> 2109.1
A90: Over size kilométrage -10' | E90: =A91*0.6214 -> 0
A91: =MAX(C82:C378)-MIN(C82:C378) -> 0
A92: Over size kilométrage +10' | E92: =A93*0.6214 -> 0
A93: =MAX(C82:C378)-MIN(C82:C378) -> 0
A94: journée non complète | E94: =SUM($S$3:S332) -> 0
A96: Arrêt journée de semaine | E96: =SUM($U$3:$U330) -> 0
A98: Arrêt journée de fin semaine | E98: =SUM($T$3:$T330) -> 0
A100: Prime Surdimention 12' et moin | E100: =SUM($P$3:P332) -> 0
A102: Prime Surdimention 12' et plus | E102: =SUM($Q$3:Q334) -> 0
A104: TRAVAIL DE VILLE | E104: =SUM($G$3:G332) -> 00:00:00
A106: Prime New York | E106: =SUM(R3:R378) -> 0
A108: TWICK | E108: =SUM($L$3:L332) -> 0
A110: Douane | E110: =SUM($I$3:I332) -> 0
A112: Attente chargement

Sheet Desjardins W.
A1: Desjardins William | E1: 02:00:00 | F1: Semaine du | N1: =TODAY()-WEEKDAY(TODAY())-6 -> 2017-04-09 | P1: =#REF! ->  | T1: =TODAY()-WEEKDAY(TODAY())+0 -> 2017-04-15 | U1: AU | V1: =#REF! -> 
A2: DATE / HEURES | B2: TEMPS | C2: ODOMÈTRE | D2: lieu | E2: Activité | F2: ATTENTE (HEURE) | G2: VILLE ET MANUTENTION (HEURE) | H2: SUPERLOAD (HEURE) | I2: DOUANES | J2: Transport explosif | K2: CONTACTS | L2: TWICK | N2: Surdimension 12' et moin | O2: Surdimension 12' et plus | P2: prime surdimenssion 12' et moin | Q2: prime surdimenssion 12' et plus | R2: PRIME NEW YORK | S2: ARRÊT JOURNÉE NON-COMPLÈTE | T2: ARRÊT CONPLET- JOURNÉE DE FIN DE SEMAINE | U2: ARRÊT JOURNÉE DE SEMAINE | V2: Arrêt obligatoir 36h | W2: Opérateur | X2: Numéro de véhicule | Y2: Date de début | Z2: Ville | AA2: État / Province | AB2: Pays | AC2: No commande | AD2: LAYOVER | AE2: Montant
F3: =IF(ISERROR(SEARCH("ATTENTE",E3)),"",$B3) ->  | G3: =IF(COUNTIF(E3,"*Formation*")+COUNTIF(E3,"*Travail de cours*")+COUNTIF(E3,"*réunion*")+COUNTIF(E3,"*escorte routière*")+COUNTIF(E3,"*courte distance*")>0,B3,"-") -> - | H3: =IF(ISERROR(SEARCH("superload: True",E3)),"",$B3) ->  | I3: =IF(ISERROR(SEARCH("Douane",E3)),"",1) ->  | J3: =IF(ISERROR(SEARCH("transport explosif",E3)),"",1) ->  | K3: =IF(COUNTIF(E3,"*toile: true*"),1,0)+IF(COUNTIF(E3,"*charger*"),1,0)+IF(COUNTIF(E3,"*déchargr*"),1,0)+IF(COUNTIF(E3,"*CHARGÉ: TRUE*"),1,0) -> 0 | L3: =IF(ISERROR(SEARCH("TWIC: True",E3)),"",1) ->  | M3: =LEN($N3) -> 0 | N3: =IFERROR(IF(LEFT(MID($E3,SEARCH("Largeur pi-po",$E3,1)+15,100),2)*1<12,LEFT(MID($E3,SEARCH("Largeur pi-po",$E3,1)+15,100),2)*1,""),"") ->  | O3: =IFERROR(IF(LEFT(MID($E3,SEARCH("Largeur pi-po",$E3,1)+15,100),2)*1>=12,LEFT(MID($E3,SEARCH("Largeur pi-po",$E3,1)+15,100),2)*1,""),"") ->  | P3: =IF(N3<12,1,"") ->  | Q3: =IF(O3="","",IF(O3>=12,1,"")) ->  | R3: =IF(ISERROR(SEARCH("PRIME N.Y: True",E3)),"",1) ->  | S3: =IF(ISERROR(SEARCH("Journée non complète",E3)),"",1) ->  | T3: =IF(ISERROR(SEARCH("Fin de semaine",E3)),"",1) ->  | U3: =IF(ISERROR(SEARCH("1 Journée compète semaine",E3)),"",1) ->  | V3: =IF(ISERROR(SEARCH("Arrêt obligatoir (36H)",E3)),"",1) -> 
A4: (jj/mm/aaaa hh:mm) | B4: (hh:mm:ss) | C4: (km) | F4: =IF(ISERROR(SEARCH("ATTENTE",E4)),"",$B4) ->  | G4: =IF(COUNTIF(E4,"*Formation*")+COUNTIF(E4,"*Travail de cours*")+COUNTIF(E4,"*réunion*")+COUNTIF(E4,"*escorte routière*")+COUNTIF(E4,"*courte distance*")>0,B4,"-") -> - | H4: =IF(ISERROR(SEARCH("superload: True",E4)),"",$B4) ->  | I4: =IF(ISERROR(SEARCH("Douane",E4)),"",1) ->  | J4: =IF(ISERROR(SEARCH("transport explosif",E4)),"",1) ->  | K4: =IF(COUNTIF(E4,"*toile: true*"),1,0)+IF(COUNTIF(E4,"*charger*"),1,0)+IF(COUNTIF(E4,"*déchargr*"),1,0)+IF(COUNTIF(E4,"*CHARGÉ: TRUE*"),1,0) -> 0 | L4: =IF(ISERROR(SEARCH("TWIC: True",E4)),"",1) ->  | M4: =LEN($N4) -> 0 | P4: =IF(N4<12,1,"") ->  | Q4: =IF(O4="","",IF(O4>=12,1,"")) ->  | R4: =IF(ISERROR(SEARCH("PRIME N.Y: True",E4)),"",1) ->  | S4: =IF(ISERROR(SEARCH("Journée non complète",E4)),"",1) ->  | T4: =IF(ISERROR(SEARCH("Fin de semaine",E4)),"",1) ->  | U4: =IF(ISERROR(SEARCH("1 Journée compète semaine",E4)),"",1) ->  | V4: =IF(ISERROR(SEARCH("Arrêt obligatoir (36H)",E4)),"",1) -> 
A5: 0 | G5: - | K5: 0 | M5: 0
A6: (hh:mm:ss) | B6: (hh:mm:ss) | C6: (km) | G6: - | K6: 0 | M6: 0
A7: 0 | G7: - | K7: 0 | M7: 0
A8: 2017-01-03T11:48:51 | D8: express terminal, 922 Grande Côte Ouest, Lanoraie, QC, Canada | E8: Connexion | G8: - | K8: 0 | M8: 0
A9: 2017-01-03T12:03:57 | B9: 0.0005671296296 | D9: express terminal, 922 Grande Côte Ouest, Lanoraie, QC, Canada | E9: (40) V.A.D. VEHICLE_NO: 2013139 | G9: - | K9: 0 | M9: 0
A10: 2017-01-03T12:04:46 | B10: 0.0007060185185 | D10: express terminal, 922 Grande Côte Ouest, Lanoraie, QC, Canada | E10: (47) Identification remorque EQUIPMENT_NAME: 20204 | G10: - | K10: 0 | M10: 0
A11: 2017-01-03T12:05:47 | B11: 0.009560185185 | C11: 0.09999999998 | D11: express terminal, 922 Grande Côte Ouest, Lanoraie, QC, Canada | E11: (40) V.A.D. EQUIPMENT_NAME: 20204 | G11: - | K11: 0 | M11: 0
A12: 2017-01-03T12:19:33 | B12: 0.06357638889 | C12: 136.6 | D12: express terminal, 922 Grande Côte Ouest, Lanoraie, QC, Canada | E12: (-) Conduite | G12: - | K12: 0 | M12: 0
A13: 2017-01-03T13:51:06 | B13: 0.006261574074 | C13: 0.09999999998 | D13: 318 Chemin Ridge, Saint-Bernard-de-Lacolle, QC, J0J 1V0, Canada | E13: (45) T.L.C. | G13: - | K13: 0 | M13: 0
A14: 2017-01-03T14:00:07 | B14: 0.004918981481 | C14: 2.1 | D14: 318 Chemin Ridge, Saint-Bernard-de-Lacolle, QC, J0J 1V0, Canada | E14: (-) Conduite | G14: - | K14: 0 | M14: 0
A15: 2017-01-03T14:07:12 | B15: 0.001041666667 | C15: 0.09999999998 | D15: Adirondack Northway, Champlain, NY, 12919, United States | E15: (-) Service | G15: - | K15: 0 | M15: 0
A16: 2017-01-03T14:08:42 | B16: 0.0007060185185 | C16: 0.2000000001 | D16: Adirondack Northway, Champlain, NY, 12919, United States | E16: (-) Conduite | G16: - | K16: 0 | M16: 0
A17: 2017-01-03T14:09:43 | B17: 0.007048611111 | C17: 0.09999999998 | D17: 221 West Service Road, Champlain, NY, 12919, United States | E17: (104) Douane | G17: - | I17: 1 | K17: 0 | M17: 0
A18: 2017-01-03T14:19:52 | B18: 0.1011342593 | C18: 229.2 | D18: 221 West Service Road, Champlain, NY, 12919, United States | E18: (-) Conduite | G18: - | K18: 0 | M18: 0
A19: 2017-01-03T16:45:30 | B19: 0.03010416667 | C19: 0.09999999998 | D19: 209 Ballard Road, Gansevoort, NY, 12831, United States | E19: (4) Pause | G19: - | K19: 0 | M19: 0
A20: 2017-01-03T17:28:51 | B20: 0.08328703704 | C20: 193.8 | D20: 211 Ballard Road, Gansevoort, NY, 12831, United States | E20: (-) Conduite | G20: - | K20: 0 | M20: 0
A21: 2017-01-03T19:28:47 | B21: 0.003993055556 | D21: 251-297 Quaker Street, Wallkill, NY, 12589, United States | E21: (45) T.L.C. | G21: - | K21: 0 | M21: 0
A22: 2017-01-03T19:34:32 | B22: 0.0001967592593 | D22: 251-297 Quaker Street, Wallkill, NY, 12589, United States | E22: (45) T.L.C. | G22: - | K22: 0 | M22: 0
A23: 2017-01-03T19:34:49 | B23: 0.08678240741 | C23: 172.9 | D23: 251-297 Quaker Street, Wallkill, NY, 12589, United States | E23: (-) Conduite | G23: - | K23: 0 | M23: 0
A24: 2017-01-03T21:39:47 | B24: 0.09737268519 | C24: 0.2 | D24: 17 West Stepar Place, Huntington Station, NY, 11746, United States | E24: (2) Couchette | G24: - | K24: 0 | M24: 0
A25: 734.7999878 | G25: - | K25: 0 | M25: 0
A26: 2017-01-04T07:46:03 | B26: 0.007222222222 | C26: 0.09999999998 | D26: 3 West Stepar Place, Huntington Station, NY, 11746, United States | E26: (51) Décharger No commande: 90742 Voyage: Régulier Nom du client: shadow TOILE: False TWIC: False PRIME N.Y: False Signature B/L: Oui ODOMÈTRE: 895713,085 | G26: - | K26: 1 | M26: 0
A27: 2017-01-04T07:56:27 | B27: 0.0001041666667 | D27: 12-42 West Stepar Place, Huntington Station, NY, 11746, United States | E27: (40) V.A.D. VEHICLE_NO: 2013139 | G27: - | K27: 0 | M27: 0
A28: 2017-01-04T07:56:36 | B28: 0.01069444444 | D28: 12-42 West Stepar Place, Huntington Station, NY, 11746, United States | E28: (40) V.A.D. EQUIPMENT_NAME: 20204 | G28: - | K28: 0 | M28: 0
A29: 2017-01-04T08:12:00 | B29: 0.08462962963 | C29: 141.5 | D29: 10 West Stepar Place, Huntington Station, NY, 11746, United States | E29: (-) Conduite | G29: - | K29: 0 | M29: 0
A30: 2017-01-04T10:13:52 | B30: 0.005 | C30: 0.2000000001 | D30: New Jersey Turnpike, Monroe Township, NJ, 08831, United States | E30: (45) T.L.C. | G30: - | K30: 0 | M30: 0
A31: 2017-01-04T10:21:04 | B31: 0.01953703704 | C31: 32.1 | D31: New Jersey Turnpike, Monroe Township, NJ, 08831, United States | E31: (-) Conduite | G31: - | K31: 0 | M31: 0
A32: 2017-01-04T10:49:12 | B32: 0.02072916667 | C32: 0.2 | D32: 402 Rising Sun Road, Bordentown, NJ, 08505, United States | E32: (-) Service | G32: - | K32: 0 | M32: 0
A33: 2017-01-04T11:19:03 | B33: 0.05486111111 | C33: 120.3 | D33: 402 Rising Sun Road, Bordentown, NJ, 08505, United States | E33: (-) Conduite | G33: - | K33: 0 | M33: 0
A34: 2017-01-04T12:38:03 | B34: 0.02130787037 | C34: 0.4 | D34: 221 Belle Hill Road, Elkton, MD, 21921, United States | E34: (4) Pause | G34: - | K34: 0 | M34: 0
A35: 2017-01-04T13:08:44 | B35: 0.002974537037 | C35: 0.4 | D35: 225 Belle Hill Road, Elkton, MD, 21921, United States | E35: (64) Carburant (presser et remplir) Fournisseur: Shell/Flying J - TCH MÉTHODE DE PAIEMENT: TCH - SHELL/FLYING J MONTANT: 416 Qte de Carburant: 171 Unité: False Unité: False | G35: - | K35: 0 | M35: 0
A36: 2017-01-04T13:13:01 | B36: 0.08943287037 | C36: 191 | D36: 225 Belle Hill Road, Elkton, MD, 21921, United States | E36: (-) Conduite | G36: - | K36: 0 | M36: 0
A37: 2017-01-04T15:21:48 | B37: 0.0003009259259 | C37: 0.09999999998 | D37: Henry G. Shirley Memorial Highway, Newington, VA, United States | E37: (45) T.L.C. | G37: - | K37: 0 | M37: 0
A38: 2017-01-04T15:22:14 | B38: 0.1296527778 | C38: 262.8 | D38: Henry G. Shirley Memorial Highway, Newington, VA, United States | E38: (-) Conduite | G38: - | K38: 0 | M38: 0
A39: 2017-01-04T18:28:56 | B39: 0.0416087963 | C39: 0.1000000001 | D39: 781 Moore's Ferry Road, Skippers, VA, 23879, United States | E39: (4) Pause | G39: - | K39: 0 | M39: 0
A40: 2017-01-04T19:28:51 | B40: 0.0796412037 | C40: 181.1 | D40: 749 Moore's Ferry Road, Skippers, VA, 23879, United States | E40: (-) Conduite | G40: - | K40: 0 | M40: 0
A41: 2017-01-04T21:23:32 | B41: 0.1086574074 | D41: 427 Jonesboro Road, Dunn, NC, 28334, United States | E41: (2) Couchette | G41: - | K41: 0 | M41: 0
A42: 928.7999878 | G42: - | K42: 0 | M42: 0
A43: 2017-01-05T07:24:21 | B43: 0.000162037037 | D43: 427 Jonesboro Road, Dunn, NC, 28334, United States | E43: (40) V.A.D. VEHICLE_NO: 2013139 | G43: - | K43: 0 | M43: 0
A44: 2017-01-05T07:24:35 | B44: 0.01150462963 | C44: 0.09999999998 | D44: 427 Jonesboro Road, Dunn, NC, 28334, United States | E44: (40) V.A.D. EQUIPMENT_NAME: 20204 | G44: - | K44: 0 | M44: 0
A45: 2017-01-05T07:41:09 | B45: 0.05547453704 | C45: 123.1 | D45: 65 Sadler Road, Dunn, NC, 28334, United States | E45: (-) Conduite | G45: - | K45: 0 | M45: 0
A46: 2017-01-05T09:01:02 | B46: 0.007662037037 | D46: 3238-3240 U.S. 301, Hamer, SC, 29547, United States | E46: (45) T.L.C. | G46: - | K46: 0 | M46: 0
A47: 2017-01-05T09:12:04 | B47: 0.02071759259 | C47: 37.3 | D47: 3240 U.S. 301, Hamer, SC, 29547, United States | E47: (-) Conduite | G47: - | K47: 0 | M47: 0
A48: 2017-01-05T09:41:54 | B48: 0.0003703703704 | C48: 0.09999999998 | D48: Interstate 95, Florence, SC, 29506, United States | E48: (45) T.L.C. | G48: - | K48: 0 | M48: 0
A49: 2017-01-05T09:42:26 | B49: 0.02857638889 | C49: 60.8 | D49: Interstate 95, Florence, SC, 29506, United States | E49: (-) Conduite | G49: - | K49: 0 | M49: 0
A50: 2017-01-05T10:23:35 | B50: 0.007453703704 | D50: Interstate 95, Lynchburg, SC, 29080, United States | E50: (45) T.L.C. | G50: - | K50: 0 | M50: 0
A51: 2017-01-05T10:34:19 | B51: 0.1020023148 | C51: 229 | D51: Interstate 95, Lynchburg, SC, 29080, United States | E51: (-) Conduite | G51: - | K51: 0 | M51: 0
A52: 2017-01-05T13:01:12 | B52: 0.001597222222 | D52: Interstate 95, Port Wentworth, GA, 31407, United States | E52: (45) T.L.C. | G52: - | K52: 0 | M52: 0
A53: 2017-01-05T13:03:30 | B53: 0.07633101852 | C53: 177.1 | D53: Interstate 95, Port Wentworth, GA, 31407, United States | E53: (-) Conduite | G53: - | K53: 0 | M53: 0
A54: 2017-01-05T14:53:25 | B54: 0.02038194444 | C54: 0.2999999999 | D54: 1376 Scrubby Bluff Road, Kingsland, GA, 31548, United States | E54: (4) Pause | G54: - | K54: 0 | M54: 0
A55: 2017-01-05T15:22:46 | B55: 0.001956018519 | D55: 2518 Scrubby Bluff Road, Kingsland, GA, 31548, United States | E55: (4) Pause | G55: - | K55: 0 | M55: 0
A56: 2017-01-05T15:25:35 | B56: 0.00275462963 | C56: 1.6 | D56: 2518 Scrubby Bluff Road, Kingsland, GA, 31548, United States | E56: (64) Carburant (presser et remplir) Fournisseur: Shell/Flying J - TCH MÉTHODE DE PAIEMENT: TCH - SHELL/FLYING J MONTANT: 315 Qte de Carburant: 118 Unité: False Unité: False | G56: - | K56: 0 | M56: 0
A57: 2017-01-05T15:29:33 | B57: 0.1778819444 | C57: 408.9 | D57: Interstate 95, Kingsland, GA, 31548, United States | E57: (-) Conduite | G57: - | K57: 0 | M57: 0
A58: 2017-01-05T19:45:42 | B58: 0.1765972222 | C58: 1.4 | D58: Access Road, Fort Pierce, FL, 34947, United States | E58: (2) Couchette | G58: - | K58: 0 | M58: 0
A59: 1036.199951 | G59: - | K59: 0 | M59: 0
A60: 2017-01-06T05:46:02 | B60: 0.0001157407407 | D60: Interstate 95, Fort Pierce, FL, 34947, United States | E60: (40) V.A.D. VEHICLE_NO: 2013139 | G60: - | K60: 0 | M60: 0
A61: 2017-01-06T05:46:12 | B61: 0.00412037037 | C61: 0.3 | D61: Interstate 95, Fort Pierce, FL, 34947, United States | E61: (40) V.A.D. EQUIPMENT_NAME: 20204 | G61: - | K61: 0 | M61: 0
A62: 2017-01-06T05:52:08 | B62: 0.1261111111 | C62: 236.6 | D62: 100 North Kings Highway, Fort Pierce, FL, 34945, United States | E62: (-) Conduite | G62: - | K62: 0 | M62: 0
A63: 2017-01-06T08:53:44 | B63: 0.01623842593 | C63: 0.9 | D63: 2305 Northwest 107th Avenue, Doral, FL, 33172, United States | E63: (-) Service | G63: - | K63: 0 | M63: 0
A64: 2017-01-06T09:17:07 | B64: 0.02149305556 | C64: 17.1 | D64: 10560-10640 Northwest 25th Street, Doral, FL, 33172, United States | E64: (-) Conduite | G64: - | K64: 0 | M64: 0
A65: 2017-01-06T09:48:04 | B65: 0.001909722222 | C65: 0.2 | D65: 8050 Northwest 79th Avenue, Medley, FL, 33166, United States | E65: (-) Service | G65: - | K65: 0 | M65: 0
A66: 2017-01-06T09:50:49 | B66: 0.0002662037037 | C66: 0.1000000001 | D66: 8050 Northwest 79th Avenue, Medley, FL, 33166, United States | E66: (-) Conduite | G66: - | K66: 0 | M66: 0
A67: 2017-01-06T09:51:12 | B67: 0.002152777778 | C67: 0.09999999998 | D67: 8696 Northwest 77th Court, Medley, FL, 33166, United States | E67: (-) Service | G67: - | K67: 0 | M67: 0 | N67: =IFERROR(IF(LEFT(MID($E67,SEARCH("Largeur pi-po",$E67,1)+15,100),2)*1<12,LEFT(MID($E67,SEARCH("Largeur pi-po",$E67,1)+15,100),2)*1,""),"") ->  | O67: =IFERROR(IF(LEFT(MID($E67,SEARCH("Largeur pi-po",$E67,1)+15,100),2)*1>=12,LEFT(MID($E67,SEARCH("Largeur pi-po",$E67,1)+15,100),2)*1,""),"") -> 
A68: 2017-01-06T09:54:18 | B68: 0.000462962963 | C68: 0.09999999998 | D68: 8090 Northwest 77th Court, Medley, FL, 33166, United States | E68: (-) Conduite | F68: =IF(ISERROR(SEARCH("ATTENTE",E68)),"",$B68) ->  | G68: =IF(COUNTIF(E68,"*Formation*")+COUNTIF(E68,"*Travail de cours*")+COUNTIF(E68,"*réunion*")+COUNTIF(E68,"*escorte routière*")+COUNTIF(E68,"*courte distance*")>0,B68,"-") -> - | H68: =IF(ISERROR(SEARCH("superload: True",E68)),"",$B68) ->  | I68: =IF(ISERROR(SEARCH("Douane",E68)),"",1) ->  | J68: =IF(ISERROR(SEARCH("transport explosif",E68)),"",1) ->  | K68: =IF(COUNTIF(E68,"*toile: true*"),1,0)+IF(COUNTIF(E68,"*charger*"),1,0)+IF(COUNTIF(E68,"*déchargr*"),1,0)+IF(COUNTIF(E68,"*CHARGÉ: TRUE*"),1,0) -> 0 | L68: =IF(ISERROR(SEARCH("TWIC: True",E68)),"",1) ->  | M68: =LEN($N68) -> 0 | P68: =IF(N68<12,1,"") ->  | Q68: =IF(O68="","",IF(O68>=12,1,"")) ->  | R68: =IF(ISERROR(SEARCH("PRIME N.Y: True",E68)),"",1) ->  | S68: =IF(ISERROR(SEARCH("Journée non complète",E68)),"",1) ->  | T68: =IF(ISERROR(SEARCH("Fin de semaine",E68)),"",1) ->  | U68: =IF(ISERROR(SEARCH("1 Journée compète semaine",E68)),"",1) ->  | V68: =IF(ISERROR(SEARCH("Arrêt obligatoir (36H)",E68)),"",1) -> 
A69: 2017-01-06T09:54:58 | B69: 0.02025462963 | C69: 0.2 | D69: 8696 Northwest 77th Court, Medley, FL, 33166, United States | E69: (51) Décharger No commande: 90532 Voyage: Régulier Nom du client: pinto:-) TOILE: False TWIC: False PRIME N.Y: False Signature B/L: Oui ODOMÈTRE: 897938.5 | G69: - | K69: 1 | M69: 0
A70: 2017-01-06T10:24:08 | B70: 0.008738425926 | C70: 10.8 | D70: 8050 Northwest 79th Avenue, Medley, FL, 33166, United States | E70: (-) Conduite | G70: - | K70: 0 | M70: 0
A71: 2017-01-06T10:36:43 | B71: 0.0003240740741 | D71: Palmetto Expressway, Miami Lakes, FL, 33014, United States | E71: (-) Service | G71: - | K71: 0 | M71: 0
A72: 2017-01-06T10:37:11 | B72: 0.01875 | C72: 21.3 | D72: Palmetto Expressway, Miami Lakes, FL, 33014, United States | E72: (-) Conduite | G72: - | K72: 0 | M72: 0
A73: 2017-01-06T11:04:11 | B73: 0.001458333333 | D73: 2880 South Park Road, Hallandale Beach, FL, 33009, United States | E73: (-) Service | G73: - | K73: 0 | M73: 0
A74: 2017-01-06T11:06:17 | B74: 0.002928240741 | C74: 0.8999999999 | D74: 2802 South Park Road, Hallandale Beach, FL, 33009, United States | E74: (-) Conduite | G74: - | K74: 0 | M74: 0
A75: 2017-01-06T11:10:30 | B75: 0.0040625 | C75: 0.4 | D75: 2980-2998 Country Club Lane, Hallandale Beach, FL, 33009, United States | E75: (-) Service | G75: - | K75: 0 | M75: 0
A76: 2017-01-06T11:16:21 | B76: 0.001516203704 | C76: 0.3 | D76: 2921-2939 Country Club Lane, Hallandale Beach, FL, 33009, United States | E76: (-) Conduite | G76: - | K76: 0 | M76: 0
A77: 2017-01-06T11:18:32 | B77: 0.03739583333 | C77: 0.2999999999 | D77: 3030 Hallandale Beach Boulevard, Hallandale Beach, FL, 33009, United States | E77: (49) Charger No commande: 90889 TOILE: False TWIC: False PRIME N.Y: False Signature B/L: Oui | G77: - | K77: 1 | M77: 0
A78: 2017-01-06T12:12:23 | B78: 0.02084490741 | C78: 10.8 | D78: 2901-2909 Southwest 30th Avenue, Hallandale Beach, FL, 33009, United States | E78: (-) Conduite | G78: - | K78: 0 | M78: 0
A79: 2017-01-06T12:42:24 | B79: 0.005219907407 | D79: 501-569 North Park Road, Hollywood, FL, 33021, United States | E79: (-) Service | G79: - | K79: 0 | M79: 0
A80: 2017-01-06T12:49:55 | B80: 0.0008217592593 | C80: 0.09999999998 | D80: 501-569 North Park Road, Hollywood, FL, 33021, United States | E80: (-) Conduite | G80: - | K80: 0 | M80: 0
A81: 2017-01-06T12:51:06 | B81: 0.1534606481 | C81: 0.09999999998 | D81: 3262 Pierce Street, Hollywood, FL, 33021, United States | E81: (4) Pause | G81: - | K81: 0 | M81: 0
A82: 2017-01-06T16:32:05 | B82: 0.01515046296 | C82: 8.2 | D82: 600 North Park Road, Hollywood, FL, 33021, United States | E82: (-) Conduite | G82: - | K82: 0 | M82: 0
A83: 2017-01-06T16:53:54 | B83: 0.2959027778 | C83: 0.3 | D83: 3301 Northeast 213th Street, Hallandale Beach, FL, 33009, United States | E83: (4) Pause | G83: - | K83: 0 | M83: 0 | S83: 1
A84: 306.2999878 | G84: - | K84: 0 | M84: 0
A85: 2017-01-07T06:13:41 | B85: 0.08447916667 | D85: Northeast 213th Street, Hallandale Beach, FL, 33009, United States | E85: (-) Conduite | G85: - | K85: 0 | M85: 0
A86: 2017-01-07T08:15:20 | B86: 0.01037037037 | D86: 256 North Kings Highway, Fort Pierce, FL, 34947, United States | E86: (64) Carburant (presser et remplir) Fournisseur: Shell/Flying J - TCH MÉTHODE DE PAIEMENT: TCH - SHELL/FLYING J MONTANT: 268 Qte de Carburant: 94 Unité: False Unité: False | G86: - | K86: 0 | M86: 0
A87: 2017-01-07T08:30:16 | B87: 0.0008564814815 | D87: 100 North Kings Highway, Fort Pierce, FL, 34945, United States | E87: (-) Conduite | G87: - | K87: 0 | M87: 0
A88: 2017-01-07T08:31:30 | B88: 0.2571180556 | D88: 100 North Kings Highway, Fort Pierce, FL, 34945, United States | E88: (4) Pause | G88: - | K88: 0 | M88: 0
A89: 2017-01-07T14:41:45 | B89: 0.3876736111 | D89: 100 North Kings Highway, Fort Pierce, FL, 34945, United States | E89: (3) Fin travail | G89: - | K89: 0 | M89: 0 | T89: 1
A90: 188.3999939 | G90: - | K90: 0 | M90: 0
R91: =IF(ISERROR(SEARCH("PRIME N.Y: True",E91)),"",1) -> 
M92: commentaire
A93: Contact | E93: =SUM($K$3:K341) -> 3
A95: Kilométrage milles | E95: =A96*0.6214 -> 1873.27244
A96: =SUM($C$3:C394) -> 3014.6
A97: Over size kilométrage -10' | E97: =A98*0.6214 -> 0
A98: =MAX(C91:C387)-MIN(C91:C387) -> 0
A99: Over size kilométrage +10' | E99: =A100*0.6214 -> 0
A100: =MAX(C91:C387)-MIN(C91:C387) -> 0
A101: journée non complète | E101: =SUM($S$3:S341) -> 1 | F101: 6 janv. 306km
A103: Arrêt journée de semaine | E103: =SUM($U$3:$U339) -> 0
A105: Arrêt journée de fin semaine | E105: =SUM($T$3:$T339) -> 1
A107: Arrêt obligatoir 36h | E107: =SUM($V$3:$V339) -> 0
A109: Prime Surdimention 12' et moin | E109: =SUM($P$3:P341) -> 0
A111: Prime Surdimention 12' et plus | E111: =SUM($Q$3:Q343) -> 0
A113: TRAVAIL DE VILLE | E113: =SUM($G$3:G341) -> 00:00:00
A115: Prime New York | E115: =SUM(R3:R387) -> 0
A117: TWICK | E117: =SUM($L$3:L341) -> 0
A119: Douane | E119: =SUM($I$3:I341) -> 1
A121: Attente chargement | E121: =SUM($F$3:F341) -> 00:00:00

Sheet Desrochers C
B1: Desroches Caroline | E1: 02:00:00 | F1: Semaine du | N1: =#REF! ->  | T1: =#REF! -> 
A2: DATE / HEURES | B2: TEMPS | C2: ODOMÈTRE | D2: lieu | E2: Activité | F2: ATTENTE (HEURE) | G2: VILLE ET MANUTENTION (HEURE) | H2: SUPERLOAD (HEURE) | I2: DOUANES | J2: Transport explosif | K2: CONTACTS | L2: TWICK | N2: Surdimension 12' et moin | O2: Surdimension 12' et plus | P2: prime surdimenssion 12' et moin | Q2: prime surdimenssion 12' et plus | R2: PRIME NEW YORK | S2: ARRÊT JOURNÉE NON-COMPLÈTE | T2: ARRÊT CONPLET- JOURNÉE DE FIN DE SEMAINE | U2: ARRÊT JOURNÉE DE SEMAINE | V2: Arrêt obligatoir 36h | W2: Opérateur | X2: Numéro de véhicule | Y2: Date de début | Z2: Ville | AA2: État / Province | AB2: Pays | AC2: No commande | AD2: LAYOVER | AE2: Montant
F3: =IF(ISERROR(SEARCH("ATTENTE",E3)),"",$B3) ->  | G3: =IF(COUNTIF(E3,"*Formation*")+COUNTIF(E3,"*Travail de cours*")+COUNTIF(E3,"*réunion*")+COUNTIF(E3,"*escorte routière*")+COUNTIF(E3,"*courte distance*")>0,B3,"-") -> - | H3: =IF(ISERROR(SEARCH("superload: True",E3)),"",$B3) ->  | I3: =IF(ISERROR(SEARCH("Douane",E3)),"",1) ->  | J3: =IF(ISERROR(SEARCH("transport explosif",E3)),"",1) ->  | K3: =IF(COUNTIF(E3,"*toile: true*"),1,0)+IF(COUNTIF(E3,"*charger*"),1,0)+IF(COUNTIF(E3,"*déchargr*"),1,0)+IF(COUNTIF(E3,"*CHARGÉ: TRUE*"),1,0) -> 0 | L3: =IF(ISERROR(SEARCH("TWIC: True",E3)),"",1) ->  | M3: =LEN($N3) -> 0 | N3: =IFERROR(IF(LEFT(MID($E3,SEARCH("Largeur pi-po",$E3,1)+15,100),2)*1<12,LEFT(MID($E3,SEARCH("Largeur pi-po",$E3,1)+15,100),2)*1,""),"") ->  | O3: =IFERROR(IF(LEFT(MID($E3,SEARCH("Largeur pi-po",$E3,1)+15,100),2)*1>=12,LEFT(MID($E3,SEARCH("Largeur pi-po",$E3,1)+15,100),2)*1,""),"") ->  | P3: =IF(N3<12,1,"") ->  | Q3: =IF(O3="","",IF(O3>=12,1,"")) ->  | R3: =IF(ISERROR(SEARCH("PRIME N.Y: True",E3)),"",1) ->  | S3: =IF(ISERROR(SEARCH("Journée non complète",E3)),"",1) ->  | T3: =IF(ISERROR(SEARCH("Fin de semaine",E3)),"",1) ->  | U3: =IF(ISERROR(SEARCH("1 Journée compète semaine",E3)),"",1) ->  | V3: =IF(ISERROR(SEARCH("Arrêt obligatoir (36H)",E3)),"",1) -> 
A4: 2017-01-01T19:25:20 | B4: 0.1907407407 | D4: 100 North Kings Highway, Fort Pierce, FL, 34945, United States | E4: (53) Layover No commande: 90531 LAYOVER: Fin de semaine Commentaires: client fermé, livraison impossible | F4: =IF(ISERROR(SEARCH("ATTENTE",E4)),"",$B4) ->  | G4: =IF(COUNTIF(E4,"*Formation*")+COUNTIF(E4,"*Travail de cours*")+COUNTIF(E4,"*réunion*")+COUNTIF(E4,"*escorte routière*")+COUNTIF(E4,"*courte distance*")>0,B4,"-") -> - | H4: =IF(ISERROR(SEARCH("superload: True",E4)),"",$B4) ->  | I4: =IF(ISERROR(SEARCH("Douane",E4)),"",1) ->  | J4: =IF(ISERROR(SEARCH("transport explosif",E4)),"",1) ->  | K4: =IF(COUNTIF(E4,"*toile: true*"),1,0)+IF(COUNTIF(E4,"*charger*"),1,0)+IF(COUNTIF(E4,"*déchargr*"),1,0)+IF(COUNTIF(E4,"*CHARGÉ: TRUE*"),1,0) -> 0 | L4: =IF(ISERROR(SEARCH("TWIC: True",E4)),"",1) ->  | M4: =LEN($N4) -> 0 | N4: =IFERROR(IF(LEFT(MID($E4,SEARCH("Largeur pi-po",$E4,1)+15,100),2)*1<12,LEFT(MID($E4,SEARCH("Largeur pi-po",$E4,1)+15,100),2)*1,""),"") ->  | O4: =IFERROR(IF(LEFT(MID($E4,SEARCH("Largeur pi-po",$E4,1)+15,100),2)*1>=12,LEFT(MID($E4,SEARCH("Largeur pi-po",$E4,1)+15,100),2)*1,""),"") ->  | P4: =IF(N4<12,1,"") ->  | Q4: =IF(O4="","",IF(O4>=12,1,"")) ->  | R4: =IF(ISERROR(SEARCH("PRIME N.Y: True",E4)),"",1) ->  | S4: =IF(ISERROR(SEARCH("Journée non complète",E4)),"",1) ->  | T4: =IF(ISERROR(SEARCH("Fin de semaine",E4)),"",1) -> 1 | U4: =IF(ISERROR(SEARCH("1 Journée compète semaine",E4)),"",1) ->  | V4: =IF(ISERROR(SEARCH("Arrêt obligatoir (36H)",E4)),"",1) -> 
A5: 0 | G5: - | K5: 0 | M5: 0
A6: 2017-01-02T04:48:13 | B6: 0.0001157407407 | D6: 100 North Kings Highway, Fort Pierce, FL, 34945, United States | E6: (40) V.A.D. VEHICLE_NO: 2017316 | G6: - | K6: 0 | M6: 0
A7: 2017-01-02T04:48:23 | B7: 0.01193287037 | D7: 100 North Kings Highway, Fort Pierce, FL, 34945, United States | E7: (40) V.A.D. EQUIPMENT_NAME: 20202 | G7: - | K7: 0 | M7: 0
A8: 2017-01-02T05:05:34 | B8: 0.1008217593 | D8: 135-195 North Kings Highway, Fort Pierce, FL, 34945, United States | E8: (-) Conduite | G8: - | K8: 0 | M8: 0
A9: 2017-01-02T07:30:45 | B9: 0.05298611111 | D9: 10560-10640 Northwest 25th Street, Doral, FL, 33172, United States | E9: (4) Pause | G9: - | K9: 0 | M9: 0
A10: 2017-01-02T08:47:03 | B10: 0.6339930556 | D10: 1068 Northwest 25th Street, Doral, FL, 33172, United States | E10: (53) Layover No commande: 90531 LAYOVER: 1 Journée compète semaine Commentaires: ok JF ok LV | G10: - | K10: 0 | M10: 0 | U10: 1
A11: 224 | G11: - | K11: 0 | M11: 0
A12: 2017-01-03T08:04:11 | B12: 9.259259259e-05 | D12: 1068 Northwest 25th Street, Doral, FL, 33172, United States | E12: (40) V.A.D. VEHICLE_NO: 2017316 | G12: - | K12: 0 | M12: 0
A13: 2017-01-03T08:04:19 | B13: 0.01268518519 | C13: 0.2 | D13: 1068 Northwest 25th Street, Doral, FL, 33172, United States | E13: (40) V.A.D. EQUIPMENT_NAME: 20202 | G13: - | K13: 0 | M13: 0
A14: 2017-01-03T08:22:35 | B14: 0.01648148148 | C14: 10 | D14: 10352-10558 Northwest 25th Street, Doral, FL, 33172, United States | E14: (-) Conduite | G14: - | K14: 0 | M14: 0
A15: 2017-01-03T08:46:19 | B15: 0.02478009259 | C15: 0.6 | D15: 8001-8721 Northwest 79th Avenue, Medley, FL, 33166, United States | E15: (51) Décharger No commande: 90531 Voyage: Régulier Nom du client: seaboard maribe TOILE: False TWIC: False PRIME N.Y: False Signature B/L: Oui ODOMÈTRE: 89434.54 | G15: - | K15: 1 | M15: 0
A16: 2017-01-03T09:22:00 | B16: 0.05940972222 | C16: 0.5 | D16: 8050 Northwest 79th Avenue, Medley, FL, 33166, United States | E16: (4) Pause | G16: - | K16: 0 | M16: 0
A17: 2017-01-03T10:47:33 | B17: 0.1599305556 | C17: 359.9 | D17: 6243 Northwest 79th Avenue, Miami, FL, 33166, United States | E17: (-) Conduite | G17: - | K17: 0 | M17: 0
A18: 2017-01-03T14:37:51 | B18: 0.004212962963 | D18: Interstate 95, Mims, FL, 32754, United States | E18: (4) Pause | G18: - | K18: 0 | M18: 0
A19: 2017-01-03T14:43:55 | B19: 0.04259259259 | C19: 97.4 | D19: Interstate 95, Mims, FL, 32754, United States | E19: (-) Conduite | G19: - | K19: 0 | M19: 0
A20: 2017-01-03T15:45:15 | B20: 0.02601851852 | D20: Interstate 95, Palm Coast, FL, 32164, United States | E20: (54) Attente en service No commande: 0 CONTRÔLE ROUTIER: True Traversier: False | G20: - | K20: 0 | M20: 0
A21: 2017-01-03T16:22:43 | B21: 0.07586805556 | C21: 156.8 | D21: Interstate 95, Palm Coast, FL, 32164, United States | E21: (-) Conduite | G21: - | K21: 0 | M21: 0
A22: 2017-01-03T18:11:58 | B22: 0.02118055556 | C22: 0.4 | D22: 433-435 Haddock Road, Kingsland, GA, 31548, United States | E22: (4) Pause | G22: - | K22: 0 | M22: 0
A23: 2017-01-03T18:42:28 | B23: 0.1311342593 | C23: 308.4 | D23: 1973 Haddock Road, Kingsland, GA, 31548, United States | E23: (-) Conduite | G23: - | K23: 0 | M23: 0
A24: 2017-01-03T21:51:18 | B24: 0.003483796296 | D24: 9587 Charleston Highway, Saint George, SC, 29477, United States | E24: (64) Carburant (presser et remplir) Fournisseur: Shell/Flying J - TCH MÉTHODE DE PAIEMENT: TCH - SHELL/FLYING J MONTANT: 124.95 Qte de Carburant: 50.002 Unité: False D.E.F.: 0 Unité: False | G24: - | K24: 0 | M24: 0
A25: 2017-01-03T21:56:19 | B25: 0.0858912037 | C25: 0.2 | D25: 9587 Charleston Highway, Saint George, SC, 29477, United States | E25: (2) Couchette | G25: - | K25: 0 | M25: 0
A26: 932.5 | G26: - | K26: 0 | M26: 0
A27: 2017-01-04T07:56:30 | B27: 0.0001041666667 | D27: 9587 Charleston Highway, Saint George, SC, 29477, United States | E27: (40) V.A.D. VEHICLE_NO: 2017316 | G27: - | K27: 0 | M27: 0
A28: 2017-01-04T07:56:39 | B28: 0.01116898148 | C28: 0.2 | D28: 9587 Charleston Highway, Saint George, SC, 29477, United States | E28: (40) V.A.D. EQUIPMENT_NAME: 20202 | G28: - | K28: 0 | M28: 0
A29: 2017-01-04T08:12:44 | B29: 0.1172222222 | C29: 263.7 | D29: 9587 U.S. 178, Saint George, SC, 29477, United States | E29: (-) Conduite | G29: - | K29: 0 | M29: 0
A30: 2017-01-04T11:01:32 | B30: 0.005185185185 | C30: 0.1 | D30: 250 East Warehouse Court, Taylors, SC, 29687, United States | E30: (4) Pause | G30: - | K30: 0 | M30: 0
A31: 2017-01-04T11:09:00 | B31: 0.005613425926 | C31: 1.6 | D31: 4041 Tappan Drive, Taylors, SC, 29687, United States | E31: (-) Conduite | G31: - | K31: 0 | M31: 0
A32: 2017-01-04T11:17:05 | B32: 0.01971064815 | C32: 0.6 | D32: 2 Space Drive, Taylors, SC, 29687, United States | E32: (49) Charger No commande: 90812 Nom du client: calder brothers TOILE: False TWIC: False PRIME N.Y: False Signature B/L: Oui | F32: 00:50:00 | G32: - | K32: 1 | M32: 0
A33: 2017-01-04T11:45:28 | B33: 0.08003472222 | C33: 0.09999999999 | D33: 2 Space Drive, Taylors, SC, 29687, United States | E33: (4) Pause | G33: - | K33: 0 | M33: 0
A34: 2017-01-04T13:40:43 | B34: 0.004236111111 | C34: 0.1 | D34: 98 Space Drive, Taylors, SC, 29687, United States | E34: (67) Photo No commande: 90812 | G34: - | K34: 0 | M34: 0
A35: 2017-01-04T13:46:49 | B35: 0.1484375 | C35: 296.7 | D35: 5 Space Drive, Taylors, SC, 29687, United States | E35: (-) Conduite | G35: - | K35: 0 | M35: 0
A36: 2017-01-04T17:20:34 | B36: 0.006157407407 | C36: 0.1 | D36: 141-447 Surratt Drive, Lambsburg, VA, 24351, United States | E36: (45) T.L.C. | G36: - | K36: 0 | M36: 0
A37: 2017-01-04T17:29:26 | B37: 0.1758912037 | C37: 397.1 | D37: 447 Surratt Drive, Lambsburg, VA, 24351, United States | E37: (-) Conduite | G37: - | K37: 0 | M37: 0
A38: 2017-01-04T21:42:43 | B38: 0.09533564815 | C38: 0.3 | D38: Jennings Randolph Highway, Bridgeport, WV, 26330, United States | E38: (2) Couchette | G38: - | K38: 0 | M38: 0
A39: 959.0999756 | G39: - | K39: 0 | M39: 0
A40: 2017-01-05T07:49:01 | B40: 0.0001157407407 | D40: Jennings Randolph Highway, Bridgeport, WV, 26330, United States | E40: (40) V.A.D. VEHICLE_NO: 2017316 | G40: - | K40: 0 | M40: 0
A41: 2017-01-05T07:49:11 | B41: 0.01040509259 | D41: Jennings Randolph Highway, Bridgeport, WV, 26330, United States | E41: (40) V.A.D. EQUIPMENT_NAME: 20202 | G41: - | K41: 0 | M41: 0
A42: 2017-01-05T08:04:10 | B42: 0.01835648148 | C42: 37 | D42: Jennings Randolph Highway, Bridgeport, WV, 26330, United States | E42: (-) Conduite | G42: - | K42: 0 | M42: 0
A43: 2017-01-05T08:30:36 | B43: 0.008472222222 | C43: 0.3 | D43: 2309 Smithtown Road, Morgantown, WV, 26508, United States | E43: (64) Carburant (presser et remplir) Fournisseur: Shell/Flying J - TCH MÉTHODE DE PAIEMENT: TCH - SHELL/FLYING J MONTANT: 334.92 Qte de Carburant: 121.393 Unité: False D.E.F.: 5.784 Unité: False | G43: - | K43: 0 | M43: 0
A44: 2017-01-05T08:42:48 | B44: 0.04583333333 | C44: 104.7 | D44: 2310 Smithtown Road, Morgantown, WV, 26508, United States | E44: (-) Conduite | G44: - | K44: 0 | M44: 0
A45: 2017-01-05T09:48:48 | B45: 0.01755787037 | D45: Raymond P Shafer Highway, Bridgeville, PA, 15017, United States | E45: (54) Attente en service No commande: 90821 CONTRÔLE ROUTIER: True Traversier: False | G45: - | K45: 0 | M45: 0
A46: 2017-01-05T10:14:05 | B46: 0.03850694444 | C46: 78.9 | D46: Raymond P Shafer Highway, Bridgeville, PA, 15017, United States | E46: (-) Conduite | G46: - | K46: 0 | M46: 0
A47: 2017-01-05T11:09:32 | B47: 0.02631944444 | C47: 0.2 | D47: 915 Clyde Street, Wampum, PA, 16157, United States | E47: (49) Charger No commande: 90821 Nom du client: universal refractories TOILE: True TWIC: False PRIME N.Y: False Signature B/L: Oui | G47: - | K47: 2 | M47: 0
A48: 2017-01-05T11:47:26 | B48: 0.180775463 | C48: 0.6 | D48: 378 Main Street, Wampum, PA, 16157, United States | E48: (4) Pause | G48: - | K48: 0 | M48: 0
A49: 2017-01-05T16:07:45 | B49: 0.1587037037 | C49: 277.8 | D49: 1043-1051 Pennsylvania 18, Wampum, PA, 16157, United States | E49: (-) Conduite | G49: - | K49: 0 | M49: 0
A50: 2017-01-05T19:56:17 | B50: 0.1692476852 | C50: 0.5 | D50: Governor Thomas E. Dewey Thruway, Angola, NY, 14006, United States | E50: (2) Couchette | G50: - | K50: 0 | M50: 0
A51: 498.3999939 | G51: - | K51: 0 | M51: 0
A52: 2017-01-06T05:56:47 | B52: 0.0001041666667 | D52: I-90 New York State Thruway, Angola, NY, 14006, United States | E52: (40) V.A.D. VEHICLE_NO: 2017316 | G52: - | K52: 0 | M52: 0
A53: 2017-01-06T05:56:56 | B53: 0.008449074074 | D53: I-90 New York State Thruway, Angola, NY, 14006, United States | E53: (40) V.A.D. EQUIPMENT_NAME: 20202 | G53: - | K53: 0 | M53: 0
A54: 2017-01-06T06:09:06 | B54: 0.1865046296 | C54: 417.5 | D54: I-90 New York State Thruway, Angola, NY, 14006, United States | E54: (-) Conduite | G54: - | K54: 0 | M54: 0
A55: 2017-01-06T10:37:40 | B55: 0.001331018519 | D55: Thousand Islands Bridge, Leeds and the Thousand Islands, ON, K0E, Canada | E55: (-) Service | G55: - | I55: 1 | K55: 0 | M55: 0
A56: 2017-01-06T10:39:35 | B56: 0.000625 | C56: 0.2 | D56: Thousand Islands Bridge, Rockport, ON, K0E 1V0, Canada | E56: (45) T.L.C. | G56: - | K56: 0 | M56: 0
A57: 2017-01-06T10:40:29 | B57: 0.1206712963 | C57: 258.9 | D57: 1000 Thousand Islands Bridge, Leeds and the Thousand Islands, ON, K0E, Canada | E57: (-) Conduite | G57: - | K57: 0 | M57: 0
A58: 2017-01-06T13:34:15 | B58: 0.03483796296 | C58: 0.2 | D58: 10685 Boulevard Henri-Bourassa Est, Montréal, QC, H1C 1G7, Canada | E58: (51) Décharger No commande: 90812 Voyage: Régulier Nom du client: insta mix TOILE: False TWIC: False PRIME N.Y: False Signature B/L: Oui ODOMÈTRE: 92495.37 | G58: - | K58: 1 | M58: 0
A59: 2017-01-06T14:24:25 | B59: 0.03295138889 | C59: 55.3 | D59: 10635 Boulevard Henri-Bourassa Est, Montréal, QC, H1C 1G7, Canada | E59: (-) Conduite | G59: - | K59: 0 | M59: 0
A60: 2017-01-06T15:11:52 | B60: 0.02725694444 | C60: 0.3 | D60: express terminal, 922 Grande Côte Ouest, Lanoraie, QC, Canada | E60: (4) Pause | G60: - | K60: 0 | M60: 0
A61: 2017-01-06T15:51:07 | B61: 0.007662037037 | C61: 0.2 | D61: express terminal, 922 Grande Côte Ouest, Lanoraie, QC, Canada | E61: (64) Carburant (presser et remplir) Fournisseur: Gasboy - COURS EXPRESS MONDOR MÉTHODE DE PAIEMENT: GASBOY- COURS EXPRESS MONDOR MONTANT: 0 Qte de Carburant: 370.008 Unité: True D.E.F.: 0 Unité: False | G61: - | K61: 0 | M61: 0
A62: 2017-01-06T16:02:09 | B62: 0.3318402778 | D62: express terminal, 922 Grande Côte Ouest, Lanoraie, QC, Canada | E62: (3) Fin travail | G62: - | K62: 0 | M62: 0
A63: 731.7000122 | G63: - | K63: 0 | M63: 0
A64: (hh:mm:ss) | B64: (hh:mm:ss) | C64: (km) | G64: - | K64: 0 | M64: 0
A65: 0 | G65: - | K65: 0 | M65: 0
M67: commentaire
A68: Contact | E68: =SUM($K$3:K316) -> 5
A70: Kilométrage milles | E70: =A71*0.6214 -> 1943.49064
A71: =SUM($C$3:C369) -> 3127.6
A72: Over size kilométrage -10' | E72: =A73*0.6214 -> 0
A73: =MAX(C66:C362)-MIN(C66:C362) -> 0
A74: Over size kilométrage +10' | E74: =A75*0.6214 -> 0
A75: =MAX(C66:C362)-MIN(C66:C362) -> 0
A76: journée non complète | E76: =SUM($S$3:S316) -> 0
A78: Arrêt journée de semaine | E78: =SUM($U$3:$U314) -> 1
A80: Arrêt journée de fin semaine | E80: =SUM($T$3:$T314) -> 1
A82: Arrêt obligatoir 36h | E82: =SUM($V$3:$V314) -> 0
A84: Prime Surdimention 12' et moin | E84: =SUM($P$3:P316) -> 0
A86: Prime Surdimention 12' et plus | E86: =SUM($Q$3:Q318) -> 0
A88: TRAVAIL DE VILLE | E88: =SUM($G$3:G316) -> 00:00:00
A90: Prime New York | E90: =SUM(R3:R362) -> 0
A92: TWICK | E92: =SUM($L$3:L316) -> 0
A94: Douane | E94: =SUM($I$3:I316) -> 1
A96: Attente chargement | E96: =SUM($F$3:F316) -> 00:50:00

Sheet Fournier M-A
B1: Fournier Marc-André | E1: 02:00:00 | F1: Semaine du | N1: =#REF! ->  | T1: =#REF! -> 
A2: DATE / HEURES | B2: TEMPS | C2: ODOMÈTRE | D2: lieu | E2: Activité | F2: ATTENTE (HEURE) | G2: VILLE ET MANUTENTION (HEURE) | H2: SUPERLOAD (HEURE) | I2: DOUANES | J2: Transport explosif | K2: CONTACTS | L2: TWICK | N2: Surdimension 12' et moin | O2: Surdimension 12' et plus | P2: prime surdimenssion 12' et moin | Q2: prime surdimenssion 12' et plus | R2: PRIME NEW YORK | S2: ARRÊT JOURNÉE NON-COMPLÈTE | T2: ARRÊT CONPLET- JOURNÉE DE FIN DE SEMAINE | U2: ARRÊT JOURNÉE DE SEMAINE | V2: Arrêt obligatoir 36h | W2: Opérateur | X2: Numéro de véhicule | Y2: Date de début | Z2: Ville | AA2: État / Province | AB2: Pays | AC2: No commande | AD2: LAYOVER | AE2: Montant
F3: =IF(ISERROR(SEARCH("ATTENTE",E3)),"",$B3) ->  | G3: =IF(COUNTIF(E3,"*Formation*")+COUNTIF(E3,"*Travail de cours*")+COUNTIF(E3,"*réunion*")+COUNTIF(E3,"*escorte routière*")+COUNTIF(E3,"*courte distance*")>0,B3,"-") -> - | H3: =IF(ISERROR(SEARCH("superload: True",E3)),"",$B3) ->  | I3: =IF(ISERROR(SEARCH("Douane",E3)),"",1) ->  | J3: =IF(ISERROR(SEARCH("transport explosif",E3)),"",1) ->  | K3: =IF(COUNTIF(E3,"*toile: true*"),1,0)+IF(COUNTIF(E3,"*charger*"),1,0)+IF(COUNTIF(E3,"*déchargr*"),1,0)+IF(COUNTIF(E3,"*CHARGÉ: TRUE*"),1,0) -> 0 | L3: =IF(ISERROR(SEARCH("TWIC: True",E3)),"",1) ->  | M3: =LEN($N3) -> 0 | N3: =IFERROR(IF(LEFT(MID($E3,SEARCH("Largeur pi-po",$E3,1)+15,100),2)*1<12,LEFT(MID($E3,SEARCH("Largeur pi-po",$E3,1)+15,100),2)*1,""),"") ->  | O3: =IFERROR(IF(LEFT(MID($E3,SEARCH("Largeur pi-po",$E3,1)+15,100),2)*1>=12,LEFT(MID($E3,SEARCH("Largeur pi-po",$E3,1)+15,100),2)*1,""),"") ->  | P3: =IF(N3<12,1,"") ->  | Q3: =IF(O3="","",IF(O3>=12,1,"")) ->  | R3: =IF(ISERROR(SEARCH("PRIME N.Y: True",E3)),"",1) ->  | S3: =IF(ISERROR(SEARCH("Journée non complète",E3)),"",1) ->  | T3: =IF(ISERROR(SEARCH("Fin de semaine",E3)),"",1) ->  | U3: =IF(ISERROR(SEARCH("1 Journée compète semaine",E3)),"",1) ->  | V3: =IF(ISERROR(SEARCH("Arrêt obligatoir (36H)",E3)),"",1) -> 
A4: (jj/mm/aaaa hh:mm) | B4: (hh:mm:ss) | C4: (km) | F4: =IF(ISERROR(SEARCH("ATTENTE",E4)),"",$B4) ->  | G4: =IF(COUNTIF(E4,"*Formation*")+COUNTIF(E4,"*Travail de cours*")+COUNTIF(E4,"*réunion*")+COUNTIF(E4,"*escorte routière*")+COUNTIF(E4,"*courte distance*")>0,B4,"-") -> - | H4: =IF(ISERROR(SEARCH("superload: True",E4)),"",$B4) ->  | I4: =IF(ISERROR(SEARCH("Douane",E4)),"",1) ->  | J4: =IF(ISERROR(SEARCH("transport explosif",E4)),"",1) ->  | K4: =IF(COUNTIF(E4,"*toile: true*"),1,0)+IF(COUNTIF(E4,"*charger*"),1,0)+IF(COUNTIF(E4,"*déchargr*"),1,0)+IF(COUNTIF(E4,"*CHARGÉ: TRUE*"),1,0) -> 0 | L4: =IF(ISERROR(SEARCH("TWIC: True",E4)),"",1) ->  | M4: =LEN($N4) -> 0 | N4: =IFERROR(IF(LEFT(MID($E4,SEARCH("Largeur pi-po",$E4,1)+15,100),2)*1<12,LEFT(MID($E4,SEARCH("Largeur pi-po",$E4,1)+15,100),2)*1,""),"") ->  | O4: =IFERROR(IF(LEFT(MID($E4,SEARCH("Largeur pi-po",$E4,1)+15,100),2)*1>=12,LEFT(MID($E4,SEARCH("Largeur pi-po",$E4,1)+15,100),2)*1,""),"") ->  | P4: =IF(N4<12,1,"") ->  | Q4: =IF(O4="","",IF(O4>=12,1,"")) ->  | R4: =IF(ISERROR(SEARCH("PRIME N.Y: True",E4)),"",1) ->  | S4: =IF(ISERROR(SEARCH("Journée non complète",E4)),"",1) ->  | T4: =IF(ISERROR(SEARCH("Fin de semaine",E4)),"",1) ->  | U4: =IF(ISERROR(SEARCH("1 Journée compète semaine",E4)),"",1) ->  | V4: =IF(ISERROR(SEARCH("Arrêt obligatoir (36H)",E4)),"",1) -> 
A5: 0 | G5: - | K5: 0 | M5: 0
A6: (hh:mm:ss) | B6: (hh:mm:ss) | C6: (km) | G6: - | K6: 0 | M6: 0
A7: 0 | G7: - | K7: 0 | M7: 0
A8: 2017-01-03T03:43:34 | D8: express terminal, 922 Grande Côte Ouest, Lanoraie, QC, Canada | E8: Connexion | G8: - | K8: 0 | M8: 0
A9: 2017-01-03T03:47:24 | B9: 0.0002430555556 | D9: express terminal, 922 Grande Côte Ouest, Lanoraie, QC, Canada | E9: (42) Atteler EQUIPMENT_NAME: BT283280A | G9: - | K9: 0 | M9: 0
A10: 2017-01-03T03:47:45 | B10: 0.0004398148148 | D10: express terminal, 922 Grande Côte Ouest, Lanoraie, QC, Canada | E10: (42) Atteler EQUIPMENT_NAME: BT322281B | G10: - | K10: 0 | M10: 0
A11: 2017-01-03T03:48:23 | B11: 0.0005787037037 | D11: express terminal, 922 Grande Côte Ouest, Lanoraie, QC, Canada | E11: (40) V.A.D. VEHICLE_NO: 2013191 | G11: - | K11: 0 | M11: 0
A12: 2017-01-03T03:49:13 | B12: 0.0001157407407 | D12: express terminal, 922 Grande Côte Ouest, Lanoraie, QC, Canada | E12: (40) V.A.D. EQUIPMENT_NAME: BT283280A | G12: - | K12: 0 | M12: 0
A13: 2017-01-03T03:49:23 | B13: 0.01144675926 | C13: 0.2000000001 | D13: express terminal, 922 Grande Côte Ouest, Lanoraie, QC, Canada | E13: (40) V.A.D. EQUIPMENT_NAME: BT322281B | G13: - | K13: 0 | M13: 0
A14: 2017-01-03T04:05:52 | B14: 0.05708333333 | C14: 123.8 | D14: express terminal, 922 Grande Côte Ouest, Lanoraie, QC, Canada | E14: (-) Conduite | G14: - | K14: 0 | M14: 0
A15: 2017-01-03T05:28:04 | B15: 0.003668981481 | D15: 103 Montée Lavigne, Rigaud, QC, J0P 1P0, Canada | E15: (45) T.L.C. | G15: - | K15: 0 | M15: 0
A16: 2017-01-03T05:33:21 | B16: 0.09283564815 | C16: 203.7 | D16: 98 Québec 201, Rigaud, QC, J0P 1P0, Canada | E16: (-) Conduite | G16: - | K16: 0 | M16: 0
A17: 2017-01-03T07:47:02 | B17: 0.02131944444 | C17: 0.09999999998 | D17: 580 White Lake Road, Arnprior, ON, K7S 3G9, Canada | E17: (-) Service | G17: - | K17: 0 | M17: 0
A18: 2017-01-03T08:17:44 | B18: 0.00119212963 | C18: 0.2 | D18: 580 White Lake Road, Arnprior, ON, K7S 3G9, Canada | E18: (4) Pause | G18: - | K18: 0 | M18: 0
A19: 2017-01-03T08:19:27 | B19: 0.0862037037 | C19: 166.7 | D19: 588-630 White Lake Road, Arnprior, ON, K7S 3G9, Canada | E19: (-) Conduite | G19: - | K19: 0 | M19: 0
A20: 2017-01-03T10:23:35 | B20: 0.0128587963 | D20: 40742 Ontario 17, Stonecliffe, ON, K0J 2K0, Canada | E20: (4) Pause | G20: - | K20: 0 | M20: 0
A21: 2017-01-03T10:42:06 | B21: 0.1412037037 | C21: 262.6 | D21: 40798 Trans-Canada Highway, Stonecliffe, ON, K0J 2K0, Canada | E21: (-) Conduite | G21: - | K21: 0 | M21: 0
A22: 2017-01-03T14:05:26 | B22: 0.06150462963 | D22: 1700 Clarabelle Road, Sudbury, ON, P0M 1N0, Canada | E22: (4) Pause | G22: - | K22: 0 | M22: 0
A23: 2017-01-03T15:34:00 | B23: 0.01917824074 | C23: 0.3 | D23: 1700 Clarabelle Road, Sudbury, ON, P0M 1N0, Canada | E23: (51) Décharger No commande: 90748 Voyage: Régulier Nom du client: clarabelle TOILE: False TWIC: False PRIME N.Y: False Signature B/L: Oui ODOMÈTRE: 716507,105 | G23: - | K23: 1 | M23: 0
A24: 2017-01-03T16:01:37 | B24: 0.1195717593 | C24: 264.4 | D24: 1700 Clarabelle Road, Sudbury, ON, P0M 1N0, Canada | E24: (-) Conduite | G24: - | K24: 0 | M24: 0
A25: 2017-01-03T18:53:48 | B25: 0.004189814815 | C25: 0.4 | D25: 430 Pine Street, Waubaushene, ON, L0K 2C0, Canada | E25: (2) Couchette | G25: - | K25: 0 | M25: 0
A26: 2017-01-03T18:59:50 | B26: 0.005810185185 | C26: 4.3 | D26: 430 Pine Street, Waubaushene, ON, L0K 2C0, Canada | E26: (-) Conduite | G26: - | K26: 0 | M26: 0
A27: 2017-01-03T19:08:12 | B27: 0.2026388889 | D27: Trans-Canada Highway, Waubaushene, ON, L0K 2C0, Canada | E27: (2) Couchette | G27: - | K27: 0 | M27: 0
A28: 1025.5 | G28: - | K28: 0 | M28: 0
A29: 2017-01-04T04:56:03 | B29: 0.0004513888889 | D29: Trans-Canada Highway, Waubaushene, ON, L0K 2C0, Canada | E29: (40) V.A.D. EQUIPMENT_NAME: BT322281B | G29: - | K29: 0 | M29: 0
A30: 2017-01-04T04:56:42 | B30: 8.101851852e-05 | D30: Trans-Canada Highway, Waubaushene, ON, L0K 2C0, Canada | E30: (40) V.A.D. VEHICLE_NO: 2013191 | G30: - | K30: 0 | M30: 0
A31: 2017-01-04T04:56:49 | B31: 0.01059027778 | C31: 0.2 | D31: Trans-Canada Highway, Waubaushene, ON, L0K 2C0, Canada | E31: (40) V.A.D. EQUIPMENT_NAME: BT283280A | G31: - | K31: 0 | M31: 0
A32: 2017-01-04T05:12:04 | B32: 0.06248842593 | C32: 141.7 | D32: Trans-Canada Highway, Waubaushene, ON, L0K 2C0, Canada | E32: (-) Conduite | G32: - | K32: 0 | M32: 0
A33: 2017-01-04T06:42:03 | B33: 0.01094907407 | C33: 0.2999999999 | D33: 1533 Shawson Drive, Mississauga, ON, L4W 1T7, Canada | E33: (4) Pause | G33: - | K33: 0 | M33: 0
A34: 2017-01-04T06:57:49 | B34: 0.03478009259 | C34: 72.4 | D34: 1566 Shawson Drive, Mississauga, ON, L4W 1N7, Canada | E34: (-) Conduite | G34: - | K34: 0 | M34: 0
A35: 2017-01-04T07:47:54 | B35: 0.01212962963 | C35: 0.4 | D35: 740 Parkdale Avenue North, Hamilton, ON, L8H, Canada | E35: (64) Carburant (presser et remplir) Fournisseur: Pétro Canada - SUPERPASS MÉTHODE DE PAIEMENT: SUNCORS ENERGIE - PETRO-PASS/SUPER-PASS MONTANT: 1 Qte de Carburant: 700 Unité: True Unité: False | G35: - | K35: 0 | M35: 0
A36: 2017-01-04T08:05:22 | B36: 0.0369212963 | C36: 79.6 | D36: 755-757 Parkdale Avenue North, Hamilton, ON, L8H, Canada | E36: (-) Conduite | G36: - | K36: 0 | M36: 0
A37: 2017-01-04T08:58:32 | B37: 0.001840277778 | C37: 0.2 | D37: 1965 Ramey Road, Port Colborne, ON, L0S 1R0, Canada | E37: (-) Service | G37: - | K37: 0 | M37: 0
A38: 2017-01-04T09:01:11 | B38: 0.002314814815 | C38: 1.1 | D38: 1965 Ramey Road, Port Colborne, ON, L0S 1R0, Canada | E38: (-) Conduite | G38: - | K38: 0 | M38: 0
A39: 2017-01-04T09:04:31 | B39: 0.02047453704 | D39: 1607 Snider Road, Port Colborne, ON, L3K 5V3, Canada | E39: (4) Pause | G39: - | K39: 0 | M39: 0
A40: 2017-01-04T09:34:00 | B40: 0.009479166667 | C40: 0.3999999999 | D40: 1607 Snider Road, Port Colborne, ON, L3K 5V3, Canada | E40: (49) Charger No commande: 9 Nom du client: rankins/enercon TOILE: False TWIC: False PRIME N.Y: False Signature B/L: Oui | G40: - | K40: 1 | M40: 0
A41: 2017-01-04T09:47:39 | B41: 0.07454861111 | C41: 155 | D41: 874 Second Concession Road, Port Colborne, ON, L3K 5V3, Canada | E41: (-) Conduite | G41: - | K41: 0 | M41: 0
A42: 2017-01-04T11:35:00 | B42: 0.005115740741 | C42: 0.2000000001 | D42: 9301 50, Vaughan, ON, L0J, Canada | E42: (4) Pause | G42: - | K42: 0 | M42: 0
A43: 2017-01-04T11:42:22 | B43: 0.004583333333 | C43: 3.1 | D43: Rutherford Road, Vaughan, ON, L0J, Canada | E43: (-) Conduite | G43: - | K43: 0 | M43: 0
A44: 2017-01-04T11:48:58 | B44: 0.02293981481 | D44: 7050 Major Mackenzie Drive, Vaughan, ON, L0J 1C0, Canada | E44: (4) Pause | G44: - | K44: 0 | M44: 0
A45: 2017-01-04T12:22:00 | B45: 0.01141203704 | C45: 1.2 | D45: 7050 Major Mackenzie Drive, Vaughan, ON, L0J 1C0, Canada | E45: (51) Décharger No commande: 9 Voyage: Régulier Nom du client: seatainer TOILE: False TWIC: False PRIME N.Y: False Signature B/L: Oui ODOMÈTRE: 717232,04 | G45: - | K45: 1 | M45: 0
A46: 2017-01-04T12:38:26 | B46: 0.07326388889 | C46: 161.9 | D46: 7301 Major Mackenzie Drive, Vaughan, ON, L0J, Canada | E46: (-) Conduite | G46: - | K46: 0 | M46: 0
A47: 2017-01-04T14:23:56 | B47: 0.006331018519 | D47: 1637 Pettit Road, Fort Erie, ON, L2A 5M4, Canada | E47: (64) Carburant (presser et remplir) Fournisseur: Shell/Flying J - TCH MÉTHODE DE PAIEMENT: TCH - SHELL/FLYING J MONTANT: 237.38 Qte de Carburant: 203.061 Unité: False Unité: False | G47: - | K47: 0 | M47: 0
A48: 2017-01-04T14:33:03 | B48: 0.02877314815 | C48: 0.4 | D48: 1637 Pettit Road, Fort Erie, ON, L2A 5M4, Canada | E48: (2) Couchette | G48: - | K48: 0 | M48: 0
A49: 2017-01-04T15:14:29 | B49: 0.007939814815 | C49: 7.9 | D49: 1637 Pettit Road, Fort Erie, ON, L2A 5M4, Canada | E49: (-) Conduite | G49: - | K49: 0 | M49: 0
A50: 2017-01-04T15:25:55 | B50: 0.002847222222 | D50: 401-403 Crescent Road, Fort Erie, ON, L2A 4P6, Canada | E50: (-) Service | G50: - | K50: 0 | M50: 0
A51: 2017-01-04T15:30:01 | B51: 0.0084375 | C51: 4.2 | D51: 403-409 Crescent Road, Fort Erie, ON, L2A 4P6, Canada | E51: (-) Conduite | G51: - | K51: 0 | M51: 0
A52: 2017-01-04T15:42:10 | B52: 0.02466435185 | D52: 570 Garrison Road, Fort Erie, ON, L2A 1N4, Canada | E52: (-) Service | G52: - | K52: 0 | M52: 0
A53: 2017-01-04T16:17:41 | B53: 0.005451388889 | C53: 4.5 | D53: 596 Garrison Road, Fort Erie, ON, L2A, Canada | E53: (-) Conduite | G53: - | K53: 0 | M53: 0
A54: 2017-01-04T16:25:32 | B54: 0.3156018519 | D54: 1637 Pettit Road, Fort Erie, ON, L2A 5M4, Canada | E54: (2) Couchette | G54: - | K54: 0 | M54: 0
A55: 631.4000244 | G55: - | K55: 0 | M55: 0
A56: 2017-01-05T02:57:18 | B56: 0.0001273148148 | D56: 1637 Pettit Road, Fort Erie, ON, L2A 5M4, Canada | E56: (40) V.A.D. VEHICLE_NO: 2013191 | G56: - | K56: 0 | M56: 0
A57: 2017-01-05T02:57:29 | B57: 0.0001273148148 | D57: 1637 Pettit Road, Fort Erie, ON, L2A 5M4, Canada | E57: (40) V.A.D. EQUIPMENT_NAME: BT283280A | G57: - | K57: 0 | M57: 0
A58: 2017-01-05T02:57:40 | B58: 0.01311342593 | C58: 0.2000000001 | D58: 1637 Pettit Road, Fort Erie, ON, L2A 5M4, Canada | E58: (43) Dételer EQUIPMENT_NAME: BT322281B | G58: - | K58: 0 | M58: 0
A59: 2017-01-05T03:16:33 | B59: 0.003622685185 | C59: 5.7 | D59: 1637 Pettit Road, Fort Erie, ON, L2A 5M4, Canada | E59: (-) Conduite | G59: - | K59: 0 | M59: 0
A60: 2017-01-05T03:21:46 | B60: 0.005277777778 | D60: 374-360 Douglas Street, Fort Erie, ON, L2A 1M5, Canada | E60: (4) Pause | G60: - | K60: 0 | M60: 0
A61: 2017-01-05T03:29:22 | B61: 0.003888888889 | C61: 1.8 | D61: Queen Elizabeth Way, Fort Erie, ON, L2A, Canada | E61: (-) Conduite | G61: - | K61: 0 | M61: 0
A62: 2017-01-05T03:34:58 | B62: 0.002060185185 | C62: 0.09999999998 | D62: 956 Busti Avenue, Buffalo, NY, 14213, United States | E62: (-) Service | G62: - | I62: 1 | K62: 0 | M62: 0
A63: 2017-01-05T03:37:56 | B63: 0.1474074074 | C63: 317.3 | D63: Peace Bridge, Buffalo, NY, 14213, United States | E63: (-) Conduite | G63: - | K63: 0 | M63: 0
A64: 2017-01-05T07:10:12 | B64: 0.05263888889 | D64: 809 North Cedar Street, New Castle, PA, 16102, United States | E64: (4) Pause | G64: - | K64: 0 | M64: 0
A65: 2017-01-05T08:26:00 | B65: 0.01391203704 | C65: 0.1000000001 | D65: 809 North Cedar Street, New Castle, PA, 16102, United States | E65: (49) Charger No commande: 90817 Nom du client: hilti TOILE: True TWIC: False PRIME N.Y: False Signature B/L: Oui | G65: - | K65: 2 | M65: 0
A66: 2017-01-05T08:46:02 | B66: 0.07858796296 | C66: 174.9 | D66: 809 North Cedar Street, New Castle, PA, 16102, United States | E66: (-) Conduite | G66: - | K66: 0 | M66: 0
A67: 2017-01-05T10:39:12 | B67: 0.003668981481 | D67: 3958-3998 Depot Road, Erie, PA, 16510, United States | E67: (4) Pause | G67: - | K67: 0 | M67: 0
A68: 2017-01-05T10:44:29 | B68: 0.001238425926 | C68: 0.2000000001 | D68: 3958-3998 Depot Road, Erie, PA, 16510, United States | E68: (45) T.L.C. | F68: =IF(ISERROR(SEARCH("ATTENTE",E68)),"",$B68) ->  | G68: =IF(COUNTIF(E68,"*Formation*")+COUNTIF(E68,"*Travail de cours*")+COUNTIF(E68,"*réunion*")+COUNTIF(E68,"*escorte routière*")+COUNTIF(E68,"*courte distance*")>0,B68,"-") -> - | H68: =IF(ISERROR(SEARCH("superload: True",E68)),"",$B68) ->  | I68: =IF(ISERROR(SEARCH("Douane",E68)),"",1) ->  | J68: =IF(ISERROR(SEARCH("transport explosif",E68)),"",1) ->  | K68: =IF(COUNTIF(E68,"*toile: true*"),1,0)+IF(COUNTIF(E68,"*charger*"),1,0)+IF(COUNTIF(E68,"*déchargr*"),1,0)+IF(COUNTIF(E68,"*CHARGÉ: TRUE*"),1,0) -> 0 | L68: =IF(ISERROR(SEARCH("TWIC: True",E68)),"",1) ->  | M68: =LEN($N68) -> 0 | N68: =IFERROR(IF(LEFT(MID($E68,SEARCH("Largeur pi-po",$E68,1)+15,100),2)*1<12,LEFT(MID($E68,SEARCH("Largeur pi-po",$E68,1)+15,100),2)*1,""),"") ->  | O68: =IFERROR(IF(LEFT(MID($E68,SEARCH("Largeur pi-po",$E68,1)+15,100),2)*1>=12,LEFT(MID($E68,SEARCH("Largeur pi-po",$E68,1)+15,100),2)*1,""),"") ->  | P68: =IF(N68<12,1,"") ->  | Q68: =IF(O68="","",IF(O68>=12,1,"")) ->  | R68: =IF(ISERROR(SEARCH("PRIME N.Y: True",E68)),"",1) ->  | S68: =IF(ISERROR(SEARCH("Journée non complète",E68)),"",1) ->  | T68: =IF(ISERROR(SEARCH("Fin de semaine",E68)),"",1) ->  | U68: =IF(ISERROR(SEARCH("1 Journée compète semaine",E68)),"",1) ->  | V68: =IF(ISERROR(SEARCH("Arrêt obligatoir (36H)",E68)),"",1) -> 
A69: 2017-01-05T10:46:16 | B69: 0.0721412037 | C69: 145.6 | D69: 3958-3998 Depot Road, Erie, PA, 16510, United States | E69: (-) Conduite | G69: - | K69: 0 | M69: 0
A70: 2017-01-05T12:30:09 | B70: 0.009826388889 | C70: 0.3 | D70: 9 Queen Elizabeth Way, Fort Erie, ON, L2A, Canada | E70: (4) Pause | G70: - | I70: 1 | K70: 0 | M70: 0
A71: 2017-01-05T12:44:18 | B71: 0.004895833333 | C71: 5.4 | D71: Archange Street, Fort Erie, ON, L2A 1T6, Canada | E71: (-) Conduite | G71: - | K71: 0 | M71: 0
A72: 2017-01-05T12:51:21 | B72: 0.0003356481481 | D72: 1637 Pettit Road, Fort Erie, ON, L2A 5M4, Canada | E72: (43) Dételer EQUIPMENT_NAME: BT283280A | G72: - | K72: 0 | M72: 0
A73: 2017-01-05T12:51:50 | B73: 0.0002893518519 | D73: 1637 Pettit Road, Fort Erie, ON, L2A 5M4, Canada | E73: (42) Atteler EQUIPMENT_NAME: BT322281B | G73: - | K73: 0 | M73: 0
A74: 2017-01-05T12:52:15 | B74: 0.007824074074 | C74: 0.1000000001 | D74: 1637 Pettit Road, Fort Erie, ON, L2A 5M4, Canada | E74: (40) V.A.D. EQUIPMENT_NAME: BT322281B | G74: - | K74: 0 | M74: 0
A75: 2017-01-05T13:03:31 | B75: 0.003587962963 | C75: 5.8 | D75: 1637 Pettit Road, Fort Erie, ON, L2A 5M4, Canada | E75: (-) Conduite | G75: - | K75: 0 | M75: 0
A76: 2017-01-05T13:08:41 | B76: 0.005902777778 | D76: 374-360 Douglas Street, Fort Erie, ON, L2A 1M5, Canada | E76: (4) Pause | G76: - | K76: 0 | M76: 0
A77: 2017-01-05T13:17:11 | B77: 0.0002662037037 | C77: 0.09999999998 | D77: Queen Elizabeth Way, Fort Erie, ON, L2A, Canada | E77: (-) Conduite | G77: - | K77: 0 | M77: 0
A78: 2017-01-05T13:17:34 | B78: 0.001574074074 | C78: 0.1000000001 | D78: Queen Elizabeth Way, Fort Erie, ON, L2A, Canada | E78: (4) Pause | G78: - | K78: 0 | M78: 0
A79: 2017-01-05T13:19:50 | B79: 0.002685185185 | C79: 1.6 | D79: Queen Elizabeth Way, Fort Erie, ON, L2A, Canada | E79: (-) Conduite | G79: - | K79: 0 | M79: 0
A80: 2017-01-05T13:23:42 | B80: 0.00400462963 | C80: 0.09999999998 | D80: 956 Busti Avenue, Buffalo, NY, 14213, United States | E80: (4) Pause | G80: - | I80: 1 | K80: 0 | M80: 0
A81: 2017-01-05T13:29:28 | B81: 0.008726851852 | C81: 18 | D81: 10513 Peace Bridge, Buffalo, NY, 14213, United States | E81: (-) Conduite | G81: - | K81: 0 | M81: 0
A82: 2017-01-05T13:42:02 | B82: 0.001331018519 | D82: Governor Thomas E. Dewey Thruway, West Seneca, NY, 14218, United States | E82: (-) Service | G82: - | K82: 0 | M82: 0
A83: 2017-01-05T13:43:57 | B83: 0.1524652778 | C83: 299.1 | D83: Governor Thomas E. Dewey Thruway, West Seneca, NY, 14218, United States | E83: (-) Conduite | G83: - | K83: 0 | M83: 0
A84: 2017-01-05T17:23:30 | B84: 0.2753472222 | C84: 0.4 | D84: 809 North Cedar Street, New Castle, PA, 16102, United States | E84: (2) Couchette | G84: - | K84: 0 | M84: 0
A85: 975.2999878 | G85: - | K85: 0 | M85: 0
A86: 2017-01-06T09:52:06 | B86: 9.259259259e-05 | D86: 809 North Cedar Street, New Castle, PA, 16102, United States | E86: (40) V.A.D. VEHICLE_NO: 2013191 | G86: - | K86: 0 | M86: 0
A87: 2017-01-06T09:52:14 | B87: 0.008333333333 | D87: 809 North Cedar Street, New Castle, PA, 16102, United States | E87: (40) V.A.D. EQUIPMENT_NAME: BT322281B | G87: - | K87: 0 | M87: 0
A88: 2017-01-06T10:04:14 | B88: 0.004907407407 | C88: 0.09999999998 | D88: 809 North Cedar Street, New Castle, PA, 16102, United States | E88: (49) Charger No commande: 9 Nom du client: hilti TOILE: True TWIC: False PRIME N.Y: False Signature B/L: Oui | G88: - | K88: 2 | M88: 0
A89: 2017-01-06T10:11:18 | B89: 0.0955787037 | C89: 204.4 | D89: 809 North Cedar Street, New Castle, PA, 16102, United States | E89: (-) Conduite | G89: - | K89: 0 | M89: 0
A90: 2017-01-06T12:28:56 | B90: 0.002210648148 | C90: 0.6 | D90: Governor Thomas E. Dewey Thruway, Westfield, NY, 14787, United States | E90: (4) Pause | G90: - | K90: 0 | M90: 0
A91: 2017-01-06T12:32:07 | B91: 0.05342592593 | C91: 113 | D91: Governor Thomas E. Dewey Thruway, Westfield, NY, 14787, United States | E91: (-) Conduite | G91: - | K91: 0 | M91: 0
A92: 2017-01-06T13:49:03 | B92: 0.0015625 | C92: 0.5 | D92: 112 Peace Bridge, Buffalo, NY, 14213, United States | E92: (4) Pause | G92: - | K92: 0 | M92: 0
A93: 2017-01-06T13:51:18 | B93: 0.001076388889 | C93: 0.7000000001 | D93: 9 Queen Elizabeth Way, Fort Erie, ON, L2A, Canada | E93: (-) Conduite | G93: - | I93: 1 | K93: 0 | M93: 0
A94: 2017-01-06T13:52:51 | B94: 0.006053240741 | C94: 0.2 | D94: 9 Queen Elizabeth Way, Fort Erie, ON, L2A, Canada | E94: (4) Pause | G94: - | K94: 0 | M94: 0
A95: 2017-01-06T14:01:34 | B95: 0.0009490740741 | C95: 0.5 | D95: 10 Queen Street, Fort Erie, ON, L2A 6M4, Canada | E95: (-) Conduite | G95: - | K95: 0 | M95: 0
A96: 2017-01-06T14:02:56 | B96: 0.0003819444444 | C96: 0.09999999998 | D96: 12 Queen Elizabeth Way, Fort Erie, ON, L2A, Canada | E96: (-) Service | G96: - | K96: 0 | M96: 0
A97: 2017-01-06T14:03:29 | B97: 0.002928240741 | C97: 4.7 | D97: Central Avenue, Fort Erie, ON, L2A, Canada | E97: (-) Conduite | G97: - | K97: 0 | M97: 0
A98: 2017-01-06T14:07:42 | B98: 0.00712962963 | C98: 0.2 | D98: 1637 Pettit Road, Fort Erie, ON, L2A 5M4, Canada | E98: (64) Carburant (presser et remplir) Fournisseur: Shell/Flying J - TCH MÉTHODE DE PAIEMENT: TCH - SHELL/FLYING J MONTANT: 602.14 Qte de Carburant: 515.092 Unité: True Unité: False | G98: - | K98: 0 | M98: 0
A99: 2017-01-06T14:17:58 | B99: 0.0002662037037 | D99: 1637 Pettit Road, Fort Erie, ON, L2A 5M4, Canada | E99: (42) Atteler EQUIPMENT_NAME: BT283280A | G99: - | K99: 0 | M99: 0
A100: 2017-01-06T14:18:21 | B100: 0.004212962963 | C100: 0.09999999998 | D100: 1637 Pettit Road, Fort Erie, ON, L2A 5M4, Canada | E100: (40) V.A.D. EQUIPMENT_NAME: BT283280A | G100: - | K100: 0 | M100: 0
A101: 2017-01-06T14:24:25 | B101: 0.0121412037 | C101: 0.5 | D101: 1637 Pettit Road, Fort Erie, ON, L2A 5M4, Canada | E101: (4) Pause | G101: - | K101: 0 | M101: 0
A102: 2017-01-06T14:41:54 | B102: 0.18125 | C102: 371.3 | D102: 1637 Pettit Road, Fort Erie, ON, L2A 5M4, Canada | E102: (-) Conduite | G102: - | K102: 0 | M102: 0
A103: 2017-01-06T19:02:54 | B103: 0.09579861111 | C103: 0.4 | D103: 628 Lennox and Addington County Road 41, Greater Napanee, ON, K0K 2Z0, Canada | E103: (4) Pause | G103: - | K103: 0 | M103: 0
A104: 2017-01-06T21:20:51 | B104: 0.1105208333 | C104: 259.4 | D104: 628 Lennox and Addington County Road 41, Greater Napanee, ON, K0K 2Z0, Canada | E104: (-) Conduite | G104: - | K104: 0 | M104: 0
A105: 954 | G105: - | K105: 0 | M105: 0
A106: 2017-01-07 | B106: 0.06518518519 | C106: 144.9 | D106: Autoroute du Souvenir, Saint-Zotique, QC, J0P 1Z0, Canada | E106: (-) Conduite | G106: - | K106: 0 | M106: 0
A107: 2017-01-07T01:33:52 | B107: 0.006076388889 | D107: express terminal, 922 Grande Côte Ouest, Lanoraie, QC, Canada | E107: (64) Carburant (presser et remplir) Fournisseur: Gasboy - COURS EXPRESS MONDOR MÉTHODE DE PAIEMENT: GASBOY- COURS EXPRESS MONDOR MONTANT: 1 Qte de Carburant: 412 Unité: True Unité: False | G107: - | K107: 0 | M107: 0
A108: 2017-01-07T01:42:37 | B108: 0.9287384259 | C108: 1.2 | D108: express terminal, 922 Grande Côte Ouest, Lanoraie, QC, Canada | E108: (3) Fin travail | G108: - | K108: 0 | M108: 0
A109: 144.8999939 | G109: - | K109: 0 | M109: 0
M111: commentaire
A112: Contact | E112: =SUM($K$3:K360) -> 7
A114: Kilométrage milles | E114: =A115*0.6214 -> 2324.71954
A115: =SUM($C$3:C413) -> 3741.1
A116: Over size kilométrage -10' | E116: =A117*0.6214 -> 0
A117: =MAX(C110:C406)-MIN(C110:C406) -> 0
A118: Over size kilométrage +10' | E118: =A119*0.6214 -> 0
A119: =MAX(C110:C406)-MIN(C110:C406) -> 0
A120: journée non complète | E120: =SUM($S$3:S360) -> 0
A122: Arrêt journée de semaine | E122: =SUM($U$3:$U358) -> 0
A124: Arrêt journée de fin semaine | E124: =SUM($T$3:$T358) -> 0
A126: Arrêt obligatoir 36h | E126: =SUM($V$3:$V358) -> 0
A128: Prime Surdimention 12' et moin | E128: =SUM($P$3:P360) -> 0
A130: Prime Surdimention 12' et plus | E130: =SUM($Q$3:Q362) -> 0
A132: TRAVAIL DE VILLE | E132: =SUM($G$3:G360) -> 00:00:00
A134: Prime New York | E134: =SUM(R3:R406) -> 0
A136: TWICK | E136: =SUM($L$3:L360) -> 0
A138: Douane | E138: =SUM($I$3:I360) -> 4
A140: Attente chargement | E140: =SUM($F$3:F360) -> 00:00:00

Sheet Frigon B.
A1: Frigon Benjamin | E1: 02:00:00 | F1: Semaine du | N1: =TODAY()-WEEKDAY(TODAY())-6 -> 2017-04-09 | P1: =#REF! ->  | T1: =TODAY()-WEEKDAY(TODAY())+0 -> 2017-04-15 | U1: AU | V1: =#REF! -> 
A2: DATE / HEURES | B2: TEMPS | C2: ODOMÈTRE | D2: lieu | E2: Activité | F2: ATTENTE (HEURE) | G2: VILLE ET MANUTENTION (HEURE) | H2: SUPERLOAD (HEURE) | I2: DOUANES | J2: Transport explosif | K2: CONTACTS | L2: TWICK | N2: Surdimension 12' et moin | O2: Surdimension 12' et plus | P2: prime surdimenssion 12' et moin | Q2: prime surdimenssion 12' et plus | R2: PRIME NEW YORK | S2: ARRÊT JOURNÉE NON-COMPLÈTE | T2: ARRÊT CONPLET- JOURNÉE DE FIN DE SEMAINE | U2: ARRÊT JOURNÉE DE SEMAINE | V2: Arrêt obligatoir 36h | W2: Opérateur | X2: Numéro de véhicule | Y2: Date de début | Z2: Ville | AA2: État / Province | AB2: Pays | AC2: No commande | AD2: LAYOVER | AE2: Montant
